Workbook

Sheet Lizez-moi
A41: Today is: | B41: =TODAY() -> 2017-09-04 | C41: 15 Jours | D41: =B41+15 -> 2017-09-19 | E41: 30 Jours | F41: =D41+15 -> 2017-10-04

Sheet View
A1: Today:
A2: =TODAY() -> 2017-09-04 | B2: SENA | D2: SENB | F2: U19A | H2: U17A | J2: U16A | L2: U15A | N2: U14A | P2: U14B | R2: U13A | T2: U13B | V2: U12A
A3: =A2 -> 2017-09-04 | B3: =IF(ISERROR(VLOOKUP($A3,SENA!$A$11:$J$210,1,FALSE)),"",VLOOKUP($A3,SENA!$A$11:$J$210,2,FALSE)) ->  | C3: =IF(ISERROR(VLOOKUP($A3,SENA!$A$11:$J$210,1,FALSE)),"",VLOOKUP($A3,SENA!$A$11:$J$210,7,FALSE)) ->  | D3: =IF(ISERROR(VLOOKUP($A3,SENB!$A$11:$J$210,1,FALSE)),"",VLOOKUP($A3,SENB!$A$11:$J$210,2,FALSE)) ->  | E3: =IF(ISERROR(VLOOKUP($A3,SENB!$A$11:$J$210,1,FALSE)),"",VLOOKUP($A3,SENB!$A$11:$J$210,7,FALSE)) ->  | F3: =IF(ISERROR(VLOOKUP($A3,U19A!$A$11:$J$210,1,FALSE)),"",VLOOKUP($A3,U19A!$A$11:$J$210,2,FALSE)) ->  | G3: =IF(ISERROR(VLOOKUP($A3,U19A!$A$11:$J$210,1,FALSE)),"",VLOOKUP($A3,U19A!$A$11:$J$210,7,FALSE)) ->  | H3: =IF(ISERROR(VLOOKUP($A3,U17A!$A$11:$J$210,1,FALSE)),"",VLOOKUP($A3,U17A!$A$11:$J$210,2,FALSE)) ->  | I3: =IF(ISERROR(VLOOKUP($A3,U17A!$A$11:$J$210,1,FALSE)),"",VLOOKUP($A3,U17A!$A$11:$J$210,7,FALSE)) ->  | J3: =IF(ISERROR(VLOOKUP($A3,U16A!$A$11:$J$210,1,FALSE)),"",VLOOKUP($A3,U16A!$A$11:$J$210,2,FALSE)) ->  | K3: =IF(ISERROR(VLOOKUP($A3,U16A!$A$11:$J$210,1,FALSE)),"",VLOOKUP($A3,U16A!$A$11:$J$210,7,FALSE)) ->  | L3: =IF(ISERROR(VLOOKUP($A3,U15A!$A$11:$J$210,1,FALSE)),"",VLOOKUP($A3,U15A!$A$11:$J$210,2,FALSE)) ->  | M3: =IF(ISERROR(VLOOKUP($A3,U15A!$A$11:$J$210,1,FALSE)),"",VLOOKUP($A3,U15A!$A$11:$J$210,7,FALSE)) ->  | N3: =IF(ISERROR(VLOOKUP($A3,U14A!$A$11:$J$210,1,FALSE)),"",VLOOKUP($A3,U14A!$A$11:$J$210,2,FALSE)) ->  | O3: =IF(ISERROR(VLOOKUP($A3,U14A!$A$11:$J$210,1,FALSE)),"",VLOOKUP($A3,U14A!$A$11:$J$210,7,FALSE)) ->  | P3: =IF(ISERROR(VLOOKUP($A3,U14B!$A$11:$J$210,1,FALSE)),"",VLOOKUP($A3,U14B!$A$11:$J$210,2,FALSE)) ->  | Q3: =IF(ISERROR(VLOOKUP($A3,U14B!$A$11:$J$210,1,FALSE)),"",VLOOKUP($A3,U14B!$A$11:$J$210,7,FALSE)) ->  | R3: =IF(ISERROR(VLOOKUP($A3,U13A!$A$11:$J$210,1,FALSE)),"",VLOOKUP($A3,U13A!$A$11:$J$210,2,FALSE)) ->  | S3: =IF(ISERROR(VLOOKUP($A3,U13A!$A$11:$J$210,1,FALSE)),"",VLOOKUP($A3,U13A!$A$11:$J$210,7,FALSE)) ->  | T3: =IF(ISERROR(VLOOKUP($A3,U13B!$A$11:$J$210,1,FALSE)),"",VLOOKUP($A3,U13B!$A$11:$J$210,2,FALSE)) ->  | U3: =IF(ISERROR(VLOOKUP($A3,U13B!$A$11:$J$210,1,FALSE)),"",VLOOKUP($A3,U13B!$A$11:$J$210,7,FALSE)) ->  | V3: =IF(ISERROR(VLOOKUP($A3,U12A!$A$11:$J$210,1,FALSE)),"",VLOOKUP($A3,U12A!$A$11:$J$210,2,FALSE)) ->  | W3: =IF(ISERROR(VLOOKUP($A3,U12A!$A$11:$J$210,1,FALSE)),"",VLOOKUP($A3,U12A!$A$11:$J$210,7,FALSE)) -> 
A4: =A3+1 -> 2017-09-05 | B4: =IF(ISERROR(VLOOKUP($A4,SENA!$A$11:$J$210,1,FALSE)),"",VLOOKUP($A4,SENA!$A$11:$J$210,2,FALSE)) ->  | C4: =IF(ISERROR(VLOOKUP($A4,SENA!$A$11:$J$210,1,FALSE)),"",VLOOKUP($A4,SENA!$A$11:$J$210,7,FALSE)) ->  | D4: =IF(ISERROR(VLOOKUP($A4,SENB!$A$11:$J$210,1,FALSE)),"",VLOOKUP($A4,SENB!$A$11:$J$210,2,FALSE)) ->  | E4: =IF(ISERROR(VLOOKUP($A4,SENB!$A$11:$J$210,1,FALSE)),"",VLOOKUP($A4,SENB!$A$11:$J$210,7,FALSE)) ->  | F4: =IF(ISERROR(VLOOKUP($A4,U19A!$A$11:$J$210,1,FALSE)),"",VLOOKUP($A4,U19A!$A$11:$J$210,2,FALSE)) ->  | G4: =IF(ISERROR(VLOOKUP($A4,U19A!$A$11:$J$210,1,FALSE)),"",VLOOKUP($A4,U19A!$A$11:$J$210,7,FALSE)) ->  | H4: =IF(ISERROR(VLOOKUP($A4,U17A!$A$11:$J$210,1,FALSE)),"",VLOOKUP($A4,U17A!$A$11:$J$210,2,FALSE)) ->  | I4: =IF(ISERROR(VLOOKUP($A4,U17A!$A$11:$J$210,1,FALSE)),"",VLOOKUP($A4,U17A!$A$11:$J$210,7,FALSE)) ->  | J4: =IF(ISERROR(VLOOKUP($A4,U16A!$A$11:$J$210,1,FALSE)),"",VLOOKUP($A4,U16A!$A$11:$J$210,2,FALSE)) ->  | K4: =IF(ISERROR(VLOOKUP($A4,U16A!$A$11:$J$210,1,FALSE)),"",VLOOKUP($A4,U16A!$A$11:$J$210,7,FALSE)) ->  | L4: =IF(ISERROR(VLOOKUP($A4,U15A!$A$11:$J$210,1,FALSE)),"",VLOOKUP($A4,U15A!$A$11:$J$210,2,FALSE)) ->  | M4: =IF(ISERROR(VLOOKUP($A4,U15A!$A$11:$J$210,1,FALSE)),"",VLOOKUP($A4,U15A!$A$11:$J$210,7,FALSE)) ->  | N4: =IF(ISERROR(VLOOKUP($A4,U14A!$A$11:$J$210,1,FALSE)),"",VLOOKUP($A4,U14A!$A$11:$J$210,2,FALSE)) ->  | O4: =IF(ISERROR(VLOOKUP($A4,U14A!$A$11:$J$210,1,FALSE)),"",VLOOKUP($A4,U14A!$A$11:$J$210,7,FALSE)) ->  | P4: =IF(ISERROR(VLOOKUP($A4,U14B!$A$11:$J$210,1,FALSE)),"",VLOOKUP($A4,U14B!$A$11:$J$210,2,FALSE)) ->  | Q4: =IF(ISERROR(VLOOKUP($A4,U14B!$A$11:$J$210,1,FALSE)),"",VLOOKUP($A4,U14B!$A$11:$J$210,7,FALSE)) ->  | R4: =IF(ISERROR(VLOOKUP($A4,U13A!$A$11:$J$210,1,FALSE)),"",VLOOKUP($A4,U13A!$A$11:$J$210,2,FALSE)) ->  | S4: =IF(ISERROR(VLOOKUP($A4,U13A!$A$11:$J$210,1,FALSE)),"",VLOOKUP($A4,U13A!$A$11:$J$210,7,FALSE)) ->  | T4: =IF(ISERROR(VLOOKUP($A4,U13B!$A$11:$J$210,1,FALSE)),"",VLOOKUP($A4,U13B!$A$11:$J$210,2,FALSE)) ->  | U4: =IF(ISERROR(VLOOKUP($A4,U13B!$A$11:$J$210,1,FALSE)),"",VLOOKUP($A4,U13B!$A$11:$J$210,7,FALSE)) ->  | V4: =IF(ISERROR(VLOOKUP($A4,U12A!$A$11:$J$210,1,FALSE)),"",VLOOKUP($A4,U12A!$A$11:$J$210,2,FALSE)) ->  | W4: =IF(ISERROR(VLOOKUP($A4,U12A!$A$11:$J$210,1,FALSE)),"",VLOOKUP($A4,U12A!$A$11:$J$210,7,FALSE)) -> 
A5: =A4+1 -> 2017-09-06 | B5: =IF(ISERROR(VLOOKUP($A5,SENA!$A$11:$J$210,1,FALSE)),"",VLOOKUP($A5,SENA!$A$11:$J$210,2,FALSE)) ->  | C5: =IF(ISERROR(VLOOKUP($A5,SENA!$A$11:$J$210,1,FALSE)),"",VLOOKUP($A5,SENA!$A$11:$J$210,7,FALSE)) ->  | D5: =IF(ISERROR(VLOOKUP($A5,SENB!$A$11:$J$210,1,FALSE)),"",VLOOKUP($A5,SENB!$A$11:$J$210,2,FALSE)) ->  | E5: =IF(ISERROR(VLOOKUP($A5,SENB!$A$11:$J$210,1,FALSE)),"",VLOOKUP($A5,SENB!$A$11:$J$210,7,FALSE)) ->  | F5: =IF(ISERROR(VLOOKUP($A5,U19A!$A$11:$J$210,1,FALSE)),"",VLOOKUP($A5,U19A!$A$11:$J$210,2,FALSE)) ->  | G5: =IF(ISERROR(VLOOKUP($A5,U19A!$A$11:$J$210,1,FALSE)),"",VLOOKUP($A5,U19A!$A$11:$J$210,7,FALSE)) ->  | H5: =IF(ISERROR(VLOOKUP($A5,U17A!$A$11:$J$210,1,FALSE)),"",VLOOKUP($A5,U17A!$A$11:$J$210,2,FALSE)) ->  | I5: =IF(ISERROR(VLOOKUP($A5,U17A!$A$11:$J$210,1,FALSE)),"",VLOOKUP($A5,U17A!$A$11:$J$210,7,FALSE)) ->  | J5: =IF(ISERROR(VLOOKUP($A5,U16A!$A$11:$J$210,1,FALSE)),"",VLOOKUP($A5,U16A!$A$11:$J$210,2,FALSE)) ->  | K5: =IF(ISERROR(VLOOKUP($A5,U16A!$A$11:$J$210,1,FALSE)),"",VLOOKUP($A5,U16A!$A$11:$J$210,7,FALSE)) ->  | L5: =IF(ISERROR(VLOOKUP($A5,U15A!$A$11:$J$210,1,FALSE)),"",VLOOKUP($A5,U15A!$A$11:$J$210,2,FALSE)) ->  | M5: =IF(ISERROR(VLOOKUP($A5,U15A!$A$11:$J$210,1,FALSE)),"",VLOOKUP($A5,U15A!$A$11:$J$210,7,FALSE)) ->  | N5: =IF(ISERROR(VLOOKUP($A5,U14A!$A$11:$J$210,1,FALSE)),"",VLOOKUP($A5,U14A!$A$11:$J$210,2,FALSE)) ->  | O5: =IF(ISERROR(VLOOKUP($A5,U14A!$A$11:$J$210,1,FALSE)),"",VLOOKUP($A5,U14A!$A$11:$J$210,7,FALSE)) ->  | P5: =IF(ISERROR(VLOOKUP($A5,U14B!$A$11:$J$210,1,FALSE)),"",VLOOKUP($A5,U14B!$A$11:$J$210,2,FALSE)) ->  | Q5: =IF(ISERROR(VLOOKUP($A5,U14B!$A$11:$J$210,1,FALSE)),"",VLOOKUP($A5,U14B!$A$11:$J$210,7,FALSE)) ->  | R5: =IF(ISERROR(VLOOKUP($A5,U13A!$A$11:$J$210,1,FALSE)),"",VLOOKUP($A5,U13A!$A$11:$J$210,2,FALSE)) ->  | S5: =IF(ISERROR(VLOOKUP($A5,U13A!$A$11:$J$210,1,FALSE)),"",VLOOKUP($A5,U13A!$A$11:$J$210,7,FALSE)) ->  | T5: =IF(ISERROR(VLOOKUP($A5,U13B!$A$11:$J$210,1,FALSE)),"",VLOOKUP($A5,U13B!$A$11:$J$210,2,FALSE)) ->  | U5: =IF(ISERROR(VLOOKUP($A5,U13B!$A$11:$J$210,1,FALSE)),"",VLOOKUP($A5,U13B!$A$11:$J$210,7,FALSE)) ->  | V5: =IF(ISERROR(VLOOKUP($A5,U12A!$A$11:$J$210,1,FALSE)),"",VLOOKUP($A5,U12A!$A$11:$J$210,2,FALSE)) ->  | W5: =IF(ISERROR(VLOOKUP($A5,U12A!$A$11:$J$210,1,FALSE)),"",VLOOKUP($A5,U12A!$A$11:$J$210,7,FALSE)) -> 
A6: 2017-09-07 | B6: =IF(ISERROR(VLOOKUP($A6,SENA!$A$11:$J$210,1,FALSE)),"",VLOOKUP($A6,SENA!$A$11:$J$210,2,FALSE)) ->  | C6: =IF(ISERROR(VLOOKUP($A6,SENA!$A$11:$J$210,1,FALSE)),"",VLOOKUP($A6,SENA!$A$11:$J$210,7,FALSE)) ->  | D6: =IF(ISERROR(VLOOKUP($A6,SENB!$A$11:$J$210,1,FALSE)),"",VLOOKUP($A6,SENB!$A$11:$J$210,2,FALSE)) ->  | E6: =IF(ISERROR(VLOOKUP($A6,SENB!$A$11:$J$210,1,FALSE)),"",VLOOKUP($A6,SENB!$A$11:$J$210,7,FALSE)) ->  | F6: =IF(ISERROR(VLOOKUP($A6,U19A!$A$11:$J$210,1,FALSE)),"",VLOOKUP($A6,U19A!$A$11:$J$210,2,FALSE)) ->  | G6: =IF(ISERROR(VLOOKUP($A6,U19A!$A$11:$J$210,1,FALSE)),"",VLOOKUP($A6,U19A!$A$11:$J$210,7,FALSE)) ->  | H6: =IF(ISERROR(VLOOKUP($A6,U17A!$A$11:$J$210,1,FALSE)),"",VLOOKUP($A6,U17A!$A$11:$J$210,2,FALSE)) ->  | I6: =IF(ISERROR(VLOOKUP($A6,U17A!$A$11:$J$210,1,FALSE)),"",VLOOKUP($A6,U17A!$A$11:$J$210,7,FALSE)) ->  | J6: =IF(ISERROR(VLOOKUP($A6,U16A!$A$11:$J$210,1,FALSE)),"",VLOOKUP($A6,U16A!$A$11:$J$210,2,FALSE)) ->  | K6: =IF(ISERROR(VLOOKUP($A6,U16A!$A$11:$J$210,1,FALSE)),"",VLOOKUP($A6,U16A!$A$11:$J$210,7,FALSE)) ->  | L6: =IF(ISERROR(VLOOKUP($A6,U15A!$A$11:$J$210,1,FALSE)),"",VLOOKUP($A6,U15A!$A$11:$J$210,2,FALSE)) ->  | M6: =IF(ISERROR(VLOOKUP($A6,U15A!$A$11:$J$210,1,FALSE)),"",VLOOKUP($A6,U15A!$A$11:$J$210,7,FALSE)) ->  | N6: =IF(ISERROR(VLOOKUP($A6,U14A!$A$11:$J$210,1,FALSE)),"",VLOOKUP($A6,U14A!$A$11:$J$210,2,FALSE)) ->  | O6: =IF(ISERROR(VLOOKUP($A6,U14A!$A$11:$J$210,1,FALSE)),"",VLOOKUP($A6,U14A!$A$11:$J$210,7,FALSE)) ->  | P6: =IF(ISERROR(VLOOKUP($A6,U14B!$A$11:$J$210,1,FALSE)),"",VLOOKUP($A6,U14B!$A$11:$J$210,2,FALSE)) ->  | Q6: =IF(ISERROR(VLOOKUP($A6,U14B!$A$11:$J$210,1,FALSE)),"",VLOOKUP($A6,U14B!$A$11:$J$210,7,FALSE)) ->  | R6: =IF(ISERROR(VLOOKUP($A6,U13A!$A$11:$J$210,1,FALSE)),"",VLOOKUP($A6,U13A!$A$11:$J$210,2,FALSE)) ->  | S6: =IF(ISERROR(VLOOKUP($A6,U13A!$A$11:$J$210,1,FALSE)),"",VLOOKUP($A6,U13A!$A$11:$J$210,7,FALSE)) ->  | T6: =IF(ISERROR(VLOOKUP($A6,U13B!$A$11:$J$210,1,FALSE)),"",VLOOKUP($A6,U13B!$A$11:$J$210,2,FALSE)) ->  | U6: =IF(ISERROR(VLOOKUP($A6,U13B!$A$11:$J$210,1,FALSE)),"",VLOOKUP($A6,U13B!$A$11:$J$210,7,FALSE)) ->  | V6: =IF(ISERROR(VLOOKUP($A6,U12A!$A$11:$J$210,1,FALSE)),"",VLOOKUP($A6,U12A!$A$11:$J$210,2,FALSE)) ->  | W6: =IF(ISERROR(VLOOKUP($A6,U12A!$A$11:$J$210,1,FALSE)),"",VLOOKUP($A6,U12A!$A$11:$J$210,7,FALSE)) -> 
A7: 2017-09-08 | B7: =IF(ISERROR(VLOOKUP($A7,SENA!$A$11:$J$210,1,FALSE)),"",VLOOKUP($A7,SENA!$A$11:$J$210,2,FALSE)) ->  | C7: =IF(ISERROR(VLOOKUP($A7,SENA!$A$11:$J$210,1,FALSE)),"",VLOOKUP($A7,SENA!$A$11:$J$210,7,FALSE)) ->  | D7: =IF(ISERROR(VLOOKUP($A7,SENB!$A$11:$J$210,1,FALSE)),"",VLOOKUP($A7,SENB!$A$11:$J$210,2,FALSE)) ->  | E7: =IF(ISERROR(VLOOKUP($A7,SENB!$A$11:$J$210,1,FALSE)),"",VLOOKUP($A7,SENB!$A$11:$J$210,7,FALSE)) ->  | F7: =IF(ISERROR(VLOOKUP($A7,U19A!$A$11:$J$210,1,FALSE)),"",VLOOKUP($A7,U19A!$A$11:$J$210,2,FALSE)) ->  | G7: =IF(ISERROR(VLOOKUP($A7,U19A!$A$11:$J$210,1,FALSE)),"",VLOOKUP($A7,U19A!$A$11:$J$210,7,FALSE)) ->  | H7: =IF(ISERROR(VLOOKUP($A7,U17A!$A$11:$J$210,1,FALSE)),"",VLOOKUP($A7,U17A!$A$11:$J$210,2,FALSE)) ->  | I7: =IF(ISERROR(VLOOKUP($A7,U17A!$A$11:$J$210,1,FALSE)),"",VLOOKUP($A7,U17A!$A$11:$J$210,7,FALSE)) ->  | J7: =IF(ISERROR(VLOOKUP($A7,U16A!$A$11:$J$210,1,FALSE)),"",VLOOKUP($A7,U16A!$A$11:$J$210,2,FALSE)) ->  | K7: =IF(ISERROR(VLOOKUP($A7,U16A!$A$11:$J$210,1,FALSE)),"",VLOOKUP($A7,U16A!$A$11:$J$210,7,FALSE)) ->  | L7: =IF(ISERROR(VLOOKUP($A7,U15A!$A$11:$J$210,1,FALSE)),"",VLOOKUP($A7,U15A!$A$11:$J$210,2,FALSE)) ->  | M7: =IF(ISERROR(VLOOKUP($A7,U15A!$A$11:$J$210,1,FALSE)),"",VLOOKUP($A7,U15A!$A$11:$J$210,7,FALSE)) ->  | N7: =IF(ISERROR(VLOOKUP($A7,U14A!$A$11:$J$210,1,FALSE)),"",VLOOKUP($A7,U14A!$A$11:$J$210,2,FALSE)) ->  | O7: =IF(ISERROR(VLOOKUP($A7,U14A!$A$11:$J$210,1,FALSE)),"",VLOOKUP($A7,U14A!$A$11:$J$210,7,FALSE)) ->  | P7: =IF(ISERROR(VLOOKUP($A7,U14B!$A$11:$J$210,1,FALSE)),"",VLOOKUP($A7,U14B!$A$11:$J$210,2,FALSE)) ->  | Q7: =IF(ISERROR(VLOOKUP($A7,U14B!$A$11:$J$210,1,FALSE)),"",VLOOKUP($A7,U14B!$A$11:$J$210,7,FALSE)) ->  | R7: =IF(ISERROR(VLOOKUP($A7,U13A!$A$11:$J$210,1,FALSE)),"",VLOOKUP($A7,U13A!$A$11:$J$210,2,FALSE)) ->  | S7: =IF(ISERROR(VLOOKUP($A7,U13A!$A$11:$J$210,1,FALSE)),"",VLOOKUP($A7,U13A!$A$11:$J$210,7,FALSE)) ->  | T7: =IF(ISERROR(VLOOKUP($A7,U13B!$A$11:$J$210,1,FALSE)),"",VLOOKUP($A7,U13B!$A$11:$J$210,2,FALSE)) ->  | U7: =IF(ISERROR(VLOOKUP($A7,U13B!$A$11:$J$210,1,FALSE)),"",VLOOKUP($A7,U13B!$A$11:$J$210,7,FALSE)) ->  | V7: =IF(ISERROR(VLOOKUP($A7,U12A!$A$11:$J$210,1,FALSE)),"",VLOOKUP($A7,U12A!$A$11:$J$210,2,FALSE)) ->  | W7: =IF(ISERROR(VLOOKUP($A7,U12A!$A$11:$J$210,1,FALSE)),"",VLOOKUP($A7,U12A!$A$11:$J$210,7,FALSE)) -> 
A8: 2017-09-09 | B8: =IF(ISERROR(VLOOKUP($A8,SENA!$A$11:$J$210,1,FALSE)),"",VLOOKUP($A8,SENA!$A$11:$J$210,2,FALSE)) ->  | C8: =IF(ISERROR(VLOOKUP($A8,SENA!$A$11:$J$210,1,FALSE)),"",VLOOKUP($A8,SENA!$A$11:$J$210,7,FALSE)) ->  | D8: =IF(ISERROR(VLOOKUP($A8,SENB!$A$11:$J$210,1,FALSE)),"",VLOOKUP($A8,SENB!$A$11:$J$210,2,FALSE)) ->  | E8: =IF(ISERROR(VLOOKUP($A8,SENB!$A$11:$J$210,1,FALSE)),"",VLOOKUP($A8,SENB!$A$11:$J$210,7,FALSE)) ->  | F8: =IF(ISERROR(VLOOKUP($A8,U19A!$A$11:$J$210,1,FALSE)),"",VLOOKUP($A8,U19A!$A$11:$J$210,2,FALSE)) -> 15:30:00 | G8: =IF(ISERROR(VLOOKUP($A8,U19A!$A$11:$J$210,1,FALSE)),"",VLOOKUP($A8,U19A!$A$11:$J$210,7,FALSE)) -> AWAY | H8: =IF(ISERROR(VLOOKUP($A8,U17A!$A$11:$J$210,1,FALSE)),"",VLOOKUP($A8,U17A!$A$11:$J$210,2,FALSE)) ->  | I8: =IF(ISERROR(VLOOKUP($A8,U17A!$A$11:$J$210,1,FALSE)),"",VLOOKUP($A8,U17A!$A$11:$J$210,7,FALSE)) ->  | J8: =IF(ISERROR(VLOOKUP($A8,U16A!$A$11:$J$210,1,FALSE)),"",VLOOKUP($A8,U16A!$A$11:$J$210,2,FALSE)) ->  | K8: =IF(ISERROR(VLOOKUP($A8,U16A!$A$11:$J$210,1,FALSE)),"",VLOOKUP($A8,U16A!$A$11:$J$210,7,FALSE)) ->  | L8: =IF(ISERROR(VLOOKUP($A8,U15A!$A$11:$J$210,1,FALSE)),"",VLOOKUP($A8,U15A!$A$11:$J$210,2,FALSE)) ->  | M8: =IF(ISERROR(VLOOKUP($A8,U15A!$A$11:$J$210,1,FALSE)),"",VLOOKUP($A8,U15A!$A$11:$J$210,7,FALSE)) ->  | N8: =IF(ISERROR(VLOOKUP($A8,U14A!$A$11:$J$210,1,FALSE)),"",VLOOKUP($A8,U14A!$A$11:$J$210,2,FALSE)) ->  | O8: =IF(ISERROR(VLOOKUP($A8,U14A!$A$11:$J$210,1,FALSE)),"",VLOOKUP($A8,U14A!$A$11:$J$210,7,FALSE)) ->  | P8: =IF(ISERROR(VLOOKUP($A8,U14B!$A$11:$J$210,1,FALSE)),"",VLOOKUP($A8,U14B!$A$11:$J$210,2,FALSE)) ->  | Q8: =IF(ISERROR(VLOOKUP($A8,U14B!$A$11:$J$210,1,FALSE)),"",VLOOKUP($A8,U14B!$A$11:$J$210,7,FALSE)) ->  | R8: =IF(ISERROR(VLOOKUP($A8,U13A!$A$11:$J$210,1,FALSE)),"",VLOOKUP($A8,U13A!$A$11:$J$210,2,FALSE)) -> 11:00:00 | S8: =IF(ISERROR(VLOOKUP($A8,U13A!$A$11:$J$210,1,FALSE)),"",VLOOKUP($A8,U13A!$A$11:$J$210,7,FALSE)) -> HOME | T8: =IF(ISERROR(VLOOKUP($A8,U13B!$A$11:$J$210,1,FALSE)),"",VLOOKUP($A8,U13B!$A$11:$J$210,2,FALSE)) -> 11:00:00 | U8: =IF(ISERROR(VLOOKUP($A8,U13B!$A$11:$J$210,1,FALSE)),"",VLOOKUP($A8,U13B!$A$11:$J$210,7,FALSE)) -> HOME | V8: =IF(ISERROR(VLOOKUP($A8,U12A!$A$11:$J$210,1,FALSE)),"",VLOOKUP($A8,U12A!$A$11:$J$210,2,FALSE)) -> 12:30:00 | W8: =IF(ISERROR(VLOOKUP($A8,U12A!$A$11:$J$210,1,FALSE)),"",VLOOKUP($A8,U12A!$A$11:$J$210,7,FALSE)) -> AWAY
A9: 2017-09-10 | B9: =IF(ISERROR(VLOOKUP($A9,SENA!$A$11:$J$210,1,FALSE)),"",VLOOKUP($A9,SENA!$A$11:$J$210,2,FALSE)) -> 15:00:00 | C9: =IF(ISERROR(VLOOKUP($A9,SENA!$A$11:$J$210,1,FALSE)),"",VLOOKUP($A9,SENA!$A$11:$J$210,7,FALSE)) -> AWAY | D9: =IF(ISERROR(VLOOKUP($A9,SENB!$A$11:$J$210,1,FALSE)),"",VLOOKUP($A9,SENB!$A$11:$J$210,2,FALSE)) -> 15:00:00 | E9: =IF(ISERROR(VLOOKUP($A9,SENB!$A$11:$J$210,1,FALSE)),"",VLOOKUP($A9,SENB!$A$11:$J$210,7,FALSE)) -> HOME | F9: =IF(ISERROR(VLOOKUP($A9,U19A!$A$11:$J$210,1,FALSE)),"",VLOOKUP($A9,U19A!$A$11:$J$210,2,FALSE)) ->  | G9: =IF(ISERROR(VLOOKUP($A9,U19A!$A$11:$J$210,1,FALSE)),"",VLOOKUP($A9,U19A!$A$11:$J$210,7,FALSE)) ->  | H9: =IF(ISERROR(VLOOKUP($A9,U17A!$A$11:$J$210,1,FALSE)),"",VLOOKUP($A9,U17A!$A$11:$J$210,2,FALSE)) -> 09:30:00 | I9: =IF(ISERROR(VLOOKUP($A9,U17A!$A$11:$J$210,1,FALSE)),"",VLOOKUP($A9,U17A!$A$11:$J$210,7,FALSE)) -> AWAY | J9: =IF(ISERROR(VLOOKUP($A9,U16A!$A$11:$J$210,1,FALSE)),"",VLOOKUP($A9,U16A!$A$11:$J$210,2,FALSE)) -> 11:15:00 | K9: =IF(ISERROR(VLOOKUP($A9,U16A!$A$11:$J$210,1,FALSE)),"",VLOOKUP($A9,U16A!$A$11:$J$210,7,FALSE)) -> HOME | L9: =IF(ISERROR(VLOOKUP($A9,U15A!$A$11:$J$210,1,FALSE)),"",VLOOKUP($A9,U15A!$A$11:$J$210,2,FALSE)) -> 09:45:00 | M9: =IF(ISERROR(VLOOKUP($A9,U15A!$A$11:$J$210,1,FALSE)),"",VLOOKUP($A9,U15A!$A$11:$J$210,7,FALSE)) -> HOME | N9: =IF(ISERROR(VLOOKUP($A9,U14A!$A$11:$J$210,1,FALSE)),"",VLOOKUP($A9,U14A!$A$11:$J$210,2,FALSE)) -> 11:15:00 | O9: =IF(ISERROR(VLOOKUP($A9,U14A!$A$11:$J$210,1,FALSE)),"",VLOOKUP($A9,U14A!$A$11:$J$210,7,FALSE)) -> AWAY | P9: =IF(ISERROR(VLOOKUP($A9,U14B!$A$11:$J$210,1,FALSE)),"",VLOOKUP($A9,U14B!$A$11:$J$210,2,FALSE)) -> 11:15:00 | Q9: =IF(ISERROR(VLOOKUP($A9,U14B!$A$11:$J$210,1,FALSE)),"",VLOOKUP($A9,U14B!$A$11:$J$210,7,FALSE)) -> AWAY | R9: =IF(ISERROR(VLOOKUP($A9,U13A!$A$11:$J$210,1,FALSE)),"",VLOOKUP($A9,U13A!$A$11:$J$210,2,FALSE)) ->  | S9: =IF(ISERROR(VLOOKUP($A9,U13A!$A$11:$J$210,1,FALSE)),"",VLOOKUP($A9,U13A!$A$11:$J$210,7,FALSE)) ->  | T9: =IF(ISERROR(VLOOKUP($A9,U13B!$A$11:$J$210,1,FALSE)),"",VLOOKUP($A9,U13B!$A$11:$J$210,2,FALSE)) ->  | U9: =IF(ISERROR(VLOOKUP($A9,U13B!$A$11:$J$210,1,FALSE)),"",VLOOKUP($A9,U13B!$A$11:$J$210,7,FALSE)) ->  | V9: =IF(ISERROR(VLOOKUP($A9,U12A!$A$11:$J$210,1,FALSE)),"",VLOOKUP($A9,U12A!$A$11:$J$210,2,FALSE)) ->  | W9: =IF(ISERROR(VLOOKUP($A9,U12A!$A$11:$J$210,1,FALSE)),"",VLOOKUP($A9,U12A!$A$11:$J$210,7,FALSE)) -> 
A10: 2017-09-11 | B10: =IF(ISERROR(VLOOKUP($A10,SENA!$A$11:$J$210,1,FALSE)),"",VLOOKUP($A10,SENA!$A$11:$J$210,2,FALSE)) ->  | C10: =IF(ISERROR(VLOOKUP($A10,SENA!$A$11:$J$210,1,FALSE)),"",VLOOKUP($A10,SENA!$A$11:$J$210,7,FALSE)) ->  | D10: =IF(ISERROR(VLOOKUP($A10,SENB!$A$11:$J$210,1,FALSE)),"",VLOOKUP($A10,SENB!$A$11:$J$210,2,FALSE)) ->  | E10: =IF(ISERROR(VLOOKUP($A10,SENB!$A$11:$J$210,1,FALSE)),"",VLOOKUP($A10,SENB!$A$11:$J$210,7,FALSE)) ->  | F10: =IF(ISERROR(VLOOKUP($A10,U19A!$A$11:$J$210,1,FALSE)),"",VLOOKUP($A10,U19A!$A$11:$J$210,2,FALSE)) ->  | G10: =IF(ISERROR(VLOOKUP($A10,U19A!$A$11:$J$210,1,FALSE)),"",VLOOKUP($A10,U19A!$A$11:$J$210,7,FALSE)) ->  | H10: =IF(ISERROR(VLOOKUP($A10,U17A!$A$11:$J$210,1,FALSE)),"",VLOOKUP($A10,U17A!$A$11:$J$210,2,FALSE)) ->  | I10: =IF(ISERROR(VLOOKUP($A10,U17A!$A$11:$J$210,1,FALSE)),"",VLOOKUP($A10,U17A!$A$11:$J$210,7,FALSE)) ->  | J10: =IF(ISERROR(VLOOKUP($A10,U16A!$A$11:$J$210,1,FALSE)),"",VLOOKUP($A10,U16A!$A$11:$J$210,2,FALSE)) ->  | K10: =IF(ISERROR(VLOOKUP($A10,U16A!$A$11:$J$210,1,FALSE)),"",VLOOKUP($A10,U16A!$A$11:$J$210,7,FALSE)) ->  | L10: =IF(ISERROR(VLOOKUP($A10,U15A!$A$11:$J$210,1,FALSE)),"",VLOOKUP($A10,U15A!$A$11:$J$210,2,FALSE)) ->  | M10: =IF(ISERROR(VLOOKUP($A10,U15A!$A$11:$J$210,1,FALSE)),"",VLOOKUP($A10,U15A!$A$11:$J$210,7,FALSE)) ->  | N10: =IF(ISERROR(VLOOKUP($A10,U14A!$A$11:$J$210,1,FALSE)),"",VLOOKUP($A10,U14A!$A$11:$J$210,2,FALSE)) ->  | O10: =IF(ISERROR(VLOOKUP($A10,U14A!$A$11:$J$210,1,FALSE)),"",VLOOKUP($A10,U14A!$A$11:$J$210,7,FALSE)) ->  | P10: =IF(ISERROR(VLOOKUP($A10,U14B!$A$11:$J$210,1,FALSE)),"",VLOOKUP($A10,U14B!$A$11:$J$210,2,FALSE)) ->  | Q10: =IF(ISERROR(VLOOKUP($A10,U14B!$A$11:$J$210,1,FALSE)),"",VLOOKUP($A10,U14B!$A$11:$J$210,7,FALSE)) ->  | R10: =IF(ISERROR(VLOOKUP($A10,U13A!$A$11:$J$210,1,FALSE)),"",VLOOKUP($A10,U13A!$A$11:$J$210,2,FALSE)) ->  | S10: =IF(ISERROR(VLOOKUP($A10,U13A!$A$11:$J$210,1,FALSE)),"",VLOOKUP($A10,U13A!$A$11:$J$210,7,FALSE)) ->  | T10: =IF(ISERROR(VLOOKUP($A10,U13B!$A$11:$J$210,1,FALSE)),"",VLOOKUP($A10,U13B!$A$11:$J$210,2,FALSE)) ->  | U10: =IF(ISERROR(VLOOKUP($A10,U13B!$A$11:$J$210,1,FALSE)),"",VLOOKUP($A10,U13B!$A$11:$J$210,7,FALSE)) ->  | V10: =IF(ISERROR(VLOOKUP($A10,U12A!$A$11:$J$210,1,FALSE)),"",VLOOKUP($A10,U12A!$A$11:$J$210,2,FALSE)) ->  | W10: =IF(ISERROR(VLOOKUP($A10,U12A!$A$11:$J$210,1,FALSE)),"",VLOOKUP($A10,U12A!$A$11:$J$210,7,FALSE)) -> 
A11: 2017-09-12 | B11: =IF(ISERROR(VLOOKUP($A11,SENA!$A$11:$J$210,1,FALSE)),"",VLOOKUP($A11,SENA!$A$11:$J$210,2,FALSE)) ->  | C11: =IF(ISERROR(VLOOKUP($A11,SENA!$A$11:$J$210,1,FALSE)),"",VLOOKUP($A11,SENA!$A$11:$J$210,7,FALSE)) ->  | D11: =IF(ISERROR(VLOOKUP($A11,SENB!$A$11:$J$210,1,FALSE)),"",VLOOKUP($A11,SENB!$A$11:$J$210,2,FALSE)) ->  | E11: =IF(ISERROR(VLOOKUP($A11,SENB!$A$11:$J$210,1,FALSE)),"",VLOOKUP($A11,SENB!$A$11:$J$210,7,FALSE)) ->  | F11: =IF(ISERROR(VLOOKUP($A11,U19A!$A$11:$J$210,1,FALSE)),"",VLOOKUP($A11,U19A!$A$11:$J$210,2,FALSE)) ->  | G11: =IF(ISERROR(VLOOKUP($A11,U19A!$A$11:$J$210,1,FALSE)),"",VLOOKUP($A11,U19A!$A$11:$J$210,7,FALSE)) ->  | H11: =IF(ISERROR(VLOOKUP($A11,U17A!$A$11:$J$210,1,FALSE)),"",VLOOKUP($A11,U17A!$A$11:$J$210,2,FALSE)) ->  | I11: =IF(ISERROR(VLOOKUP($A11,U17A!$A$11:$J$210,1,FALSE)),"",VLOOKUP($A11,U17A!$A$11:$J$210,7,FALSE)) ->  | J11: =IF(ISERROR(VLOOKUP($A11,U16A!$A$11:$J$210,1,FALSE)),"",VLOOKUP($A11,U16A!$A$11:$J$210,2,FALSE)) -> 18:30:00 | K11: =IF(ISERROR(VLOOKUP($A11,U16A!$A$11:$J$210,1,FALSE)),"",VLOOKUP($A11,U16A!$A$11:$J$210,7,FALSE)) -> AWAY | L11: =IF(ISERROR(VLOOKUP($A11,U15A!$A$11:$J$210,1,FALSE)),"",VLOOKUP($A11,U15A!$A$11:$J$210,2,FALSE)) ->  | M11: =IF(ISERROR(VLOOKUP($A11,U15A!$A$11:$J$210,1,FALSE)),"",VLOOKUP($A11,U15A!$A$11:$J$210,7,FALSE)) ->  | N11: =IF(ISERROR(VLOOKUP($A11,U14A!$A$11:$J$210,1,FALSE)),"",VLOOKUP($A11,U14A!$A$11:$J$210,2,FALSE)) ->  | O11: =IF(ISERROR(VLOOKUP($A11,U14A!$A$11:$J$210,1,FALSE)),"",VLOOKUP($A11,U14A!$A$11:$J$210,7,FALSE)) ->  | P11: =IF(ISERROR(VLOOKUP($A11,U14B!$A$11:$J$210,1,FALSE)),"",VLOOKUP($A11,U14B!$A$11:$J$210,2,FALSE)) ->  | Q11: =IF(ISERROR(VLOOKUP($A11,U14B!$A$11:$J$210,1,FALSE)),"",VLOOKUP($A11,U14B!$A$11:$J$210,7,FALSE)) ->  | R11: =IF(ISERROR(VLOOKUP($A11,U13A!$A$11:$J$210,1,FALSE)),"",VLOOKUP($A11,U13A!$A$11:$J$210,2,FALSE)) ->  | S11: =IF(ISERROR(VLOOKUP($A11,U13A!$A$11:$J$210,1,FALSE)),"",VLOOKUP($A11,U13A!$A$11:$J$210,7,FALSE)) ->  | T11: =IF(ISERROR(VLOOKUP($A11,U13B!$A$11:$J$210,1,FALSE)),"",VLOOKUP($A11,U13B!$A$11:$J$210,2,FALSE)) ->  | U11: =IF(ISERROR(VLOOKUP($A11,U13B!$A$11:$J$210,1,FALSE)),"",VLOOKUP($A11,U13B!$A$11:$J$210,7,FALSE)) ->  | V11: =IF(ISERROR(VLOOKUP($A11,U12A!$A$11:$J$210,1,FALSE)),"",VLOOKUP($A11,U12A!$A$11:$J$210,2,FALSE)) ->  | W11: =IF(ISERROR(VLOOKUP($A11,U12A!$A$11:$J$210,1,FALSE)),"",VLOOKUP($A11,U12A!$A$11:$J$210,7,FALSE)) -> 
A12: =A11+1 -> 2017-09-13 | B12: =IF(ISERROR(VLOOKUP($A12,SENA!$A$11:$J$210,1,FALSE)),"",VLOOKUP($A12,SENA!$A$11:$J$210,2,FALSE)) ->  | C12: =IF(ISERROR(VLOOKUP($A12,SENA!$A$11:$J$210,1,FALSE)),"",VLOOKUP($A12,SENA!$A$11:$J$210,7,FALSE)) ->  | D12: =IF(ISERROR(VLOOKUP($A12,SENB!$A$11:$J$210,1,FALSE)),"",VLOOKUP($A12,SENB!$A$11:$J$210,2,FALSE)) ->  | E12: =IF(ISERROR(VLOOKUP($A12,SENB!$A$11:$J$210,1,FALSE)),"",VLOOKUP($A12,SENB!$A$11:$J$210,7,FALSE)) ->  | F12: =IF(ISERROR(VLOOKUP($A12,U19A!$A$11:$J$210,1,FALSE)),"",VLOOKUP($A12,U19A!$A$11:$J$210,2,FALSE)) ->  | G12: =IF(ISERROR(VLOOKUP($A12,U19A!$A$11:$J$210,1,FALSE)),"",VLOOKUP($A12,U19A!$A$11:$J$210,7,FALSE)) ->  | H12: =IF(ISERROR(VLOOKUP($A12,U17A!$A$11:$J$210,1,FALSE)),"",VLOOKUP($A12,U17A!$A$11:$J$210,2,FALSE)) ->  | I12: =IF(ISERROR(VLOOKUP($A12,U17A!$A$11:$J$210,1,FALSE)),"",VLOOKUP($A12,U17A!$A$11:$J$210,7,FALSE)) ->  | J12: =IF(ISERROR(VLOOKUP($A12,U16A!$A$11:$J$210,1,FALSE)),"",VLOOKUP($A12,U16A!$A$11:$J$210,2,FALSE)) ->  | K12: =IF(ISERROR(VLOOKUP($A12,U16A!$A$11:$J$210,1,FALSE)),"",VLOOKUP($A12,U16A!$A$11:$J$210,7,FALSE)) ->  | L12: =IF(ISERROR(VLOOKUP($A12,U15A!$A$11:$J$210,1,FALSE)),"",VLOOKUP($A12,U15A!$A$11:$J$210,2,FALSE)) ->  | M12: =IF(ISERROR(VLOOKUP($A12,U15A!$A$11:$J$210,1,FALSE)),"",VLOOKUP($A12,U15A!$A$11:$J$210,7,FALSE)) ->  | N12: =IF(ISERROR(VLOOKUP($A12,U14A!$A$11:$J$210,1,FALSE)),"",VLOOKUP($A12,U14A!$A$11:$J$210,2,FALSE)) ->  | O12: =IF(ISERROR(VLOOKUP($A12,U14A!$A$11:$J$210,1,FALSE)),"",VLOOKUP($A12,U14A!$A$11:$J$210,7,FALSE)) ->  | P12: =IF(ISERROR(VLOOKUP($A12,U14B!$A$11:$J$210,1,FALSE)),"",VLOOKUP($A12,U14B!$A$11:$J$210,2,FALSE)) ->  | Q12: =IF(ISERROR(VLOOKUP($A12,U14B!$A$11:$J$210,1,FALSE)),"",VLOOKUP($A12,U14B!$A$11:$J$210,7,FALSE)) ->  | R12: =IF(ISERROR(VLOOKUP($A12,U13A!$A$11:$J$210,1,FALSE)),"",VLOOKUP($A12,U13A!$A$11:$J$210,2,FALSE)) ->  | S12: =IF(ISERROR(VLOOKUP($A12,U13A!$A$11:$J$210,1,FALSE)),"",VLOOKUP($A12,U13A!$A$11:$J$210,7,FALSE)) ->  | T12: =IF(ISERROR(VLOOKUP($A12,U13B!$A$11:$J$210,1,FALSE)),"",VLOOKUP($A12,U13B!$A$11:$J$210,2,FALSE)) ->  | U12: =IF(ISERROR(VLOOKUP($A12,U13B!$A$11:$J$210,1,FALSE)),"",VLOOKUP($A12,U13B!$A$11:$J$210,7,FALSE)) ->  | V12: =IF(ISERROR(VLOOKUP($A12,U12A!$A$11:$J$210,1,FALSE)),"",VLOOKUP($A12,U12A!$A$11:$J$210,2,FALSE)) ->  | W12: =IF(ISERROR(VLOOKUP($A12,U12A!$A$11:$J$210,1,FALSE)),"",VLOOKUP($A12,U12A!$A$11:$J$210,7,FALSE)) -> 
A13: =A12+1 -> 2017-09-14 | B13: =IF(ISERROR(VLOOKUP($A13,SENA!$A$11:$J$210,1,FALSE)),"",VLOOKUP($A13,SENA!$A$11:$J$210,2,FALSE)) ->  | C13: =IF(ISERROR(VLOOKUP($A13,SENA!$A$11:$J$210,1,FALSE)),"",VLOOKUP($A13,SENA!$A$11:$J$210,7,FALSE)) ->  | D13: =IF(ISERROR(VLOOKUP($A13,SENB!$A$11:$J$210,1,FALSE)),"",VLOOKUP($A13,SENB!$A$11:$J$210,2,FALSE)) ->  | E13: =IF(ISERROR(VLOOKUP($A13,SENB!$A$11:$J$210,1,FALSE)),"",VLOOKUP($A13,SENB!$A$11:$J$210,7,FALSE)) ->  | F13: =IF(ISERROR(VLOOKUP($A13,U19A!$A$11:$J$210,1,FALSE)),"",VLOOKUP($A13,U19A!$A$11:$J$210,2,FALSE)) ->  | G13: =IF(ISERROR(VLOOKUP($A13,U19A!$A$11:$J$210,1,FALSE)),"",VLOOKUP($A13,U19A!$A$11:$J$210,7,FALSE)) ->  | H13: =IF(ISERROR(VLOOKUP($A13,U17A!$A$11:$J$210,1,FALSE)),"",VLOOKUP($A13,U17A!$A$11:$J$210,2,FALSE)) ->  | I13: =IF(ISERROR(VLOOKUP($A13,U17A!$A$11:$J$210,1,FALSE)),"",VLOOKUP($A13,U17A!$A$11:$J$210,7,FALSE)) ->  | J13: =IF(ISERROR(VLOOKUP($A13,U16A!$A$11:$J$210,1,FALSE)),"",VLOOKUP($A13,U16A!$A$11:$J$210,2,FALSE)) ->  | K13: =IF(ISERROR(VLOOKUP($A13,U16A!$A$11:$J$210,1,FALSE)),"",VLOOKUP($A13,U16A!$A$11:$J$210,7,FALSE)) ->  | L13: =IF(ISERROR(VLOOKUP($A13,U15A!$A$11:$J$210,1,FALSE)),"",VLOOKUP($A13,U15A!$A$11:$J$210,2,FALSE)) ->  | M13: =IF(ISERROR(VLOOKUP($A13,U15A!$A$11:$J$210,1,FALSE)),"",VLOOKUP($A13,U15A!$A$11:$J$210,7,FALSE)) ->  | N13: =IF(ISERROR(VLOOKUP($A13,U14A!$A$11:$J$210,1,FALSE)),"",VLOOKUP($A13,U14A!$A$11:$J$210,2,FALSE)) ->  | O13: =IF(ISERROR(VLOOKUP($A13,U14A!$A$11:$J$210,1,FALSE)),"",VLOOKUP($A13,U14A!$A$11:$J$210,7,FALSE)) ->  | P13: =IF(ISERROR(VLOOKUP($A13,U14B!$A$11:$J$210,1,FALSE)),"",VLOOKUP($A13,U14B!$A$11:$J$210,2,FALSE)) ->  | Q13: =IF(ISERROR(VLOOKUP($A13,U14B!$A$11:$J$210,1,FALSE)),"",VLOOKUP($A13,U14B!$A$11:$J$210,7,FALSE)) ->  | R13: =IF(ISERROR(VLOOKUP($A13,U13A!$A$11:$J$210,1,FALSE)),"",VLOOKUP($A13,U13A!$A$11:$J$210,2,FALSE)) ->  | S13: =IF(ISERROR(VLOOKUP($A13,U13A!$A$11:$J$210,1,FALSE)),"",VLOOKUP($A13,U13A!$A$11:$J$210,7,FALSE)) ->  | T13: =IF(ISERROR(VLOOKUP($A13,U13B!$A$11:$J$210,1,FALSE)),"",VLOOKUP($A13,U13B!$A$11:$J$210,2,FALSE)) ->  | U13: =IF(ISERROR(VLOOKUP($A13,U13B!$A$11:$J$210,1,FALSE)),"",VLOOKUP($A13,U13B!$A$11:$J$210,7,FALSE)) ->  | V13: =IF(ISERROR(VLOOKUP($A13,U12A!$A$11:$J$210,1,FALSE)),"",VLOOKUP($A13,U12A!$A$11:$J$210,2,FALSE)) ->  | W13: =IF(ISERROR(VLOOKUP($A13,U12A!$A$11:$J$210,1,FALSE)),"",VLOOKUP($A13,U12A!$A$11:$J$210,7,FALSE)) -> 
A14: 2017-09-15 | B14: =IF(ISERROR(VLOOKUP($A14,SENA!$A$11:$J$210,1,FALSE)),"",VLOOKUP($A14,SENA!$A$11:$J$210,2,FALSE)) ->  | C14: =IF(ISERROR(VLOOKUP($A14,SENA!$A$11:$J$210,1,FALSE)),"",VLOOKUP($A14,SENA!$A$11:$J$210,7,FALSE)) ->  | D14: =IF(ISERROR(VLOOKUP($A14,SENB!$A$11:$J$210,1,FALSE)),"",VLOOKUP($A14,SENB!$A$11:$J$210,2,FALSE)) ->  | E14: =IF(ISERROR(VLOOKUP($A14,SENB!$A$11:$J$210,1,FALSE)),"",VLOOKUP($A14,SENB!$A$11:$J$210,7,FALSE)) ->  | F14: =IF(ISERROR(VLOOKUP($A14,U19A!$A$11:$J$210,1,FALSE)),"",VLOOKUP($A14,U19A!$A$11:$J$210,2,FALSE)) ->  | G14: =IF(ISERROR(VLOOKUP($A14,U19A!$A$11:$J$210,1,FALSE)),"",VLOOKUP($A14,U19A!$A$11:$J$210,7,FALSE)) ->  | H14: =IF(ISERROR(VLOOKUP($A14,U17A!$A$11:$J$210,1,FALSE)),"",VLOOKUP($A14,U17A!$A$11:$J$210,2,FALSE)) ->  | I14: =IF(ISERROR(VLOOKUP($A14,U17A!$A$11:$J$210,1,FALSE)),"",VLOOKUP($A14,U17A!$A$11:$J$210,7,FALSE)) ->  | J14: =IF(ISERROR(VLOOKUP($A14,U16A!$A$11:$J$210,1,FALSE)),"",VLOOKUP($A14,U16A!$A$11:$J$210,2,FALSE)) ->  | K14: =IF(ISERROR(VLOOKUP($A14,U16A!$A$11:$J$210,1,FALSE)),"",VLOOKUP($A14,U16A!$A$11:$J$210,7,FALSE)) ->  | L14: =IF(ISERROR(VLOOKUP($A14,U15A!$A$11:$J$210,1,FALSE)),"",VLOOKUP($A14,U15A!$A$11:$J$210,2,FALSE)) ->  | M14: =IF(ISERROR(VLOOKUP($A14,U15A!$A$11:$J$210,1,FALSE)),"",VLOOKUP($A14,U15A!$A$11:$J$210,7,FALSE)) ->  | N14: =IF(ISERROR(VLOOKUP($A14,U14A!$A$11:$J$210,1,FALSE)),"",VLOOKUP($A14,U14A!$A$11:$J$210,2,FALSE)) ->  | O14: =IF(ISERROR(VLOOKUP($A14,U14A!$A$11:$J$210,1,FALSE)),"",VLOOKUP($A14,U14A!$A$11:$J$210,7,FALSE)) ->  | P14: =IF(ISERROR(VLOOKUP($A14,U14B!$A$11:$J$210,1,FALSE)),"",VLOOKUP($A14,U14B!$A$11:$J$210,2,FALSE)) ->  | Q14: =IF(ISERROR(VLOOKUP($A14,U14B!$A$11:$J$210,1,FALSE)),"",VLOOKUP($A14,U14B!$A$11:$J$210,7,FALSE)) ->  | R14: =IF(ISERROR(VLOOKUP($A14,U13A!$A$11:$J$210,1,FALSE)),"",VLOOKUP($A14,U13A!$A$11:$J$210,2,FALSE)) ->  | S14: =IF(ISERROR(VLOOKUP($A14,U13A!$A$11:$J$210,1,FALSE)),"",VLOOKUP($A14,U13A!$A$11:$J$210,7,FALSE)) ->  | T14: =IF(ISERROR(VLOOKUP($A14,U13B!$A$11:$J$210,1,FALSE)),"",VLOOKUP($A14,U13B!$A$11:$J$210,2,FALSE)) ->  | U14: =IF(ISERROR(VLOOKUP($A14,U13B!$A$11:$J$210,1,FALSE)),"",VLOOKUP($A14,U13B!$A$11:$J$210,7,FALSE)) ->  | V14: =IF(ISERROR(VLOOKUP($A14,U12A!$A$11:$J$210,1,FALSE)),"",VLOOKUP($A14,U12A!$A$11:$J$210,2,FALSE)) ->  | W14: =IF(ISERROR(VLOOKUP($A14,U12A!$A$11:$J$210,1,FALSE)),"",VLOOKUP($A14,U12A!$A$11:$J$210,7,FALSE)) -> 
A15: 2017-09-16 | B15: =IF(ISERROR(VLOOKUP($A15,SENA!$A$11:$J$210,1,FALSE)),"",VLOOKUP($A15,SENA!$A$11:$J$210,2,FALSE)) ->  | C15: =IF(ISERROR(VLOOKUP($A15,SENA!$A$11:$J$210,1,FALSE)),"",VLOOKUP($A15,SENA!$A$11:$J$210,7,FALSE)) ->  | D15: =IF(ISERROR(VLOOKUP($A15,SENB!$A$11:$J$210,1,FALSE)),"",VLOOKUP($A15,SENB!$A$11:$J$210,2,FALSE)) ->  | E15: =IF(ISERROR(VLOOKUP($A15,SENB!$A$11:$J$210,1,FALSE)),"",VLOOKUP($A15,SENB!$A$11:$J$210,7,FALSE)) ->  | F15: =IF(ISERROR(VLOOKUP($A15,U19A!$A$11:$J$210,1,FALSE)),"",VLOOKUP($A15,U19A!$A$11:$J$210,2,FALSE)) -> 14:30:00 | G15: =IF(ISERROR(VLOOKUP($A15,U19A!$A$11:$J$210,1,FALSE)),"",VLOOKUP($A15,U19A!$A$11:$J$210,7,FALSE)) -> HOME | H15: =IF(ISERROR(VLOOKUP($A15,U17A!$A$11:$J$210,1,FALSE)),"",VLOOKUP($A15,U17A!$A$11:$J$210,2,FALSE)) ->  | I15: =IF(ISERROR(VLOOKUP($A15,U17A!$A$11:$J$210,1,FALSE)),"",VLOOKUP($A15,U17A!$A$11:$J$210,7,FALSE)) ->  | J15: =IF(ISERROR(VLOOKUP($A15,U16A!$A$11:$J$210,1,FALSE)),"",VLOOKUP($A15,U16A!$A$11:$J$210,2,FALSE)) ->  | K15: =IF(ISERROR(VLOOKUP($A15,U16A!$A$11:$J$210,1,FALSE)),"",VLOOKUP($A15,U16A!$A$11:$J$210,7,FALSE)) ->  | L15: =IF(ISERROR(VLOOKUP($A15,U15A!$A$11:$J$210,1,FALSE)),"",VLOOKUP($A15,U15A!$A$11:$J$210,2,FALSE)) ->  | M15: =IF(ISERROR(VLOOKUP($A15,U15A!$A$11:$J$210,1,FALSE)),"",VLOOKUP($A15,U15A!$A$11:$J$210,7,FALSE)) ->  | N15: =IF(ISERROR(VLOOKUP($A15,U14A!$A$11:$J$210,1,FALSE)),"",VLOOKUP($A15,U14A!$A$11:$J$210,2,FALSE)) ->  | O15: =IF(ISERROR(VLOOKUP($A15,U14A!$A$11:$J$210,1,FALSE)),"",VLOOKUP($A15,U14A!$A$11:$J$210,7,FALSE)) ->  | P15: =IF(ISERROR(VLOOKUP($A15,U14B!$A$11:$J$210,1,FALSE)),"",VLOOKUP($A15,U14B!$A$11:$J$210,2,FALSE)) ->  | Q15: =IF(ISERROR(VLOOKUP($A15,U14B!$A$11:$J$210,1,FALSE)),"",VLOOKUP($A15,U14B!$A$11:$J$210,7,FALSE)) ->  | R15: =IF(ISERROR(VLOOKUP($A15,U13A!$A$11:$J$210,1,FALSE)),"",VLOOKUP($A15,U13A!$A$11:$J$210,2,FALSE)) -> 13:00:00 | S15: =IF(ISERROR(VLOOKUP($A15,U13A!$A$11:$J$210,1,FALSE)),"",VLOOKUP($A15,U13A!$A$11:$J$210,7,FALSE)) -> AWAY | T15: =IF(ISERROR(VLOOKUP($A15,U13B!$A$11:$J$210,1,FALSE)),"",VLOOKUP($A15,U13B!$A$11:$J$210,2,FALSE)) -> 11:00:00 | U15: =IF(ISERROR(VLOOKUP($A15,U13B!$A$11:$J$210,1,FALSE)),"",VLOOKUP($A15,U13B!$A$11:$J$210,7,FALSE)) -> AWAY | V15: =IF(ISERROR(VLOOKUP($A15,U12A!$A$11:$J$210,1,FALSE)),"",VLOOKUP($A15,U12A!$A$11:$J$210,2,FALSE)) -> 13:00:00 | W15: =IF(ISERROR(VLOOKUP($A15,U12A!$A$11:$J$210,1,FALSE)),"",VLOOKUP($A15,U12A!$A$11:$J$210,7,FALSE)) -> AWAY
A16: 2017-09-17
A17: 2017-09-18
B18: U11A | D18: U11B | F18: U10A | H18: U10B | J18: U09A | L18: U09B | N18: U09C | P18: U08A | R18: U08B | T18: U07A | V18: U07B | X18: U06A
A19: =A3 -> 2017-09-04 | B19: =IF(ISERROR(VLOOKUP($A19,U11A!$A$11:$J$210,1,FALSE)),"",VLOOKUP($A19,U11A!$A$11:$J$210,2,FALSE)) ->  | C19: =IF(ISERROR(VLOOKUP($A19,U11A!$A$11:$J$210,1,FALSE)),"",VLOOKUP($A19,U11A!$A$11:$J$210,7,FALSE)) ->  | D19: =IF(ISERROR(VLOOKUP($A19,U11B!$A$11:$J$210,1,FALSE)),"",VLOOKUP($A19,U11B!$A$11:$J$210,2,FALSE)) ->  | E19: =IF(ISERROR(VLOOKUP($A19,U11B!$A$11:$J$210,1,FALSE)),"",VLOOKUP($A19,U11B!$A$11:$J$210,7,FALSE)) ->  | F19: =IF(ISERROR(VLOOKUP($A19,U10A!$A$11:$J$210,1,FALSE)),"",VLOOKUP($A19,U10A!$A$11:$J$210,2,FALSE)) ->  | G19: =IF(ISERROR(VLOOKUP($A19,U10A!$A$11:$J$210,1,FALSE)),"",VLOOKUP($A19,U10A!$A$11:$J$210,7,FALSE)) ->  | H19: =IF(ISERROR(VLOOKUP($A19,U10B!$A$11:$J$210,1,FALSE)),"",VLOOKUP($A19,U10B!$A$11:$J$210,2,FALSE)) ->  | I19: =IF(ISERROR(VLOOKUP($A19,U10B!$A$11:$J$210,1,FALSE)),"",VLOOKUP($A19,U10B!$A$11:$J$210,7,FALSE)) ->  | J19: =IF(ISERROR(VLOOKUP($A19,U09A!$A$11:$J$210,1,FALSE)),"",VLOOKUP($A19,U09A!$A$11:$J$210,2,FALSE)) ->  | K19: =IF(ISERROR(VLOOKUP($A19,U09A!$A$11:$J$210,1,FALSE)),"",VLOOKUP($A19,U09A!$A$11:$J$210,7,FALSE)) ->  | L19: =IF(ISERROR(VLOOKUP($A19,U09B!$A$11:$J$210,1,FALSE)),"",VLOOKUP($A19,U09B!$A$11:$J$210,2,FALSE)) ->  | M19: =IF(ISERROR(VLOOKUP($A19,U09B!$A$11:$J$210,1,FALSE)),"",VLOOKUP($A19,U09B!$A$11:$J$210,7,FALSE)) ->  | N19: =IF(ISERROR(VLOOKUP($A19,U09C!$A$11:$J$210,1,FALSE)),"",VLOOKUP($A19,U09C!$A$11:$J$210,2,FALSE)) ->  | O19: =IF(ISERROR(VLOOKUP($A19,U09C!$A$11:$J$210,1,FALSE)),"",VLOOKUP($A19,U09C!$A$11:$J$210,7,FALSE)) ->  | P19: =IF(ISERROR(VLOOKUP($A19,U08A!$A$11:$J$210,1,FALSE)),"",VLOOKUP($A19,U08A!$A$11:$J$210,2,FALSE)) ->  | Q19: =IF(ISERROR(VLOOKUP($A19,U08A!$A$11:$J$210,1,FALSE)),"",VLOOKUP($A19,U08A!$A$11:$J$210,7,FALSE)) ->  | R19: =IF(ISERROR(VLOOKUP($A19,U08B!$A$11:$J$210,1,FALSE)),"",VLOOKUP($A19,U08B!$A$11:$J$210,2,FALSE)) ->  | S19: =IF(ISERROR(VLOOKUP($A19,U08B!$A$11:$J$210,1,FALSE)),"",VLOOKUP($A19,U08B!$A$11:$J$210,7,FALSE)) ->  | T19: =IF(ISERROR(VLOOKUP($A19,U07A!$A$11:$J$210,1,FALSE)),"",VLOOKUP($A19,U07A!$A$11:$J$210,2,FALSE)) ->  | U19: =IF(ISERROR(VLOOKUP($A19,U07A!$A$11:$J$210,1,FALSE)),"",VLOOKUP($A19,U07A!$A$11:$J$210,7,FALSE)) ->  | V19: =IF(ISERROR(VLOOKUP($A19,U07B!$A$11:$J$210,1,FALSE)),"",VLOOKUP($A19,U07B!$A$11:$J$210,2,FALSE)) ->  | W19: =IF(ISERROR(VLOOKUP($A19,U07B!$A$11:$J$210,1,FALSE)),"",VLOOKUP($A19,U07B!$A$11:$J$210,7,FALSE)) ->  | X19: =IF(ISERROR(VLOOKUP($A19,U06A!$A$11:$J$210,1,FALSE)),"",VLOOKUP($A19,U06A!$A$11:$J$210,2,FALSE)) ->  | Y19: =IF(ISERROR(VLOOKUP($A19,U06A!$A$11:$J$210,1,FALSE)),"",VLOOKUP($A19,U06A!$A$11:$J$210,7,FALSE)) -> 
A20: =A4 -> 2017-09-05 | B20: =IF(ISERROR(VLOOKUP($A20,U11A!$A$11:$J$210,1,FALSE)),"",VLOOKUP($A20,U11A!$A$11:$J$210,2,FALSE)) ->  | C20: =IF(ISERROR(VLOOKUP($A20,U11A!$A$11:$J$210,1,FALSE)),"",VLOOKUP($A20,U11A!$A$11:$J$210,7,FALSE)) ->  | D20: =IF(ISERROR(VLOOKUP($A20,U11B!$A$11:$J$210,1,FALSE)),"",VLOOKUP($A20,U11B!$A$11:$J$210,2,FALSE)) ->  | E20: =IF(ISERROR(VLOOKUP($A20,U11B!$A$11:$J$210,1,FALSE)),"",VLOOKUP($A20,U11B!$A$11:$J$210,7,FALSE)) ->  | F20: =IF(ISERROR(VLOOKUP($A20,U10A!$A$11:$J$210,1,FALSE)),"",VLOOKUP($A20,U10A!$A$11:$J$210,2,FALSE)) ->  | G20: =IF(ISERROR(VLOOKUP($A20,U10A!$A$11:$J$210,1,FALSE)),"",VLOOKUP($A20,U10A!$A$11:$J$210,7,FALSE)) ->  | H20: =IF(ISERROR(VLOOKUP($A20,U10B!$A$11:$J$210,1,FALSE)),"",VLOOKUP($A20,U10B!$A$11:$J$210,2,FALSE)) ->  | I20: =IF(ISERROR(VLOOKUP($A20,U10B!$A$11:$J$210,1,FALSE)),"",VLOOKUP($A20,U10B!$A$11:$J$210,7,FALSE)) ->  | J20: =IF(ISERROR(VLOOKUP($A20,U09A!$A$11:$J$210,1,FALSE)),"",VLOOKUP($A20,U09A!$A$11:$J$210,2,FALSE)) ->  | K20: =IF(ISERROR(VLOOKUP($A20,U09A!$A$11:$J$210,1,FALSE)),"",VLOOKUP($A20,U09A!$A$11:$J$210,7,FALSE)) ->  | L20: =IF(ISERROR(VLOOKUP($A20,U09B!$A$11:$J$210,1,FALSE)),"",VLOOKUP($A20,U09B!$A$11:$J$210,2,FALSE)) ->  | M20: =IF(ISERROR(VLOOKUP($A20,U09B!$A$11:$J$210,1,FALSE)),"",VLOOKUP($A20,U09B!$A$11:$J$210,7,FALSE)) ->  | N20: =IF(ISERROR(VLOOKUP($A20,U09C!$A$11:$J$210,1,FALSE)),"",VLOOKUP($A20,U09C!$A$11:$J$210,2,FALSE)) ->  | O20: =IF(ISERROR(VLOOKUP($A20,U09C!$A$11:$J$210,1,FALSE)),"",VLOOKUP($A20,U09C!$A$11:$J$210,7,FALSE)) ->  | P20: =IF(ISERROR(VLOOKUP($A20,U08A!$A$11:$J$210,1,FALSE)),"",VLOOKUP($A20,U08A!$A$11:$J$210,2,FALSE)) ->  | Q20: =IF(ISERROR(VLOOKUP($A20,U08A!$A$11:$J$210,1,FALSE)),"",VLOOKUP($A20,U08A!$A$11:$J$210,7,FALSE)) ->  | R20: =IF(ISERROR(VLOOKUP($A20,U08B!$A$11:$J$210,1,FALSE)),"",VLOOKUP($A20,U08B!$A$11:$J$210,2,FALSE)) ->  | S20: =IF(ISERROR(VLOOKUP($A20,U08B!$A$11:$J$210,1,FALSE)),"",VLOOKUP($A20,U08B!$A$11:$J$210,7,FALSE)) ->  | T20: =IF(ISERROR(VLOOKUP($A20,U07A!$A$11:$J$210,1,FALSE)),"",VLOOKUP($A20,U07A!$A$11:$J$210,2,FALSE)) ->  | U20: =IF(ISERROR(VLOOKUP($A20,U07A!$A$11:$J$210,1,FALSE)),"",VLOOKUP($A20,U07A!$A$11:$J$210,7,FALSE)) ->  | V20: =IF(ISERROR(VLOOKUP($A20,U07B!$A$11:$J$210,1,FALSE)),"",VLOOKUP($A20,U07B!$A$11:$J$210,2,FALSE)) ->  | W20: =IF(ISERROR(VLOOKUP($A20,U07B!$A$11:$J$210,1,FALSE)),"",VLOOKUP($A20,U07B!$A$11:$J$210,7,FALSE)) ->  | X20: =IF(ISERROR(VLOOKUP($A20,U06A!$A$11:$J$210,1,FALSE)),"",VLOOKUP($A20,U06A!$A$11:$J$210,2,FALSE)) ->  | Y20: =IF(ISERROR(VLOOKUP($A20,U06A!$A$11:$J$210,1,FALSE)),"",VLOOKUP($A20,U06A!$A$11:$J$210,7,FALSE)) -> 
A21: 2017-09-06 | B21: =IF(ISERROR(VLOOKUP($A21,U11A!$A$11:$J$210,1,FALSE)),"",VLOOKUP($A21,U11A!$A$11:$J$210,2,FALSE)) ->  | C21: =IF(ISERROR(VLOOKUP($A21,U11A!$A$11:$J$210,1,FALSE)),"",VLOOKUP($A21,U11A!$A$11:$J$210,7,FALSE)) ->  | D21: =IF(ISERROR(VLOOKUP($A21,U11B!$A$11:$J$210,1,FALSE)),"",VLOOKUP($A21,U11B!$A$11:$J$210,2,FALSE)) ->  | E21: =IF(ISERROR(VLOOKUP($A21,U11B!$A$11:$J$210,1,FALSE)),"",VLOOKUP($A21,U11B!$A$11:$J$210,7,FALSE)) ->  | F21: =IF(ISERROR(VLOOKUP($A21,U10A!$A$11:$J$210,1,FALSE)),"",VLOOKUP($A21,U10A!$A$11:$J$210,2,FALSE)) ->  | G21: =IF(ISERROR(VLOOKUP($A21,U10A!$A$11:$J$210,1,FALSE)),"",VLOOKUP($A21,U10A!$A$11:$J$210,7,FALSE)) ->  | H21: =IF(ISERROR(VLOOKUP($A21,U10B!$A$11:$J$210,1,FALSE)),"",VLOOKUP($A21,U10B!$A$11:$J$210,2,FALSE)) ->  | I21: =IF(ISERROR(VLOOKUP($A21,U10B!$A$11:$J$210,1,FALSE)),"",VLOOKUP($A21,U10B!$A$11:$J$210,7,FALSE)) ->  | J21: =IF(ISERROR(VLOOKUP($A21,U09A!$A$11:$J$210,1,FALSE)),"",VLOOKUP($A21,U09A!$A$11:$J$210,2,FALSE)) ->  | K21: =IF(ISERROR(VLOOKUP($A21,U09A!$A$11:$J$210,1,FALSE)),"",VLOOKUP($A21,U09A!$A$11:$J$210,7,FALSE)) ->  | L21: =IF(ISERROR(VLOOKUP($A21,U09B!$A$11:$J$210,1,FALSE)),"",VLOOKUP($A21,U09B!$A$11:$J$210,2,FALSE)) ->  | M21: =IF(ISERROR(VLOOKUP($A21,U09B!$A$11:$J$210,1,FALSE)),"",VLOOKUP($A21,U09B!$A$11:$J$210,7,FALSE)) ->  | N21: =IF(ISERROR(VLOOKUP($A21,U09C!$A$11:$J$210,1,FALSE)),"",VLOOKUP($A21,U09C!$A$11:$J$210,2,FALSE)) ->  | O21: =IF(ISERROR(VLOOKUP($A21,U09C!$A$11:$J$210,1,FALSE)),"",VLOOKUP($A21,U09C!$A$11:$J$210,7,FALSE)) ->  | P21: =IF(ISERROR(VLOOKUP($A21,U08A!$A$11:$J$210,1,FALSE)),"",VLOOKUP($A21,U08A!$A$11:$J$210,2,FALSE)) ->  | Q21: =IF(ISERROR(VLOOKUP($A21,U08A!$A$11:$J$210,1,FALSE)),"",VLOOKUP($A21,U08A!$A$11:$J$210,7,FALSE)) ->  | R21: =IF(ISERROR(VLOOKUP($A21,U08B!$A$11:$J$210,1,FALSE)),"",VLOOKUP($A21,U08B!$A$11:$J$210,2,FALSE)) ->  | S21: =IF(ISERROR(VLOOKUP($A21,U08B!$A$11:$J$210,1,FALSE)),"",VLOOKUP($A21,U08B!$A$11:$J$210,7,FALSE)) ->  | T21: =IF(ISERROR(VLOOKUP($A21,U07A!$A$11:$J$210,1,FALSE)),"",VLOOKUP($A21,U07A!$A$11:$J$210,2,FALSE)) ->  | U21: =IF(ISERROR(VLOOKUP($A21,U07A!$A$11:$J$210,1,FALSE)),"",VLOOKUP($A21,U07A!$A$11:$J$210,7,FALSE)) ->  | V21: =IF(ISERROR(VLOOKUP($A21,U07B!$A$11:$J$210,1,FALSE)),"",VLOOKUP($A21,U07B!$A$11:$J$210,2,FALSE)) ->  | W21: =IF(ISERROR(VLOOKUP($A21,U07B!$A$11:$J$210,1,FALSE)),"",VLOOKUP($A21,U07B!$A$11:$J$210,7,FALSE)) ->  | X21: =IF(ISERROR(VLOOKUP($A21,U06A!$A$11:$J$210,1,FALSE)),"",VLOOKUP($A21,U06A!$A$11:$J$210,2,FALSE)) ->  | Y21: =IF(ISERROR(VLOOKUP($A21,U06A!$A$11:$J$210,1,FALSE)),"",VLOOKUP($A21,U06A!$A$11:$J$210,7,FALSE)) -> 
A22: 2017-09-07 | B22: =IF(ISERROR(VLOOKUP($A22,U11A!$A$11:$J$210,1,FALSE)),"",VLOOKUP($A22,U11A!$A$11:$J$210,2,FALSE)) ->  | C22: =IF(ISERROR(VLOOKUP($A22,U11A!$A$11:$J$210,1,FALSE)),"",VLOOKUP($A22,U11A!$A$11:$J$210,7,FALSE)) ->  | D22: =IF(ISERROR(VLOOKUP($A22,U11B!$A$11:$J$210,1,FALSE)),"",VLOOKUP($A22,U11B!$A$11:$J$210,2,FALSE)) ->  | E22: =IF(ISERROR(VLOOKUP($A22,U11B!$A$11:$J$210,1,FALSE)),"",VLOOKUP($A22,U11B!$A$11:$J$210,7,FALSE)) ->  | F22: =IF(ISERROR(VLOOKUP($A22,U10A!$A$11:$J$210,1,FALSE)),"",VLOOKUP($A22,U10A!$A$11:$J$210,2,FALSE)) ->  | G22: =IF(ISERROR(VLOOKUP($A22,U10A!$A$11:$J$210,1,FALSE)),"",VLOOKUP($A22,U10A!$A$11:$J$210,7,FALSE)) ->  | H22: =IF(ISERROR(VLOOKUP($A22,U10B!$A$11:$J$210,1,FALSE)),"",VLOOKUP($A22,U10B!$A$11:$J$210,2,FALSE)) ->  | I22: =IF(ISERROR(VLOOKUP($A22,U10B!$A$11:$J$210,1,FALSE)),"",VLOOKUP($A22,U10B!$A$11:$J$210,7,FALSE)) ->  | J22: =IF(ISERROR(VLOOKUP($A22,U09A!$A$11:$J$210,1,FALSE)),"",VLOOKUP($A22,U09A!$A$11:$J$210,2,FALSE)) ->  | K22: =IF(ISERROR(VLOOKUP($A22,U09A!$A$11:$J$210,1,FALSE)),"",VLOOKUP($A22,U09A!$A$11:$J$210,7,FALSE)) ->  | L22: =IF(ISERROR(VLOOKUP($A22,U09B!$A$11:$J$210,1,FALSE)),"",VLOOKUP($A22,U09B!$A$11:$J$210,2,FALSE)) ->  | M22: =IF(ISERROR(VLOOKUP($A22,U09B!$A$11:$J$210,1,FALSE)),"",VLOOKUP($A22,U09B!$A$11:$J$210,7,FALSE)) ->  | N22: =IF(ISERROR(VLOOKUP($A22,U09C!$A$11:$J$210,1,FALSE)),"",VLOOKUP($A22,U09C!$A$11:$J$210,2,FALSE)) ->  | O22: =IF(ISERROR(VLOOKUP($A22,U09C!$A$11:$J$210,1,FALSE)),"",VLOOKUP($A22,U09C!$A$11:$J$210,7,FALSE)) ->  | P22: =IF(ISERROR(VLOOKUP($A22,U08A!$A$11:$J$210,1,FALSE)),"",VLOOKUP($A22,U08A!$A$11:$J$210,2,FALSE)) ->  | Q22: =IF(ISERROR(VLOOKUP($A22,U08A!$A$11:$J$210,1,FALSE)),"",VLOOKUP($A22,U08A!$A$11:$J$210,7,FALSE)) ->  | R22: =IF(ISERROR(VLOOKUP($A22,U08B!$A$11:$J$210,1,FALSE)),"",VLOOKUP($A22,U08B!$A$11:$J$210,2,FALSE)) ->  | S22: =IF(ISERROR(VLOOKUP($A22,U08B!$A$11:$J$210,1,FALSE)),"",VLOOKUP($A22,U08B!$A$11:$J$210,7,FALSE)) ->  | T22: =IF(ISERROR(VLOOKUP($A22,U07A!$A$11:$J$210,1,FALSE)),"",VLOOKUP($A22,U07A!$A$11:$J$210,2,FALSE)) ->  | U22: =IF(ISERROR(VLOOKUP($A22,U07A!$A$11:$J$210,1,FALSE)),"",VLOOKUP($A22,U07A!$A$11:$J$210,7,FALSE)) ->  | V22: =IF(ISERROR(VLOOKUP($A22,U07B!$A$11:$J$210,1,FALSE)),"",VLOOKUP($A22,U07B!$A$11:$J$210,2,FALSE)) ->  | W22: =IF(ISERROR(VLOOKUP($A22,U07B!$A$11:$J$210,1,FALSE)),"",VLOOKUP($A22,U07B!$A$11:$J$210,7,FALSE)) ->  | X22: =IF(ISERROR(VLOOKUP($A22,U06A!$A$11:$J$210,1,FALSE)),"",VLOOKUP($A22,U06A!$A$11:$J$210,2,FALSE)) ->  | Y22: =IF(ISERROR(VLOOKUP($A22,U06A!$A$11:$J$210,1,FALSE)),"",VLOOKUP($A22,U06A!$A$11:$J$210,7,FALSE)) -> 
A23: 2017-09-08 | B23: =IF(ISERROR(VLOOKUP($A23,U11A!$A$11:$J$210,1,FALSE)),"",VLOOKUP($A23,U11A!$A$11:$J$210,2,FALSE)) ->  | C23: =IF(ISERROR(VLOOKUP($A23,U11A!$A$11:$J$210,1,FALSE)),"",VLOOKUP($A23,U11A!$A$11:$J$210,7,FALSE)) ->  | D23: =IF(ISERROR(VLOOKUP($A23,U11B!$A$11:$J$210,1,FALSE)),"",VLOOKUP($A23,U11B!$A$11:$J$210,2,FALSE)) ->  | E23: =IF(ISERROR(VLOOKUP($A23,U11B!$A$11:$J$210,1,FALSE)),"",VLOOKUP($A23,U11B!$A$11:$J$210,7,FALSE)) ->  | F23: =IF(ISERROR(VLOOKUP($A23,U10A!$A$11:$J$210,1,FALSE)),"",VLOOKUP($A23,U10A!$A$11:$J$210,2,FALSE)) ->  | G23: =IF(ISERROR(VLOOKUP($A23,U10A!$A$11:$J$210,1,FALSE)),"",VLOOKUP($A23,U10A!$A$11:$J$210,7,FALSE)) ->  | H23: =IF(ISERROR(VLOOKUP($A23,U10B!$A$11:$J$210,1,FALSE)),"",VLOOKUP($A23,U10B!$A$11:$J$210,2,FALSE)) ->  | I23: =IF(ISERROR(VLOOKUP($A23,U10B!$A$11:$J$210,1,FALSE)),"",VLOOKUP($A23,U10B!$A$11:$J$210,7,FALSE)) ->  | J23: =IF(ISERROR(VLOOKUP($A23,U09A!$A$11:$J$210,1,FALSE)),"",VLOOKUP($A23,U09A!$A$11:$J$210,2,FALSE)) ->  | K23: =IF(ISERROR(VLOOKUP($A23,U09A!$A$11:$J$210,1,FALSE)),"",VLOOKUP($A23,U09A!$A$11:$J$210,7,FALSE)) ->  | L23: =IF(ISERROR(VLOOKUP($A23,U09B!$A$11:$J$210,1,FALSE)),"",VLOOKUP($A23,U09B!$A$11:$J$210,2,FALSE)) ->  | M23: =IF(ISERROR(VLOOKUP($A23,U09B!$A$11:$J$210,1,FALSE)),"",VLOOKUP($A23,U09B!$A$11:$J$210,7,FALSE)) ->  | N23: =IF(ISERROR(VLOOKUP($A23,U09C!$A$11:$J$210,1,FALSE)),"",VLOOKUP($A23,U09C!$A$11:$J$210,2,FALSE)) ->  | O23: =IF(ISERROR(VLOOKUP($A23,U09C!$A$11:$J$210,1,FALSE)),"",VLOOKUP($A23,U09C!$A$11:$J$210,7,FALSE)) ->  | P23: =IF(ISERROR(VLOOKUP($A23,U08A!$A$11:$J$210,1,FALSE)),"",VLOOKUP($A23,U08A!$A$11:$J$210,2,FALSE)) ->  | Q23: =IF(ISERROR(VLOOKUP($A23,U08A!$A$11:$J$210,1,FALSE)),"",VLOOKUP($A23,U08A!$A$11:$J$210,7,FALSE)) ->  | R23: =IF(ISERROR(VLOOKUP($A23,U08B!$A$11:$J$210,1,FALSE)),"",VLOOKUP($A23,U08B!$A$11:$J$210,2,FALSE)) ->  | S23: =IF(ISERROR(VLOOKUP($A23,U08B!$A$11:$J$210,1,FALSE)),"",VLOOKUP($A23,U08B!$A$11:$J$210,7,FALSE)) ->  | T23: =IF(ISERROR(VLOOKUP($A23,U07A!$A$11:$J$210,1,FALSE)),"",VLOOKUP($A23,U07A!$A$11:$J$210,2,FALSE)) ->  | U23: =IF(ISERROR(VLOOKUP($A23,U07A!$A$11:$J$210,1,FALSE)),"",VLOOKUP($A23,U07A!$A$11:$J$210,7,FALSE)) ->  | V23: =IF(ISERROR(VLOOKUP($A23,U07B!$A$11:$J$210,1,FALSE)),"",VLOOKUP($A23,U07B!$A$11:$J$210,2,FALSE)) ->  | W23: =IF(ISERROR(VLOOKUP($A23,U07B!$A$11:$J$210,1,FALSE)),"",VLOOKUP($A23,U07B!$A$11:$J$210,7,FALSE)) ->  | X23: =IF(ISERROR(VLOOKUP($A23,U06A!$A$11:$J$210,1,FALSE)),"",VLOOKUP($A23,U06A!$A$11:$J$210,2,FALSE)) ->  | Y23: =IF(ISERROR(VLOOKUP($A23,U06A!$A$11:$J$210,1,FALSE)),"",VLOOKUP($A23,U06A!$A$11:$J$210,7,FALSE)) -> 
A24: 2017-09-09 | B24: =IF(ISERROR(VLOOKUP($A24,U11A!$A$11:$J$210,1,FALSE)),"",VLOOKUP($A24,U11A!$A$11:$J$210,2,FALSE)) -> 11:00:00 | C24: =IF(ISERROR(VLOOKUP($A24,U11A!$A$11:$J$210,1,FALSE)),"",VLOOKUP($A24,U11A!$A$11:$J$210,7,FALSE)) -> AWAY | D24: =IF(ISERROR(VLOOKUP($A24,U11B!$A$11:$J$210,1,FALSE)),"",VLOOKUP($A24,U11B!$A$11:$J$210,2,FALSE)) -> 12:30:00 | E24: =IF(ISERROR(VLOOKUP($A24,U11B!$A$11:$J$210,1,FALSE)),"",VLOOKUP($A24,U11B!$A$11:$J$210,7,FALSE)) -> AWAY | F24: =IF(ISERROR(VLOOKUP($A24,U10A!$A$11:$J$210,1,FALSE)),"",VLOOKUP($A24,U10A!$A$11:$J$210,2,FALSE)) -> 11:00:00 | G24: =IF(ISERROR(VLOOKUP($A24,U10A!$A$11:$J$210,1,FALSE)),"",VLOOKUP($A24,U10A!$A$11:$J$210,7,FALSE)) -> HOME | H24: =IF(ISERROR(VLOOKUP($A24,U10B!$A$11:$J$210,1,FALSE)),"",VLOOKUP($A24,U10B!$A$11:$J$210,2,FALSE)) -> 11:00:00 | I24: =IF(ISERROR(VLOOKUP($A24,U10B!$A$11:$J$210,1,FALSE)),"",VLOOKUP($A24,U10B!$A$11:$J$210,7,FALSE)) -> HOME | J24: =IF(ISERROR(VLOOKUP($A24,U09A!$A$11:$J$210,1,FALSE)),"",VLOOKUP($A24,U09A!$A$11:$J$210,2,FALSE)) -> 10:00:00 | K24: =IF(ISERROR(VLOOKUP($A24,U09A!$A$11:$J$210,1,FALSE)),"",VLOOKUP($A24,U09A!$A$11:$J$210,7,FALSE)) -> AWAY | L24: =IF(ISERROR(VLOOKUP($A24,U09B!$A$11:$J$210,1,FALSE)),"",VLOOKUP($A24,U09B!$A$11:$J$210,2,FALSE)) -> 11:00:00 | M24: =IF(ISERROR(VLOOKUP($A24,U09B!$A$11:$J$210,1,FALSE)),"",VLOOKUP($A24,U09B!$A$11:$J$210,7,FALSE)) -> AWAY | N24: =IF(ISERROR(VLOOKUP($A24,U09C!$A$11:$J$210,1,FALSE)),"",VLOOKUP($A24,U09C!$A$11:$J$210,2,FALSE)) -> 11:00:00 | O24: =IF(ISERROR(VLOOKUP($A24,U09C!$A$11:$J$210,1,FALSE)),"",VLOOKUP($A24,U09C!$A$11:$J$210,7,FALSE)) -> AWAY | P24: =IF(ISERROR(VLOOKUP($A24,U08A!$A$11:$J$210,1,FALSE)),"",VLOOKUP($A24,U08A!$A$11:$J$210,2,FALSE)) -> 12:30:00 | Q24: =IF(ISERROR(VLOOKUP($A24,U08A!$A$11:$J$210,1,FALSE)),"",VLOOKUP($A24,U08A!$A$11:$J$210,7,FALSE)) -> HOME | R24: =IF(ISERROR(VLOOKUP($A24,U08B!$A$11:$J$210,1,FALSE)),"",VLOOKUP($A24,U08B!$A$11:$J$210,2,FALSE)) -> 12:30:00 | S24: =IF(ISERROR(VLOOKUP($A24,U08B!$A$11:$J$210,1,FALSE)),"",VLOOKUP($A24,U08B!$A$11:$J$210,7,FALSE)) -> HOME | T24: =IF(ISERROR(VLOOKUP($A24,U07A!$A$11:$J$210,1,FALSE)),"",VLOOKUP($A24,U07A!$A$11:$J$210,2,FALSE)) -> 12:30:00 | U24: =IF(ISERROR(VLOOKUP($A24,U07A!$A$11:$J$210,1,FALSE)),"",VLOOKUP($A24,U07A!$A$11:$J$210,7,FALSE)) -> HOME | V24: =IF(ISERROR(VLOOKUP($A24,U07B!$A$11:$J$210,1,FALSE)),"",VLOOKUP($A24,U07B!$A$11:$J$210,2,FALSE)) ->  | W24: =IF(ISERROR(VLOOKUP($A24,U07B!$A$11:$J$210,1,FALSE)),"",VLOOKUP($A24,U07B!$A$11:$J$210,7,FALSE)) ->  | X24: =IF(ISERROR(VLOOKUP($A24,U06A!$A$11:$J$210,1,FALSE)),"",VLOOKUP($A24,U06A!$A$11:$J$210,2,FALSE)) -> 11:00:00 | Y24: =IF(ISERROR(VLOOKUP($A24,U06A!$A$11:$J$210,1,FALSE)),"",VLOOKUP($A24,U06A!$A$11:$J$210,7,FALSE)) -> AWAY
A25: 2017-09-10 | B25: =IF(ISERROR(VLOOKUP($A25,U11A!$A$11:$J$210,1,FALSE)),"",VLOOKUP($A25,U11A!$A$11:$J$210,2,FALSE)) ->  | C25: =IF(ISERROR(VLOOKUP($A25,U11A!$A$11:$J$210,1,FALSE)),"",VLOOKUP($A25,U11A!$A$11:$J$210,7,FALSE)) ->  | D25: =IF(ISERROR(VLOOKUP($A25,U11B!$A$11:$J$210,1,FALSE)),"",VLOOKUP($A25,U11B!$A$11:$J$210,2,FALSE)) ->  | E25: =IF(ISERROR(VLOOKUP($A25,U11B!$A$11:$J$210,1,FALSE)),"",VLOOKUP($A25,U11B!$A$11:$J$210,7,FALSE)) ->  | F25: =IF(ISERROR(VLOOKUP($A25,U10A!$A$11:$J$210,1,FALSE)),"",VLOOKUP($A25,U10A!$A$11:$J$210,2,FALSE)) ->  | G25: =IF(ISERROR(VLOOKUP($A25,U10A!$A$11:$J$210,1,FALSE)),"",VLOOKUP($A25,U10A!$A$11:$J$210,7,FALSE)) ->  | H25: =IF(ISERROR(VLOOKUP($A25,U10B!$A$11:$J$210,1,FALSE)),"",VLOOKUP($A25,U10B!$A$11:$J$210,2,FALSE)) ->  | I25: =IF(ISERROR(VLOOKUP($A25,U10B!$A$11:$J$210,1,FALSE)),"",VLOOKUP($A25,U10B!$A$11:$J$210,7,FALSE)) ->  | J25: =IF(ISERROR(VLOOKUP($A25,U09A!$A$11:$J$210,1,FALSE)),"",VLOOKUP($A25,U09A!$A$11:$J$210,2,FALSE)) ->  | K25: =IF(ISERROR(VLOOKUP($A25,U09A!$A$11:$J$210,1,FALSE)),"",VLOOKUP($A25,U09A!$A$11:$J$210,7,FALSE)) ->  | L25: =IF(ISERROR(VLOOKUP($A25,U09B!$A$11:$J$210,1,FALSE)),"",VLOOKUP($A25,U09B!$A$11:$J$210,2,FALSE)) ->  | M25: =IF(ISERROR(VLOOKUP($A25,U09B!$A$11:$J$210,1,FALSE)),"",VLOOKUP($A25,U09B!$A$11:$J$210,7,FALSE)) ->  | N25: =IF(ISERROR(VLOOKUP($A25,U09C!$A$11:$J$210,1,FALSE)),"",VLOOKUP($A25,U09C!$A$11:$J$210,2,FALSE)) ->  | O25: =IF(ISERROR(VLOOKUP($A25,U09C!$A$11:$J$210,1,FALSE)),"",VLOOKUP($A25,U09C!$A$11:$J$210,7,FALSE)) ->  | P25: =IF(ISERROR(VLOOKUP($A25,U08A!$A$11:$J$210,1,FALSE)),"",VLOOKUP($A25,U08A!$A$11:$J$210,2,FALSE)) ->  | Q25: =IF(ISERROR(VLOOKUP($A25,U08A!$A$11:$J$210,1,FALSE)),"",VLOOKUP($A25,U08A!$A$11:$J$210,7,FALSE)) ->  | R25: =IF(ISERROR(VLOOKUP($A25,U08B!$A$11:$J$210,1,FALSE)),"",VLOOKUP($A25,U08B!$A$11:$J$210,2,FALSE)) ->  | S25: =IF(ISERROR(VLOOKUP($A25,U08B!$A$11:$J$210,1,FALSE)),"",VLOOKUP($A25,U08B!$A$11:$J$210,7,FALSE)) ->  | T25: =IF(ISERROR(VLOOKUP($A25,U07A!$A$11:$J$210,1,FALSE)),"",VLOOKUP($A25,U07A!$A$11:$J$210,2,FALSE)) ->  | U25: =IF(ISERROR(VLOOKUP($A25,U07A!$A$11:$J$210,1,FALSE)),"",VLOOKUP($A25,U07A!$A$11:$J$210,7,FALSE)) ->  | V25: =IF(ISERROR(VLOOKUP($A25,U07B!$A$11:$J$210,1,FALSE)),"",VLOOKUP($A25,U07B!$A$11:$J$210,2,FALSE)) ->  | W25: =IF(ISERROR(VLOOKUP($A25,U07B!$A$11:$J$210,1,FALSE)),"",VLOOKUP($A25,U07B!$A$11:$J$210,7,FALSE)) ->  | X25: =IF(ISERROR(VLOOKUP($A25,U06A!$A$11:$J$210,1,FALSE)),"",VLOOKUP($A25,U06A!$A$11:$J$210,2,FALSE)) ->  | Y25: =IF(ISERROR(VLOOKUP($A25,U06A!$A$11:$J$210,1,FALSE)),"",VLOOKUP($A25,U06A!$A$11:$J$210,7,FALSE)) -> 
A26: 2017-09-11 | B26: =IF(ISERROR(VLOOKUP($A26,U11A!$A$11:$J$210,1,FALSE)),"",VLOOKUP($A26,U11A!$A$11:$J$210,2,FALSE)) ->  | C26: =IF(ISERROR(VLOOKUP($A26,U11A!$A$11:$J$210,1,FALSE)),"",VLOOKUP($A26,U11A!$A$11:$J$210,7,FALSE)) ->  | D26: =IF(ISERROR(VLOOKUP($A26,U11B!$A$11:$J$210,1,FALSE)),"",VLOOKUP($A26,U11B!$A$11:$J$210,2,FALSE)) ->  | E26: =IF(ISERROR(VLOOKUP($A26,U11B!$A$11:$J$210,1,FALSE)),"",VLOOKUP($A26,U11B!$A$11:$J$210,7,FALSE)) ->  | F26: =IF(ISERROR(VLOOKUP($A26,U10A!$A$11:$J$210,1,FALSE)),"",VLOOKUP($A26,U10A!$A$11:$J$210,2,FALSE)) ->  | G26: =IF(ISERROR(VLOOKUP($A26,U10A!$A$11:$J$210,1,FALSE)),"",VLOOKUP($A26,U10A!$A$11:$J$210,7,FALSE)) ->  | H26: =IF(ISERROR(VLOOKUP($A26,U10B!$A$11:$J$210,1,FALSE)),"",VLOOKUP($A26,U10B!$A$11:$J$210,2,FALSE)) ->  | I26: =IF(ISERROR(VLOOKUP($A26,U10B!$A$11:$J$210,1,FALSE)),"",VLOOKUP($A26,U10B!$A$11:$J$210,7,FALSE)) ->  | J26: =IF(ISERROR(VLOOKUP($A26,U09A!$A$11:$J$210,1,FALSE)),"",VLOOKUP($A26,U09A!$A$11:$J$210,2,FALSE)) ->  | K26: =IF(ISERROR(VLOOKUP($A26,U09A!$A$11:$J$210,1,FALSE)),"",VLOOKUP($A26,U09A!$A$11:$J$210,7,FALSE)) ->  | L26: =IF(ISERROR(VLOOKUP($A26,U09B!$A$11:$J$210,1,FALSE)),"",VLOOKUP($A26,U09B!$A$11:$J$210,2,FALSE)) ->  | M26: =IF(ISERROR(VLOOKUP($A26,U09B!$A$11:$J$210,1,FALSE)),"",VLOOKUP($A26,U09B!$A$11:$J$210,7,FALSE)) ->  | N26: =IF(ISERROR(VLOOKUP($A26,U09C!$A$11:$J$210,1,FALSE)),"",VLOOKUP($A26,U09C!$A$11:$J$210,2,FALSE)) ->  | O26: =IF(ISERROR(VLOOKUP($A26,U09C!$A$11:$J$210,1,FALSE)),"",VLOOKUP($A26,U09C!$A$11:$J$210,7,FALSE)) ->  | P26: =IF(ISERROR(VLOOKUP($A26,U08A!$A$11:$J$210,1,FALSE)),"",VLOOKUP($A26,U08A!$A$11:$J$210,2,FALSE)) ->  | Q26: =IF(ISERROR(VLOOKUP($A26,U08A!$A$11:$J$210,1,FALSE)),"",VLOOKUP($A26,U08A!$A$11:$J$210,7,FALSE)) ->  | R26: =IF(ISERROR(VLOOKUP($A26,U08B!$A$11:$J$210,1,FALSE)),"",VLOOKUP($A26,U08B!$A$11:$J$210,2,FALSE)) ->  | S26: =IF(ISERROR(VLOOKUP($A26,U08B!$A$11:$J$210,1,FALSE)),"",VLOOKUP($A26,U08B!$A$11:$J$210,7,FALSE)) ->  | T26: =IF(ISERROR(VLOOKUP($A26,U07A!$A$11:$J$210,1,FALSE)),"",VLOOKUP($A26,U07A!$A$11:$J$210,2,FALSE)) ->  | U26: =IF(ISERROR(VLOOKUP($A26,U07A!$A$11:$J$210,1,FALSE)),"",VLOOKUP($A26,U07A!$A$11:$J$210,7,FALSE)) ->  | V26: =IF(ISERROR(VLOOKUP($A26,U07B!$A$11:$J$210,1,FALSE)),"",VLOOKUP($A26,U07B!$A$11:$J$210,2,FALSE)) ->  | W26: =IF(ISERROR(VLOOKUP($A26,U07B!$A$11:$J$210,1,FALSE)),"",VLOOKUP($A26,U07B!$A$11:$J$210,7,FALSE)) ->  | X26: =IF(ISERROR(VLOOKUP($A26,U06A!$A$11:$J$210,1,FALSE)),"",VLOOKUP($A26,U06A!$A$11:$J$210,2,FALSE)) ->  | Y26: =IF(ISERROR(VLOOKUP($A26,U06A!$A$11:$J$210,1,FALSE)),"",VLOOKUP($A26,U06A!$A$11:$J$210,7,FALSE)) -> 
A27: 2017-09-12 | B27: =IF(ISERROR(VLOOKUP($A27,U11A!$A$11:$J$210,1,FALSE)),"",VLOOKUP($A27,U11A!$A$11:$J$210,2,FALSE)) ->  | C27: =IF(ISERROR(VLOOKUP($A27,U11A!$A$11:$J$210,1,FALSE)),"",VLOOKUP($A27,U11A!$A$11:$J$210,7,FALSE)) ->  | D27: =IF(ISERROR(VLOOKUP($A27,U11B!$A$11:$J$210,1,FALSE)),"",VLOOKUP($A27,U11B!$A$11:$J$210,2,FALSE)) ->  | E27: =IF(ISERROR(VLOOKUP($A27,U11B!$A$11:$J$210,1,FALSE)),"",VLOOKUP($A27,U11B!$A$11:$J$210,7,FALSE)) ->  | F27: =IF(ISERROR(VLOOKUP($A27,U10A!$A$11:$J$210,1,FALSE)),"",VLOOKUP($A27,U10A!$A$11:$J$210,2,FALSE)) ->  | G27: =IF(ISERROR(VLOOKUP($A27,U10A!$A$11:$J$210,1,FALSE)),"",VLOOKUP($A27,U10A!$A$11:$J$210,7,FALSE)) ->  | H27: =IF(ISERROR(VLOOKUP($A27,U10B!$A$11:$J$210,1,FALSE)),"",VLOOKUP($A27,U10B!$A$11:$J$210,2,FALSE)) ->  | I27: =IF(ISERROR(VLOOKUP($A27,U10B!$A$11:$J$210,1,FALSE)),"",VLOOKUP($A27,U10B!$A$11:$J$210,7,FALSE)) ->  | J27: =IF(ISERROR(VLOOKUP($A27,U09A!$A$11:$J$210,1,FALSE)),"",VLOOKUP($A27,U09A!$A$11:$J$210,2,FALSE)) ->  | K27: =IF(ISERROR(VLOOKUP($A27,U09A!$A$11:$J$210,1,FALSE)),"",VLOOKUP($A27,U09A!$A$11:$J$210,7,FALSE)) ->  | L27: =IF(ISERROR(VLOOKUP($A27,U09B!$A$11:$J$210,1,FALSE)),"",VLOOKUP($A27,U09B!$A$11:$J$210,2,FALSE)) ->  | M27: =IF(ISERROR(VLOOKUP($A27,U09B!$A$11:$J$210,1,FALSE)),"",VLOOKUP($A27,U09B!$A$11:$J$210,7,FALSE)) ->  | N27: =IF(ISERROR(VLOOKUP($A27,U09C!$A$11:$J$210,1,FALSE)),"",VLOOKUP($A27,U09C!$A$11:$J$210,2,FALSE)) ->  | O27: =IF(ISERROR(VLOOKUP($A27,U09C!$A$11:$J$210,1,FALSE)),"",VLOOKUP($A27,U09C!$A$11:$J$210,7,FALSE)) ->  | P27: =IF(ISERROR(VLOOKUP($A27,U08A!$A$11:$J$210,1,FALSE)),"",VLOOKUP($A27,U08A!$A$11:$J$210,2,FALSE)) ->  | Q27: =IF(ISERROR(VLOOKUP($A27,U08A!$A$11:$J$210,1,FALSE)),"",VLOOKUP($A27,U08A!$A$11:$J$210,7,FALSE)) ->  | R27: =IF(ISERROR(VLOOKUP($A27,U08B!$A$11:$J$210,1,FALSE)),"",VLOOKUP($A27,U08B!$A$11:$J$210,2,FALSE)) ->  | S27: =IF(ISERROR(VLOOKUP($A27,U08B!$A$11:$J$210,1,FALSE)),"",VLOOKUP($A27,U08B!$A$11:$J$210,7,FALSE)) ->  | T27: =IF(ISERROR(VLOOKUP($A27,U07A!$A$11:$J$210,1,FALSE)),"",VLOOKUP($A27,U07A!$A$11:$J$210,2,FALSE)) ->  | U27: =IF(ISERROR(VLOOKUP($A27,U07A!$A$11:$J$210,1,FALSE)),"",VLOOKUP($A27,U07A!$A$11:$J$210,7,FALSE)) ->  | V27: =IF(ISERROR(VLOOKUP($A27,U07B!$A$11:$J$210,1,FALSE)),"",VLOOKUP($A27,U07B!$A$11:$J$210,2,FALSE)) ->  | W27: =IF(ISERROR(VLOOKUP($A27,U07B!$A$11:$J$210,1,FALSE)),"",VLOOKUP($A27,U07B!$A$11:$J$210,7,FALSE)) ->  | X27: =IF(ISERROR(VLOOKUP($A27,U06A!$A$11:$J$210,1,FALSE)),"",VLOOKUP($A27,U06A!$A$11:$J$210,2,FALSE)) ->  | Y27: =IF(ISERROR(VLOOKUP($A27,U06A!$A$11:$J$210,1,FALSE)),"",VLOOKUP($A27,U06A!$A$11:$J$210,7,FALSE)) -> 
A28: 2017-09-13 | B28: =IF(ISERROR(VLOOKUP($A28,U11A!$A$11:$J$210,1,FALSE)),"",VLOOKUP($A28,U11A!$A$11:$J$210,2,FALSE)) ->  | C28: =IF(ISERROR(VLOOKUP($A28,U11A!$A$11:$J$210,1,FALSE)),"",VLOOKUP($A28,U11A!$A$11:$J$210,7,FALSE)) ->  | D28: =IF(ISERROR(VLOOKUP($A28,U11B!$A$11:$J$210,1,FALSE)),"",VLOOKUP($A28,U11B!$A$11:$J$210,2,FALSE)) ->  | E28: =IF(ISERROR(VLOOKUP($A28,U11B!$A$11:$J$210,1,FALSE)),"",VLOOKUP($A28,U11B!$A$11:$J$210,7,FALSE)) ->  | F28: =IF(ISERROR(VLOOKUP($A28,U10A!$A$11:$J$210,1,FALSE)),"",VLOOKUP($A28,U10A!$A$11:$J$210,2,FALSE)) ->  | G28: =IF(ISERROR(VLOOKUP($A28,U10A!$A$11:$J$210,1,FALSE)),"",VLOOKUP($A28,U10A!$A$11:$J$210,7,FALSE)) ->  | H28: =IF(ISERROR(VLOOKUP($A28,U10B!$A$11:$J$210,1,FALSE)),"",VLOOKUP($A28,U10B!$A$11:$J$210,2,FALSE)) ->  | I28: =IF(ISERROR(VLOOKUP($A28,U10B!$A$11:$J$210,1,FALSE)),"",VLOOKUP($A28,U10B!$A$11:$J$210,7,FALSE)) ->  | J28: =IF(ISERROR(VLOOKUP($A28,U09A!$A$11:$J$210,1,FALSE)),"",VLOOKUP($A28,U09A!$A$11:$J$210,2,FALSE)) ->  | K28: =IF(ISERROR(VLOOKUP($A28,U09A!$A$11:$J$210,1,FALSE)),"",VLOOKUP($A28,U09A!$A$11:$J$210,7,FALSE)) ->  | L28: =IF(ISERROR(VLOOKUP($A28,U09B!$A$11:$J$210,1,FALSE)),"",VLOOKUP($A28,U09B!$A$11:$J$210,2,FALSE)) ->  | M28: =IF(ISERROR(VLOOKUP($A28,U09B!$A$11:$J$210,1,FALSE)),"",VLOOKUP($A28,U09B!$A$11:$J$210,7,FALSE)) ->  | N28: =IF(ISERROR(VLOOKUP($A28,U09C!$A$11:$J$210,1,FALSE)),"",VLOOKUP($A28,U09C!$A$11:$J$210,2,FALSE)) ->  | O28: =IF(ISERROR(VLOOKUP($A28,U09C!$A$11:$J$210,1,FALSE)),"",VLOOKUP($A28,U09C!$A$11:$J$210,7,FALSE)) ->  | P28: =IF(ISERROR(VLOOKUP($A28,U08A!$A$11:$J$210,1,FALSE)),"",VLOOKUP($A28,U08A!$A$11:$J$210,2,FALSE)) ->  | Q28: =IF(ISERROR(VLOOKUP($A28,U08A!$A$11:$J$210,1,FALSE)),"",VLOOKUP($A28,U08A!$A$11:$J$210,7,FALSE)) ->  | R28: =IF(ISERROR(VLOOKUP($A28,U08B!$A$11:$J$210,1,FALSE)),"",VLOOKUP($A28,U08B!$A$11:$J$210,2,FALSE)) ->  | S28: =IF(ISERROR(VLOOKUP($A28,U08B!$A$11:$J$210,1,FALSE)),"",VLOOKUP($A28,U08B!$A$11:$J$210,7,FALSE)) ->  | T28: =IF(ISERROR(VLOOKUP($A28,U07A!$A$11:$J$210,1,FALSE)),"",VLOOKUP($A28,U07A!$A$11:$J$210,2,FALSE)) ->  | U28: =IF(ISERROR(VLOOKUP($A28,U07A!$A$11:$J$210,1,FALSE)),"",VLOOKUP($A28,U07A!$A$11:$J$210,7,FALSE)) ->  | V28: =IF(ISERROR(VLOOKUP($A28,U07B!$A$11:$J$210,1,FALSE)),"",VLOOKUP($A28,U07B!$A$11:$J$210,2,FALSE)) ->  | W28: =IF(ISERROR(VLOOKUP($A28,U07B!$A$11:$J$210,1,FALSE)),"",VLOOKUP($A28,U07B!$A$11:$J$210,7,FALSE)) ->  | X28: =IF(ISERROR(VLOOKUP($A28,U06A!$A$11:$J$210,1,FALSE)),"",VLOOKUP($A28,U06A!$A$11:$J$210,2,FALSE)) ->  | Y28: =IF(ISERROR(VLOOKUP($A28,U06A!$A$11:$J$210,1,FALSE)),"",VLOOKUP($A28,U06A!$A$11:$J$210,7,FALSE)) -> 
A29: 2017-09-14 | B29: =IF(ISERROR(VLOOKUP($A29,U11A!$A$11:$J$210,1,FALSE)),"",VLOOKUP($A29,U11A!$A$11:$J$210,2,FALSE)) ->  | C29: =IF(ISERROR(VLOOKUP($A29,U11A!$A$11:$J$210,1,FALSE)),"",VLOOKUP($A29,U11A!$A$11:$J$210,7,FALSE)) ->  | D29: =IF(ISERROR(VLOOKUP($A29,U11B!$A$11:$J$210,1,FALSE)),"",VLOOKUP($A29,U11B!$A$11:$J$210,2,FALSE)) ->  | E29: =IF(ISERROR(VLOOKUP($A29,U11B!$A$11:$J$210,1,FALSE)),"",VLOOKUP($A29,U11B!$A$11:$J$210,7,FALSE)) ->  | F29: =IF(ISERROR(VLOOKUP($A29,U10A!$A$11:$J$210,1,FALSE)),"",VLOOKUP($A29,U10A!$A$11:$J$210,2,FALSE)) ->  | G29: =IF(ISERROR(VLOOKUP($A29,U10A!$A$11:$J$210,1,FALSE)),"",VLOOKUP($A29,U10A!$A$11:$J$210,7,FALSE)) ->  | H29: =IF(ISERROR(VLOOKUP($A29,U10B!$A$11:$J$210,1,FALSE)),"",VLOOKUP($A29,U10B!$A$11:$J$210,2,FALSE)) ->  | I29: =IF(ISERROR(VLOOKUP($A29,U10B!$A$11:$J$210,1,FALSE)),"",VLOOKUP($A29,U10B!$A$11:$J$210,7,FALSE)) ->  | J29: =IF(ISERROR(VLOOKUP($A29,U09A!$A$11:$J$210,1,FALSE)),"",VLOOKUP($A29,U09A!$A$11:$J$210,2,FALSE)) ->  | K29: =IF(ISERROR(VLOOKUP($A29,U09A!$A$11:$J$210,1,FALSE)),"",VLOOKUP($A29,U09A!$A$11:$J$210,7,FALSE)) ->  | L29: =IF(ISERROR(VLOOKUP($A29,U09B!$A$11:$J$210,1,FALSE)),"",VLOOKUP($A29,U09B!$A$11:$J$210,2,FALSE)) ->  | M29: =IF(ISERROR(VLOOKUP($A29,U09B!$A$11:$J$210,1,FALSE)),"",VLOOKUP($A29,U09B!$A$11:$J$210,7,FALSE)) ->  | N29: =IF(ISERROR(VLOOKUP($A29,U09C!$A$11:$J$210,1,FALSE)),"",VLOOKUP($A29,U09C!$A$11:$J$210,2,FALSE)) ->  | O29: =IF(ISERROR(VLOOKUP($A29,U09C!$A$11:$J$210,1,FALSE)),"",VLOOKUP($A29,U09C!$A$11:$J$210,7,FALSE)) ->  | P29: =IF(ISERROR(VLOOKUP($A29,U08A!$A$11:$J$210,1,FALSE)),"",VLOOKUP($A29,U08A!$A$11:$J$210,2,FALSE)) ->  | Q29: =IF(ISERROR(VLOOKUP($A29,U08A!$A$11:$J$210,1,FALSE)),"",VLOOKUP($A29,U08A!$A$11:$J$210,7,FALSE)) ->  | R29: =IF(ISERROR(VLOOKUP($A29,U08B!$A$11:$J$210,1,FALSE)),"",VLOOKUP($A29,U08B!$A$11:$J$210,2,FALSE)) ->  | S29: =IF(ISERROR(VLOOKUP($A29,U08B!$A$11:$J$210,1,FALSE)),"",VLOOKUP($A29,U08B!$A$11:$J$210,7,FALSE)) ->  | T29: =IF(ISERROR(VLOOKUP($A29,U07A!$A$11:$J$210,1,FALSE)),"",VLOOKUP($A29,U07A!$A$11:$J$210,2,FALSE)) ->  | U29: =IF(ISERROR(VLOOKUP($A29,U07A!$A$11:$J$210,1,FALSE)),"",VLOOKUP($A29,U07A!$A$11:$J$210,7,FALSE)) ->  | V29: =IF(ISERROR(VLOOKUP($A29,U07B!$A$11:$J$210,1,FALSE)),"",VLOOKUP($A29,U07B!$A$11:$J$210,2,FALSE)) ->  | W29: =IF(ISERROR(VLOOKUP($A29,U07B!$A$11:$J$210,1,FALSE)),"",VLOOKUP($A29,U07B!$A$11:$J$210,7,FALSE)) ->  | X29: =IF(ISERROR(VLOOKUP($A29,U06A!$A$11:$J$210,1,FALSE)),"",VLOOKUP($A29,U06A!$A$11:$J$210,2,FALSE)) ->  | Y29: =IF(ISERROR(VLOOKUP($A29,U06A!$A$11:$J$210,1,FALSE)),"",VLOOKUP($A29,U06A!$A$11:$J$210,7,FALSE)) -> 
A30: 2017-09-15 | B30: =IF(ISERROR(VLOOKUP($A30,U11A!$A$11:$J$210,1,FALSE)),"",VLOOKUP($A30,U11A!$A$11:$J$210,2,FALSE)) ->  | C30: =IF(ISERROR(VLOOKUP($A30,U11A!$A$11:$J$210,1,FALSE)),"",VLOOKUP($A30,U11A!$A$11:$J$210,7,FALSE)) ->  | D30: =IF(ISERROR(VLOOKUP($A30,U11B!$A$11:$J$210,1,FALSE)),"",VLOOKUP($A30,U11B!$A$11:$J$210,2,FALSE)) ->  | E30: =IF(ISERROR(VLOOKUP($A30,U11B!$A$11:$J$210,1,FALSE)),"",VLOOKUP($A30,U11B!$A$11:$J$210,7,FALSE)) ->  | F30: =IF(ISERROR(VLOOKUP($A30,U10A!$A$11:$J$210,1,FALSE)),"",VLOOKUP($A30,U10A!$A$11:$J$210,2,FALSE)) ->  | G30: =IF(ISERROR(VLOOKUP($A30,U10A!$A$11:$J$210,1,FALSE)),"",VLOOKUP($A30,U10A!$A$11:$J$210,7,FALSE)) ->  | H30: =IF(ISERROR(VLOOKUP($A30,U10B!$A$11:$J$210,1,FALSE)),"",VLOOKUP($A30,U10B!$A$11:$J$210,2,FALSE)) ->  | I30: =IF(ISERROR(VLOOKUP($A30,U10B!$A$11:$J$210,1,FALSE)),"",VLOOKUP($A30,U10B!$A$11:$J$210,7,FALSE)) ->  | J30: =IF(ISERROR(VLOOKUP($A30,U09A!$A$11:$J$210,1,FALSE)),"",VLOOKUP($A30,U09A!$A$11:$J$210,2,FALSE)) ->  | K30: =IF(ISERROR(VLOOKUP($A30,U09A!$A$11:$J$210,1,FALSE)),"",VLOOKUP($A30,U09A!$A$11:$J$210,7,FALSE)) ->  | L30: =IF(ISERROR(VLOOKUP($A30,U09B!$A$11:$J$210,1,FALSE)),"",VLOOKUP($A30,U09B!$A$11:$J$210,2,FALSE)) ->  | M30: =IF(ISERROR(VLOOKUP($A30,U09B!$A$11:$J$210,1,FALSE)),"",VLOOKUP($A30,U09B!$A$11:$J$210,7,FALSE)) ->  | N30: =IF(ISERROR(VLOOKUP($A30,U09C!$A$11:$J$210,1,FALSE)),"",VLOOKUP($A30,U09C!$A$11:$J$210,2,FALSE)) ->  | O30: =IF(ISERROR(VLOOKUP($A30,U09C!$A$11:$J$210,1,FALSE)),"",VLOOKUP($A30,U09C!$A$11:$J$210,7,FALSE)) ->  | P30: =IF(ISERROR(VLOOKUP($A30,U08A!$A$11:$J$210,1,FALSE)),"",VLOOKUP($A30,U08A!$A$11:$J$210,2,FALSE)) ->  | Q30: =IF(ISERROR(VLOOKUP($A30,U08A!$A$11:$J$210,1,FALSE)),"",VLOOKUP($A30,U08A!$A$11:$J$210,7,FALSE)) ->  | R30: =IF(ISERROR(VLOOKUP($A30,U08B!$A$11:$J$210,1,FALSE)),"",VLOOKUP($A30,U08B!$A$11:$J$210,2,FALSE)) ->  | S30: =IF(ISERROR(VLOOKUP($A30,U08B!$A$11:$J$210,1,FALSE)),"",VLOOKUP($A30,U08B!$A$11:$J$210,7,FALSE)) ->  | T30: =IF(ISERROR(VLOOKUP($A30,U07A!$A$11:$J$210,1,FALSE)),"",VLOOKUP($A30,U07A!$A$11:$J$210,2,FALSE)) ->  | U30: =IF(ISERROR(VLOOKUP($A30,U07A!$A$11:$J$210,1,FALSE)),"",VLOOKUP($A30,U07A!$A$11:$J$210,7,FALSE)) ->  | V30: =IF(ISERROR(VLOOKUP($A30,U07B!$A$11:$J$210,1,FALSE)),"",VLOOKUP($A30,U07B!$A$11:$J$210,2,FALSE)) ->  | W30: =IF(ISERROR(VLOOKUP($A30,U07B!$A$11:$J$210,1,FALSE)),"",VLOOKUP($A30,U07B!$A$11:$J$210,7,FALSE)) ->  | X30: =IF(ISERROR(VLOOKUP($A30,U06A!$A$11:$J$210,1,FALSE)),"",VLOOKUP($A30,U06A!$A$11:$J$210,2,FALSE)) ->  | Y30: =IF(ISERROR(VLOOKUP($A30,U06A!$A$11:$J$210,1,FALSE)),"",VLOOKUP($A30,U06A!$A$11:$J$210,7,FALSE)) -> 
A31: 2017-09-16 | B31: =IF(ISERROR(VLOOKUP($A31,U11A!$A$11:$J$210,1,FALSE)),"",VLOOKUP($A31,U11A!$A$11:$J$210,2,FALSE)) -> 10:00:00 | C31: =IF(ISERROR(VLOOKUP($A31,U11A!$A$11:$J$210,1,FALSE)),"",VLOOKUP($A31,U11A!$A$11:$J$210,7,FALSE)) -> AWAY | D31: =IF(ISERROR(VLOOKUP($A31,U11B!$A$11:$J$210,1,FALSE)),"",VLOOKUP($A31,U11B!$A$11:$J$210,2,FALSE)) -> 10:00:00 | E31: =IF(ISERROR(VLOOKUP($A31,U11B!$A$11:$J$210,1,FALSE)),"",VLOOKUP($A31,U11B!$A$11:$J$210,7,FALSE)) -> AWAY | F31: =IF(ISERROR(VLOOKUP($A31,U10A!$A$11:$J$210,1,FALSE)),"",VLOOKUP($A31,U10A!$A$11:$J$210,2,FALSE)) -> 09:30:00 | G31: =IF(ISERROR(VLOOKUP($A31,U10A!$A$11:$J$210,1,FALSE)),"",VLOOKUP($A31,U10A!$A$11:$J$210,7,FALSE)) -> AWAY | H31: =IF(ISERROR(VLOOKUP($A31,U10B!$A$11:$J$210,1,FALSE)),"",VLOOKUP($A31,U10B!$A$11:$J$210,2,FALSE)) ->  | I31: =IF(ISERROR(VLOOKUP($A31,U10B!$A$11:$J$210,1,FALSE)),"",VLOOKUP($A31,U10B!$A$11:$J$210,7,FALSE)) ->  | J31: =IF(ISERROR(VLOOKUP($A31,U09A!$A$11:$J$210,1,FALSE)),"",VLOOKUP($A31,U09A!$A$11:$J$210,2,FALSE)) -> 09:30:00 | K31: =IF(ISERROR(VLOOKUP($A31,U09A!$A$11:$J$210,1,FALSE)),"",VLOOKUP($A31,U09A!$A$11:$J$210,7,FALSE)) -> AWAY | L31: =IF(ISERROR(VLOOKUP($A31,U09B!$A$11:$J$210,1,FALSE)),"",VLOOKUP($A31,U09B!$A$11:$J$210,2,FALSE)) -> 09:30:00 | M31: =IF(ISERROR(VLOOKUP($A31,U09B!$A$11:$J$210,1,FALSE)),"",VLOOKUP($A31,U09B!$A$11:$J$210,7,FALSE)) -> AWAY | N31: =IF(ISERROR(VLOOKUP($A31,U09C!$A$11:$J$210,1,FALSE)),"",VLOOKUP($A31,U09C!$A$11:$J$210,2,FALSE)) -> 09:30:00 | O31: =IF(ISERROR(VLOOKUP($A31,U09C!$A$11:$J$210,1,FALSE)),"",VLOOKUP($A31,U09C!$A$11:$J$210,7,FALSE)) -> AWAY | P31: =IF(ISERROR(VLOOKUP($A31,U08A!$A$11:$J$210,1,FALSE)),"",VLOOKUP($A31,U08A!$A$11:$J$210,2,FALSE)) -> 09:30:00 | Q31: =IF(ISERROR(VLOOKUP($A31,U08A!$A$11:$J$210,1,FALSE)),"",VLOOKUP($A31,U08A!$A$11:$J$210,7,FALSE)) -> AWAY | R31: =IF(ISERROR(VLOOKUP($A31,U08B!$A$11:$J$210,1,FALSE)),"",VLOOKUP($A31,U08B!$A$11:$J$210,2,FALSE)) ->  | S31: =IF(ISERROR(VLOOKUP($A31,U08B!$A$11:$J$210,1,FALSE)),"",VLOOKUP($A31,U08B!$A$11:$J$210,7,FALSE)) ->  | T31: =IF(ISERROR(VLOOKUP($A31,U07A!$A$11:$J$210,1,FALSE)),"",VLOOKUP($A31,U07A!$A$11:$J$210,2,FALSE)) -> 09:30:00 | U31: =IF(ISERROR(VLOOKUP($A31,U07A!$A$11:$J$210,1,FALSE)),"",VLOOKUP($A31,U07A!$A$11:$J$210,7,FALSE)) -> AWAY | V31: =IF(ISERROR(VLOOKUP($A31,U07B!$A$11:$J$210,1,FALSE)),"",VLOOKUP($A31,U07B!$A$11:$J$210,2,FALSE)) ->  | W31: =IF(ISERROR(VLOOKUP($A31,U07B!$A$11:$J$210,1,FALSE)),"",VLOOKUP($A31,U07B!$A$11:$J$210,7,FALSE)) ->  | X31: =IF(ISERROR(VLOOKUP($A31,U06A!$A$11:$J$210,1,FALSE)),"",VLOOKUP($A31,U06A!$A$11:$J$210,2,FALSE)) ->  | Y31: =IF(ISERROR(VLOOKUP($A31,U06A!$A$11:$J$210,1,FALSE)),"",VLOOKUP($A31,U06A!$A$11:$J$210,7,FALSE)) -> 
A32: 2017-09-17
A33: 2017-09-18

Sheet Grid
A1: Today | B1: =NOW() -> 2017-09-04T18:30:57.680
A2: 2017-09-09 | E2: =IF(C4="","REPOS",IF(B4="AWAY","REPOS",C4-"1:15")) -> 09:45:00 | F2: =IF(E2="REPOS",E2,MAX(N4:N23)+"1:15") -> 14:50:00 | G2: =COUNTIF(B4:B23,"HOME") -> 7 | H2: Nombre de Matches | I2: =K76 -> 15
A3: Match n° | B3: H/A | C3: Début | D3: Fin | E3: Terrain | F3: Team | G3: Vest. | H3: Adversaire | I3: Vest. | J3: Corr.G | K3: Corr.VH | L3: Corr.VA | M3: Corr.FIN | N3: viewfin
A4: =IF(I2=0,"",1) -> 1 | B4: =IF($A4="","",VLOOKUP($A4,$AB$48:$AK$76,6,FALSE)) -> HOME | C4: =IF($A4="","",VLOOKUP($A4,$AB$48:$AK$76,5,FALSE)) -> 11:00:00 | D4: =IF(A4="","",IF(M4="",C4+VLOOKUP(F4,$A$109:$B$137,2,FALSE),M4)) -> 12:15:00 | E4: =IF($A4="","",IF(J4="",VLOOKUP($A4,$AB$48:$AK$76,8,FALSE),J4)) -> GR1A | F4: =IF(A4="","",VLOOKUP($A4,$AB$48:$AE$76,4,FALSE)) -> U13A | G4: =IF($A4="","",IF(B4="AWAY","UKN",IF(K4="",VLOOKUP($A4,$AB$48:$AK$76,9,FALSE),K4))) -> 1 | H4: =IF($A4="","",VLOOKUP($A4,$AB$48:$AK$76,7,FALSE)) -> R.DC.COINTE LIÈGE A 1 | I4: =IF($A4="","",IF(B4="AWAY","UKN",IF(L4="",VLOOKUP($A4,$AB$48:$AK$76,10,FALSE),L4))) -> 3 | K4: 1 | L4: 3 | N4: =IF(B4="HOME",D4,"") -> 0.5104166667
A5: =IF(A4="","",IF(A4<$I$2,A4+1,"")) -> 2 | B5: =IF($A5="","",VLOOKUP($A5,$AB$48:$AK$76,6,FALSE)) -> HOME | C5: =IF($A5="","",VLOOKUP($A5,$AB$48:$AK$76,5,FALSE)) -> 11:00:00 | D5: =IF(A5="","",IF(M5="",C5+VLOOKUP(F5,$A$109:$B$137,2,FALSE),M5)) -> 12:15:00 | E5: =IF($A5="","",IF(J5="",VLOOKUP($A5,$AB$48:$AK$76,8,FALSE),J5)) -> GR1B | F5: =IF(A5="","",VLOOKUP($A5,$AB$48:$AE$76,4,FALSE)) -> U13B | G5: =IF($A5="","",IF(B5="AWAY","UKN",IF(K5="",VLOOKUP($A5,$AB$48:$AK$76,9,FALSE),K5))) -> 1 | H5: =IF($A5="","",VLOOKUP($A5,$AB$48:$AK$76,7,FALSE)) -> JUPILLE B 2 | I5: =IF($A5="","",IF(B5="AWAY","UKN",IF(L5="",VLOOKUP($A5,$AB$48:$AK$76,10,FALSE),L5))) -> 4 | K5: 1 | L5: 4 | N5: =IF(B5="HOME",D5,"") -> 0.5104166667
A6: =IF(A5="","",IF(A5<$I$2,A5+1,"")) -> 3 | B6: =IF($A6="","",VLOOKUP($A6,$AB$48:$AK$76,6,FALSE)) -> HOME | C6: =IF($A6="","",VLOOKUP($A6,$AB$48:$AK$76,5,FALSE)) -> 11:00:00 | D6: =IF(A6="","",IF(M6="",C6+VLOOKUP(F6,$A$109:$B$137,2,FALSE),M6)) -> 12:15:00 | E6: GR2X | F6: =IF(A6="","",VLOOKUP($A6,$AB$48:$AE$76,4,FALSE)) -> U10A | G6: =IF($A6="","",IF(B6="AWAY","UKN",IF(K6="",VLOOKUP($A6,$AB$48:$AK$76,9,FALSE),K6))) -> 2 | H6: =IF($A6="","",VLOOKUP($A6,$AB$48:$AK$76,7,FALSE)) -> FOOTBALL CLUB LIÈGE B 1 | I6: =IF($A6="","",IF(B6="AWAY","UKN",IF(L6="",VLOOKUP($A6,$AB$48:$AK$76,10,FALSE),L6))) -> 5 | K6: 2 | L6: 5 | N6: 0.5104166667
A7: =IF(A6="","",IF(A6<$I$2,A6+1,"")) -> 4 | B7: =IF($A7="","",VLOOKUP($A7,$AB$48:$AK$76,6,FALSE)) -> HOME | C7: =IF($A7="","",VLOOKUP($A7,$AB$48:$AK$76,5,FALSE)) -> 11:00:00 | D7: =IF(A7="","",IF(M7="",C7+VLOOKUP(F7,$A$109:$B$137,2,FALSE),M7)) -> 12:15:00 | E7: GR2Y | F7: =IF(A7="","",VLOOKUP($A7,$AB$48:$AE$76,4,FALSE)) -> U10B | G7: =IF($A7="","",IF(B7="AWAY","UKN",IF(K7="",VLOOKUP($A7,$AB$48:$AK$76,9,FALSE),K7))) -> 2 | H7: =IF($A7="","",VLOOKUP($A7,$AB$48:$AK$76,7,FALSE)) -> COUTHUIN 2 | I7: =IF($A7="","",IF(B7="AWAY","UKN",IF(L7="",VLOOKUP($A7,$AB$48:$AK$76,10,FALSE),L7))) -> 6 | K7: 2 | L7: 6 | N7: 0.5104166667
A8: =IF(A7="","",IF(A7<$I$2,A7+1,"")) -> 5 | B8: =IF($A8="","",VLOOKUP($A8,$AB$48:$AK$76,6,FALSE)) -> HOME | C8: =IF($A8="","",VLOOKUP($A8,$AB$48:$AK$76,5,FALSE)) -> 12:30:00 | D8: =IF(A8="","",IF(M8="",C8+VLOOKUP(F8,$A$109:$B$137,2,FALSE),M8)) -> 13:35:00 | E8: GR1A1 | F8: =IF(A8="","",VLOOKUP($A8,$AB$48:$AE$76,4,FALSE)) -> U08A | G8: =IF($A8="","",IF(B8="AWAY","UKN",IF(K8="",VLOOKUP($A8,$AB$48:$AK$76,9,FALSE),K8))) -> 1 | H8: =IF($A8="","",VLOOKUP($A8,$AB$48:$AK$76,7,FALSE)) -> RFC.HUY B 2 | I8: =IF($A8="","",IF(B8="AWAY","UKN",IF(L8="",VLOOKUP($A8,$AB$48:$AK$76,10,FALSE),L8))) -> 4 | K8: 1 | L8: 4 | N8: 0.5659722222
A9: =IF(A8="","",IF(A8<$I$2,A8+1,"")) -> 6 | B9: =IF($A9="","",VLOOKUP($A9,$AB$48:$AK$76,6,FALSE)) -> HOME | C9: =IF($A9="","",VLOOKUP($A9,$AB$48:$AK$76,5,FALSE)) -> 12:30:00 | D9: =IF(A9="","",IF(M9="",C9+VLOOKUP(F9,$A$109:$B$137,2,FALSE),M9)) -> 13:35:00 | E9: GR1A2 | F9: =IF(A9="","",VLOOKUP($A9,$AB$48:$AE$76,4,FALSE)) -> U08B | G9: =IF($A9="","",IF(B9="AWAY","UKN",IF(K9="",VLOOKUP($A9,$AB$48:$AK$76,9,FALSE),K9))) -> 2 | H9: =IF($A9="","",VLOOKUP($A9,$AB$48:$AK$76,7,FALSE)) -> CLAVINOISE B 3 | I9: =IF($A9="","",IF(B9="AWAY","UKN",IF(L9="",VLOOKUP($A9,$AB$48:$AK$76,10,FALSE),L9))) -> 5 | K9: 2 | L9: 5 | N9: 0.5659722222
A10: =IF(A9="","",IF(A9<$I$2,A9+1,"")) -> 7 | B10: =IF($A10="","",VLOOKUP($A10,$AB$48:$AK$76,6,FALSE)) -> HOME | C10: =IF($A10="","",VLOOKUP($A10,$AB$48:$AK$76,5,FALSE)) -> 12:30:00 | D10: =IF(A10="","",IF(M10="",C10+VLOOKUP(F10,$A$109:$B$137,2,FALSE),M10)) -> 13:35:00 | E10: GR2A1 | F10: =IF(A10="","",VLOOKUP($A10,$AB$48:$AE$76,4,FALSE)) -> U07A | G10: =IF($A10="","",IF(B10="AWAY","UKN",IF(K10="",VLOOKUP($A10,$AB$48:$AK$76,9,FALSE),K10))) -> 3 | H10: =IF($A10="","",VLOOKUP($A10,$AB$48:$AK$76,7,FALSE)) -> RFC.HUY A 2 | I10: =IF($A10="","",IF(B10="AWAY","UKN",IF(L10="",VLOOKUP($A10,$AB$48:$AK$76,10,FALSE),L10))) -> 6 | K10: 3 | L10: 6 | N10: 0.5659722222
A11: =IF(A10="","",IF(A10<$I$2,A10+1,"")) -> 8 | B11: =IF($A11="","",VLOOKUP($A11,$AB$48:$AK$76,6,FALSE)) -> AWAY | C11: =IF($A11="","",VLOOKUP($A11,$AB$48:$AK$76,5,FALSE)) -> 10:00:00 | D11: =IF(A11="","",IF(M11="",C11+VLOOKUP(F11,$A$109:$B$137,2,FALSE),M11)) -> 11:05:00 | E11: UKN | F11: =IF(A11="","",VLOOKUP($A11,$AB$48:$AE$76,4,FALSE)) -> U09A | G11: =IF($A11="","",IF(B11="AWAY","UKN",IF(K11="",VLOOKUP($A11,$AB$48:$AK$76,9,FALSE),K11))) -> UKN | H11: =IF($A11="","",VLOOKUP($A11,$AB$48:$AK$76,7,FALSE)) -> ELSAUTOISE A 1 | I11: =IF($A11="","",IF(B11="AWAY","UKN",IF(L11="",VLOOKUP($A11,$AB$48:$AK$76,10,FALSE),L11))) -> UKN
A12: =IF(A11="","",IF(A11<$I$2,A11+1,"")) -> 9 | B12: =IF($A12="","",VLOOKUP($A12,$AB$48:$AK$76,6,FALSE)) -> AWAY | C12: =IF($A12="","",VLOOKUP($A12,$AB$48:$AK$76,5,FALSE)) -> 11:00:00 | D12: =IF(A12="","",IF(M12="",C12+VLOOKUP(F12,$A$109:$B$137,2,FALSE),M12)) -> 12:15:00 | E12: UKN | F12: =IF(A12="","",VLOOKUP($A12,$AB$48:$AE$76,4,FALSE)) -> U11A | G12: =IF($A12="","",IF(B12="AWAY","UKN",IF(K12="",VLOOKUP($A12,$AB$48:$AK$76,9,FALSE),K12))) -> UKN | H12: =IF($A12="","",VLOOKUP($A12,$AB$48:$AK$76,7,FALSE)) -> WAREMME B 1 | I12: =IF($A12="","",IF(B12="AWAY","UKN",IF(L12="",VLOOKUP($A12,$AB$48:$AK$76,10,FALSE),L12))) -> UKN
A13: =IF(A12="","",IF(A12<$I$2,A12+1,"")) -> 10 | B13: =IF($A13="","",VLOOKUP($A13,$AB$48:$AK$76,6,FALSE)) -> AWAY | C13: =IF($A13="","",VLOOKUP($A13,$AB$48:$AK$76,5,FALSE)) -> 11:00:00 | D13: =IF(A13="","",IF(M13="",C13+VLOOKUP(F13,$A$109:$B$137,2,FALSE),M13)) -> 12:05:00 | E13: UKN | F13: =IF(A13="","",VLOOKUP($A13,$AB$48:$AE$76,4,FALSE)) -> U09B | G13: =IF($A13="","",IF(B13="AWAY","UKN",IF(K13="",VLOOKUP($A13,$AB$48:$AK$76,9,FALSE),K13))) -> UKN | H13: =IF($A13="","",VLOOKUP($A13,$AB$48:$AK$76,7,FALSE)) -> R. FRAITURE SP 2 | I13: =IF($A13="","",IF(B13="AWAY","UKN",IF(L13="",VLOOKUP($A13,$AB$48:$AK$76,10,FALSE),L13))) -> UKN
A14: =IF(A13="","",IF(A13<$I$2,A13+1,"")) -> 11 | B14: =IF($A14="","",VLOOKUP($A14,$AB$48:$AK$76,6,FALSE)) -> AWAY | C14: =IF($A14="","",VLOOKUP($A14,$AB$48:$AK$76,5,FALSE)) -> 11:00:00 | D14: =IF(A14="","",IF(M14="",C14+VLOOKUP(F14,$A$109:$B$137,2,FALSE),M14)) -> 12:05:00 | E14: UKN | F14: =IF(A14="","",VLOOKUP($A14,$AB$48:$AE$76,4,FALSE)) -> U09C | G14: =IF($A14="","",IF(B14="AWAY","UKN",IF(K14="",VLOOKUP($A14,$AB$48:$AK$76,9,FALSE),K14))) -> UKN | H14: =IF($A14="","",VLOOKUP($A14,$AB$48:$AK$76,7,FALSE)) -> STRÉE 3 | I14: =IF($A14="","",IF(B14="AWAY","UKN",IF(L14="",VLOOKUP($A14,$AB$48:$AK$76,10,FALSE),L14))) -> UKN
A15: =IF(A14="","",IF(A14<$I$2,A14+1,"")) -> 12 | B15: =IF($A15="","",VLOOKUP($A15,$AB$48:$AK$76,6,FALSE)) -> AWAY | C15: =IF($A15="","",VLOOKUP($A15,$AB$48:$AK$76,5,FALSE)) -> 11:00:00 | D15: =IF(A15="","",IF(M15="",C15+VLOOKUP(F15,$A$109:$B$137,2,FALSE),M15)) -> 12:45:00 | E15: UKN | F15: =IF(A15="","",VLOOKUP($A15,$AB$48:$AE$76,4,FALSE)) -> U06A | G15: =IF($A15="","",IF(B15="AWAY","UKN",IF(K15="",VLOOKUP($A15,$AB$48:$AK$76,9,FALSE),K15))) -> UKN | H15: =IF($A15="","",VLOOKUP($A15,$AB$48:$AK$76,7,FALSE)) -> VISE BMFA | I15: =IF($A15="","",IF(B15="AWAY","UKN",IF(L15="",VLOOKUP($A15,$AB$48:$AK$76,10,FALSE),L15))) -> UKN
A16: =IF(A15="","",IF(A15<$I$2,A15+1,"")) -> 13 | B16: =IF($A16="","",VLOOKUP($A16,$AB$48:$AK$76,6,FALSE)) -> AWAY | C16: =IF($A16="","",VLOOKUP($A16,$AB$48:$AK$76,5,FALSE)) -> 12:30:00 | D16: =IF(A16="","",IF(M16="",C16+VLOOKUP(F16,$A$109:$B$137,2,FALSE),M16)) -> 13:45:00 | E16: UKN | F16: =IF(A16="","",VLOOKUP($A16,$AB$48:$AE$76,4,FALSE)) -> U12A | G16: =IF($A16="","",IF(B16="AWAY","UKN",IF(K16="",VLOOKUP($A16,$AB$48:$AK$76,9,FALSE),K16))) -> UKN | H16: =IF($A16="","",VLOOKUP($A16,$AB$48:$AK$76,7,FALSE)) -> US.GRÂCE HOLLOGNE A 1 | I16: =IF($A16="","",IF(B16="AWAY","UKN",IF(L16="",VLOOKUP($A16,$AB$48:$AK$76,10,FALSE),L16))) -> UKN
A17: =IF(A16="","",IF(A16<$I$2,A16+1,"")) -> 14 | B17: =IF($A17="","",VLOOKUP($A17,$AB$48:$AK$76,6,FALSE)) -> AWAY | C17: =IF($A17="","",VLOOKUP($A17,$AB$48:$AK$76,5,FALSE)) -> 12:30:00 | D17: =IF(A17="","",IF(M17="",C17+VLOOKUP(F17,$A$109:$B$137,2,FALSE),M17)) -> 13:45:00 | E17: UKN | F17: =IF(A17="","",VLOOKUP($A17,$AB$48:$AE$76,4,FALSE)) -> U11B | G17: =IF($A17="","",IF(B17="AWAY","UKN",IF(K17="",VLOOKUP($A17,$AB$48:$AK$76,9,FALSE),K17))) -> UKN | H17: =IF($A17="","",VLOOKUP($A17,$AB$48:$AK$76,7,FALSE)) -> STRÉE 3 | I17: =IF($A17="","",IF(B17="AWAY","UKN",IF(L17="",VLOOKUP($A17,$AB$48:$AK$76,10,FALSE),L17))) -> UKN
A18: =IF(A17="","",IF(A17<$I$2,A17+1,"")) -> 15 | B18: =IF($A18="","",VLOOKUP($A18,$AB$48:$AK$76,6,FALSE)) -> AWAY | C18: =IF($A18="","",VLOOKUP($A18,$AB$48:$AK$76,5,FALSE)) -> 15:30:00 | D18: =IF(A18="","",IF(M18="",C18+VLOOKUP(F18,$A$109:$B$137,2,FALSE),M18)) -> 17:15:00 | E18: UKN | F18: =IF(A18="","",VLOOKUP($A18,$AB$48:$AE$76,4,FALSE)) -> U19A | G18: =IF($A18="","",IF(B18="AWAY","UKN",IF(K18="",VLOOKUP($A18,$AB$48:$AK$76,9,FALSE),K18))) -> UKN | H18: =IF($A18="","",VLOOKUP($A18,$AB$48:$AK$76,7,FALSE)) -> MINEROIS | I18: =IF($A18="","",IF(B18="AWAY","UKN",IF(L18="",VLOOKUP($A18,$AB$48:$AK$76,10,FALSE),L18))) -> UKN
A19: =IF(A18="","",IF(A18<$I$2,A18+1,"")) ->  | B19: =IF($A19="","",VLOOKUP($A19,$AB$48:$AK$76,6,FALSE)) ->  | C19: =IF($A19="","",VLOOKUP($A19,$AB$48:$AK$76,5,FALSE)) ->  | D19: =IF(A19="","",IF(M19="",C19+VLOOKUP(F19,$A$109:$B$137,2,FALSE),M19)) ->  | F19: =IF(A19="","",VLOOKUP($A19,$AB$48:$AE$76,4,FALSE)) ->  | G19: =IF($A19="","",IF(B19="AWAY","UKN",IF(K19="",VLOOKUP($A19,$AB$48:$AK$76,9,FALSE),K19))) ->  | H19: =IF($A19="","",VLOOKUP($A19,$AB$48:$AK$76,7,FALSE)) ->  | I19: =IF($A19="","",IF(B19="AWAY","UKN",IF(L19="",VLOOKUP($A19,$AB$48:$AK$76,10,FALSE),L19))) -> 
A20: =IF(A19="","",IF(A19<$I$2,A19+1,"")) ->  | B20: =IF($A20="","",VLOOKUP($A20,$AB$48:$AK$76,6,FALSE)) ->  | C20: =IF($A20="","",VLOOKUP($A20,$AB$48:$AK$76,5,FALSE)) ->  | D20: =IF(A20="","",IF(M20="",C20+VLOOKUP(F20,$A$109:$B$137,2,FALSE),M20)) ->  | F20: =IF(A20="","",VLOOKUP($A20,$AB$48:$AE$76,4,FALSE)) ->  | G20: =IF($A20="","",IF(B20="AWAY","UKN",IF(K20="",VLOOKUP($A20,$AB$48:$AK$76,9,FALSE),K20))) ->  | H20: =IF($A20="","",VLOOKUP($A20,$AB$48:$AK$76,7,FALSE)) ->  | I20: =IF($A20="","",IF(B20="AWAY","UKN",IF(L20="",VLOOKUP($A20,$AB$48:$AK$76,10,FALSE),L20))) -> 
A21: =IF(A20="","",IF(A20<$I$2,A20+1,"")) ->  | B21: =IF($A21="","",VLOOKUP($A21,$AB$48:$AK$76,6,FALSE)) ->  | C21: =IF($A21="","",VLOOKUP($A21,$AB$48:$AK$76,5,FALSE)) ->  | D21: =IF(A21="","",IF(M21="",C21+VLOOKUP(F21,$A$109:$B$137,2,FALSE),M21)) ->  | F21: =IF(A21="","",VLOOKUP($A21,$AB$48:$AE$76,4,FALSE)) ->  | G21: =IF($A21="","",IF(B21="AWAY","UKN",IF(K21="",VLOOKUP($A21,$AB$48:$AK$76,9,FALSE),K21))) ->  | H21: =IF($A21="","",VLOOKUP($A21,$AB$48:$AK$76,7,FALSE)) ->  | I21: =IF($A21="","",IF(B21="AWAY","UKN",IF(L21="",VLOOKUP($A21,$AB$48:$AK$76,10,FALSE),L21))) -> 
A22: =IF(A21="","",IF(A21<$I$2,A21+1,"")) ->  | B22: =IF($A22="","",VLOOKUP($A22,$AB$48:$AK$76,6,FALSE)) ->  | C22: =IF($A22="","",VLOOKUP($A22,$AB$48:$AK$76,5,FALSE)) ->  | D22: =IF(A22="","",IF(M22="",C22+VLOOKUP(F22,$A$109:$B$137,2,FALSE),M22)) ->  | F22: =IF(A22="","",VLOOKUP($A22,$AB$48:$AE$76,4,FALSE)) ->  | G22: =IF($A22="","",IF(B22="AWAY","UKN",IF(K22="",VLOOKUP($A22,$AB$48:$AK$76,9,FALSE),K22))) ->  | H22: =IF($A22="","",VLOOKUP($A22,$AB$48:$AK$76,7,FALSE)) ->  | I22: =IF($A22="","",IF(B22="AWAY","UKN",IF(L22="",VLOOKUP($A22,$AB$48:$AK$76,10,FALSE),L22))) -> 
A23: =IF(A22="","",IF(A22<$I$2,A22+1,"")) ->  | B23: =IF($A23="","",VLOOKUP($A23,$AB$48:$AK$76,6,FALSE)) ->  | C23: =IF($A23="","",VLOOKUP($A23,$AB$48:$AK$76,5,FALSE)) ->  | D23: =IF(A23="","",IF(M23="",C23+VLOOKUP(F23,$A$109:$B$137,2,FALSE),M23)) ->  | F23: =IF(A23="","",VLOOKUP($A23,$AB$48:$AE$76,4,FALSE)) ->  | G23: =IF($A23="","",IF(B23="AWAY","UKN",IF(K23="",VLOOKUP($A23,$AB$48:$AK$76,9,FALSE),K23))) ->  | H23: =IF($A23="","",VLOOKUP($A23,$AB$48:$AK$76,7,FALSE)) ->  | I23: =IF($A23="","",IF(B23="AWAY","UKN",IF(L23="",VLOOKUP($A23,$AB$48:$AK$76,10,FALSE),L23))) -> 
A24: 2017-09-10 | E24: =IF(C26="","REPOS",IF(B26="AWAY","REPOS",C26-"1:15")) -> 08:30:00 | F24: =MAX(N26:N45)+"1:15" -> 18:00:00 | G24: =COUNTIF(B26:B45,"HOME") -> 3 | H24: Nombre de Matches | I24: =K107 -> 7
A25: Match n° | B25: H/A | C25: Début | D25: Fin | E25: Terrain | F25: Team | G25: Vest. | H25: Adversaire | I25: Vest. | J25: Corr.G | K25: Corr.VH | L25: Corr.VA | M25: Corr.FIN | N25: viewfin
A26: =IF(I24=0,"",1) -> 1 | B26: =IF($A26="","",VLOOKUP($A26,$AB$79:$AK$107,6,FALSE)) -> HOME | C26: =IF($A26="","",VLOOKUP($A26,$AB$79:$AK$107,5,FALSE)) -> 09:45:00 | D26: =IF(A26="","",C26+VLOOKUP(F26,$A$109:$B$137,2,FALSE)) -> 11:10:00 | E26: =IF($A26="","",IF(J26="",VLOOKUP($A26,$AB$79:$AK$107,8,FALSE),J26)) -> GR1 | F26: =IF(A26="","",VLOOKUP($A26,$AB$79:$AE$107,4,FALSE)) -> U15A | G26: =IF($A26="","",IF(B26="AWAY","UKN",IF(K26="",VLOOKUP($A26,$AB$79:$AK$107,9,FALSE),K26))) -> 3 | H26: =IF($A26="","",VLOOKUP($A26,$AB$79:$AK$107,7,FALSE)) -> ES.GEER | I26: =IF($A26="","",IF(B26="AWAY","UKN",IF(L26="",VLOOKUP($A26,$AB$79:$AK$107,10,FALSE),L26))) -> 4 | K26: 3 | L26: 4 | N26: =IF(B26="HOME",D26,"") -> 0.4652777778
A27: =IF(A26="","",IF(A26<$I$24,A26+1,"")) -> 2 | B27: =IF($A27="","",VLOOKUP($A27,$AB$79:$AK$107,6,FALSE)) -> HOME | C27: =IF($A27="","",VLOOKUP($A27,$AB$79:$AK$107,5,FALSE)) -> 11:15:00 | D27: =IF(A27="","",C27+VLOOKUP(F27,$A$109:$B$137,2,FALSE)) -> 12:50:00 | E27: =IF($A27="","",IF(J27="",VLOOKUP($A27,$AB$79:$AK$107,8,FALSE),J27)) -> GR1 | F27: =IF(A27="","",VLOOKUP($A27,$AB$79:$AE$107,4,FALSE)) -> U16A | G27: =IF($A27="","",IF(B27="AWAY","UKN",IF(K27="",VLOOKUP($A27,$AB$79:$AK$107,9,FALSE),K27))) -> 5 | H27: =IF($A27="","",VLOOKUP($A27,$AB$79:$AK$107,7,FALSE)) -> FOOTBALL CLUB LIÈGE B | I27: =IF($A27="","",IF(B27="AWAY","UKN",IF(L27="",VLOOKUP($A27,$AB$79:$AK$107,10,FALSE),L27))) -> 6 | K27: 5 | L27: 6 | N27: =IF(B27="HOME",D27,"") -> 0.5347222222
A28: =IF(A27="","",IF(A27<$I$24,A27+1,"")) -> 3 | B28: =IF($A28="","",VLOOKUP($A28,$AB$79:$AK$107,6,FALSE)) -> HOME | C28: =IF($A28="","",VLOOKUP($A28,$AB$79:$AK$107,5,FALSE)) -> 15:00:00 | D28: =IF(A28="","",C28+VLOOKUP(F28,$A$109:$B$137,2,FALSE)) -> 16:45:00 | E28: GR1 | F28: =IF(A28="","",VLOOKUP($A28,$AB$79:$AE$107,4,FALSE)) -> SENB | G28: =IF($A28="","",IF(B28="AWAY","UKN",IF(K28="",VLOOKUP($A28,$AB$79:$AK$107,9,FALSE),K28))) -> 1 | H28: =IF($A28="","",VLOOKUP($A28,$AB$79:$AK$107,7,FALSE)) -> STOCKAY B | I28: =IF($A28="","",IF(B28="AWAY","UKN",IF(L28="",VLOOKUP($A28,$AB$79:$AK$107,10,FALSE),L28))) -> 2 | K28: 1 | L28: 2 | N28: 0.6979166667
A29: 4 | B29: =IF($A29="","",VLOOKUP($A29,$AB$79:$AK$107,6,FALSE)) -> AWAY | C29: =IF($A29="","",VLOOKUP($A29,$AB$79:$AK$107,5,FALSE)) -> 09:30:00 | D29: =IF(A29="","",C29+VLOOKUP(F29,$A$109:$B$137,2,FALSE)) -> 11:05:00 | E29: UKN | F29: =IF(A29="","",VLOOKUP($A29,$AB$79:$AE$107,4,FALSE)) -> U17A | G29: =IF($A29="","",IF(B29="AWAY","UKN",IF(K29="",VLOOKUP($A29,$AB$79:$AK$107,9,FALSE),K29))) -> UKN | H29: =IF($A29="","",VLOOKUP($A29,$AB$79:$AK$107,7,FALSE)) -> FC.TILLEUR B | I29: =IF($A29="","",IF(B29="AWAY","UKN",IF(L29="",VLOOKUP($A29,$AB$79:$AK$107,10,FALSE),L29))) -> UKN
A30: 5 | B30: =IF($A30="","",VLOOKUP($A30,$AB$79:$AK$107,6,FALSE)) -> AWAY | C30: =IF($A30="","",VLOOKUP($A30,$AB$79:$AK$107,5,FALSE)) -> 11:15:00 | D30: =IF(A30="","",C30+VLOOKUP(F30,$A$109:$B$137,2,FALSE)) -> 12:40:00 | E30: UKN | F30: =IF(A30="","",VLOOKUP($A30,$AB$79:$AE$107,4,FALSE)) -> U14A | G30: =IF($A30="","",IF(B30="AWAY","UKN",IF(K30="",VLOOKUP($A30,$AB$79:$AK$107,9,FALSE),K30))) -> UKN | H30: =IF($A30="","",VLOOKUP($A30,$AB$79:$AK$107,7,FALSE)) -> FC.HERSTAL | I30: =IF($A30="","",IF(B30="AWAY","UKN",IF(L30="",VLOOKUP($A30,$AB$79:$AK$107,10,FALSE),L30))) -> UKN
A31: 6 | B31: =IF($A31="","",VLOOKUP($A31,$AB$79:$AK$107,6,FALSE)) -> AWAY | C31: =IF($A31="","",VLOOKUP($A31,$AB$79:$AK$107,5,FALSE)) -> 11:15:00 | D31: =IF(A31="","",C31+VLOOKUP(F31,$A$109:$B$137,2,FALSE)) -> 12:40:00 | E31: UKN | F31: =IF(A31="","",VLOOKUP($A31,$AB$79:$AE$107,4,FALSE)) -> U14B | G31: =IF($A31="","",IF(B31="AWAY","UKN",IF(K31="",VLOOKUP($A31,$AB$79:$AK$107,9,FALSE),K31))) -> UKN | H31: =IF($A31="","",VLOOKUP($A31,$AB$79:$AK$107,7,FALSE)) -> OUGRÉE | I31: =IF($A31="","",IF(B31="AWAY","UKN",IF(L31="",VLOOKUP($A31,$AB$79:$AK$107,10,FALSE),L31))) -> UKN
A32: 7 | B32: =IF($A32="","",VLOOKUP($A32,$AB$79:$AK$107,6,FALSE)) -> AWAY | C32: =IF($A32="","",VLOOKUP($A32,$AB$79:$AK$107,5,FALSE)) -> 15:00:00 | D32: =IF(A32="","",C32+VLOOKUP(F32,$A$109:$B$137,2,FALSE)) -> 16:45:00 | E32: UKN | F32: =IF(A32="","",VLOOKUP($A32,$AB$79:$AE$107,4,FALSE)) -> SENA | G32: =IF($A32="","",IF(B32="AWAY","UKN",IF(K32="",VLOOKUP($A32,$AB$79:$AK$107,9,FALSE),K32))) -> UKN | H32: =IF($A32="","",VLOOKUP($A32,$AB$79:$AK$107,7,FALSE)) -> FAIMES A | I32: =IF($A32="","",IF(B32="AWAY","UKN",IF(L32="",VLOOKUP($A32,$AB$79:$AK$107,10,FALSE),L32))) -> UKN
B33: =IF($A33="","",VLOOKUP($A33,$AB$79:$AK$107,6,FALSE)) ->  | C33: =IF($A33="","",VLOOKUP($A33,$AB$79:$AK$107,5,FALSE)) ->  | D33: =IF(A33="","",C33+VLOOKUP(F33,$A$109:$B$137,2,FALSE)) ->  | F33: =IF(A33="","",VLOOKUP($A33,$AB$79:$AE$107,4,FALSE)) ->  | G33: =IF($A33="","",IF(B33="AWAY","UKN",IF(K33="",VLOOKUP($A33,$AB$79:$AK$107,9,FALSE),K33))) ->  | H33: =IF($A33="","",VLOOKUP($A33,$AB$79:$AK$107,7,FALSE)) ->  | I33: =IF($A33="","",IF(B33="AWAY","UKN",IF(L33="",VLOOKUP($A33,$AB$79:$AK$107,10,FALSE),L33))) -> 
B34: =IF($A34="","",VLOOKUP($A34,$AB$79:$AK$107,6,FALSE)) ->  | C34: =IF($A34="","",VLOOKUP($A34,$AB$79:$AK$107,5,FALSE)) ->  | D34: =IF(A34="","",C34+VLOOKUP(F34,$A$109:$B$137,2,FALSE)) ->  | F34: =IF(A34="","",VLOOKUP($A34,$AB$79:$AE$107,4,FALSE)) ->  | G34: =IF($A34="","",IF(B34="AWAY","UKN",IF(K34="",VLOOKUP($A34,$AB$79:$AK$107,9,FALSE),K34))) ->  | H34: =IF($A34="","",VLOOKUP($A34,$AB$79:$AK$107,7,FALSE)) ->  | I34: =IF($A34="","",IF(B34="AWAY","UKN",IF(L34="",VLOOKUP($A34,$AB$79:$AK$107,10,FALSE),L34))) -> 
B35: =IF($A35="","",VLOOKUP($A35,$AB$79:$AK$107,6,FALSE)) ->  | C35: =IF($A35="","",VLOOKUP($A35,$AB$79:$AK$107,5,FALSE)) ->  | D35: =IF(A35="","",C35+VLOOKUP(F35,$A$109:$B$137,2,FALSE)) ->  | F35: =IF(A35="","",VLOOKUP($A35,$AB$79:$AE$107,4,FALSE)) ->  | G35: =IF($A35="","",IF(B35="AWAY","UKN",IF(K35="",VLOOKUP($A35,$AB$79:$AK$107,9,FALSE),K35))) ->  | H35: =IF($A35="","",VLOOKUP($A35,$AB$79:$AK$107,7,FALSE)) ->  | I35: =IF($A35="","",IF(B35="AWAY","UKN",IF(L35="",VLOOKUP($A35,$AB$79:$AK$107,10,FALSE),L35))) -> 
B36: =IF($A36="","",VLOOKUP($A36,$AB$79:$AK$107,6,FALSE)) ->  | C36: =IF($A36="","",VLOOKUP($A36,$AB$79:$AK$107,5,FALSE)) ->  | D36: =IF(A36="","",C36+VLOOKUP(F36,$A$109:$B$137,2,FALSE)) ->  | F36: =IF(A36="","",VLOOKUP($A36,$AB$79:$AE$107,4,FALSE)) ->  | G36: =IF($A36="","",IF(B36="AWAY","UKN",IF(K36="",VLOOKUP($A36,$AB$79:$AK$107,9,FALSE),K36))) ->  | H36: =IF($A36="","",VLOOKUP($A36,$AB$79:$AK$107,7,FALSE)) ->  | I36: =IF($A36="","",IF(B36="AWAY","UKN",IF(L36="",VLOOKUP($A36,$AB$79:$AK$107,10,FALSE),L36))) -> 
B37: =IF($A37="","",VLOOKUP($A37,$AB$79:$AK$107,6,FALSE)) ->  | C37: =IF($A37="","",VLOOKUP($A37,$AB$79:$AK$107,5,FALSE)) ->  | D37: =IF(A37="","",C37+VLOOKUP(F37,$A$109:$B$137,2,FALSE)) ->  | F37: =IF(A37="","",VLOOKUP($A37,$AB$79:$AE$107,4,FALSE)) ->  | G37: =IF($A37="","",IF(B37="AWAY","UKN",IF(K37="",VLOOKUP($A37,$AB$79:$AK$107,9,FALSE),K37))) ->  | H37: =IF($A37="","",VLOOKUP($A37,$AB$79:$AK$107,7,FALSE)) ->  | I37: =IF($A37="","",IF(B37="AWAY","UKN",IF(L37="",VLOOKUP($A37,$AB$79:$AK$107,10,FALSE),L37))) -> 
B38: =IF($A38="","",VLOOKUP($A38,$AB$79:$AK$107,6,FALSE)) ->  | C38: =IF($A38="","",VLOOKUP($A38,$AB$79:$AK$107,5,FALSE)) ->  | D38: =IF(A38="","",C38+VLOOKUP(F38,$A$109:$B$137,2,FALSE)) ->  | F38: =IF(A38="","",VLOOKUP($A38,$AB$79:$AE$107,4,FALSE)) ->  | G38: =IF($A38="","",IF(B38="AWAY","UKN",IF(K38="",VLOOKUP($A38,$AB$79:$AK$107,9,FALSE),K38))) ->  | H38: =IF($A38="","",VLOOKUP($A38,$AB$79:$AK$107,7,FALSE)) ->  | I38: =IF($A38="","",IF(B38="AWAY","UKN",IF(L38="",VLOOKUP($A38,$AB$79:$AK$107,10,FALSE),L38))) -> 
B39: =IF($A39="","",VLOOKUP($A39,$AB$79:$AK$107,6,FALSE)) ->  | C39: =IF($A39="","",VLOOKUP($A39,$AB$79:$AK$107,5,FALSE)) ->  | D39: =IF(A39="","",C39+VLOOKUP(F39,$A$109:$B$137,2,FALSE)) ->  | F39: =IF(A39="","",VLOOKUP($A39,$AB$79:$AE$107,4,FALSE)) ->  | G39: =IF($A39="","",IF(B39="AWAY","UKN",IF(K39="",VLOOKUP($A39,$AB$79:$AK$107,9,FALSE),K39))) ->  | H39: =IF($A39="","",VLOOKUP($A39,$AB$79:$AK$107,7,FALSE)) ->  | I39: =IF($A39="","",IF(B39="AWAY","UKN",IF(L39="",VLOOKUP($A39,$AB$79:$AK$107,10,FALSE),L39))) -> 
B40: =IF($A40="","",VLOOKUP($A40,$AB$79:$AK$107,6,FALSE)) ->  | C40: =IF($A40="","",VLOOKUP($A40,$AB$79:$AK$107,5,FALSE)) ->  | D40: =IF(A40="","",C40+VLOOKUP(F40,$A$109:$B$137,2,FALSE)) ->  | F40: =IF(A40="","",VLOOKUP($A40,$AB$79:$AE$107,4,FALSE)) ->  | G40: =IF($A40="","",IF(B40="AWAY","UKN",IF(K40="",VLOOKUP($A40,$AB$79:$AK$107,9,FALSE),K40))) ->  | H40: =IF($A40="","",VLOOKUP($A40,$AB$79:$AK$107,7,FALSE)) ->  | I40: =IF($A40="","",IF(B40="AWAY","UKN",IF(L40="",VLOOKUP($A40,$AB$79:$AK$107,10,FALSE),L40))) -> 
B41: =IF($A41="","",VLOOKUP($A41,$AB$79:$AK$107,6,FALSE)) ->  | C41: =IF($A41="","",VLOOKUP($A41,$AB$79:$AK$107,5,FALSE)) ->  | D41: =IF(A41="","",C41+VLOOKUP(F41,$A$109:$B$137,2,FALSE)) ->  | F41: =IF(A41="","",VLOOKUP($A41,$AB$79:$AE$107,4,FALSE)) ->  | G41: =IF($A41="","",IF(B41="AWAY","UKN",IF(K41="",VLOOKUP($A41,$AB$79:$AK$107,9,FALSE),K41))) ->  | H41: =IF($A41="","",VLOOKUP($A41,$AB$79:$AK$107,7,FALSE)) ->  | I41: =IF($A41="","",IF(B41="AWAY","UKN",IF(L41="",VLOOKUP($A41,$AB$79:$AK$107,10,FALSE),L41))) -> 
B42: =IF($A42="","",VLOOKUP($A42,$AB$79:$AK$107,6,FALSE)) ->  | C42: =IF($A42="","",VLOOKUP($A42,$AB$79:$AK$107,5,FALSE)) ->  | D42: =IF(A42="","",C42+VLOOKUP(F42,$A$109:$B$137,2,FALSE)) ->  | F42: =IF(A42="","",VLOOKUP($A42,$AB$79:$AE$107,4,FALSE)) ->  | G42: =IF($A42="","",IF(B42="AWAY","UKN",IF(K42="",VLOOKUP($A42,$AB$79:$AK$107,9,FALSE),K42))) ->  | H42: =IF($A42="","",VLOOKUP($A42,$AB$79:$AK$107,7,FALSE)) ->  | I42: =IF($A42="","",IF(B42="AWAY","UKN",IF(L42="",VLOOKUP($A42,$AB$79:$AK$107,10,FALSE),L42))) -> 
B43: =IF($A43="","",VLOOKUP($A43,$AB$79:$AK$107,6,FALSE)) ->  | C43: =IF($A43="","",VLOOKUP($A43,$AB$79:$AK$107,5,FALSE)) ->  | D43: =IF(A43="","",C43+VLOOKUP(F43,$A$109:$B$137,2,FALSE)) ->  | F43: =IF(A43="","",VLOOKUP($A43,$AB$79:$AE$107,4,FALSE)) ->  | G43: =IF($A43="","",IF(B43="AWAY","UKN",IF(K43="",VLOOKUP($A43,$AB$79:$AK$107,9,FALSE),K43))) ->  | H43: =IF($A43="","",VLOOKUP($A43,$AB$79:$AK$107,7,FALSE)) ->  | I43: =IF($A43="","",IF(B43="AWAY","UKN",IF(L43="",VLOOKUP($A43,$AB$79:$AK$107,10,FALSE),L43))) -> 
B44: =IF($A44="","",VLOOKUP($A44,$AB$79:$AK$107,6,FALSE)) ->  | C44: =IF($A44="","",VLOOKUP($A44,$AB$79:$AK$107,5,FALSE)) ->  | D44: =IF(A44="","",C44+VLOOKUP(F44,$A$109:$B$137,2,FALSE)) ->  | F44: =IF(A44="","",VLOOKUP($A44,$AB$79:$AE$107,4,FALSE)) ->  | G44: =IF($A44="","",IF(B44="AWAY","UKN",IF(K44="",VLOOKUP($A44,$AB$79:$AK$107,9,FALSE),K44))) ->  | H44: =IF($A44="","",VLOOKUP($A44,$AB$79:$AK$107,7,FALSE)) ->  | I44: =IF($A44="","",IF(B44="AWAY","UKN",IF(L44="",VLOOKUP($A44,$AB$79:$AK$107,10,FALSE),L44))) -> 
B45: =IF($A45="","",VLOOKUP($A45,$AB$79:$AK$107,6,FALSE)) ->  | C45: =IF($A45="","",VLOOKUP($A45,$AB$79:$AK$107,5,FALSE)) ->  | D45: =IF(A45="","",C45+VLOOKUP(F45,$A$109:$B$137,2,FALSE)) ->  | F45: =IF(A45="","",VLOOKUP($A45,$AB$79:$AE$107,4,FALSE)) ->  | G45: =IF($A45="","",IF(B45="AWAY","UKN",IF(K45="",VLOOKUP($A45,$AB$79:$AK$107,9,FALSE),K45))) ->  | H45: =IF($A45="","",VLOOKUP($A45,$AB$79:$AK$107,7,FALSE)) ->  | I45: =IF($A45="","",IF(B45="AWAY","UKN",IF(L45="",VLOOKUP($A45,$AB$79:$AK$107,10,FALSE),L45))) -> 
A47: =A2 -> 2017-09-09 | B47: Heure | C47: H/A | D47: Adversaire | E47: Ground | F47: DefaultVR | G47: DefaultVA | H47: ConcaValue | I47: ToRank | L47: =J76 -> 1.64583333333333&U19A&0.645833333333333&AWAY&MINEROIS&UKN&1&2;0.458333333333333&U13A&0.458333333333333&HOME&R.DC.COINTE LIÈGE A 1&GR1A&1&2;0.458333333333333&U13B&0.458333333333333&HOME&JUPILLE B 2&GR1B&1&2;1.52083333333333&U12A&0.520833333333333&AWAY&US.GRÂCE HOLLOGNE A 1&UKN&1&2;1.45833333333333&U11A&0.458333333333333&AWAY&WAREMME B 1&UKN&1&2;1.52083333333333&U11B&0.520833333333333&AWAY&STRÉE 3&UKN&1&2;0.458333333333333&U10A&0.458333333333333&HOME&FOOTBALL CLUB LIÈGE B 1&GR2X&1&2;0.458333333333333&U10B&0.458333333333333&HOME&COUTHUIN 2&GR2Y&1&2;1.41666666666667&U09A&0.416666666666667&AWAY&ELSAUTOISE A 1&UKN&1&2;1.45833333333333&U09B&0.458333333333333&AWAY&R. FRAITURE SP 2&UKN&1&2;1.45833333333333&U09C&0.458333333333333&AWAY&STRÉE 3&UKN&1&2;0.520833333333333&U08A&0.520833333333333&HOME&RFC.HUY B 2&GR1A1&1&2;0.520833333333333&U08B&0.520833333333333&HOME&CLAVINOISE B 3&GR1A2&1&2;0.520833333333333&U07A&0.520833333333333&HOME&RFC.HUY A 2&GR2A1&1&2;1.45833333333333&U06A&0.458333333333333&AWAY&VISE BMFA&UKN&1&2; | AB47: RankCorr | AC47: RankRaw | AD47: Torank | AE47: Teams | AF47: Start | AG47: Teams | AH47: Adversaire | AI47: GroundInd | AJ47: VestH | AK47: VestA
A48: SENA | B48: =IF(ISERROR(VLOOKUP($A$47,SENA!$A$11:$J$210,1,FALSE)),"",VLOOKUP($A$47,SENA!$A$11:$J$210,2,FALSE)) ->  | C48: =IF(ISERROR(VLOOKUP($A$47,SENA!$A$11:$J$210,1,FALSE)),"",VLOOKUP($A$47,SENA!$A$11:$J$210,7,FALSE)) ->  | D48: =IF(ISERROR(VLOOKUP($A$47,SENA!$A$11:$J$210,1,FALSE)),"",IF(C48="HOME",VLOOKUP($A$47,SENA!$A$11:$J$210,4,FALSE),VLOOKUP($A$47,SENA!$A$11:$J$210,3,FALSE))) ->  | E48: =IF(ISERROR(VLOOKUP($A$47,SENA!$A$11:$J$210,1,FALSE)),"",VLOOKUP($A$47,SENA!$A$11:$J$210,10,FALSE)) ->  | F48: 1 | G48: 2 | H48: =IF(B48="","",CONCATENATE(I48,"&",A48,"&",B48,"&",C48,"&",D48,"&",E48,"&",F48,"&",G48,";")) ->  | I48: =IF(B48="","",IF(C48="HOME",0+B48,1+B48)) ->  | J48: =CONCATENATE(J47,H48) ->  | K48: =IF(B48="",K47,K47+1) -> 0 | L48: =RIGHT(L47,LEN(L47)-FIND(";",L47)) -> 0.458333333333333&U13A&0.458333333333333&HOME&R.DC.COINTE LIÈGE A 1&GR1A&1&2;0.458333333333333&U13B&0.458333333333333&HOME&JUPILLE B 2&GR1B&1&2;1.52083333333333&U12A&0.520833333333333&AWAY&US.GRÂCE HOLLOGNE A 1&UKN&1&2;1.45833333333333&U11A&0.458333333333333&AWAY&WAREMME B 1&UKN&1&2;1.52083333333333&U11B&0.520833333333333&AWAY&STRÉE 3&UKN&1&2;0.458333333333333&U10A&0.458333333333333&HOME&FOOTBALL CLUB LIÈGE B 1&GR2X&1&2;0.458333333333333&U10B&0.458333333333333&HOME&COUTHUIN 2&GR2Y&1&2;1.41666666666667&U09A&0.416666666666667&AWAY&ELSAUTOISE A 1&UKN&1&2;1.45833333333333&U09B&0.458333333333333&AWAY&R. FRAITURE SP 2&UKN&1&2;1.45833333333333&U09C&0.458333333333333&AWAY&STRÉE 3&UKN&1&2;0.520833333333333&U08A&0.520833333333333&HOME&RFC.HUY B 2&GR1A1&1&2;0.520833333333333&U08B&0.520833333333333&HOME&CLAVINOISE B 3&GR1A2&1&2;0.520833333333333&U07A&0.520833333333333&HOME&RFC.HUY A 2&GR2A1&1&2;1.45833333333333&U06A&0.458333333333333&AWAY&VISE BMFA&UKN&1&2; | M48: =IF(ISERROR(FIND(";",L47)),"",LEFT(L47,FIND(";",L47)-1)) -> 1.64583333333333&U19A&0.645833333333333&AWAY&MINEROIS&UKN&1&2 | N48: =FIND("&",M48) -> 17 | O48: =RIGHT(M48,LEN(M48)-N48) -> U19A&0.645833333333333&AWAY&MINEROIS&UKN&1&2 | P48: =FIND("&",O48) -> 5 | Q48: =RIGHT(O48,LEN(O48)-P48) -> 0.645833333333333&AWAY&MINEROIS&UKN&1&2 | R48: =FIND("&",Q48) -> 18 | S48: =RIGHT(Q48,LEN(Q48)-R48) -> AWAY&MINEROIS&UKN&1&2 | T48: =FIND("&",S48) -> 5 | U48: =RIGHT(S48,LEN(S48)-T48) -> MINEROIS&UKN&1&2 | V48: =FIND("&",U48) -> 9 | W48: =RIGHT(U48,LEN(U48)-V48) -> UKN&1&2 | X48: =FIND("&",W48) -> 4 | Y48: =RIGHT(W48,LEN(W48)-X48) -> 1&2 | Z48: =FIND("&",Y48) -> 2 | AA48: =RIGHT(Y48,LEN(Y48)-Z48) -> 2 | AB48: =IF(AC48="","",AC48) -> 15 | AC48: =IF(AD48="","",RANK(AD48,$AD$48:$AD$76,1)) -> 15 | AD48: =IF(ISERROR(N48),"",VALUE(LEFT(M48,N48-1))) -> 1.645833333 | AE48: =IF($AD48="","",LEFT(O48,P48-1)) -> U19A | AF48: =IF($AD48="","",VALUE(LEFT(Q48,R48-1))) -> 15:30:00 | AG48: =IF($AD48="","",LEFT(S48,T48-1)) -> AWAY | AH48: =IF($AD48="","",LEFT(U48,V48-1)) -> MINEROIS | AI48: =IF($AD48="","",LEFT(W48,X48-1)) -> UKN | AJ48: =IF($AD48="","",LEFT(Y48,Z48-1)) -> 1 | AK48: =IF($AD48="","",AA48) -> 2
A49: SENB | B49: =IF(ISERROR(VLOOKUP($A$47,SENB!$A$11:$J$210,1,FALSE)),"",VLOOKUP($A$47,SENB!$A$11:$J$210,2,FALSE)) ->  | C49: =IF(ISERROR(VLOOKUP($A$47,SENB!$A$11:$J$210,1,FALSE)),"",VLOOKUP($A$47,SENB!$A$11:$J$210,7,FALSE)) ->  | D49: =IF(ISERROR(VLOOKUP($A$47,SENB!$A$11:$J$210,1,FALSE)),"",IF(C49="HOME",VLOOKUP($A$47,SENB!$A$11:$J$210,4,FALSE),VLOOKUP($A$47,SENB!$A$11:$J$210,3,FALSE))) ->  | E49: =IF(ISERROR(VLOOKUP($A$47,SENB!$A$11:$J$210,1,FALSE)),"",VLOOKUP($A$47,SENB!$A$11:$J$210,10,FALSE)) ->  | F49: 1 | G49: 2 | H49: =IF(B49="","",CONCATENATE(I49,"&",A49,"&",B49,"&",C49,"&",D49,"&",E49,"&",F49,"&",G49,";")) ->  | I49: =IF(B49="","",IF(C49="HOME",0+B49,1+B49)) ->  | J49: =CONCATENATE(J48,H49) ->  | K49: =IF(B49="",K48,K48+1) -> 0 | L49: =RIGHT(L48,LEN(L48)-FIND(";",L48)) -> 0.458333333333333&U13B&0.458333333333333&HOME&JUPILLE B 2&GR1B&1&2;1.52083333333333&U12A&0.520833333333333&AWAY&US.GRÂCE HOLLOGNE A 1&UKN&1&2;1.45833333333333&U11A&0.458333333333333&AWAY&WAREMME B 1&UKN&1&2;1.52083333333333&U11B&0.520833333333333&AWAY&STRÉE 3&UKN&1&2;0.458333333333333&U10A&0.458333333333333&HOME&FOOTBALL CLUB LIÈGE B 1&GR2X&1&2;0.458333333333333&U10B&0.458333333333333&HOME&COUTHUIN 2&GR2Y&1&2;1.41666666666667&U09A&0.416666666666667&AWAY&ELSAUTOISE A 1&UKN&1&2;1.45833333333333&U09B&0.458333333333333&AWAY&R. FRAITURE SP 2&UKN&1&2;1.45833333333333&U09C&0.458333333333333&AWAY&STRÉE 3&UKN&1&2;0.520833333333333&U08A&0.520833333333333&HOME&RFC.HUY B 2&GR1A1&1&2;0.520833333333333&U08B&0.520833333333333&HOME&CLAVINOISE B 3&GR1A2&1&2;0.520833333333333&U07A&0.520833333333333&HOME&RFC.HUY A 2&GR2A1&1&2;1.45833333333333&U06A&0.458333333333333&AWAY&VISE BMFA&UKN&1&2; | M49: =IF(ISERROR(FIND(";",L48)),"",LEFT(L48,FIND(";",L48)-1)) -> 0.458333333333333&U13A&0.458333333333333&HOME&R.DC.COINTE LIÈGE A 1&GR1A&1&2 | N49: =FIND("&",M49) -> 18 | O49: =RIGHT(M49,LEN(M49)-N49) -> U13A&0.458333333333333&HOME&R.DC.COINTE LIÈGE A 1&GR1A&1&2 | P49: =FIND("&",O49) -> 5 | Q49: =RIGHT(O49,LEN(O49)-P49) -> 0.458333333333333&HOME&R.DC.COINTE LIÈGE A 1&GR1A&1&2 | R49: =FIND("&",Q49) -> 18 | S49: =RIGHT(Q49,LEN(Q49)-R49) -> HOME&R.DC.COINTE LIÈGE A 1&GR1A&1&2 | T49: =FIND("&",S49) -> 5 | U49: =RIGHT(S49,LEN(S49)-T49) -> R.DC.COINTE LIÈGE A 1&GR1A&1&2 | V49: =FIND("&",U49) -> 22 | W49: =RIGHT(U49,LEN(U49)-V49) -> GR1A&1&2 | X49: =FIND("&",W49) -> 5 | Y49: =RIGHT(W49,LEN(W49)-X49) -> 1&2 | Z49: =FIND("&",Y49) -> 2 | AA49: =RIGHT(Y49,LEN(Y49)-Z49) -> 2 | AB49: =IF(AC49="","",IF(ISERROR(VLOOKUP(AC49,AC$48:AC48,1,FALSE)),AC49,AC49+COUNTIF(AC$48:AC48,AC49))) -> 1 | AC49: =IF(AD49="","",RANK(AD49,$AD$48:$AD$76,1)) -> 1 | AD49: =IF(ISERROR(N49),"",VALUE(LEFT(M49,N49-1))) -> 0.4583333333 | AE49: =IF($AD49="","",LEFT(O49,P49-1)) -> U13A | AF49: =IF($AD49="","",VALUE(LEFT(Q49,R49-1))) -> 11:00:00 | AG49: =IF($AD49="","",LEFT(S49,T49-1)) -> HOME | AH49: =IF($AD49="","",LEFT(U49,V49-1)) -> R.DC.COINTE LIÈGE A 1 | AI49: =IF($AD49="","",LEFT(W49,X49-1)) -> GR1A | AJ49: =IF($AD49="","",LEFT(Y49,Z49-1)) -> 1 | AK49: =IF($AD49="","",AA49) -> 2
A50: U19A | B50: =IF(ISERROR(VLOOKUP($A$47,U19A!$A$11:$J$210,1,FALSE)),"",VLOOKUP($A$47,U19A!$A$11:$J$210,2,FALSE)) -> 0.6458333333 | C50: =IF(ISERROR(VLOOKUP($A$47,U19A!$A$11:$J$210,1,FALSE)),"",VLOOKUP($A$47,U19A!$A$11:$J$210,7,FALSE)) -> AWAY | D50: =IF(ISERROR(VLOOKUP($A$47,U19A!$A$11:$J$210,1,FALSE)),"",IF(C50="HOME",VLOOKUP($A$47,U19A!$A$11:$J$210,4,FALSE),VLOOKUP($A$47,U19A!$A$11:$J$210,3,FALSE))) -> MINEROIS | E50: =IF(ISERROR(VLOOKUP($A$47,U19A!$A$11:$J$210,1,FALSE)),"",VLOOKUP($A$47,U19A!$A$11:$J$210,10,FALSE)) -> UKN | F50: 1 | G50: 2 | H50: 1.64583333333333&U19A&0.645833333333333&AWAY&MINEROIS&UKN&1&2; | I50: 1.645833333 | J50: 1.64583333333333&U19A&0.645833333333333&AWAY&MINEROIS&UKN&1&2; | K50: 1 | L50: 1.52083333333333&U12A&0.520833333333333&AWAY&US.GRÂCE HOLLOGNE A 1&UKN&1&2;1.45833333333333&U11A&0.458333333333333&AWAY&WAREMME B 1&UKN&1&2;1.52083333333333&U11B&0.520833333333333&AWAY&STRÉE 3&UKN&1&2;0.458333333333333&U10A&0.458333333333333&HOME&FOOTBALL CLUB LIÈGE B 1&GR2X&1&2;0.458333333333333&U10B&0.458333333333333&HOME&COUTHUIN 2&GR2Y&1&2;1.41666666666667&U09A&0.416666666666667&AWAY&ELSAUTOISE A 1&UKN&1&2;1.45833333333333&U09B&0.458333333333333&AWAY&R. FRAITURE SP 2&UKN&1&2;1.45833333333333&U09C&0.458333333333333&AWAY&STRÉE 3&UKN&1&2;0.520833333333333&U08A&0.520833333333333&HOME&RFC.HUY B 2&GR1A1&1&2;0.520833333333333&U08B&0.520833333333333&HOME&CLAVINOISE B 3&GR1A2&1&2;0.520833333333333&U07A&0.520833333333333&HOME&RFC.HUY A 2&GR2A1&1&2;1.45833333333333&U06A&0.458333333333333&AWAY&VISE BMFA&UKN&1&2; | M50: 0.458333333333333&U13B&0.458333333333333&HOME&JUPILLE B 2&GR1B&1&2 | N50: 18 | O50: U13B&0.458333333333333&HOME&JUPILLE B 2&GR1B&1&2 | P50: 5 | Q50: 0.458333333333333&HOME&JUPILLE B 2&GR1B&1&2 | R50: 18 | S50: HOME&JUPILLE B 2&GR1B&1&2 | T50: 5 | U50: JUPILLE B 2&GR1B&1&2 | V50: 12 | W50: GR1B&1&2 | X50: 5 | Y50: 1&2 | Z50: 2 | AA50: 2 | AB50: =IF(AC50="","",IF(ISERROR(VLOOKUP(AC50,AC$48:AC49,1,FALSE)),AC50,AC50+COUNTIF(AC$48:AC49,AC50))) -> 2 | AC50: 1 | AD50: 0.4583333333 | AE50: U13B | AF50: 11:00:00 | AG50: =IF($AD50="","",LEFT(S50,T50-1)) -> HOME | AH50: =IF($AD50="","",LEFT(U50,V50-1)) -> JUPILLE B 2 | AI50: =IF($AD50="","",LEFT(W50,X50-1)) -> GR1B | AJ50: =IF($AD50="","",LEFT(Y50,Z50-1)) -> 1 | AK50: 2
A51: U17A | B51: =IF(ISERROR(VLOOKUP($A$47,U17A!$A$11:$J$210,1,FALSE)),"",VLOOKUP($A$47,U17A!$A$11:$J$210,2,FALSE)) ->  | C51: =IF(ISERROR(VLOOKUP($A$47,U17A!$A$11:$J$210,1,FALSE)),"",VLOOKUP($A$47,U17A!$A$11:$J$210,7,FALSE)) ->  | D51: =IF(ISERROR(VLOOKUP($A$47,U17A!$A$11:$J$210,1,FALSE)),"",IF(C51="HOME",VLOOKUP($A$47,U17A!$A$11:$J$210,4,FALSE),VLOOKUP($A$47,U17A!$A$11:$J$210,3,FALSE))) ->  | E51: =IF(ISERROR(VLOOKUP($A$47,U17A!$A$11:$J$210,1,FALSE)),"",VLOOKUP($A$47,U17A!$A$11:$J$210,10,FALSE)) ->  | F51: 1 | G51: 2 | J51: 1.64583333333333&U19A&0.645833333333333&AWAY&MINEROIS&UKN&1&2; | K51: 1 | L51: 1.45833333333333&U11A&0.458333333333333&AWAY&WAREMME B 1&UKN&1&2;1.52083333333333&U11B&0.520833333333333&AWAY&STRÉE 3&UKN&1&2;0.458333333333333&U10A&0.458333333333333&HOME&FOOTBALL CLUB LIÈGE B 1&GR2X&1&2;0.458333333333333&U10B&0.458333333333333&HOME&COUTHUIN 2&GR2Y&1&2;1.41666666666667&U09A&0.416666666666667&AWAY&ELSAUTOISE A 1&UKN&1&2;1.45833333333333&U09B&0.458333333333333&AWAY&R. FRAITURE SP 2&UKN&1&2;1.45833333333333&U09C&0.458333333333333&AWAY&STRÉE 3&UKN&1&2;0.520833333333333&U08A&0.520833333333333&HOME&RFC.HUY B 2&GR1A1&1&2;0.520833333333333&U08B&0.520833333333333&HOME&CLAVINOISE B 3&GR1A2&1&2;0.520833333333333&U07A&0.520833333333333&HOME&RFC.HUY A 2&GR2A1&1&2;1.45833333333333&U06A&0.458333333333333&AWAY&VISE BMFA&UKN&1&2; | M51: 1.52083333333333&U12A&0.520833333333333&AWAY&US.GRÂCE HOLLOGNE A 1&UKN&1&2 | N51: 17 | O51: U12A&0.520833333333333&AWAY&US.GRÂCE HOLLOGNE A 1&UKN&1&2 | P51: 5 | Q51: 0.520833333333333&AWAY&US.GRÂCE HOLLOGNE A 1&UKN&1&2 | R51: 18 | S51: AWAY&US.GRÂCE HOLLOGNE A 1&UKN&1&2 | T51: 5 | U51: US.GRÂCE HOLLOGNE A 1&UKN&1&2 | V51: 22 | W51: UKN&1&2 | X51: 4 | Y51: 1&2 | Z51: 2 | AA51: 2 | AB51: =IF(AC51="","",IF(ISERROR(VLOOKUP(AC51,AC$48:AC50,1,FALSE)),AC51,AC51+COUNTIF(AC$48:AC50,AC51))) -> 13 | AC51: 13 | AD51: 1.520833333 | AE51: U12A | AF51: 12:30:00 | AG51: =IF($AD51="","",LEFT(S51,T51-1)) -> AWAY | AH51: =IF($AD51="","",LEFT(U51,V51-1)) -> US.GRÂCE HOLLOGNE A 1 | AI51: =IF($AD51="","",LEFT(W51,X51-1)) -> UKN | AJ51: =IF($AD51="","",LEFT(Y51,Z51-1)) -> 1 | AK51: 2
A52: U16A | B52: =IF(ISERROR(VLOOKUP($A$47,U16A!$A$11:$J$210,1,FALSE)),"",VLOOKUP($A$47,U16A!$A$11:$J$210,2,FALSE)) ->  | C52: =IF(ISERROR(VLOOKUP($A$47,U16A!$A$11:$J$210,1,FALSE)),"",VLOOKUP($A$47,U16A!$A$11:$J$210,7,FALSE)) ->  | D52: =IF(ISERROR(VLOOKUP($A$47,U16A!$A$11:$J$210,1,FALSE)),"",IF(C52="HOME",VLOOKUP($A$47,U16A!$A$11:$J$210,4,FALSE),VLOOKUP($A$47,U16A!$A$11:$J$210,3,FALSE))) ->  | E52: =IF(ISERROR(VLOOKUP($A$47,U16A!$A$11:$J$210,1,FALSE)),"",VLOOKUP($A$47,U16A!$A$11:$J$210,10,FALSE)) ->  | F52: 1 | G52: 2 | J52: 1.64583333333333&U19A&0.645833333333333&AWAY&MINEROIS&UKN&1&2; | K52: 1 | L52: 1.52083333333333&U11B&0.520833333333333&AWAY&STRÉE 3&UKN&1&2;0.458333333333333&U10A&0.458333333333333&HOME&FOOTBALL CLUB LIÈGE B 1&GR2X&1&2;0.458333333333333&U10B&0.458333333333333&HOME&COUTHUIN 2&GR2Y&1&2;1.41666666666667&U09A&0.416666666666667&AWAY&ELSAUTOISE A 1&UKN&1&2;1.45833333333333&U09B&0.458333333333333&AWAY&R. FRAITURE SP 2&UKN&1&2;1.45833333333333&U09C&0.458333333333333&AWAY&STRÉE 3&UKN&1&2;0.520833333333333&U08A&0.520833333333333&HOME&RFC.HUY B 2&GR1A1&1&2;0.520833333333333&U08B&0.520833333333333&HOME&CLAVINOISE B 3&GR1A2&1&2;0.520833333333333&U07A&0.520833333333333&HOME&RFC.HUY A 2&GR2A1&1&2;1.45833333333333&U06A&0.458333333333333&AWAY&VISE BMFA&UKN&1&2; | M52: 1.45833333333333&U11A&0.458333333333333&AWAY&WAREMME B 1&UKN&1&2 | N52: 17 | O52: U11A&0.458333333333333&AWAY&WAREMME B 1&UKN&1&2 | P52: 5 | Q52: 0.458333333333333&AWAY&WAREMME B 1&UKN&1&2 | R52: 18 | S52: AWAY&WAREMME B 1&UKN&1&2 | T52: 5 | U52: WAREMME B 1&UKN&1&2 | V52: 12 | W52: UKN&1&2 | X52: 4 | Y52: 1&2 | Z52: 2 | AA52: 2 | AB52: =IF(AC52="","",IF(ISERROR(VLOOKUP(AC52,AC$48:AC51,1,FALSE)),AC52,AC52+COUNTIF(AC$48:AC51,AC52))) -> 9 | AC52: 9 | AD52: 1.458333333 | AE52: U11A | AF52: 11:00:00 | AG52: =IF($AD52="","",LEFT(S52,T52-1)) -> AWAY | AH52: =IF($AD52="","",LEFT(U52,V52-1)) -> WAREMME B 1 | AI52: =IF($AD52="","",LEFT(W52,X52-1)) -> UKN | AJ52: =IF($AD52="","",LEFT(Y52,Z52-1)) -> 1 | AK52: 2
A53: U15A | B53: =IF(ISERROR(VLOOKUP($A$47,U15A!$A$11:$J$210,1,FALSE)),"",VLOOKUP($A$47,U15A!$A$11:$J$210,2,FALSE)) ->  | C53: =IF(ISERROR(VLOOKUP($A$47,U15A!$A$11:$J$210,1,FALSE)),"",VLOOKUP($A$47,U15A!$A$11:$J$210,7,FALSE)) ->  | D53: =IF(ISERROR(VLOOKUP($A$47,U15A!$A$11:$J$210,1,FALSE)),"",IF(C53="HOME",VLOOKUP($A$47,U15A!$A$11:$J$210,4,FALSE),VLOOKUP($A$47,U15A!$A$11:$J$210,3,FALSE))) ->  | E53: =IF(ISERROR(VLOOKUP($A$47,U15A!$A$11:$J$210,1,FALSE)),"",VLOOKUP($A$47,U15A!$A$11:$J$210,10,FALSE)) ->  | F53: 1 | G53: 2 | J53: 1.64583333333333&U19A&0.645833333333333&AWAY&MINEROIS&UKN&1&2; | K53: 1 | L53: 0.458333333333333&U10A&0.458333333333333&HOME&FOOTBALL CLUB LIÈGE B 1&GR2X&1&2;0.458333333333333&U10B&0.458333333333333&HOME&COUTHUIN 2&GR2Y&1&2;1.41666666666667&U09A&0.416666666666667&AWAY&ELSAUTOISE A 1&UKN&1&2;1.45833333333333&U09B&0.458333333333333&AWAY&R. FRAITURE SP 2&UKN&1&2;1.45833333333333&U09C&0.458333333333333&AWAY&STRÉE 3&UKN&1&2;0.520833333333333&U08A&0.520833333333333&HOME&RFC.HUY B 2&GR1A1&1&2;0.520833333333333&U08B&0.520833333333333&HOME&CLAVINOISE B 3&GR1A2&1&2;0.520833333333333&U07A&0.520833333333333&HOME&RFC.HUY A 2&GR2A1&1&2;1.45833333333333&U06A&0.458333333333333&AWAY&VISE BMFA&UKN&1&2; | M53: 1.52083333333333&U11B&0.520833333333333&AWAY&STRÉE 3&UKN&1&2 | N53: 17 | O53: U11B&0.520833333333333&AWAY&STRÉE 3&UKN&1&2 | P53: 5 | Q53: 0.520833333333333&AWAY&STRÉE 3&UKN&1&2 | R53: 18 | S53: AWAY&STRÉE 3&UKN&1&2 | T53: 5 | U53: STRÉE 3&UKN&1&2 | V53: 8 | W53: UKN&1&2 | X53: 4 | Y53: 1&2 | Z53: 2 | AA53: 2 | AB53: =IF(AC53="","",IF(ISERROR(VLOOKUP(AC53,AC$48:AC52,1,FALSE)),AC53,AC53+COUNTIF(AC$48:AC52,AC53))) -> 14 | AC53: 13 | AD53: 1.520833333 | AE53: U11B | AF53: 12:30:00 | AG53: =IF($AD53="","",LEFT(S53,T53-1)) -> AWAY | AH53: =IF($AD53="","",LEFT(U53,V53-1)) -> STRÉE 3 | AI53: =IF($AD53="","",LEFT(W53,X53-1)) -> UKN | AJ53: =IF($AD53="","",LEFT(Y53,Z53-1)) -> 1 | AK53: 2
A54: U14A | B54: =IF(ISERROR(VLOOKUP($A$47,U14A!$A$11:$J$210,1,FALSE)),"",VLOOKUP($A$47,U14A!$A$11:$J$210,2,FALSE)) ->  | C54: =IF(ISERROR(VLOOKUP($A$47,U14A!$A$11:$J$210,1,FALSE)),"",VLOOKUP($A$47,U14A!$A$11:$J$210,7,FALSE)) ->  | D54: =IF(ISERROR(VLOOKUP($A$47,U14A!$A$11:$J$210,1,FALSE)),"",IF(C54="HOME",VLOOKUP($A$47,U14A!$A$11:$J$210,4,FALSE),VLOOKUP($A$47,U14A!$A$11:$J$210,3,FALSE))) ->  | E54: =IF(ISERROR(VLOOKUP($A$47,U14A!$A$11:$J$210,1,FALSE)),"",VLOOKUP($A$47,U14A!$A$11:$J$210,10,FALSE)) ->  | F54: 1 | G54: 2 | J54: 1.64583333333333&U19A&0.645833333333333&AWAY&MINEROIS&UKN&1&2; | K54: 1 | L54: 0.458333333333333&U10B&0.458333333333333&HOME&COUTHUIN 2&GR2Y&1&2;1.41666666666667&U09A&0.416666666666667&AWAY&ELSAUTOISE A 1&UKN&1&2;1.45833333333333&U09B&0.458333333333333&AWAY&R. FRAITURE SP 2&UKN&1&2;1.45833333333333&U09C&0.458333333333333&AWAY&STRÉE 3&UKN&1&2;0.520833333333333&U08A&0.520833333333333&HOME&RFC.HUY B 2&GR1A1&1&2;0.520833333333333&U08B&0.520833333333333&HOME&CLAVINOISE B 3&GR1A2&1&2;0.520833333333333&U07A&0.520833333333333&HOME&RFC.HUY A 2&GR2A1&1&2;1.45833333333333&U06A&0.458333333333333&AWAY&VISE BMFA&UKN&1&2; | M54: 0.458333333333333&U10A&0.458333333333333&HOME&FOOTBALL CLUB LIÈGE B 1&GR2X&1&2 | N54: 18 | O54: U10A&0.458333333333333&HOME&FOOTBALL CLUB LIÈGE B 1&GR2X&1&2 | P54: 5 | Q54: 0.458333333333333&HOME&FOOTBALL CLUB LIÈGE B 1&GR2X&1&2 | R54: 18 | S54: HOME&FOOTBALL CLUB LIÈGE B 1&GR2X&1&2 | T54: 5 | U54: FOOTBALL CLUB LIÈGE B 1&GR2X&1&2 | V54: 24 | W54: GR2X&1&2 | X54: 5 | Y54: 1&2 | Z54: 2 | AA54: 2 | AB54: =IF(AC54="","",IF(ISERROR(VLOOKUP(AC54,AC$48:AC53,1,FALSE)),AC54,AC54+COUNTIF(AC$48:AC53,AC54))) -> 3 | AC54: 1 | AD54: 0.4583333333 | AE54: U10A | AF54: 11:00:00 | AG54: =IF($AD54="","",LEFT(S54,T54-1)) -> HOME | AH54: =IF($AD54="","",LEFT(U54,V54-1)) -> FOOTBALL CLUB LIÈGE B 1 | AI54: =IF($AD54="","",LEFT(W54,X54-1)) -> GR2X | AJ54: =IF($AD54="","",LEFT(Y54,Z54-1)) -> 1 | AK54: 2
A55: U14B | B55: =IF(ISERROR(VLOOKUP($A$47,U14B!$A$11:$J$210,1,FALSE)),"",VLOOKUP($A$47,U14B!$A$11:$J$210,2,FALSE)) ->  | C55: =IF(ISERROR(VLOOKUP($A$47,U14B!$A$11:$J$210,1,FALSE)),"",VLOOKUP($A$47,U14B!$A$11:$J$210,7,FALSE)) ->  | D55: =IF(ISERROR(VLOOKUP($A$47,U14B!$A$11:$J$210,1,FALSE)),"",IF(C55="HOME",VLOOKUP($A$47,U14B!$A$11:$J$210,4,FALSE),VLOOKUP($A$47,U14B!$A$11:$J$210,3,FALSE))) ->  | E55: =IF(ISERROR(VLOOKUP($A$47,U14B!$A$11:$J$210,1,FALSE)),"",VLOOKUP($A$47,U14B!$A$11:$J$210,10,FALSE)) ->  | F55: 1 | G55: 2 | J55: 1.64583333333333&U19A&0.645833333333333&AWAY&MINEROIS&UKN&1&2; | K55: 1 | L55: =RIGHT(L54,LEN(L54)-FIND(";",L54)) -> 1.41666666666667&U09A&0.416666666666667&AWAY&ELSAUTOISE A 1&UKN&1&2;1.45833333333333&U09B&0.458333333333333&AWAY&R. FRAITURE SP 2&UKN&1&2;1.45833333333333&U09C&0.458333333333333&AWAY&STRÉE 3&UKN&1&2;0.520833333333333&U08A&0.520833333333333&HOME&RFC.HUY B 2&GR1A1&1&2;0.520833333333333&U08B&0.520833333333333&HOME&CLAVINOISE B 3&GR1A2&1&2;0.520833333333333&U07A&0.520833333333333&HOME&RFC.HUY A 2&GR2A1&1&2;1.45833333333333&U06A&0.458333333333333&AWAY&VISE BMFA&UKN&1&2; | M55: 0.458333333333333&U10B&0.458333333333333&HOME&COUTHUIN 2&GR2Y&1&2 | N55: 18 | O55: U10B&0.458333333333333&HOME&COUTHUIN 2&GR2Y&1&2 | P55: 5 | Q55: 0.458333333333333&HOME&COUTHUIN 2&GR2Y&1&2 | R55: 18 | S55: HOME&COUTHUIN 2&GR2Y&1&2 | T55: 5 | U55: COUTHUIN 2&GR2Y&1&2 | V55: 11 | W55: GR2Y&1&2 | X55: 5 | Y55: 1&2 | Z55: 2 | AA55: 2 | AB55: =IF(AC55="","",IF(ISERROR(VLOOKUP(AC55,AC$48:AC54,1,FALSE)),AC55,AC55+COUNTIF(AC$48:AC54,AC55))) -> 4 | AC55: =IF(AD55="","",RANK(AD55,$AD$48:$AD$76,1)) -> 1 | AD55: 0.4583333333 | AE55: U10B | AF55: 11:00:00 | AG55: =IF($AD55="","",LEFT(S55,T55-1)) -> HOME | AH55: =IF($AD55="","",LEFT(U55,V55-1)) -> COUTHUIN 2 | AI55: =IF($AD55="","",LEFT(W55,X55-1)) -> GR2Y | AJ55: =IF($AD55="","",LEFT(Y55,Z55-1)) -> 1 | AK55: 2
A56: U13A | B56: =IF(ISERROR(VLOOKUP($A$47,U13A!$A$11:$J$210,1,FALSE)),"",VLOOKUP($A$47,U13A!$A$11:$J$210,2,FALSE)) -> 0.4583333333 | C56: =IF(ISERROR(VLOOKUP($A$47,U13A!$A$11:$J$210,1,FALSE)),"",VLOOKUP($A$47,U13A!$A$11:$J$210,7,FALSE)) -> HOME | D56: =IF(ISERROR(VLOOKUP($A$47,U13A!$A$11:$J$210,1,FALSE)),"",IF(C56="HOME",VLOOKUP($A$47,U13A!$A$11:$J$210,4,FALSE),VLOOKUP($A$47,U13A!$A$11:$J$210,3,FALSE))) -> R.DC.COINTE LIÈGE A 1 | E56: =IF(ISERROR(VLOOKUP($A$47,U13A!$A$11:$J$210,1,FALSE)),"",VLOOKUP($A$47,U13A!$A$11:$J$210,10,FALSE)) -> GR1A | F56: 1 | G56: 2 | H56: 0.458333333333333&U13A&0.458333333333333&HOME&R.DC.COINTE LIÈGE A 1&GR1A&1&2; | I56: 0.4583333333 | J56: 1.64583333333333&U19A&0.645833333333333&AWAY&MINEROIS&UKN&1&2;0.458333333333333&U13A&0.458333333333333&HOME&R.DC.COINTE LIÈGE A 1&GR1A&1&2; | K56: 2 | L56: 1.45833333333333&U09B&0.458333333333333&AWAY&R. FRAITURE SP 2&UKN&1&2;1.45833333333333&U09C&0.458333333333333&AWAY&STRÉE 3&UKN&1&2;0.520833333333333&U08A&0.520833333333333&HOME&RFC.HUY B 2&GR1A1&1&2;0.520833333333333&U08B&0.520833333333333&HOME&CLAVINOISE B 3&GR1A2&1&2;0.520833333333333&U07A&0.520833333333333&HOME&RFC.HUY A 2&GR2A1&1&2;1.45833333333333&U06A&0.458333333333333&AWAY&VISE BMFA&UKN&1&2; | M56: 1.41666666666667&U09A&0.416666666666667&AWAY&ELSAUTOISE A 1&UKN&1&2 | N56: 17 | O56: U09A&0.416666666666667&AWAY&ELSAUTOISE A 1&UKN&1&2 | P56: 5 | Q56: 0.416666666666667&AWAY&ELSAUTOISE A 1&UKN&1&2 | R56: 18 | S56: AWAY&ELSAUTOISE A 1&UKN&1&2 | T56: 5 | U56: ELSAUTOISE A 1&UKN&1&2 | V56: 15 | W56: UKN&1&2 | X56: 4 | Y56: 1&2 | Z56: 2 | AA56: 2 | AB56: =IF(AC56="","",IF(ISERROR(VLOOKUP(AC56,AC$48:AC55,1,FALSE)),AC56,AC56+COUNTIF(AC$48:AC55,AC56))) -> 8 | AC56: 8 | AD56: 1.416666667 | AE56: U09A | AF56: 10:00:00 | AG56: =IF($AD56="","",LEFT(S56,T56-1)) -> AWAY | AH56: =IF($AD56="","",LEFT(U56,V56-1)) -> ELSAUTOISE A 1 | AI56: =IF($AD56="","",LEFT(W56,X56-1)) -> UKN | AJ56: =IF($AD56="","",LEFT(Y56,Z56-1)) -> 1 | AK56: 2
A57: U13B | B57: =IF(ISERROR(VLOOKUP($A$47,U13B!$A$11:$J$210,1,FALSE)),"",VLOOKUP($A$47,U13B!$A$11:$J$210,2,FALSE)) -> 0.4583333333 | C57: =IF(ISERROR(VLOOKUP($A$47,U13B!$A$11:$J$210,1,FALSE)),"",VLOOKUP($A$47,U13B!$A$11:$J$210,7,FALSE)) -> HOME | D57: =IF(ISERROR(VLOOKUP($A$47,U13B!$A$11:$J$210,1,FALSE)),"",IF(C57="HOME",VLOOKUP($A$47,U13B!$A$11:$J$210,4,FALSE),VLOOKUP($A$47,U13B!$A$11:$J$210,3,FALSE))) -> JUPILLE B 2 | E57: =IF(ISERROR(VLOOKUP($A$47,U13B!$A$11:$J$210,1,FALSE)),"",VLOOKUP($A$47,U13B!$A$11:$J$210,10,FALSE)) -> GR1B | F57: 1 | G57: 2 | H57: 0.458333333333333&U13B&0.458333333333333&HOME&JUPILLE B 2&GR1B&1&2; | I57: 0.4583333333 | J57: 1.64583333333333&U19A&0.645833333333333&AWAY&MINEROIS&UKN&1&2;0.458333333333333&U13A&0.458333333333333&HOME&R.DC.COINTE LIÈGE A 1&GR1A&1&2;0.458333333333333&U13B&0.458333333333333&HOME&JUPILLE B 2&GR1B&1&2; | K57: 3 | L57: 1.45833333333333&U09C&0.458333333333333&AWAY&STRÉE 3&UKN&1&2;0.520833333333333&U08A&0.520833333333333&HOME&RFC.HUY B 2&GR1A1&1&2;0.520833333333333&U08B&0.520833333333333&HOME&CLAVINOISE B 3&GR1A2&1&2;0.520833333333333&U07A&0.520833333333333&HOME&RFC.HUY A 2&GR2A1&1&2;1.45833333333333&U06A&0.458333333333333&AWAY&VISE BMFA&UKN&1&2; | M57: 1.45833333333333&U09B&0.458333333333333&AWAY&R. FRAITURE SP 2&UKN&1&2 | N57: 17 | O57: U09B&0.458333333333333&AWAY&R. FRAITURE SP 2&UKN&1&2 | P57: 5 | Q57: 0.458333333333333&AWAY&R. FRAITURE SP 2&UKN&1&2 | R57: 18 | S57: AWAY&R. FRAITURE SP 2&UKN&1&2 | T57: 5 | U57: R. FRAITURE SP 2&UKN&1&2 | V57: 17 | W57: UKN&1&2 | X57: 4 | Y57: 1&2 | Z57: 2 | AA57: 2 | AB57: =IF(AC57="","",IF(ISERROR(VLOOKUP(AC57,AC$48:AC56,1,FALSE)),AC57,AC57+COUNTIF(AC$48:AC56,AC57))) -> 10 | AC57: 9 | AD57: 1.458333333 | AE57: U09B | AF57: 11:00:00 | AG57: =IF($AD57="","",LEFT(S57,T57-1)) -> AWAY | AH57: =IF($AD57="","",LEFT(U57,V57-1)) -> R. FRAITURE SP 2 | AI57: =IF($AD57="","",LEFT(W57,X57-1)) -> UKN | AJ57: =IF($AD57="","",LEFT(Y57,Z57-1)) -> 1 | AK57: 2
A58: U12A | B58: =IF(ISERROR(VLOOKUP($A$47,U12A!$A$11:$J$210,1,FALSE)),"",VLOOKUP($A$47,U12A!$A$11:$J$210,2,FALSE)) -> 0.5208333333 | C58: =IF(ISERROR(VLOOKUP($A$47,U12A!$A$11:$J$210,1,FALSE)),"",VLOOKUP($A$47,U12A!$A$11:$J$210,7,FALSE)) -> AWAY | D58: =IF(ISERROR(VLOOKUP($A$47,U12A!$A$11:$J$210,1,FALSE)),"",IF(C58="HOME",VLOOKUP($A$47,U12A!$A$11:$J$210,4,FALSE),VLOOKUP($A$47,U12A!$A$11:$J$210,3,FALSE))) -> US.GRÂCE HOLLOGNE A 1 | E58: =IF(ISERROR(VLOOKUP($A$47,U12A!$A$11:$J$210,1,FALSE)),"",VLOOKUP($A$47,U12A!$A$11:$J$210,10,FALSE)) -> UKN | F58: 1 | G58: 2 | H58: 1.52083333333333&U12A&0.520833333333333&AWAY&US.GRÂCE HOLLOGNE A 1&UKN&1&2; | I58: 1.520833333 | J58: 1.64583333333333&U19A&0.645833333333333&AWAY&MINEROIS&UKN&1&2;0.458333333333333&U13A&0.458333333333333&HOME&R.DC.COINTE LIÈGE A 1&GR1A&1&2;0.458333333333333&U13B&0.458333333333333&HOME&JUPILLE B 2&GR1B&1&2;1.52083333333333&U12A&0.520833333333333&AWAY&US.GRÂCE HOLLOGNE A 1&UKN&1&2; | K58: 4 | L58: 0.520833333333333&U08A&0.520833333333333&HOME&RFC.HUY B 2&GR1A1&1&2;0.520833333333333&U08B&0.520833333333333&HOME&CLAVINOISE B 3&GR1A2&1&2;0.520833333333333&U07A&0.520833333333333&HOME&RFC.HUY A 2&GR2A1&1&2;1.45833333333333&U06A&0.458333333333333&AWAY&VISE BMFA&UKN&1&2; | M58: 1.45833333333333&U09C&0.458333333333333&AWAY&STRÉE 3&UKN&1&2 | N58: 17 | O58: U09C&0.458333333333333&AWAY&STRÉE 3&UKN&1&2 | P58: 5 | Q58: 0.458333333333333&AWAY&STRÉE 3&UKN&1&2 | R58: 18 | S58: AWAY&STRÉE 3&UKN&1&2 | T58: 5 | U58: STRÉE 3&UKN&1&2 | V58: 8 | W58: UKN&1&2 | X58: 4 | Y58: 1&2 | Z58: 2 | AA58: 2 | AB58: =IF(AC58="","",IF(ISERROR(VLOOKUP(AC58,AC$48:AC57,1,FALSE)),AC58,AC58+COUNTIF(AC$48:AC57,AC58))) -> 11 | AC58: 9 | AD58: 1.458333333 | AE58: U09C | AF58: 11:00:00 | AG58: =IF($AD58="","",LEFT(S58,T58-1)) -> AWAY | AH58: =IF($AD58="","",LEFT(U58,V58-1)) -> STRÉE 3 | AI58: =IF($AD58="","",LEFT(W58,X58-1)) -> UKN | AJ58: =IF($AD58="","",LEFT(Y58,Z58-1)) -> 1 | AK58: 2
A59: U11A | B59: =IF(ISERROR(VLOOKUP($A$47,U11A!$A$11:$J$210,1,FALSE)),"",VLOOKUP($A$47,U11A!$A$11:$J$210,2,FALSE)) -> 0.4583333333 | C59: =IF(ISERROR(VLOOKUP($A$47,U11A!$A$11:$J$210,1,FALSE)),"",VLOOKUP($A$47,U11A!$A$11:$J$210,7,FALSE)) -> AWAY | D59: =IF(ISERROR(VLOOKUP($A$47,U11A!$A$11:$J$210,1,FALSE)),"",IF(C59="HOME",VLOOKUP($A$47,U11A!$A$11:$J$210,4,FALSE),VLOOKUP($A$47,U11A!$A$11:$J$210,3,FALSE))) -> WAREMME B 1 | E59: =IF(ISERROR(VLOOKUP($A$47,U11A!$A$11:$J$210,1,FALSE)),"",VLOOKUP($A$47,U11A!$A$11:$J$210,10,FALSE)) -> UKN | F59: 1 | G59: 2 | H59: 1.45833333333333&U11A&0.458333333333333&AWAY&WAREMME B 1&UKN&1&2; | I59: 1.458333333 | J59: 1.64583333333333&U19A&0.645833333333333&AWAY&MINEROIS&UKN&1&2;0.458333333333333&U13A&0.458333333333333&HOME&R.DC.COINTE LIÈGE A 1&GR1A&1&2;0.458333333333333&U13B&0.458333333333333&HOME&JUPILLE B 2&GR1B&1&2;1.52083333333333&U12A&0.520833333333333&AWAY&US.GRÂCE HOLLOGNE A 1&UKN&1&2;1.45833333333333&U11A&0.458333333333333&AWAY&WAREMME B 1&UKN&1&2; | K59: 5 | L59: 0.520833333333333&U08B&0.520833333333333&HOME&CLAVINOISE B 3&GR1A2&1&2;0.520833333333333&U07A&0.520833333333333&HOME&RFC.HUY A 2&GR2A1&1&2;1.45833333333333&U06A&0.458333333333333&AWAY&VISE BMFA&UKN&1&2; | M59: 0.520833333333333&U08A&0.520833333333333&HOME&RFC.HUY B 2&GR1A1&1&2 | N59: 18 | O59: U08A&0.520833333333333&HOME&RFC.HUY B 2&GR1A1&1&2 | P59: 5 | Q59: 0.520833333333333&HOME&RFC.HUY B 2&GR1A1&1&2 | R59: 18 | S59: HOME&RFC.HUY B 2&GR1A1&1&2 | T59: 5 | U59: RFC.HUY B 2&GR1A1&1&2 | V59: 12 | W59: GR1A1&1&2 | X59: 6 | Y59: 1&2 | Z59: 2 | AA59: 2 | AB59: =IF(AC59="","",IF(ISERROR(VLOOKUP(AC59,AC$48:AC58,1,FALSE)),AC59,AC59+COUNTIF(AC$48:AC58,AC59))) -> 5 | AC59: 5 | AD59: 0.5208333333 | AE59: U08A | AF59: 12:30:00 | AG59: =IF($AD59="","",LEFT(S59,T59-1)) -> HOME | AH59: =IF($AD59="","",LEFT(U59,V59-1)) -> RFC.HUY B 2 | AI59: =IF($AD59="","",LEFT(W59,X59-1)) -> GR1A1 | AJ59: =IF($AD59="","",LEFT(Y59,Z59-1)) -> 1 | AK59: 2
A60: U11B | B60: =IF(ISERROR(VLOOKUP($A$47,U11B!$A$11:$J$210,1,FALSE)),"",VLOOKUP($A$47,U11B!$A$11:$J$210,2,FALSE)) -> 0.5208333333 | C60: =IF(ISERROR(VLOOKUP($A$47,U11B!$A$11:$J$210,1,FALSE)),"",VLOOKUP($A$47,U11B!$A$11:$J$210,7,FALSE)) -> AWAY | D60: =IF(ISERROR(VLOOKUP($A$47,U11B!$A$11:$J$210,1,FALSE)),"",IF(C60="HOME",VLOOKUP($A$47,U11B!$A$11:$J$210,4,FALSE),VLOOKUP($A$47,U11B!$A$11:$J$210,3,FALSE))) -> STRÉE 3 | E60: =IF(ISERROR(VLOOKUP($A$47,U11B!$A$11:$J$210,1,FALSE)),"",VLOOKUP($A$47,U11B!$A$11:$J$210,10,FALSE)) -> UKN | F60: 1 | G60: 2 | H60: 1.52083333333333&U11B&0.520833333333333&AWAY&STRÉE 3&UKN&1&2; | I60: 1.520833333 | J60: 1.64583333333333&U19A&0.645833333333333&AWAY&MINEROIS&UKN&1&2;0.458333333333333&U13A&0.458333333333333&HOME&R.DC.COINTE LIÈGE A 1&GR1A&1&2;0.458333333333333&U13B&0.458333333333333&HOME&JUPILLE B 2&GR1B&1&2;1.52083333333333&U12A&0.520833333333333&AWAY&US.GRÂCE HOLLOGNE A 1&UKN&1&2;1.45833333333333&U11A&0.458333333333333&AWAY&WAREMME B 1&UKN&1&2;1.52083333333333&U11B&0.520833333333333&AWAY&STRÉE 3&UKN&1&2; | K60: 6 | L60: 0.520833333333333&U07A&0.520833333333333&HOME&RFC.HUY A 2&GR2A1&1&2;1.45833333333333&U06A&0.458333333333333&AWAY&VISE BMFA&UKN&1&2; | M60: 0.520833333333333&U08B&0.520833333333333&HOME&CLAVINOISE B 3&GR1A2&1&2 | N60: 18 | O60: U08B&0.520833333333333&HOME&CLAVINOISE B 3&GR1A2&1&2 | P60: 5 | Q60: 0.520833333333333&HOME&CLAVINOISE B 3&GR1A2&1&2 | R60: 18 | S60: HOME&CLAVINOISE B 3&GR1A2&1&2 | T60: 5 | U60: CLAVINOISE B 3&GR1A2&1&2 | V60: 15 | W60: GR1A2&1&2 | X60: 6 | Y60: 1&2 | Z60: 2 | AA60: 2 | AB60: =IF(AC60="","",IF(ISERROR(VLOOKUP(AC60,AC$48:AC59,1,FALSE)),AC60,AC60+COUNTIF(AC$48:AC59,AC60))) -> 6 | AC60: 5 | AD60: 0.5208333333 | AE60: U08B | AF60: 12:30:00 | AG60: =IF($AD60="","",LEFT(S60,T60-1)) -> HOME | AH60: =IF($AD60="","",LEFT(U60,V60-1)) -> CLAVINOISE B 3 | AI60: =IF($AD60="","",LEFT(W60,X60-1)) -> GR1A2 | AJ60: =IF($AD60="","",LEFT(Y60,Z60-1)) -> 1 | AK60: 2
A61: U10A | B61: =IF(ISERROR(VLOOKUP($A$47,U10A!$A$11:$J$210,1,FALSE)),"",VLOOKUP($A$47,U10A!$A$11:$J$210,2,FALSE)) -> 0.4583333333 | C61: =IF(ISERROR(VLOOKUP($A$47,U10A!$A$11:$J$210,1,FALSE)),"",VLOOKUP($A$47,U10A!$A$11:$J$210,7,FALSE)) -> HOME | D61: =IF(ISERROR(VLOOKUP($A$47,U10A!$A$11:$J$210,1,FALSE)),"",IF(C61="HOME",VLOOKUP($A$47,U10A!$A$11:$J$210,4,FALSE),VLOOKUP($A$47,U10A!$A$11:$J$210,3,FALSE))) -> FOOTBALL CLUB LIÈGE B 1 | E61: =IF(ISERROR(VLOOKUP($A$47,U10A!$A$11:$J$210,1,FALSE)),"",VLOOKUP($A$47,U10A!$A$11:$J$210,10,FALSE)) -> GR2X | F61: 1 | G61: 2 | H61: 0.458333333333333&U10A&0.458333333333333&HOME&FOOTBALL CLUB LIÈGE B 1&GR2X&1&2; | I61: 0.4583333333 | J61: 1.64583333333333&U19A&0.645833333333333&AWAY&MINEROIS&UKN&1&2;0.458333333333333&U13A&0.458333333333333&HOME&R.DC.COINTE LIÈGE A 1&GR1A&1&2;0.458333333333333&U13B&0.458333333333333&HOME&JUPILLE B 2&GR1B&1&2;1.52083333333333&U12A&0.520833333333333&AWAY&US.GRÂCE HOLLOGNE A 1&UKN&1&2;1.45833333333333&U11A&0.458333333333333&AWAY&WAREMME B 1&UKN&1&2;1.52083333333333&U11B&0.520833333333333&AWAY&STRÉE 3&UKN&1&2;0.458333333333333&U10A&0.458333333333333&HOME&FOOTBALL CLUB LIÈGE B 1&GR2X&1&2; | K61: 7 | L61: 1.45833333333333&U06A&0.458333333333333&AWAY&VISE BMFA&UKN&1&2; | M61: 0.520833333333333&U07A&0.520833333333333&HOME&RFC.HUY A 2&GR2A1&1&2 | N61: 18 | O61: U07A&0.520833333333333&HOME&RFC.HUY A 2&GR2A1&1&2 | P61: 5 | Q61: 0.520833333333333&HOME&RFC.HUY A 2&GR2A1&1&2 | R61: 18 | S61: HOME&RFC.HUY A 2&GR2A1&1&2 | T61: 5 | U61: RFC.HUY A 2&GR2A1&1&2 | V61: 12 | W61: GR2A1&1&2 | X61: 6 | Y61: 1&2 | Z61: 2 | AA61: 2 | AB61: =IF(AC61="","",IF(ISERROR(VLOOKUP(AC61,AC$48:AC60,1,FALSE)),AC61,AC61+COUNTIF(AC$48:AC60,AC61))) -> 7 | AC61: 5 | AD61: 0.5208333333 | AE61: U07A | AF61: 12:30:00 | AG61: =IF($AD61="","",LEFT(S61,T61-1)) -> HOME | AH61: =IF($AD61="","",LEFT(U61,V61-1)) -> RFC.HUY A 2 | AI61: =IF($AD61="","",LEFT(W61,X61-1)) -> GR2A1 | AJ61: =IF($AD61="","",LEFT(Y61,Z61-1)) -> 1 | AK61: 2
A62: U10B | B62: =IF(ISERROR(VLOOKUP($A$47,U10B!$A$11:$J$210,1,FALSE)),"",VLOOKUP($A$47,U10B!$A$11:$J$210,2,FALSE)) -> 0.4583333333 | C62: =IF(ISERROR(VLOOKUP($A$47,U10B!$A$11:$J$210,1,FALSE)),"",VLOOKUP($A$47,U10B!$A$11:$J$210,7,FALSE)) -> HOME | D62: =IF(ISERROR(VLOOKUP($A$47,U10B!$A$11:$J$210,1,FALSE)),"",IF(C62="HOME",VLOOKUP($A$47,U10B!$A$11:$J$210,4,FALSE),VLOOKUP($A$47,U10B!$A$11:$J$210,3,FALSE))) -> COUTHUIN 2 | E62: =IF(ISERROR(VLOOKUP($A$47,U10B!$A$11:$J$210,1,FALSE)),"",VLOOKUP($A$47,U10B!$A$11:$J$210,10,FALSE)) -> GR2Y | F62: 1 | G62: 2 | H62: 0.458333333333333&U10B&0.458333333333333&HOME&COUTHUIN 2&GR2Y&1&2; | I62: 0.4583333333 | J62: 1.64583333333333&U19A&0.645833333333333&AWAY&MINEROIS&UKN&1&2;0.458333333333333&U13A&0.458333333333333&HOME&R.DC.COINTE LIÈGE A 1&GR1A&1&2;0.458333333333333&U13B&0.458333333333333&HOME&JUPILLE B 2&GR1B&1&2;1.52083333333333&U12A&0.520833333333333&AWAY&US.GRÂCE HOLLOGNE A 1&UKN&1&2;1.45833333333333&U11A&0.458333333333333&AWAY&WAREMME B 1&UKN&1&2;1.52083333333333&U11B&0.520833333333333&AWAY&STRÉE 3&UKN&1&2;0.458333333333333&U10A&0.458333333333333&HOME&FOOTBALL CLUB LIÈGE B 1&GR2X&1&2;0.458333333333333&U10B&0.458333333333333&HOME&COUTHUIN 2&GR2Y&1&2; | K62: 8 | M62: 1.45833333333333&U06A&0.458333333333333&AWAY&VISE BMFA&UKN&1&2 | N62: 17 | O62: U06A&0.458333333333333&AWAY&VISE BMFA&UKN&1&2 | P62: 5 | Q62: 0.458333333333333&AWAY&VISE BMFA&UKN&1&2 | R62: 18 | S62: AWAY&VISE BMFA&UKN&1&2 | T62: 5 | U62: VISE BMFA&UKN&1&2 | V62: 10 | W62: UKN&1&2 | X62: 4 | Y62: 1&2 | Z62: 2 | AA62: 2 | AB62: =IF(AC62="","",IF(ISERROR(VLOOKUP(AC62,AC$48:AC61,1,FALSE)),AC62,AC62+COUNTIF(AC$48:AC61,AC62))) -> 12 | AC62: 9 | AD62: 1.458333333 | AE62: U06A | AF62: 11:00:00 | AG62: =IF($AD62="","",LEFT(S62,T62-1)) -> AWAY | AH62: =IF($AD62="","",LEFT(U62,V62-1)) -> VISE BMFA | AI62: =IF($AD62="","",LEFT(W62,X62-1)) -> UKN | AJ62: =IF($AD62="","",LEFT(Y62,Z62-1)) -> 1 | AK62: 2
A63: U09A | B63: =IF(ISERROR(VLOOKUP($A$47,U09A!$A$11:$J$210,1,FALSE)),"",VLOOKUP($A$47,U09A!$A$11:$J$210,2,FALSE)) -> 0.4166666667 | C63: =IF(ISERROR(VLOOKUP($A$47,U09A!$A$11:$J$210,1,FALSE)),"",VLOOKUP($A$47,U09A!$A$11:$J$210,7,FALSE)) -> AWAY | D63: =IF(ISERROR(VLOOKUP($A$47,U09A!$A$11:$J$210,1,FALSE)),"",IF(C63="HOME",VLOOKUP($A$47,U09A!$A$11:$J$210,4,FALSE),VLOOKUP($A$47,U09A!$A$11:$J$210,3,FALSE))) -> ELSAUTOISE A 1 | E63: =IF(ISERROR(VLOOKUP($A$47,U09A!$A$11:$J$210,1,FALSE)),"",VLOOKUP($A$47,U09A!$A$11:$J$210,10,FALSE)) -> UKN | F63: 1 | G63: 2 | H63: 1.41666666666667&U09A&0.416666666666667&AWAY&ELSAUTOISE A 1&UKN&1&2; | I63: 1.416666667 | J63: 1.64583333333333&U19A&0.645833333333333&AWAY&MINEROIS&UKN&1&2;0.458333333333333&U13A&0.458333333333333&HOME&R.DC.COINTE LIÈGE A 1&GR1A&1&2;0.458333333333333&U13B&0.458333333333333&HOME&JUPILLE B 2&GR1B&1&2;1.52083333333333&U12A&0.520833333333333&AWAY&US.GRÂCE HOLLOGNE A 1&UKN&1&2;1.45833333333333&U11A&0.458333333333333&AWAY&WAREMME B 1&UKN&1&2;1.52083333333333&U11B&0.520833333333333&AWAY&STRÉE 3&UKN&1&2;0.458333333333333&U10A&0.458333333333333&HOME&FOOTBALL CLUB LIÈGE B 1&GR2X&1&2;0.458333333333333&U10B&0.458333333333333&HOME&COUTHUIN 2&GR2Y&1&2;1.41666666666667&U09A&0.416666666666667&AWAY&ELSAUTOISE A 1&UKN&1&2; | K63: 9 | AB63: =IF(AC63="","",IF(ISERROR(VLOOKUP(AC63,AC$48:AC62,1,FALSE)),AC63,AC63+COUNTIF(AC$48:AC62,AC63))) ->  | AG63: =IF($AD63="","",LEFT(S63,T63-1)) ->  | AH63: =IF($AD63="","",LEFT(U63,V63-1)) ->  | AI63: =IF($AD63="","",LEFT(W63,X63-1)) ->  | AJ63: =IF($AD63="","",LEFT(Y63,Z63-1)) -> 
A64: U09B | B64: =IF(ISERROR(VLOOKUP($A$47,U09B!$A$11:$J$210,1,FALSE)),"",VLOOKUP($A$47,U09B!$A$11:$J$210,2,FALSE)) -> 0.4583333333 | C64: =IF(ISERROR(VLOOKUP($A$47,U09B!$A$11:$J$210,1,FALSE)),"",VLOOKUP($A$47,U09B!$A$11:$J$210,7,FALSE)) -> AWAY | D64: =IF(ISERROR(VLOOKUP($A$47,U09B!$A$11:$J$210,1,FALSE)),"",IF(C64="HOME",VLOOKUP($A$47,U09B!$A$11:$J$210,4,FALSE),VLOOKUP($A$47,U09B!$A$11:$J$210,3,FALSE))) -> R. FRAITURE SP 2 | E64: =IF(ISERROR(VLOOKUP($A$47,U09B!$A$11:$J$210,1,FALSE)),"",VLOOKUP($A$47,U09B!$A$11:$J$210,10,FALSE)) -> UKN | F64: 1 | G64: 2 | H64: 1.45833333333333&U09B&0.458333333333333&AWAY&R. FRAITURE SP 2&UKN&1&2; | I64: 1.458333333 | J64: 1.64583333333333&U19A&0.645833333333333&AWAY&MINEROIS&UKN&1&2;0.458333333333333&U13A&0.458333333333333&HOME&R.DC.COINTE LIÈGE A 1&GR1A&1&2;0.458333333333333&U13B&0.458333333333333&HOME&JUPILLE B 2&GR1B&1&2;1.52083333333333&U12A&0.520833333333333&AWAY&US.GRÂCE HOLLOGNE A 1&UKN&1&2;1.45833333333333&U11A&0.458333333333333&AWAY&WAREMME B 1&UKN&1&2;1.52083333333333&U11B&0.520833333333333&AWAY&STRÉE 3&UKN&1&2;0.458333333333333&U10A&0.458333333333333&HOME&FOOTBALL CLUB LIÈGE B 1&GR2X&1&2;0.458333333333333&U10B&0.458333333333333&HOME&COUTHUIN 2&GR2Y&1&2;1.41666666666667&U09A&0.416666666666667&AWAY&ELSAUTOISE A 1&UKN&1&2;1.45833333333333&U09B&0.458333333333333&AWAY&R. FRAITURE SP 2&UKN&1&2; | K64: 10 | AB64: =IF(AC64="","",IF(ISERROR(VLOOKUP(AC64,AC$48:AC63,1,FALSE)),AC64,AC64+COUNTIF(AC$48:AC63,AC64))) ->  | AG64: =IF($AD64="","",LEFT(S64,T64-1)) ->  | AH64: =IF($AD64="","",LEFT(U64,V64-1)) ->  | AI64: =IF($AD64="","",LEFT(W64,X64-1)) ->  | AJ64: =IF($AD64="","",LEFT(Y64,Z64-1)) -> 
A65: U09C | B65: =IF(ISERROR(VLOOKUP($A$47,U09C!$A$11:$J$210,1,FALSE)),"",VLOOKUP($A$47,U09C!$A$11:$J$210,2,FALSE)) -> 0.4583333333 | C65: =IF(ISERROR(VLOOKUP($A$47,U09C!$A$11:$J$210,1,FALSE)),"",VLOOKUP($A$47,U09C!$A$11:$J$210,7,FALSE)) -> AWAY | D65: =IF(ISERROR(VLOOKUP($A$47,U09C!$A$11:$J$210,1,FALSE)),"",IF(C65="HOME",VLOOKUP($A$47,U09C!$A$11:$J$210,4,FALSE),VLOOKUP($A$47,U09C!$A$11:$J$210,3,FALSE))) -> STRÉE 3 | E65: =IF(ISERROR(VLOOKUP($A$47,U09C!$A$11:$J$210,1,FALSE)),"",VLOOKUP($A$47,U09C!$A$11:$J$210,10,FALSE)) -> UKN | F65: 1 | G65: 2 | H65: 1.45833333333333&U09C&0.458333333333333&AWAY&STRÉE 3&UKN&1&2; | I65: 1.458333333 | J65: 1.64583333333333&U19A&0.645833333333333&AWAY&MINEROIS&UKN&1&2;0.458333333333333&U13A&0.458333333333333&HOME&R.DC.COINTE LIÈGE A 1&GR1A&1&2;0.458333333333333&U13B&0.458333333333333&HOME&JUPILLE B 2&GR1B&1&2;1.52083333333333&U12A&0.520833333333333&AWAY&US.GRÂCE HOLLOGNE A 1&UKN&1&2;1.45833333333333&U11A&0.458333333333333&AWAY&WAREMME B 1&UKN&1&2;1.52083333333333&U11B&0.520833333333333&AWAY&STRÉE 3&UKN&1&2;0.458333333333333&U10A&0.458333333333333&HOME&FOOTBALL CLUB LIÈGE B 1&GR2X&1&2;0.458333333333333&U10B&0.458333333333333&HOME&COUTHUIN 2&GR2Y&1&2;1.41666666666667&U09A&0.416666666666667&AWAY&ELSAUTOISE A 1&UKN&1&2;1.45833333333333&U09B&0.458333333333333&AWAY&R. FRAITURE SP 2&UKN&1&2;1.45833333333333&U09C&0.458333333333333&AWAY&STRÉE 3&UKN&1&2; | K65: 11 | AB65: =IF(AC65="","",IF(ISERROR(VLOOKUP(AC65,AC$48:AC64,1,FALSE)),AC65,AC65+COUNTIF(AC$48:AC64,AC65))) ->  | AG65: =IF($AD65="","",LEFT(S65,T65-1)) ->  | AH65: =IF($AD65="","",LEFT(U65,V65-1)) ->  | AI65: =IF($AD65="","",LEFT(W65,X65-1)) ->  | AJ65: =IF($AD65="","",LEFT(Y65,Z65-1)) -> 
A66: U08A | B66: =IF(ISERROR(VLOOKUP($A$47,U08A!$A$11:$J$210,1,FALSE)),"",VLOOKUP($A$47,U08A!$A$11:$J$210,2,FALSE)) -> 0.5208333333 | C66: =IF(ISERROR(VLOOKUP($A$47,U08A!$A$11:$J$210,1,FALSE)),"",VLOOKUP($A$47,U08A!$A$11:$J$210,7,FALSE)) -> HOME | D66: =IF(ISERROR(VLOOKUP($A$47,U08A!$A$11:$J$210,1,FALSE)),"",IF(C66="HOME",VLOOKUP($A$47,U08A!$A$11:$J$210,4,FALSE),VLOOKUP($A$47,U08A!$A$11:$J$210,3,FALSE))) -> RFC.HUY B 2 | E66: =IF(ISERROR(VLOOKUP($A$47,U08A!$A$11:$J$210,1,FALSE)),"",VLOOKUP($A$47,U08A!$A$11:$J$210,10,FALSE)) -> GR1A1 | F66: 1 | G66: 2 | H66: 0.520833333333333&U08A&0.520833333333333&HOME&RFC.HUY B 2&GR1A1&1&2; | I66: 0.5208333333 | J66: 1.64583333333333&U19A&0.645833333333333&AWAY&MINEROIS&UKN&1&2;0.458333333333333&U13A&0.458333333333333&HOME&R.DC.COINTE LIÈGE A 1&GR1A&1&2;0.458333333333333&U13B&0.458333333333333&HOME&JUPILLE B 2&GR1B&1&2;1.52083333333333&U12A&0.520833333333333&AWAY&US.GRÂCE HOLLOGNE A 1&UKN&1&2;1.45833333333333&U11A&0.458333333333333&AWAY&WAREMME B 1&UKN&1&2;1.52083333333333&U11B&0.520833333333333&AWAY&STRÉE 3&UKN&1&2;0.458333333333333&U10A&0.458333333333333&HOME&FOOTBALL CLUB LIÈGE B 1&GR2X&1&2;0.458333333333333&U10B&0.458333333333333&HOME&COUTHUIN 2&GR2Y&1&2;1.41666666666667&U09A&0.416666666666667&AWAY&ELSAUTOISE A 1&UKN&1&2;1.45833333333333&U09B&0.458333333333333&AWAY&R. FRAITURE SP 2&UKN&1&2;1.45833333333333&U09C&0.458333333333333&AWAY&STRÉE 3&UKN&1&2;0.520833333333333&U08A&0.520833333333333&HOME&RFC.HUY B 2&GR1A1&1&2; | K66: 12 | AB66: =IF(AC66="","",IF(ISERROR(VLOOKUP(AC66,AC$48:AC65,1,FALSE)),AC66,AC66+COUNTIF(AC$48:AC65,AC66))) ->  | AG66: =IF($AD66="","",LEFT(S66,T66-1)) ->  | AH66: =IF($AD66="","",LEFT(U66,V66-1)) ->  | AI66: =IF($AD66="","",LEFT(W66,X66-1)) ->  | AJ66: =IF($AD66="","",LEFT(Y66,Z66-1)) -> 
A67: U08B | B67: =IF(ISERROR(VLOOKUP($A$47,U08B!$A$11:$J$210,1,FALSE)),"",VLOOKUP($A$47,U08B!$A$11:$J$210,2,FALSE)) -> 0.5208333333 | C67: =IF(ISERROR(VLOOKUP($A$47,U08B!$A$11:$J$210,1,FALSE)),"",VLOOKUP($A$47,U08B!$A$11:$J$210,7,FALSE)) -> HOME | D67: =IF(ISERROR(VLOOKUP($A$47,U08B!$A$11:$J$210,1,FALSE)),"",IF(C67="HOME",VLOOKUP($A$47,U08B!$A$11:$J$210,4,FALSE),VLOOKUP($A$47,U08B!$A$11:$J$210,3,FALSE))) -> CLAVINOISE B 3 | E67: =IF(ISERROR(VLOOKUP($A$47,U08B!$A$11:$J$210,1,FALSE)),"",VLOOKUP($A$47,U08B!$A$11:$J$210,10,FALSE)) -> GR1A2 | F67: 1 | G67: 2 | H67: 0.520833333333333&U08B&0.520833333333333&HOME&CLAVINOISE B 3&GR1A2&1&2; | I67: 0.5208333333 | J67: 1.64583333333333&U19A&0.645833333333333&AWAY&MINEROIS&UKN&1&2;0.458333333333333&U13A&0.458333333333333&HOME&R.DC.COINTE LIÈGE A 1&GR1A&1&2;0.458333333333333&U13B&0.458333333333333&HOME&JUPILLE B 2&GR1B&1&2;1.52083333333333&U12A&0.520833333333333&AWAY&US.GRÂCE HOLLOGNE A 1&UKN&1&2;1.45833333333333&U11A&0.458333333333333&AWAY&WAREMME B 1&UKN&1&2;1.52083333333333&U11B&0.520833333333333&AWAY&STRÉE 3&UKN&1&2;0.458333333333333&U10A&0.458333333333333&HOME&FOOTBALL CLUB LIÈGE B 1&GR2X&1&2;0.458333333333333&U10B&0.458333333333333&HOME&COUTHUIN 2&GR2Y&1&2;1.41666666666667&U09A&0.416666666666667&AWAY&ELSAUTOISE A 1&UKN&1&2;1.45833333333333&U09B&0.458333333333333&AWAY&R. FRAITURE SP 2&UKN&1&2;1.45833333333333&U09C&0.458333333333333&AWAY&STRÉE 3&UKN&1&2;0.520833333333333&U08A&0.520833333333333&HOME&RFC.HUY B 2&GR1A1&1&2;0.520833333333333&U08B&0.520833333333333&HOME&CLAVINOISE B 3&GR1A2&1&2; | K67: 13 | AB67: =IF(AC67="","",IF(ISERROR(VLOOKUP(AC67,AC$48:AC66,1,FALSE)),AC67,AC67+COUNTIF(AC$48:AC66,AC67))) ->  | AG67: =IF($AD67="","",LEFT(S67,T67-1)) ->  | AH67: =IF($AD67="","",LEFT(U67,V67-1)) ->  | AI67: =IF($AD67="","",LEFT(W67,X67-1)) ->  | AJ67: =IF($AD67="","",LEFT(Y67,Z67-1)) -> 
A68: U07A | B68: =IF(ISERROR(VLOOKUP($A$47,U07A!$A$11:$J$210,1,FALSE)),"",VLOOKUP($A$47,U07A!$A$11:$J$210,2,FALSE)) -> 0.5208333333 | C68: =IF(ISERROR(VLOOKUP($A$47,U07A!$A$11:$J$210,1,FALSE)),"",VLOOKUP($A$47,U07A!$A$11:$J$210,7,FALSE)) -> HOME | D68: =IF(ISERROR(VLOOKUP($A$47,U07A!$A$11:$J$210,1,FALSE)),"",IF(C68="HOME",VLOOKUP($A$47,U07A!$A$11:$J$210,4,FALSE),VLOOKUP($A$47,U07A!$A$11:$J$210,3,FALSE))) -> RFC.HUY A 2 | E68: =IF(ISERROR(VLOOKUP($A$47,U07A!$A$11:$J$210,1,FALSE)),"",VLOOKUP($A$47,U07A!$A$11:$J$210,10,FALSE)) -> GR2A1 | F68: 1 | G68: 2 | H68: 0.520833333333333&U07A&0.520833333333333&HOME&RFC.HUY A 2&GR2A1&1&2; | I68: 0.5208333333 | J68: 1.64583333333333&U19A&0.645833333333333&AWAY&MINEROIS&UKN&1&2;0.458333333333333&U13A&0.458333333333333&HOME&R.DC.COINTE LIÈGE A 1&GR1A&1&2;0.458333333333333&U13B&0.458333333333333&HOME&JUPILLE B 2&GR1B&1&2;1.52083333333333&U12A&0.520833333333333&AWAY&US.GRÂCE HOLLOGNE A 1&UKN&1&2;1.45833333333333&U11A&0.458333333333333&AWAY&WAREMME B 1&UKN&1&2;1.52083333333333&U11B&0.520833333333333&AWAY&STRÉE 3&UKN&1&2;0.458333333333333&U10A&0.458333333333333&HOME&FOOTBALL CLUB LIÈGE B 1&GR2X&1&2;0.458333333333333&U10B&0.458333333333333&HOME&COUTHUIN 2&GR2Y&1&2;1.41666666666667&U09A&0.416666666666667&AWAY&ELSAUTOISE A 1&UKN&1&2;1.45833333333333&U09B&0.458333333333333&AWAY&R. FRAITURE SP 2&UKN&1&2;1.45833333333333&U09C&0.458333333333333&AWAY&STRÉE 3&UKN&1&2;0.520833333333333&U08A&0.520833333333333&HOME&RFC.HUY B 2&GR1A1&1&2;0.520833333333333&U08B&0.520833333333333&HOME&CLAVINOISE B 3&GR1A2&1&2;0.520833333333333&U07A&0.520833333333333&HOME&RFC.HUY A 2&GR2A1&1&2; | K68: 14 | AB68: =IF(AC68="","",IF(ISERROR(VLOOKUP(AC68,AC$48:AC67,1,FALSE)),AC68,AC68+COUNTIF(AC$48:AC67,AC68))) ->  | AG68: =IF($AD68="","",LEFT(S68,T68-1)) ->  | AH68: =IF($AD68="","",LEFT(U68,V68-1)) ->  | AI68: =IF($AD68="","",LEFT(W68,X68-1)) ->  | AJ68: =IF($AD68="","",LEFT(Y68,Z68-1)) -> 
A69: U07B | B69: =IF(ISERROR(VLOOKUP($A$47,U07B!$A$11:$J$210,1,FALSE)),"",VLOOKUP($A$47,U07B!$A$11:$J$210,2,FALSE)) ->  | C69: =IF(ISERROR(VLOOKUP($A$47,U07B!$A$11:$J$210,1,FALSE)),"",VLOOKUP($A$47,U07B!$A$11:$J$210,7,FALSE)) ->  | D69: =IF(ISERROR(VLOOKUP($A$47,U07B!$A$11:$J$210,1,FALSE)),"",IF(C69="HOME",VLOOKUP($A$47,U07B!$A$11:$J$210,4,FALSE),VLOOKUP($A$47,U07B!$A$11:$J$210,3,FALSE))) ->  | E69: =IF(ISERROR(VLOOKUP($A$47,U07B!$A$11:$J$210,1,FALSE)),"",VLOOKUP($A$47,U07B!$A$11:$J$210,10,FALSE)) ->  | F69: 1 | G69: 2 | J69: 1.64583333333333&U19A&0.645833333333333&AWAY&MINEROIS&UKN&1&2;0.458333333333333&U13A&0.458333333333333&HOME&R.DC.COINTE LIÈGE A 1&GR1A&1&2;0.458333333333333&U13B&0.458333333333333&HOME&JUPILLE B 2&GR1B&1&2;1.52083333333333&U12A&0.520833333333333&AWAY&US.GRÂCE HOLLOGNE A 1&UKN&1&2;1.45833333333333&U11A&0.458333333333333&AWAY&WAREMME B 1&UKN&1&2;1.52083333333333&U11B&0.520833333333333&AWAY&STRÉE 3&UKN&1&2;0.458333333333333&U10A&0.458333333333333&HOME&FOOTBALL CLUB LIÈGE B 1&GR2X&1&2;0.458333333333333&U10B&0.458333333333333&HOME&COUTHUIN 2&GR2Y&1&2;1.41666666666667&U09A&0.416666666666667&AWAY&ELSAUTOISE A 1&UKN&1&2;1.45833333333333&U09B&0.458333333333333&AWAY&R. FRAITURE SP 2&UKN&1&2;1.45833333333333&U09C&0.458333333333333&AWAY&STRÉE 3&UKN&1&2;0.520833333333333&U08A&0.520833333333333&HOME&RFC.HUY B 2&GR1A1&1&2;0.520833333333333&U08B&0.520833333333333&HOME&CLAVINOISE B 3&GR1A2&1&2;0.520833333333333&U07A&0.520833333333333&HOME&RFC.HUY A 2&GR2A1&1&2; | K69: 14 | AB69: =IF(AC69="","",IF(ISERROR(VLOOKUP(AC69,AC$48:AC68,1,FALSE)),AC69,AC69+COUNTIF(AC$48:AC68,AC69))) ->  | AG69: =IF($AD69="","",LEFT(S69,T69-1)) ->  | AH69: =IF($AD69="","",LEFT(U69,V69-1)) ->  | AI69: =IF($AD69="","",LEFT(W69,X69-1)) ->  | AJ69: =IF($AD69="","",LEFT(Y69,Z69-1)) -> 
A70: U06A | B70: =IF(ISERROR(VLOOKUP($A$47,U06A!$A$11:$J$210,1,FALSE)),"",VLOOKUP($A$47,U06A!$A$11:$J$210,2,FALSE)) -> 0.4583333333 | C70: =IF(ISERROR(VLOOKUP($A$47,U06A!$A$11:$J$210,1,FALSE)),"",VLOOKUP($A$47,U06A!$A$11:$J$210,7,FALSE)) -> AWAY | D70: =IF(ISERROR(VLOOKUP($A$47,U06A!$A$11:$J$210,1,FALSE)),"",IF(C70="HOME",VLOOKUP($A$47,U06A!$A$11:$J$210,4,FALSE),VLOOKUP($A$47,U06A!$A$11:$J$210,3,FALSE))) -> VISE BMFA | E70: =IF(ISERROR(VLOOKUP($A$47,U06A!$A$11:$J$210,1,FALSE)),"",VLOOKUP($A$47,U06A!$A$11:$J$210,10,FALSE)) -> UKN | F70: 1 | G70: 2 | H70: 1.45833333333333&U06A&0.458333333333333&AWAY&VISE BMFA&UKN&1&2; | I70: 1.458333333 | J70: 1.64583333333333&U19A&0.645833333333333&AWAY&MINEROIS&UKN&1&2;0.458333333333333&U13A&0.458333333333333&HOME&R.DC.COINTE LIÈGE A 1&GR1A&1&2;0.458333333333333&U13B&0.458333333333333&HOME&JUPILLE B 2&GR1B&1&2;1.52083333333333&U12A&0.520833333333333&AWAY&US.GRÂCE HOLLOGNE A 1&UKN&1&2;1.45833333333333&U11A&0.458333333333333&AWAY&WAREMME B 1&UKN&1&2;1.52083333333333&U11B&0.520833333333333&AWAY&STRÉE 3&UKN&1&2;0.458333333333333&U10A&0.458333333333333&HOME&FOOTBALL CLUB LIÈGE B 1&GR2X&1&2;0.458333333333333&U10B&0.458333333333333&HOME&COUTHUIN 2&GR2Y&1&2;1.41666666666667&U09A&0.416666666666667&AWAY&ELSAUTOISE A 1&UKN&1&2;1.45833333333333&U09B&0.458333333333333&AWAY&R. FRAITURE SP 2&UKN&1&2;1.45833333333333&U09C&0.458333333333333&AWAY&STRÉE 3&UKN&1&2;0.520833333333333&U08A&0.520833333333333&HOME&RFC.HUY B 2&GR1A1&1&2;0.520833333333333&U08B&0.520833333333333&HOME&CLAVINOISE B 3&GR1A2&1&2;0.520833333333333&U07A&0.520833333333333&HOME&RFC.HUY A 2&GR2A1&1&2;1.45833333333333&U06A&0.458333333333333&AWAY&VISE BMFA&UKN&1&2; | K70: 15 | AB70: =IF(AC70="","",IF(ISERROR(VLOOKUP(AC70,AC$48:AC69,1,FALSE)),AC70,AC70+COUNTIF(AC$48:AC69,AC70))) ->  | AG70: =IF($AD70="","",LEFT(S70,T70-1)) ->  | AH70: =IF($AD70="","",LEFT(U70,V70-1)) ->  | AI70: =IF($AD70="","",LEFT(W70,X70-1)) ->  | AJ70: =IF($AD70="","",LEFT(Y70,Z70-1)) -> 
A71: U06B | B71: =IF(ISERROR(VLOOKUP($A$47,U06B!$A$11:$J$210,1,FALSE)),"",VLOOKUP($A$47,U06B!$A$11:$J$210,2,FALSE)) ->  | C71: =IF(ISERROR(VLOOKUP($A$47,U06B!$A$11:$J$210,1,FALSE)),"",VLOOKUP($A$47,U06B!$A$11:$J$210,7,FALSE)) ->  | D71: =IF(ISERROR(VLOOKUP($A$47,U06B!$A$11:$J$210,1,FALSE)),"",IF(C71="HOME",VLOOKUP($A$47,U06B!$A$11:$J$210,4,FALSE),VLOOKUP($A$47,U06B!$A$11:$J$210,3,FALSE))) ->  | E71: =IF(ISERROR(VLOOKUP($A$47,U06B!$A$11:$J$210,1,FALSE)),"",VLOOKUP($A$47,U06B!$A$11:$J$210,10,FALSE)) ->  | F71: 1 | G71: 2 | J71: 1.64583333333333&U19A&0.645833333333333&AWAY&MINEROIS&UKN&1&2;0.458333333333333&U13A&0.458333333333333&HOME&R.DC.COINTE LIÈGE A 1&GR1A&1&2;0.458333333333333&U13B&0.458333333333333&HOME&JUPILLE B 2&GR1B&1&2;1.52083333333333&U12A&0.520833333333333&AWAY&US.GRÂCE HOLLOGNE A 1&UKN&1&2;1.45833333333333&U11A&0.458333333333333&AWAY&WAREMME B 1&UKN&1&2;1.52083333333333&U11B&0.520833333333333&AWAY&STRÉE 3&UKN&1&2;0.458333333333333&U10A&0.458333333333333&HOME&FOOTBALL CLUB LIÈGE B 1&GR2X&1&2;0.458333333333333&U10B&0.458333333333333&HOME&COUTHUIN 2&GR2Y&1&2;1.41666666666667&U09A&0.416666666666667&AWAY&ELSAUTOISE A 1&UKN&1&2;1.45833333333333&U09B&0.458333333333333&AWAY&R. FRAITURE SP 2&UKN&1&2;1.45833333333333&U09C&0.458333333333333&AWAY&STRÉE 3&UKN&1&2;0.520833333333333&U08A&0.520833333333333&HOME&RFC.HUY B 2&GR1A1&1&2;0.520833333333333&U08B&0.520833333333333&HOME&CLAVINOISE B 3&GR1A2&1&2;0.520833333333333&U07A&0.520833333333333&HOME&RFC.HUY A 2&GR2A1&1&2;1.45833333333333&U06A&0.458333333333333&AWAY&VISE BMFA&UKN&1&2; | K71: 15 | AB71: =IF(AC71="","",IF(ISERROR(VLOOKUP(AC71,AC$48:AC70,1,FALSE)),AC71,AC71+COUNTIF(AC$48:AC70,AC71))) ->  | AG71: =IF($AD71="","",LEFT(S71,T71-1)) ->  | AH71: =IF($AD71="","",LEFT(U71,V71-1)) ->  | AI71: =IF($AD71="","",LEFT(W71,X71-1)) ->  | AJ71: =IF($AD71="","",LEFT(Y71,Z71-1)) -> 
A72: U12B | B72: =IF(ISERROR(VLOOKUP($A$47,U12B!$A$11:$J$210,1,FALSE)),"",VLOOKUP($A$47,U12B!$A$11:$J$210,2,FALSE)) ->  | C72: =IF(ISERROR(VLOOKUP($A$47,U12B!$A$11:$J$210,1,FALSE)),"",VLOOKUP($A$47,U12B!$A$11:$J$210,7,FALSE)) ->  | D72: =IF(ISERROR(VLOOKUP($A$47,U12B!$A$11:$J$210,1,FALSE)),"",IF(C72="HOME",VLOOKUP($A$47,U12B!$A$11:$J$210,4,FALSE),VLOOKUP($A$47,U12B!$A$11:$J$210,3,FALSE))) ->  | E72: =IF(ISERROR(VLOOKUP($A$47,U12B!$A$11:$J$210,1,FALSE)),"",VLOOKUP($A$47,U12B!$A$11:$J$210,10,FALSE)) ->  | F72: 1 | G72: 2 | J72: 1.64583333333333&U19A&0.645833333333333&AWAY&MINEROIS&UKN&1&2;0.458333333333333&U13A&0.458333333333333&HOME&R.DC.COINTE LIÈGE A 1&GR1A&1&2;0.458333333333333&U13B&0.458333333333333&HOME&JUPILLE B 2&GR1B&1&2;1.52083333333333&U12A&0.520833333333333&AWAY&US.GRÂCE HOLLOGNE A 1&UKN&1&2;1.45833333333333&U11A&0.458333333333333&AWAY&WAREMME B 1&UKN&1&2;1.52083333333333&U11B&0.520833333333333&AWAY&STRÉE 3&UKN&1&2;0.458333333333333&U10A&0.458333333333333&HOME&FOOTBALL CLUB LIÈGE B 1&GR2X&1&2;0.458333333333333&U10B&0.458333333333333&HOME&COUTHUIN 2&GR2Y&1&2;1.41666666666667&U09A&0.416666666666667&AWAY&ELSAUTOISE A 1&UKN&1&2;1.45833333333333&U09B&0.458333333333333&AWAY&R. FRAITURE SP 2&UKN&1&2;1.45833333333333&U09C&0.458333333333333&AWAY&STRÉE 3&UKN&1&2;0.520833333333333&U08A&0.520833333333333&HOME&RFC.HUY B 2&GR1A1&1&2;0.520833333333333&U08B&0.520833333333333&HOME&CLAVINOISE B 3&GR1A2&1&2;0.520833333333333&U07A&0.520833333333333&HOME&RFC.HUY A 2&GR2A1&1&2;1.45833333333333&U06A&0.458333333333333&AWAY&VISE BMFA&UKN&1&2; | K72: 15 | AB72: =IF(AC72="","",IF(ISERROR(VLOOKUP(AC72,AC$48:AC71,1,FALSE)),AC72,AC72+COUNTIF(AC$48:AC71,AC72))) ->  | AG72: =IF($AD72="","",LEFT(S72,T72-1)) ->  | AH72: =IF($AD72="","",LEFT(U72,V72-1)) ->  | AI72: =IF($AD72="","",LEFT(W72,X72-1)) ->  | AJ72: =IF($AD72="","",LEFT(Y72,Z72-1)) -> 
A73: U08C | B73: =IF(ISERROR(VLOOKUP($A$47,U08C!$A$11:$J$210,1,FALSE)),"",VLOOKUP($A$47,U08C!$A$11:$J$210,2,FALSE)) ->  | C73: =IF(ISERROR(VLOOKUP($A$47,U08C!$A$11:$J$210,1,FALSE)),"",VLOOKUP($A$47,U08C!$A$11:$J$210,7,FALSE)) ->  | D73: =IF(ISERROR(VLOOKUP($A$47,U08C!$A$11:$J$210,1,FALSE)),"",IF(C73="HOME",VLOOKUP($A$47,U08C!$A$11:$J$210,4,FALSE),VLOOKUP($A$47,U08C!$A$11:$J$210,3,FALSE))) ->  | E73: =IF(ISERROR(VLOOKUP($A$47,U08C!$A$11:$J$210,1,FALSE)),"",VLOOKUP($A$47,U08C!$A$11:$J$210,10,FALSE)) ->  | F73: 1 | G73: 2 | J73: 1.64583333333333&U19A&0.645833333333333&AWAY&MINEROIS&UKN&1&2;0.458333333333333&U13A&0.458333333333333&HOME&R.DC.COINTE LIÈGE A 1&GR1A&1&2;0.458333333333333&U13B&0.458333333333333&HOME&JUPILLE B 2&GR1B&1&2;1.52083333333333&U12A&0.520833333333333&AWAY&US.GRÂCE HOLLOGNE A 1&UKN&1&2;1.45833333333333&U11A&0.458333333333333&AWAY&WAREMME B 1&UKN&1&2;1.52083333333333&U11B&0.520833333333333&AWAY&STRÉE 3&UKN&1&2;0.458333333333333&U10A&0.458333333333333&HOME&FOOTBALL CLUB LIÈGE B 1&GR2X&1&2;0.458333333333333&U10B&0.458333333333333&HOME&COUTHUIN 2&GR2Y&1&2;1.41666666666667&U09A&0.416666666666667&AWAY&ELSAUTOISE A 1&UKN&1&2;1.45833333333333&U09B&0.458333333333333&AWAY&R. FRAITURE SP 2&UKN&1&2;1.45833333333333&U09C&0.458333333333333&AWAY&STRÉE 3&UKN&1&2;0.520833333333333&U08A&0.520833333333333&HOME&RFC.HUY B 2&GR1A1&1&2;0.520833333333333&U08B&0.520833333333333&HOME&CLAVINOISE B 3&GR1A2&1&2;0.520833333333333&U07A&0.520833333333333&HOME&RFC.HUY A 2&GR2A1&1&2;1.45833333333333&U06A&0.458333333333333&AWAY&VISE BMFA&UKN&1&2; | K73: 15 | AB73: =IF(AC73="","",IF(ISERROR(VLOOKUP(AC73,AC$48:AC72,1,FALSE)),AC73,AC73+COUNTIF(AC$48:AC72,AC73))) ->  | AG73: =IF($AD73="","",LEFT(S73,T73-1)) ->  | AH73: =IF($AD73="","",LEFT(U73,V73-1)) ->  | AI73: =IF($AD73="","",LEFT(W73,X73-1)) ->  | AJ73: =IF($AD73="","",LEFT(Y73,Z73-1)) -> 
A74: U07C | B74: =IF(ISERROR(VLOOKUP($A$47,U07C!$A$11:$J$210,1,FALSE)),"",VLOOKUP($A$47,U07C!$A$11:$J$210,2,FALSE)) ->  | C74: =IF(ISERROR(VLOOKUP($A$47,U07C!$A$11:$J$210,1,FALSE)),"",VLOOKUP($A$47,U07C!$A$11:$J$210,7,FALSE)) ->  | D74: =IF(ISERROR(VLOOKUP($A$47,U07C!$A$11:$J$210,1,FALSE)),"",IF(C74="HOME",VLOOKUP($A$47,U07C!$A$11:$J$210,4,FALSE),VLOOKUP($A$47,U07C!$A$11:$J$210,3,FALSE))) ->  | E74: =IF(ISERROR(VLOOKUP($A$47,U07C!$A$11:$J$210,1,FALSE)),"",VLOOKUP($A$47,U07C!$A$11:$J$210,10,FALSE)) ->  | F74: 1 | G74: 2 | J74: 1.64583333333333&U19A&0.645833333333333&AWAY&MINEROIS&UKN&1&2;0.458333333333333&U13A&0.458333333333333&HOME&R.DC.COINTE LIÈGE A 1&GR1A&1&2;0.458333333333333&U13B&0.458333333333333&HOME&JUPILLE B 2&GR1B&1&2;1.52083333333333&U12A&0.520833333333333&AWAY&US.GRÂCE HOLLOGNE A 1&UKN&1&2;1.45833333333333&U11A&0.458333333333333&AWAY&WAREMME B 1&UKN&1&2;1.52083333333333&U11B&0.520833333333333&AWAY&STRÉE 3&UKN&1&2;0.458333333333333&U10A&0.458333333333333&HOME&FOOTBALL CLUB LIÈGE B 1&GR2X&1&2;0.458333333333333&U10B&0.458333333333333&HOME&COUTHUIN 2&GR2Y&1&2;1.41666666666667&U09A&0.416666666666667&AWAY&ELSAUTOISE A 1&UKN&1&2;1.45833333333333&U09B&0.458333333333333&AWAY&R. FRAITURE SP 2&UKN&1&2;1.45833333333333&U09C&0.458333333333333&AWAY&STRÉE 3&UKN&1&2;0.520833333333333&U08A&0.520833333333333&HOME&RFC.HUY B 2&GR1A1&1&2;0.520833333333333&U08B&0.520833333333333&HOME&CLAVINOISE B 3&GR1A2&1&2;0.520833333333333&U07A&0.520833333333333&HOME&RFC.HUY A 2&GR2A1&1&2;1.45833333333333&U06A&0.458333333333333&AWAY&VISE BMFA&UKN&1&2; | K74: 15 | AB74: =IF(AC74="","",IF(ISERROR(VLOOKUP(AC74,AC$48:AC73,1,FALSE)),AC74,AC74+COUNTIF(AC$48:AC73,AC74))) ->  | AG74: =IF($AD74="","",LEFT(S74,T74-1)) ->  | AH74: =IF($AD74="","",LEFT(U74,V74-1)) ->  | AI74: =IF($AD74="","",LEFT(W74,X74-1)) ->  | AJ74: =IF($AD74="","",LEFT(Y74,Z74-1)) -> 
A75: U06C | B75: =IF(ISERROR(VLOOKUP($A$47,U06C!$A$11:$J$210,1,FALSE)),"",VLOOKUP($A$47,U06C!$A$11:$J$210,2,FALSE)) ->  | C75: =IF(ISERROR(VLOOKUP($A$47,U06C!$A$11:$J$210,1,FALSE)),"",VLOOKUP($A$47,U06C!$A$11:$J$210,7,FALSE)) ->  | D75: =IF(ISERROR(VLOOKUP($A$47,U06C!$A$11:$J$210,1,FALSE)),"",IF(C75="HOME",VLOOKUP($A$47,U06C!$A$11:$J$210,4,FALSE),VLOOKUP($A$47,U06C!$A$11:$J$210,3,FALSE))) ->  | E75: =IF(ISERROR(VLOOKUP($A$47,U06C!$A$11:$J$210,1,FALSE)),"",VLOOKUP($A$47,U06C!$A$11:$J$210,10,FALSE)) ->  | F75: 1 | G75: 2 | J75: 1.64583333333333&U19A&0.645833333333333&AWAY&MINEROIS&UKN&1&2;0.458333333333333&U13A&0.458333333333333&HOME&R.DC.COINTE LIÈGE A 1&GR1A&1&2;0.458333333333333&U13B&0.458333333333333&HOME&JUPILLE B 2&GR1B&1&2;1.52083333333333&U12A&0.520833333333333&AWAY&US.GRÂCE HOLLOGNE A 1&UKN&1&2;1.45833333333333&U11A&0.458333333333333&AWAY&WAREMME B 1&UKN&1&2;1.52083333333333&U11B&0.520833333333333&AWAY&STRÉE 3&UKN&1&2;0.458333333333333&U10A&0.458333333333333&HOME&FOOTBALL CLUB LIÈGE B 1&GR2X&1&2;0.458333333333333&U10B&0.458333333333333&HOME&COUTHUIN 2&GR2Y&1&2;1.41666666666667&U09A&0.416666666666667&AWAY&ELSAUTOISE A 1&UKN&1&2;1.45833333333333&U09B&0.458333333333333&AWAY&R. FRAITURE SP 2&UKN&1&2;1.45833333333333&U09C&0.458333333333333&AWAY&STRÉE 3&UKN&1&2;0.520833333333333&U08A&0.520833333333333&HOME&RFC.HUY B 2&GR1A1&1&2;0.520833333333333&U08B&0.520833333333333&HOME&CLAVINOISE B 3&GR1A2&1&2;0.520833333333333&U07A&0.520833333333333&HOME&RFC.HUY A 2&GR2A1&1&2;1.45833333333333&U06A&0.458333333333333&AWAY&VISE BMFA&UKN&1&2; | K75: 15 | AB75: =IF(AC75="","",IF(ISERROR(VLOOKUP(AC75,AC$48:AC74,1,FALSE)),AC75,AC75+COUNTIF(AC$48:AC74,AC75))) ->  | AG75: =IF($AD75="","",LEFT(S75,T75-1)) ->  | AH75: =IF($AD75="","",LEFT(U75,V75-1)) ->  | AI75: =IF($AD75="","",LEFT(W75,X75-1)) ->  | AJ75: =IF($AD75="","",LEFT(Y75,Z75-1)) -> 
A76: VETA | B76: =IF(ISERROR(VLOOKUP($A$47,VETA!$A$11:$J$210,1,FALSE)),"",VLOOKUP($A$47,VETA!$A$11:$J$210,2,FALSE)) ->  | C76: =IF(ISERROR(VLOOKUP($A$47,VETA!$A$11:$J$210,1,FALSE)),"",VLOOKUP($A$47,VETA!$A$11:$J$210,7,FALSE)) ->  | D76: =IF(ISERROR(VLOOKUP($A$47,VETA!$A$11:$J$210,1,FALSE)),"",IF(C76="HOME",VLOOKUP($A$47,VETA!$A$11:$J$210,4,FALSE),VLOOKUP($A$47,VETA!$A$11:$J$210,3,FALSE))) ->  | E76: =IF(ISERROR(VLOOKUP($A$47,VETA!$A$11:$J$210,1,FALSE)),"",VLOOKUP($A$47,VETA!$A$11:$J$210,10,FALSE)) ->  | F76: 1 | G76: 2 | J76: 1.64583333333333&U19A&0.645833333333333&AWAY&MINEROIS&UKN&1&2;0.458333333333333&U13A&0.458333333333333&HOME&R.DC.COINTE LIÈGE A 1&GR1A&1&2;0.458333333333333&U13B&0.458333333333333&HOME&JUPILLE B 2&GR1B&1&2;1.52083333333333&U12A&0.520833333333333&AWAY&US.GRÂCE HOLLOGNE A 1&UKN&1&2;1.45833333333333&U11A&0.458333333333333&AWAY&WAREMME B 1&UKN&1&2;1.52083333333333&U11B&0.520833333333333&AWAY&STRÉE 3&UKN&1&2;0.458333333333333&U10A&0.458333333333333&HOME&FOOTBALL CLUB LIÈGE B 1&GR2X&1&2;0.458333333333333&U10B&0.458333333333333&HOME&COUTHUIN 2&GR2Y&1&2;1.41666666666667&U09A&0.416666666666667&AWAY&ELSAUTOISE A 1&UKN&1&2;1.45833333333333&U09B&0.458333333333333&AWAY&R. FRAITURE SP 2&UKN&1&2;1.45833333333333&U09C&0.458333333333333&AWAY&STRÉE 3&UKN&1&2;0.520833333333333&U08A&0.520833333333333&HOME&RFC.HUY B 2&GR1A1&1&2;0.520833333333333&U08B&0.520833333333333&HOME&CLAVINOISE B 3&GR1A2&1&2;0.520833333333333&U07A&0.520833333333333&HOME&RFC.HUY A 2&GR2A1&1&2;1.45833333333333&U06A&0.458333333333333&AWAY&VISE BMFA&UKN&1&2; | K76: 15 | AB76: =IF(AC76="","",IF(ISERROR(VLOOKUP(AC76,AC$48:AC75,1,FALSE)),AC76,AC76+COUNTIF(AC$48:AC75,AC76))) ->  | AG76: =IF($AD76="","",LEFT(S76,T76-1)) ->  | AH76: =IF($AD76="","",LEFT(U76,V76-1)) ->  | AI76: =IF($AD76="","",LEFT(W76,X76-1)) ->  | AJ76: =IF($AD76="","",LEFT(Y76,Z76-1)) -> 
A78: =A24 -> 2017-09-10 | B78: Heure | C78: H/A | D78: Adversaire | E78: Ground | F78: DefaultVR | G78: DefaultVA | H78: ConcaValue | I78: ToRank | L78: =J107 -> 1.625&SENA&0.625&AWAY&FAIMES A&UKN&1&2;0.625&SENB&0.625&HOME&STOCKAY B&GR1&1&2;1.39583333333333&U17A&0.395833333333333&AWAY&FC.TILLEUR B&UKN&1&2;0.46875&U16A&0.46875&HOME&FOOTBALL CLUB LIÈGE B&GR1&1&2;0.40625&U15A&0.40625&HOME&ES.GEER&GR1&1&2;1.46875&U14A&0.46875&AWAY&FC.HERSTAL&UKN&1&2;1.46875&U14B&0.46875&AWAY&OUGRÉE&UKN&1&2; | AB78: RankCorr | AC78: RankRaw | AD78: Torank | AE78: Teams | AF78: Start | AG78: Teams | AH78: Adversaire | AI78: GroundInd | AJ78: VestH | AK78: VestA
A79: SENA | B79: =IF(ISERROR(VLOOKUP($A$78,SENA!$A$11:$J$210,1,FALSE)),"",VLOOKUP($A$78,SENA!$A$11:$J$210,2,FALSE)) -> 0.625 | C79: =IF(ISERROR(VLOOKUP($A$78,SENA!$A$11:$J$210,1,FALSE)),"",VLOOKUP($A$78,SENA!$A$11:$J$210,7,FALSE)) -> AWAY | D79: =IF(ISERROR(VLOOKUP($A$78,SENA!$A$11:$J$210,1,FALSE)),"",IF(C79="HOME",VLOOKUP($A$78,SENA!$A$11:$J$210,4,FALSE),VLOOKUP($A$78,SENA!$A$11:$J$210,3,FALSE))) -> FAIMES A | E79: =IF(ISERROR(VLOOKUP($A$78,SENA!$A$11:$J$210,1,FALSE)),"",VLOOKUP($A$78,SENA!$A$11:$J$210,10,FALSE)) -> UKN | F79: 1 | G79: 2 | H79: =IF(B79="","",CONCATENATE(I79,"&",A79,"&",B79,"&",C79,"&",D79,"&",E79,"&",F79,"&",G79,";")) -> 1.625&SENA&0.625&AWAY&FAIMES A&UKN&1&2; | I79: =IF(B79="","",IF(C79="HOME",0+B79,1+B79)) -> 1.625 | J79: =CONCATENATE(J78,H79) -> 1.625&SENA&0.625&AWAY&FAIMES A&UKN&1&2; | K79: =IF(B79="",K78,K78+1) -> 1 | L79: =RIGHT(L78,LEN(L78)-FIND(";",L78)) -> 0.625&SENB&0.625&HOME&STOCKAY B&GR1&1&2;1.39583333333333&U17A&0.395833333333333&AWAY&FC.TILLEUR B&UKN&1&2;0.46875&U16A&0.46875&HOME&FOOTBALL CLUB LIÈGE B&GR1&1&2;0.40625&U15A&0.40625&HOME&ES.GEER&GR1&1&2;1.46875&U14A&0.46875&AWAY&FC.HERSTAL&UKN&1&2;1.46875&U14B&0.46875&AWAY&OUGRÉE&UKN&1&2; | M79: =IF(ISERROR(FIND(";",L78)),"",LEFT(L78,FIND(";",L78)-1)) -> 1.625&SENA&0.625&AWAY&FAIMES A&UKN&1&2 | N79: =FIND("&",M79) -> 6 | O79: =RIGHT(M79,LEN(M79)-N79) -> SENA&0.625&AWAY&FAIMES A&UKN&1&2 | P79: =FIND("&",O79) -> 5 | Q79: =RIGHT(O79,LEN(O79)-P79) -> 0.625&AWAY&FAIMES A&UKN&1&2 | R79: =FIND("&",Q79) -> 6 | S79: =RIGHT(Q79,LEN(Q79)-R79) -> AWAY&FAIMES A&UKN&1&2 | T79: =FIND("&",S79) -> 5 | U79: =RIGHT(S79,LEN(S79)-T79) -> FAIMES A&UKN&1&2 | V79: =FIND("&",U79) -> 9 | W79: =RIGHT(U79,LEN(U79)-V79) -> UKN&1&2 | X79: =FIND("&",W79) -> 4 | Y79: =RIGHT(W79,LEN(W79)-X79) -> 1&2 | Z79: =FIND("&",Y79) -> 2 | AA79: =RIGHT(Y79,LEN(Y79)-Z79) -> 2 | AB79: =IF(AC79="","",AC79) -> 7 | AC79: =IF(AD79="","",RANK(AD79,$AD$79:$AD$107,1)) -> 7 | AD79: =IF(ISERROR(N79),"",VALUE(LEFT(M79,N79-1))) -> 1.625 | AE79: =IF($AD79="","",LEFT(O79,P79-1)) -> SENA | AF79: =IF($AD79="","",VALUE(LEFT(Q79,R79-1))) -> 15:00:00 | AG79: =IF($AD79="","",LEFT(S79,T79-1)) -> AWAY | AH79: =IF($AD79="","",LEFT(U79,V79-1)) -> FAIMES A | AI79: =IF($AD79="","",LEFT(W79,X79-1)) -> UKN | AJ79: =IF($AD79="","",LEFT(Y79,Z79-1)) -> 1 | AK79: =IF($AD79="","",AA79) -> 2
A80: SENB | B80: =IF(ISERROR(VLOOKUP($A$78,SENB!$A$11:$J$210,1,FALSE)),"",VLOOKUP($A$78,SENB!$A$11:$J$210,2,FALSE)) -> 0.625 | C80: =IF(ISERROR(VLOOKUP($A$78,SENB!$A$11:$J$210,1,FALSE)),"",VLOOKUP($A$78,SENB!$A$11:$J$210,7,FALSE)) -> HOME | D80: =IF(ISERROR(VLOOKUP($A$78,SENB!$A$11:$J$210,1,FALSE)),"",IF(C80="HOME",VLOOKUP($A$78,SENB!$A$11:$J$210,4,FALSE),VLOOKUP($A$78,SENB!$A$11:$J$210,3,FALSE))) -> STOCKAY B | E80: =IF(ISERROR(VLOOKUP($A$78,SENB!$A$11:$J$210,1,FALSE)),"",VLOOKUP($A$78,SENB!$A$11:$J$210,10,FALSE)) -> GR1 | F80: 1 | G80: 2 | H80: =IF(B80="","",CONCATENATE(I80,"&",A80,"&",B80,"&",C80,"&",D80,"&",E80,"&",F80,"&",G80,";")) -> 0.625&SENB&0.625&HOME&STOCKAY B&GR1&1&2; | I80: =IF(B80="","",IF(C80="HOME",0+B80,1+B80)) -> 0.625 | J80: =CONCATENATE(J79,H80) -> 1.625&SENA&0.625&AWAY&FAIMES A&UKN&1&2;0.625&SENB&0.625&HOME&STOCKAY B&GR1&1&2; | K80: =IF(B80="",K79,K79+1) -> 2 | L80: =RIGHT(L79,LEN(L79)-FIND(";",L79)) -> 1.39583333333333&U17A&0.395833333333333&AWAY&FC.TILLEUR B&UKN&1&2;0.46875&U16A&0.46875&HOME&FOOTBALL CLUB LIÈGE B&GR1&1&2;0.40625&U15A&0.40625&HOME&ES.GEER&GR1&1&2;1.46875&U14A&0.46875&AWAY&FC.HERSTAL&UKN&1&2;1.46875&U14B&0.46875&AWAY&OUGRÉE&UKN&1&2; | M80: =IF(ISERROR(FIND(";",L79)),"",LEFT(L79,FIND(";",L79)-1)) -> 0.625&SENB&0.625&HOME&STOCKAY B&GR1&1&2 | N80: =FIND("&",M80) -> 6 | O80: =RIGHT(M80,LEN(M80)-N80) -> SENB&0.625&HOME&STOCKAY B&GR1&1&2 | P80: =FIND("&",O80) -> 5 | Q80: =RIGHT(O80,LEN(O80)-P80) -> 0.625&HOME&STOCKAY B&GR1&1&2 | R80: =FIND("&",Q80) -> 6 | S80: =RIGHT(Q80,LEN(Q80)-R80) -> HOME&STOCKAY B&GR1&1&2 | T80: =FIND("&",S80) -> 5 | U80: =RIGHT(S80,LEN(S80)-T80) -> STOCKAY B&GR1&1&2 | V80: =FIND("&",U80) -> 10 | W80: =RIGHT(U80,LEN(U80)-V80) -> GR1&1&2 | X80: =FIND("&",W80) -> 4 | Y80: =RIGHT(W80,LEN(W80)-X80) -> 1&2 | Z80: =FIND("&",Y80) -> 2 | AA80: =RIGHT(Y80,LEN(Y80)-Z80) -> 2 | AB80: =IF(AC80="","",IF(ISERROR(VLOOKUP(AC80,AC$79:AC79,1,FALSE)),AC80,AC80+COUNTIF(AC$79:AC79,AC80))) -> 3 | AC80: =IF(AD80="","",RANK(AD80,$AD$79:$AD$107,1)) -> 3 | AD80: =IF(ISERROR(N80),"",VALUE(LEFT(M80,N80-1))) -> 0.625 | AE80: =IF($AD80="","",LEFT(O80,P80-1)) -> SENB | AF80: =IF($AD80="","",VALUE(LEFT(Q80,R80-1))) -> 15:00:00 | AG80: =IF($AD80="","",LEFT(S80,T80-1)) -> HOME | AH80: =IF($AD80="","",LEFT(U80,V80-1)) -> STOCKAY B | AI80: =IF($AD80="","",LEFT(W80,X80-1)) -> GR1 | AJ80: =IF($AD80="","",LEFT(Y80,Z80-1)) -> 1 | AK80: =IF($AD80="","",AA80) -> 2
A81: U19A | B81: =IF(ISERROR(VLOOKUP($A$78,U19A!$A$11:$J$210,1,FALSE)),"",VLOOKUP($A$78,U19A!$A$11:$J$210,2,FALSE)) ->  | C81: =IF(ISERROR(VLOOKUP($A$78,U19A!$A$11:$J$210,1,FALSE)),"",VLOOKUP($A$78,U19A!$A$11:$J$210,7,FALSE)) ->  | D81: =IF(ISERROR(VLOOKUP($A$78,U19A!$A$11:$J$210,1,FALSE)),"",IF(C81="HOME",VLOOKUP($A$78,U19A!$A$11:$J$210,4,FALSE),VLOOKUP($A$78,U19A!$A$11:$J$210,3,FALSE))) ->  | E81: =IF(ISERROR(VLOOKUP($A$78,U19A!$A$11:$J$210,1,FALSE)),"",VLOOKUP($A$78,U19A!$A$11:$J$210,10,FALSE)) ->  | F81: 1 | G81: 2 | J81: 1.625&SENA&0.625&AWAY&FAIMES A&UKN&1&2;0.625&SENB&0.625&HOME&STOCKAY B&GR1&1&2; | K81: 2 | L81: 0.46875&U16A&0.46875&HOME&FOOTBALL CLUB LIÈGE B&GR1&1&2;0.40625&U15A&0.40625&HOME&ES.GEER&GR1&1&2;1.46875&U14A&0.46875&AWAY&FC.HERSTAL&UKN&1&2;1.46875&U14B&0.46875&AWAY&OUGRÉE&UKN&1&2; | M81: 1.39583333333333&U17A&0.395833333333333&AWAY&FC.TILLEUR B&UKN&1&2 | N81: 17 | O81: U17A&0.395833333333333&AWAY&FC.TILLEUR B&UKN&1&2 | P81: 5 | Q81: 0.395833333333333&AWAY&FC.TILLEUR B&UKN&1&2 | R81: 18 | S81: AWAY&FC.TILLEUR B&UKN&1&2 | T81: 5 | U81: FC.TILLEUR B&UKN&1&2 | V81: 13 | W81: UKN&1&2 | X81: 4 | Y81: 1&2 | Z81: 2 | AA81: 2 | AB81: =IF(AC81="","",IF(ISERROR(VLOOKUP(AC81,AC$79:AC80,1,FALSE)),AC81,AC81+COUNTIF(AC$79:AC80,AC81))) -> 4 | AC81: 4 | AD81: 1.395833333 | AE81: U17A | AF81: 09:30:00 | AG81: =IF($AD81="","",LEFT(S81,T81-1)) -> AWAY | AH81: =IF($AD81="","",LEFT(U81,V81-1)) -> FC.TILLEUR B | AI81: =IF($AD81="","",LEFT(W81,X81-1)) -> UKN | AJ81: =IF($AD81="","",LEFT(Y81,Z81-1)) -> 1 | AK81: 2
A82: U17A | B82: =IF(ISERROR(VLOOKUP($A$78,U17A!$A$11:$J$210,1,FALSE)),"",VLOOKUP($A$78,U17A!$A$11:$J$210,2,FALSE)) -> 0.3958333333 | C82: =IF(ISERROR(VLOOKUP($A$78,U17A!$A$11:$J$210,1,FALSE)),"",VLOOKUP($A$78,U17A!$A$11:$J$210,7,FALSE)) -> AWAY | D82: =IF(ISERROR(VLOOKUP($A$78,U17A!$A$11:$J$210,1,FALSE)),"",IF(C82="HOME",VLOOKUP($A$78,U17A!$A$11:$J$210,4,FALSE),VLOOKUP($A$78,U17A!$A$11:$J$210,3,FALSE))) -> FC.TILLEUR B | E82: =IF(ISERROR(VLOOKUP($A$78,U17A!$A$11:$J$210,1,FALSE)),"",VLOOKUP($A$78,U17A!$A$11:$J$210,10,FALSE)) -> UKN | F82: 1 | G82: 2 | H82: 1.39583333333333&U17A&0.395833333333333&AWAY&FC.TILLEUR B&UKN&1&2; | I82: 1.395833333 | J82: 1.625&SENA&0.625&AWAY&FAIMES A&UKN&1&2;0.625&SENB&0.625&HOME&STOCKAY B&GR1&1&2;1.39583333333333&U17A&0.395833333333333&AWAY&FC.TILLEUR B&UKN&1&2; | K82: 3 | L82: 0.40625&U15A&0.40625&HOME&ES.GEER&GR1&1&2;1.46875&U14A&0.46875&AWAY&FC.HERSTAL&UKN&1&2;1.46875&U14B&0.46875&AWAY&OUGRÉE&UKN&1&2; | M82: 0.46875&U16A&0.46875&HOME&FOOTBALL CLUB LIÈGE B&GR1&1&2 | N82: 8 | O82: U16A&0.46875&HOME&FOOTBALL CLUB LIÈGE B&GR1&1&2 | P82: 5 | Q82: 0.46875&HOME&FOOTBALL CLUB LIÈGE B&GR1&1&2 | R82: 8 | S82: HOME&FOOTBALL CLUB LIÈGE B&GR1&1&2 | T82: 5 | U82: FOOTBALL CLUB LIÈGE B&GR1&1&2 | V82: 22 | W82: GR1&1&2 | X82: 4 | Y82: 1&2 | Z82: 2 | AA82: 2 | AB82: =IF(AC82="","",IF(ISERROR(VLOOKUP(AC82,AC$79:AC81,1,FALSE)),AC82,AC82+COUNTIF(AC$79:AC81,AC82))) -> 2 | AC82: 2 | AD82: 0.46875 | AE82: U16A | AF82: 11:15:00 | AG82: =IF($AD82="","",LEFT(S82,T82-1)) -> HOME | AH82: =IF($AD82="","",LEFT(U82,V82-1)) -> FOOTBALL CLUB LIÈGE B | AI82: =IF($AD82="","",LEFT(W82,X82-1)) -> GR1 | AJ82: =IF($AD82="","",LEFT(Y82,Z82-1)) -> 1 | AK82: 2
A83: U16A | B83: =IF(ISERROR(VLOOKUP($A$78,U16A!$A$11:$J$210,1,FALSE)),"",VLOOKUP($A$78,U16A!$A$11:$J$210,2,FALSE)) -> 0.46875 | C83: =IF(ISERROR(VLOOKUP($A$78,U16A!$A$11:$J$210,1,FALSE)),"",VLOOKUP($A$78,U16A!$A$11:$J$210,7,FALSE)) -> HOME | D83: =IF(ISERROR(VLOOKUP($A$78,U16A!$A$11:$J$210,1,FALSE)),"",IF(C83="HOME",VLOOKUP($A$78,U16A!$A$11:$J$210,4,FALSE),VLOOKUP($A$78,U16A!$A$11:$J$210,3,FALSE))) -> FOOTBALL CLUB LIÈGE B | E83: =IF(ISERROR(VLOOKUP($A$78,U16A!$A$11:$J$210,1,FALSE)),"",VLOOKUP($A$78,U16A!$A$11:$J$210,10,FALSE)) -> GR1 | F83: 1 | G83: 2 | H83: 0.46875&U16A&0.46875&HOME&FOOTBALL CLUB LIÈGE B&GR1&1&2; | I83: 0.46875 | J83: 1.625&SENA&0.625&AWAY&FAIMES A&UKN&1&2;0.625&SENB&0.625&HOME&STOCKAY B&GR1&1&2;1.39583333333333&U17A&0.395833333333333&AWAY&FC.TILLEUR B&UKN&1&2;0.46875&U16A&0.46875&HOME&FOOTBALL CLUB LIÈGE B&GR1&1&2; | K83: 4 | L83: 1.46875&U14A&0.46875&AWAY&FC.HERSTAL&UKN&1&2;1.46875&U14B&0.46875&AWAY&OUGRÉE&UKN&1&2; | M83: 0.40625&U15A&0.40625&HOME&ES.GEER&GR1&1&2 | N83: 8 | O83: U15A&0.40625&HOME&ES.GEER&GR1&1&2 | P83: 5 | Q83: 0.40625&HOME&ES.GEER&GR1&1&2 | R83: 8 | S83: HOME&ES.GEER&GR1&1&2 | T83: 5 | U83: ES.GEER&GR1&1&2 | V83: 8 | W83: GR1&1&2 | X83: 4 | Y83: 1&2 | Z83: 2 | AA83: 2 | AB83: =IF(AC83="","",IF(ISERROR(VLOOKUP(AC83,AC$79:AC82,1,FALSE)),AC83,AC83+COUNTIF(AC$79:AC82,AC83))) -> 1 | AC83: 1 | AD83: 0.40625 | AE83: U15A | AF83: 09:45:00 | AG83: =IF($AD83="","",LEFT(S83,T83-1)) -> HOME | AH83: =IF($AD83="","",LEFT(U83,V83-1)) -> ES.GEER | AI83: =IF($AD83="","",LEFT(W83,X83-1)) -> GR1 | AJ83: =IF($AD83="","",LEFT(Y83,Z83-1)) -> 1 | AK83: 2
A84: U15A | B84: =IF(ISERROR(VLOOKUP($A$78,U15A!$A$11:$J$210,1,FALSE)),"",VLOOKUP($A$78,U15A!$A$11:$J$210,2,FALSE)) -> 0.40625 | C84: =IF(ISERROR(VLOOKUP($A$78,U15A!$A$11:$J$210,1,FALSE)),"",VLOOKUP($A$78,U15A!$A$11:$J$210,7,FALSE)) -> HOME | D84: =IF(ISERROR(VLOOKUP($A$78,U15A!$A$11:$J$210,1,FALSE)),"",IF(C84="HOME",VLOOKUP($A$78,U15A!$A$11:$J$210,4,FALSE),VLOOKUP($A$78,U15A!$A$11:$J$210,3,FALSE))) -> ES.GEER | E84: =IF(ISERROR(VLOOKUP($A$78,U15A!$A$11:$J$210,1,FALSE)),"",VLOOKUP($A$78,U15A!$A$11:$J$210,10,FALSE)) -> GR1 | F84: 1 | G84: 2 | H84: 0.40625&U15A&0.40625&HOME&ES.GEER&GR1&1&2; | I84: 0.40625 | J84: 1.625&SENA&0.625&AWAY&FAIMES A&UKN&1&2;0.625&SENB&0.625&HOME&STOCKAY B&GR1&1&2;1.39583333333333&U17A&0.395833333333333&AWAY&FC.TILLEUR B&UKN&1&2;0.46875&U16A&0.46875&HOME&FOOTBALL CLUB LIÈGE B&GR1&1&2;0.40625&U15A&0.40625&HOME&ES.GEER&GR1&1&2; | K84: 5 | L84: 1.46875&U14B&0.46875&AWAY&OUGRÉE&UKN&1&2; | M84: 1.46875&U14A&0.46875&AWAY&FC.HERSTAL&UKN&1&2 | N84: 8 | O84: U14A&0.46875&AWAY&FC.HERSTAL&UKN&1&2 | P84: 5 | Q84: 0.46875&AWAY&FC.HERSTAL&UKN&1&2 | R84: 8 | S84: AWAY&FC.HERSTAL&UKN&1&2 | T84: 5 | U84: FC.HERSTAL&UKN&1&2 | V84: 11 | W84: UKN&1&2 | X84: 4 | Y84: 1&2 | Z84: 2 | AA84: 2 | AB84: =IF(AC84="","",IF(ISERROR(VLOOKUP(AC84,AC$79:AC83,1,FALSE)),AC84,AC84+COUNTIF(AC$79:AC83,AC84))) -> 5 | AC84: 5 | AD84: 1.46875 | AE84: U14A | AF84: 11:15:00 | AG84: =IF($AD84="","",LEFT(S84,T84-1)) -> AWAY | AH84: =IF($AD84="","",LEFT(U84,V84-1)) -> FC.HERSTAL | AI84: =IF($AD84="","",LEFT(W84,X84-1)) -> UKN | AJ84: =IF($AD84="","",LEFT(Y84,Z84-1)) -> 1 | AK84: 2
A85: U14A | B85: =IF(ISERROR(VLOOKUP($A$78,U14A!$A$11:$J$210,1,FALSE)),"",VLOOKUP($A$78,U14A!$A$11:$J$210,2,FALSE)) -> 0.46875 | C85: =IF(ISERROR(VLOOKUP($A$78,U14A!$A$11:$J$210,1,FALSE)),"",VLOOKUP($A$78,U14A!$A$11:$J$210,7,FALSE)) -> AWAY | D85: =IF(ISERROR(VLOOKUP($A$78,U14A!$A$11:$J$210,1,FALSE)),"",IF(C85="HOME",VLOOKUP($A$78,U14A!$A$11:$J$210,4,FALSE),VLOOKUP($A$78,U14A!$A$11:$J$210,3,FALSE))) -> FC.HERSTAL | E85: =IF(ISERROR(VLOOKUP($A$78,U14A!$A$11:$J$210,1,FALSE)),"",VLOOKUP($A$78,U14A!$A$11:$J$210,10,FALSE)) -> UKN | F85: 1 | G85: 2 | H85: 1.46875&U14A&0.46875&AWAY&FC.HERSTAL&UKN&1&2; | I85: 1.46875 | J85: 1.625&SENA&0.625&AWAY&FAIMES A&UKN&1&2;0.625&SENB&0.625&HOME&STOCKAY B&GR1&1&2;1.39583333333333&U17A&0.395833333333333&AWAY&FC.TILLEUR B&UKN&1&2;0.46875&U16A&0.46875&HOME&FOOTBALL CLUB LIÈGE B&GR1&1&2;0.40625&U15A&0.40625&HOME&ES.GEER&GR1&1&2;1.46875&U14A&0.46875&AWAY&FC.HERSTAL&UKN&1&2; | K85: 6 | M85: 1.46875&U14B&0.46875&AWAY&OUGRÉE&UKN&1&2 | N85: 8 | O85: U14B&0.46875&AWAY&OUGRÉE&UKN&1&2 | P85: 5 | Q85: 0.46875&AWAY&OUGRÉE&UKN&1&2 | R85: 8 | S85: AWAY&OUGRÉE&UKN&1&2 | T85: 5 | U85: OUGRÉE&UKN&1&2 | V85: 7 | W85: UKN&1&2 | X85: 4 | Y85: 1&2 | Z85: 2 | AA85: 2 | AB85: =IF(AC85="","",IF(ISERROR(VLOOKUP(AC85,AC$79:AC84,1,FALSE)),AC85,AC85+COUNTIF(AC$79:AC84,AC85))) -> 6 | AC85: 5 | AD85: 1.46875 | AE85: U14B | AF85: 11:15:00 | AG85: =IF($AD85="","",LEFT(S85,T85-1)) -> AWAY | AH85: =IF($AD85="","",LEFT(U85,V85-1)) -> OUGRÉE | AI85: =IF($AD85="","",LEFT(W85,X85-1)) -> UKN | AJ85: =IF($AD85="","",LEFT(Y85,Z85-1)) -> 1 | AK85: 2
A86: U14B | B86: =IF(ISERROR(VLOOKUP($A$78,U14B!$A$11:$J$210,1,FALSE)),"",VLOOKUP($A$78,U14B!$A$11:$J$210,2,FALSE)) -> 0.46875 | C86: =IF(ISERROR(VLOOKUP($A$78,U14B!$A$11:$J$210,1,FALSE)),"",VLOOKUP($A$78,U14B!$A$11:$J$210,7,FALSE)) -> AWAY | D86: =IF(ISERROR(VLOOKUP($A$78,U14B!$A$11:$J$210,1,FALSE)),"",IF(C86="HOME",VLOOKUP($A$78,U14B!$A$11:$J$210,4,FALSE),VLOOKUP($A$78,U14B!$A$11:$J$210,3,FALSE))) -> OUGRÉE | E86: =IF(ISERROR(VLOOKUP($A$78,U14B!$A$11:$J$210,1,FALSE)),"",VLOOKUP($A$78,U14B!$A$11:$J$210,10,FALSE)) -> UKN | F86: 1 | G86: 2 | H86: 1.46875&U14B&0.46875&AWAY&OUGRÉE&UKN&1&2; | I86: 1.46875 | J86: 1.625&SENA&0.625&AWAY&FAIMES A&UKN&1&2;0.625&SENB&0.625&HOME&STOCKAY B&GR1&1&2;1.39583333333333&U17A&0.395833333333333&AWAY&FC.TILLEUR B&UKN&1&2;0.46875&U16A&0.46875&HOME&FOOTBALL CLUB LIÈGE B&GR1&1&2;0.40625&U15A&0.40625&HOME&ES.GEER&GR1&1&2;1.46875&U14A&0.46875&AWAY&FC.HERSTAL&UKN&1&2;1.46875&U14B&0.46875&AWAY&OUGRÉE&UKN&1&2; | K86: 7 | AB86: =IF(AC86="","",IF(ISERROR(VLOOKUP(AC86,AC$79:AC85,1,FALSE)),AC86,AC86+COUNTIF(AC$79:AC85,AC86))) ->  | AG86: =IF($AD86="","",LEFT(S86,T86-1)) ->  | AH86: =IF($AD86="","",LEFT(U86,V86-1)) ->  | AI86: =IF($AD86="","",LEFT(W86,X86-1)) ->  | AJ86: =IF($AD86="","",LEFT(Y86,Z86-1)) -> 
A87: U13A | B87: =IF(ISERROR(VLOOKUP($A$78,U13A!$A$11:$J$210,1,FALSE)),"",VLOOKUP($A$78,U13A!$A$11:$J$210,2,FALSE)) ->  | C87: =IF(ISERROR(VLOOKUP($A$78,U13A!$A$11:$J$210,1,FALSE)),"",VLOOKUP($A$78,U13A!$A$11:$J$210,7,FALSE)) ->  | D87: =IF(ISERROR(VLOOKUP($A$78,U13A!$A$11:$J$210,1,FALSE)),"",IF(C87="HOME",VLOOKUP($A$78,U13A!$A$11:$J$210,4,FALSE),VLOOKUP($A$78,U13A!$A$11:$J$210,3,FALSE))) ->  | E87: =IF(ISERROR(VLOOKUP($A$78,U13A!$A$11:$J$210,1,FALSE)),"",VLOOKUP($A$78,U13A!$A$11:$J$210,10,FALSE)) ->  | F87: 1 | G87: 2 | J87: 1.625&SENA&0.625&AWAY&FAIMES A&UKN&1&2;0.625&SENB&0.625&HOME&STOCKAY B&GR1&1&2;1.39583333333333&U17A&0.395833333333333&AWAY&FC.TILLEUR B&UKN&1&2;0.46875&U16A&0.46875&HOME&FOOTBALL CLUB LIÈGE B&GR1&1&2;0.40625&U15A&0.40625&HOME&ES.GEER&GR1&1&2;1.46875&U14A&0.46875&AWAY&FC.HERSTAL&UKN&1&2;1.46875&U14B&0.46875&AWAY&OUGRÉE&UKN&1&2; | K87: 7 | AB87: =IF(AC87="","",IF(ISERROR(VLOOKUP(AC87,AC$79:AC86,1,FALSE)),AC87,AC87+COUNTIF(AC$79:AC86,AC87))) ->  | AG87: =IF($AD87="","",LEFT(S87,T87-1)) ->  | AH87: =IF($AD87="","",LEFT(U87,V87-1)) ->  | AI87: =IF($AD87="","",LEFT(W87,X87-1)) ->  | AJ87: =IF($AD87="","",LEFT(Y87,Z87-1)) -> 
A88: U13B | B88: =IF(ISERROR(VLOOKUP($A$78,U13B!$A$11:$J$210,1,FALSE)),"",VLOOKUP($A$78,U13B!$A$11:$J$210,2,FALSE)) ->  | C88: =IF(ISERROR(VLOOKUP($A$78,U13B!$A$11:$J$210,1,FALSE)),"",VLOOKUP($A$78,U13B!$A$11:$J$210,7,FALSE)) ->  | D88: =IF(ISERROR(VLOOKUP($A$78,U13B!$A$11:$J$210,1,FALSE)),"",IF(C88="HOME",VLOOKUP($A$78,U13B!$A$11:$J$210,4,FALSE),VLOOKUP($A$78,U13B!$A$11:$J$210,3,FALSE))) ->  | E88: =IF(ISERROR(VLOOKUP($A$78,U13B!$A$11:$J$210,1,FALSE)),"",VLOOKUP($A$78,U13B!$A$11:$J$210,10,FALSE)) ->  | F88: 1 | G88: 2 | J88: 1.625&SENA&0.625&AWAY&FAIMES A&UKN&1&2;0.625&SENB&0.625&HOME&STOCKAY B&GR1&1&2;1.39583333333333&U17A&0.395833333333333&AWAY&FC.TILLEUR B&UKN&1&2;0.46875&U16A&0.46875&HOME&FOOTBALL CLUB LIÈGE B&GR1&1&2;0.40625&U15A&0.40625&HOME&ES.GEER&GR1&1&2;1.46875&U14A&0.46875&AWAY&FC.HERSTAL&UKN&1&2;1.46875&U14B&0.46875&AWAY&OUGRÉE&UKN&1&2; | K88: 7 | AB88: =IF(AC88="","",IF(ISERROR(VLOOKUP(AC88,AC$79:AC87,1,FALSE)),AC88,AC88+COUNTIF(AC$79:AC87,AC88))) ->  | AG88: =IF($AD88="","",LEFT(S88,T88-1)) ->  | AH88: =IF($AD88="","",LEFT(U88,V88-1)) ->  | AI88: =IF($AD88="","",LEFT(W88,X88-1)) ->  | AJ88: =IF($AD88="","",LEFT(Y88,Z88-1)) -> 
A89: U12A | B89: =IF(ISERROR(VLOOKUP($A$78,U12A!$A$11:$J$210,1,FALSE)),"",VLOOKUP($A$78,U12A!$A$11:$J$210,2,FALSE)) ->  | C89: =IF(ISERROR(VLOOKUP($A$78,U12A!$A$11:$J$210,1,FALSE)),"",VLOOKUP($A$78,U12A!$A$11:$J$210,7,FALSE)) ->  | D89: =IF(ISERROR(VLOOKUP($A$78,U12A!$A$11:$J$210,1,FALSE)),"",IF(C89="HOME",VLOOKUP($A$78,U12A!$A$11:$J$210,4,FALSE),VLOOKUP($A$78,U12A!$A$11:$J$210,3,FALSE))) ->  | E89: =IF(ISERROR(VLOOKUP($A$78,U12A!$A$11:$J$210,1,FALSE)),"",VLOOKUP($A$78,U12A!$A$11:$J$210,10,FALSE)) ->  | F89: 1 | G89: 2 | J89: 1.625&SENA&0.625&AWAY&FAIMES A&UKN&1&2;0.625&SENB&0.625&HOME&STOCKAY B&GR1&1&2;1.39583333333333&U17A&0.395833333333333&AWAY&FC.TILLEUR B&UKN&1&2;0.46875&U16A&0.46875&HOME&FOOTBALL CLUB LIÈGE B&GR1&1&2;0.40625&U15A&0.40625&HOME&ES.GEER&GR1&1&2;1.46875&U14A&0.46875&AWAY&FC.HERSTAL&UKN&1&2;1.46875&U14B&0.46875&AWAY&OUGRÉE&UKN&1&2; | K89: 7 | AB89: =IF(AC89="","",IF(ISERROR(VLOOKUP(AC89,AC$79:AC88,1,FALSE)),AC89,AC89+COUNTIF(AC$79:AC88,AC89))) ->  | AG89: =IF($AD89="","",LEFT(S89,T89-1)) ->  | AH89: =IF($AD89="","",LEFT(U89,V89-1)) ->  | AI89: =IF($AD89="","",LEFT(W89,X89-1)) ->  | AJ89: =IF($AD89="","",LEFT(Y89,Z89-1)) -> 
A90: U11A | B90: =IF(ISERROR(VLOOKUP($A$78,U11A!$A$11:$J$210,1,FALSE)),"",VLOOKUP($A$78,U11A!$A$11:$J$210,2,FALSE)) ->  | C90: =IF(ISERROR(VLOOKUP($A$78,U11A!$A$11:$J$210,1,FALSE)),"",VLOOKUP($A$78,U11A!$A$11:$J$210,7,FALSE)) ->  | D90: =IF(ISERROR(VLOOKUP($A$78,U11A!$A$11:$J$210,1,FALSE)),"",IF(C90="HOME",VLOOKUP($A$78,U11A!$A$11:$J$210,4,FALSE),VLOOKUP($A$78,U11A!$A$11:$J$210,3,FALSE))) ->  | E90: =IF(ISERROR(VLOOKUP($A$78,U11A!$A$11:$J$210,1,FALSE)),"",VLOOKUP($A$78,U11A!$A$11:$J$210,10,FALSE)) ->  | F90: 1 | G90: 2 | J90: 1.625&SENA&0.625&AWAY&FAIMES A&UKN&1&2;0.625&SENB&0.625&HOME&STOCKAY B&GR1&1&2;1.39583333333333&U17A&0.395833333333333&AWAY&FC.TILLEUR B&UKN&1&2;0.46875&U16A&0.46875&HOME&FOOTBALL CLUB LIÈGE B&GR1&1&2;0.40625&U15A&0.40625&HOME&ES.GEER&GR1&1&2;1.46875&U14A&0.46875&AWAY&FC.HERSTAL&UKN&1&2;1.46875&U14B&0.46875&AWAY&OUGRÉE&UKN&1&2; | K90: 7 | AB90: =IF(AC90="","",IF(ISERROR(VLOOKUP(AC90,AC$79:AC89,1,FALSE)),AC90,AC90+COUNTIF(AC$79:AC89,AC90))) ->  | AG90: =IF($AD90="","",LEFT(S90,T90-1)) ->  | AH90: =IF($AD90="","",LEFT(U90,V90-1)) ->  | AI90: =IF($AD90="","",LEFT(W90,X90-1)) ->  | AJ90: =IF($AD90="","",LEFT(Y90,Z90-1)) -> 
A91: U11B | B91: =IF(ISERROR(VLOOKUP($A$78,U11B!$A$11:$J$210,1,FALSE)),"",VLOOKUP($A$78,U11B!$A$11:$J$210,2,FALSE)) ->  | C91: =IF(ISERROR(VLOOKUP($A$78,U11B!$A$11:$J$210,1,FALSE)),"",VLOOKUP($A$78,U11B!$A$11:$J$210,7,FALSE)) ->  | D91: =IF(ISERROR(VLOOKUP($A$78,U11B!$A$11:$J$210,1,FALSE)),"",IF(C91="HOME",VLOOKUP($A$78,U11B!$A$11:$J$210,4,FALSE),VLOOKUP($A$78,U11B!$A$11:$J$210,3,FALSE))) ->  | E91: =IF(ISERROR(VLOOKUP($A$78,U11B!$A$11:$J$210,1,FALSE)),"",VLOOKUP($A$78,U11B!$A$11:$J$210,10,FALSE)) ->  | F91: 1 | G91: 2 | J91: 1.625&SENA&0.625&AWAY&FAIMES A&UKN&1&2;0.625&SENB&0.625&HOME&STOCKAY B&GR1&1&2;1.39583333333333&U17A&0.395833333333333&AWAY&FC.TILLEUR B&UKN&1&2;0.46875&U16A&0.46875&HOME&FOOTBALL CLUB LIÈGE B&GR1&1&2;0.40625&U15A&0.40625&HOME&ES.GEER&GR1&1&2;1.46875&U14A&0.46875&AWAY&FC.HERSTAL&UKN&1&2;1.46875&U14B&0.46875&AWAY&OUGRÉE&UKN&1&2; | K91: 7 | AB91: =IF(AC91="","",IF(ISERROR(VLOOKUP(AC91,AC$79:AC90,1,FALSE)),AC91,AC91+COUNTIF(AC$79:AC90,AC91))) ->  | AG91: =IF($AD91="","",LEFT(S91,T91-1)) ->  | AH91: =IF($AD91="","",LEFT(U91,V91-1)) ->  | AI91: =IF($AD91="","",LEFT(W91,X91-1)) ->  | AJ91: =IF($AD91="","",LEFT(Y91,Z91-1)) -> 
A92: U10A | B92: =IF(ISERROR(VLOOKUP($A$78,U10A!$A$11:$J$210,1,FALSE)),"",VLOOKUP($A$78,U10A!$A$11:$J$210,2,FALSE)) ->  | C92: =IF(ISERROR(VLOOKUP($A$78,U10A!$A$11:$J$210,1,FALSE)),"",VLOOKUP($A$78,U10A!$A$11:$J$210,7,FALSE)) ->  | D92: =IF(ISERROR(VLOOKUP($A$78,U10A!$A$11:$J$210,1,FALSE)),"",IF(C92="HOME",VLOOKUP($A$78,U10A!$A$11:$J$210,4,FALSE),VLOOKUP($A$78,U10A!$A$11:$J$210,3,FALSE))) ->  | E92: =IF(ISERROR(VLOOKUP($A$78,U10A!$A$11:$J$210,1,FALSE)),"",VLOOKUP($A$78,U10A!$A$11:$J$210,10,FALSE)) ->  | F92: 1 | G92: 2 | J92: 1.625&SENA&0.625&AWAY&FAIMES A&UKN&1&2;0.625&SENB&0.625&HOME&STOCKAY B&GR1&1&2;1.39583333333333&U17A&0.395833333333333&AWAY&FC.TILLEUR B&UKN&1&2;0.46875&U16A&0.46875&HOME&FOOTBALL CLUB LIÈGE B&GR1&1&2;0.40625&U15A&0.40625&HOME&ES.GEER&GR1&1&2;1.46875&U14A&0.46875&AWAY&FC.HERSTAL&UKN&1&2;1.46875&U14B&0.46875&AWAY&OUGRÉE&UKN&1&2; | K92: 7 | AB92: =IF(AC92="","",IF(ISERROR(VLOOKUP(AC92,AC$79:AC91,1,FALSE)),AC92,AC92+COUNTIF(AC$79:AC91,AC92))) ->  | AG92: =IF($AD92="","",LEFT(S92,T92-1)) ->  | AH92: =IF($AD92="","",LEFT(U92,V92-1)) ->  | AI92: =IF($AD92="","",LEFT(W92,X92-1)) ->  | AJ92: =IF($AD92="","",LEFT(Y92,Z92-1)) -> 
A93: U10B | B93: =IF(ISERROR(VLOOKUP($A$78,U10B!$A$11:$J$210,1,FALSE)),"",VLOOKUP($A$78,U10B!$A$11:$J$210,2,FALSE)) ->  | C93: =IF(ISERROR(VLOOKUP($A$78,U10B!$A$11:$J$210,1,FALSE)),"",VLOOKUP($A$78,U10B!$A$11:$J$210,7,FALSE)) ->  | D93: =IF(ISERROR(VLOOKUP($A$78,U10B!$A$11:$J$210,1,FALSE)),"",IF(C93="HOME",VLOOKUP($A$78,U10B!$A$11:$J$210,4,FALSE),VLOOKUP($A$78,U10B!$A$11:$J$210,3,FALSE))) ->  | E93: =IF(ISERROR(VLOOKUP($A$78,U10B!$A$11:$J$210,1,FALSE)),"",VLOOKUP($A$78,U10B!$A$11:$J$210,10,FALSE)) ->  | F93: 1 | G93: 2 | J93: 1.625&SENA&0.625&AWAY&FAIMES A&UKN&1&2;0.625&SENB&0.625&HOME&STOCKAY B&GR1&1&2;1.39583333333333&U17A&0.395833333333333&AWAY&FC.TILLEUR B&UKN&1&2;0.46875&U16A&0.46875&HOME&FOOTBALL CLUB LIÈGE B&GR1&1&2;0.40625&U15A&0.40625&HOME&ES.GEER&GR1&1&2;1.46875&U14A&0.46875&AWAY&FC.HERSTAL&UKN&1&2;1.46875&U14B&0.46875&AWAY&OUGRÉE&UKN&1&2; | K93: 7 | AB93: =IF(AC93="","",IF(ISERROR(VLOOKUP(AC93,AC$79:AC92,1,FALSE)),AC93,AC93+COUNTIF(AC$79:AC92,AC93))) ->  | AG93: =IF($AD93="","",LEFT(S93,T93-1)) ->  | AH93: =IF($AD93="","",LEFT(U93,V93-1)) ->  | AI93: =IF($AD93="","",LEFT(W93,X93-1)) ->  | AJ93: =IF($AD93="","",LEFT(Y93,Z93-1)) -> 
A94: U09A | B94: =IF(ISERROR(VLOOKUP($A$78,U09A!$A$11:$J$210,1,FALSE)),"",VLOOKUP($A$78,U09A!$A$11:$J$210,2,FALSE)) ->  | C94: =IF(ISERROR(VLOOKUP($A$78,U09A!$A$11:$J$210,1,FALSE)),"",VLOOKUP($A$78,U09A!$A$11:$J$210,7,FALSE)) ->  | D94: =IF(ISERROR(VLOOKUP($A$78,U09A!$A$11:$J$210,1,FALSE)),"",IF(C94="HOME",VLOOKUP($A$78,U09A!$A$11:$J$210,4,FALSE),VLOOKUP($A$78,U09A!$A$11:$J$210,3,FALSE))) ->  | E94: =IF(ISERROR(VLOOKUP($A$78,U09A!$A$11:$J$210,1,FALSE)),"",VLOOKUP($A$78,U09A!$A$11:$J$210,10,FALSE)) ->  | F94: 1 | G94: 2 | J94: 1.625&SENA&0.625&AWAY&FAIMES A&UKN&1&2;0.625&SENB&0.625&HOME&STOCKAY B&GR1&1&2;1.39583333333333&U17A&0.395833333333333&AWAY&FC.TILLEUR B&UKN&1&2;0.46875&U16A&0.46875&HOME&FOOTBALL CLUB LIÈGE B&GR1&1&2;0.40625&U15A&0.40625&HOME&ES.GEER&GR1&1&2;1.46875&U14A&0.46875&AWAY&FC.HERSTAL&UKN&1&2;1.46875&U14B&0.46875&AWAY&OUGRÉE&UKN&1&2; | K94: 7 | AB94: =IF(AC94="","",IF(ISERROR(VLOOKUP(AC94,AC$79:AC93,1,FALSE)),AC94,AC94+COUNTIF(AC$79:AC93,AC94))) ->  | AG94: =IF($AD94="","",LEFT(S94,T94-1)) ->  | AH94: =IF($AD94="","",LEFT(U94,V94-1)) ->  | AI94: =IF($AD94="","",LEFT(W94,X94-1)) ->  | AJ94: =IF($AD94="","",LEFT(Y94,Z94-1)) -> 
A95: U09B | B95: =IF(ISERROR(VLOOKUP($A$78,U09B!$A$11:$J$210,1,FALSE)),"",VLOOKUP($A$78,U09B!$A$11:$J$210,2,FALSE)) ->  | C95: =IF(ISERROR(VLOOKUP($A$78,U09B!$A$11:$J$210,1,FALSE)),"",VLOOKUP($A$78,U09B!$A$11:$J$210,7,FALSE)) ->  | D95: =IF(ISERROR(VLOOKUP($A$78,U09B!$A$11:$J$210,1,FALSE)),"",IF(C95="HOME",VLOOKUP($A$78,U09B!$A$11:$J$210,4,FALSE),VLOOKUP($A$78,U09B!$A$11:$J$210,3,FALSE))) ->  | E95: =IF(ISERROR(VLOOKUP($A$78,U09B!$A$11:$J$210,1,FALSE)),"",VLOOKUP($A$78,U09B!$A$11:$J$210,10,FALSE)) ->  | F95: 1 | G95: 2 | J95: 1.625&SENA&0.625&AWAY&FAIMES A&UKN&1&2;0.625&SENB&0.625&HOME&STOCKAY B&GR1&1&2;1.39583333333333&U17A&0.395833333333333&AWAY&FC.TILLEUR B&UKN&1&2;0.46875&U16A&0.46875&HOME&FOOTBALL CLUB LIÈGE B&GR1&1&2;0.40625&U15A&0.40625&HOME&ES.GEER&GR1&1&2;1.46875&U14A&0.46875&AWAY&FC.HERSTAL&UKN&1&2;1.46875&U14B&0.46875&AWAY&OUGRÉE&UKN&1&2; | K95: 7 | AB95: =IF(AC95="","",IF(ISERROR(VLOOKUP(AC95,AC$79:AC94,1,FALSE)),AC95,AC95+COUNTIF(AC$79:AC94,AC95))) ->  | AG95: =IF($AD95="","",LEFT(S95,T95-1)) ->  | AH95: =IF($AD95="","",LEFT(U95,V95-1)) ->  | AI95: =IF($AD95="","",LEFT(W95,X95-1)) ->  | AJ95: =IF($AD95="","",LEFT(Y95,Z95-1)) -> 
A96: U09C | B96: =IF(ISERROR(VLOOKUP($A$78,U09C!$A$11:$J$210,1,FALSE)),"",VLOOKUP($A$78,U09C!$A$11:$J$210,2,FALSE)) ->  | C96: =IF(ISERROR(VLOOKUP($A$78,U09C!$A$11:$J$210,1,FALSE)),"",VLOOKUP($A$78,U09C!$A$11:$J$210,7,FALSE)) ->  | D96: =IF(ISERROR(VLOOKUP($A$78,U09C!$A$11:$J$210,1,FALSE)),"",IF(C96="HOME",VLOOKUP($A$78,U09C!$A$11:$J$210,4,FALSE),VLOOKUP($A$78,U09C!$A$11:$J$210,3,FALSE))) ->  | E96: =IF(ISERROR(VLOOKUP($A$78,U09C!$A$11:$J$210,1,FALSE)),"",VLOOKUP($A$78,U09C!$A$11:$J$210,10,FALSE)) ->  | F96: 1 | G96: 2 | J96: 1.625&SENA&0.625&AWAY&FAIMES A&UKN&1&2;0.625&SENB&0.625&HOME&STOCKAY B&GR1&1&2;1.39583333333333&U17A&0.395833333333333&AWAY&FC.TILLEUR B&UKN&1&2;0.46875&U16A&0.46875&HOME&FOOTBALL CLUB LIÈGE B&GR1&1&2;0.40625&U15A&0.40625&HOME&ES.GEER&GR1&1&2;1.46875&U14A&0.46875&AWAY&FC.HERSTAL&UKN&1&2;1.46875&U14B&0.46875&AWAY&OUGRÉE&UKN&1&2; | K96: 7 | AB96: =IF(AC96="","",IF(ISERROR(VLOOKUP(AC96,AC$79:AC95,1,FALSE)),AC96,AC96+COUNTIF(AC$79:AC95,AC96))) ->  | AG96: =IF($AD96="","",LEFT(S96,T96-1)) ->  | AH96: =IF($AD96="","",LEFT(U96,V96-1)) ->  | AI96: =IF($AD96="","",LEFT(W96,X96-1)) ->  | AJ96: =IF($AD96="","",LEFT(Y96,Z96-1)) -> 
A97: U08A | B97: =IF(ISERROR(VLOOKUP($A$78,U08A!$A$11:$J$210,1,FALSE)),"",VLOOKUP($A$78,U08A!$A$11:$J$210,2,FALSE)) ->  | C97: =IF(ISERROR(VLOOKUP($A$78,U08A!$A$11:$J$210,1,FALSE)),"",VLOOKUP($A$78,U08A!$A$11:$J$210,7,FALSE)) ->  | D97: =IF(ISERROR(VLOOKUP($A$78,U08A!$A$11:$J$210,1,FALSE)),"",IF(C97="HOME",VLOOKUP($A$78,U08A!$A$11:$J$210,4,FALSE),VLOOKUP($A$78,U08A!$A$11:$J$210,3,FALSE))) ->  | E97: =IF(ISERROR(VLOOKUP($A$78,U08A!$A$11:$J$210,1,FALSE)),"",VLOOKUP($A$78,U08A!$A$11:$J$210,10,FALSE)) ->  | F97: 1 | G97: 2 | J97: 1.625&SENA&0.625&AWAY&FAIMES A&UKN&1&2;0.625&SENB&0.625&HOME&STOCKAY B&GR1&1&2;1.39583333333333&U17A&0.395833333333333&AWAY&FC.TILLEUR B&UKN&1&2;0.46875&U16A&0.46875&HOME&FOOTBALL CLUB LIÈGE B&GR1&1&2;0.40625&U15A&0.40625&HOME&ES.GEER&GR1&1&2;1.46875&U14A&0.46875&AWAY&FC.HERSTAL&UKN&1&2;1.46875&U14B&0.46875&AWAY&OUGRÉE&UKN&1&2; | K97: 7 | AB97: =IF(AC97="","",IF(ISERROR(VLOOKUP(AC97,AC$79:AC96,1,FALSE)),AC97,AC97+COUNTIF(AC$79:AC96,AC97))) ->  | AG97: =IF($AD97="","",LEFT(S97,T97-1)) ->  | AH97: =IF($AD97="","",LEFT(U97,V97-1)) ->  | AI97: =IF($AD97="","",LEFT(W97,X97-1)) ->  | AJ97: =IF($AD97="","",LEFT(Y97,Z97-1)) -> 
A98: U08B | B98: =IF(ISERROR(VLOOKUP($A$78,U08B!$A$11:$J$210,1,FALSE)),"",VLOOKUP($A$78,U08B!$A$11:$J$210,2,FALSE)) ->  | C98: =IF(ISERROR(VLOOKUP($A$78,U08B!$A$11:$J$210,1,FALSE)),"",VLOOKUP($A$78,U08B!$A$11:$J$210,7,FALSE)) ->  | D98: =IF(ISERROR(VLOOKUP($A$78,U08B!$A$11:$J$210,1,FALSE)),"",IF(C98="HOME",VLOOKUP($A$78,U08B!$A$11:$J$210,4,FALSE),VLOOKUP($A$78,U08B!$A$11:$J$210,3,FALSE))) ->  | E98: =IF(ISERROR(VLOOKUP($A$78,U08B!$A$11:$J$210,1,FALSE)),"",VLOOKUP($A$78,U08B!$A$11:$J$210,10,FALSE)) ->  | F98: 1 | G98: 2 | J98: 1.625&SENA&0.625&AWAY&FAIMES A&UKN&1&2;0.625&SENB&0.625&HOME&STOCKAY B&GR1&1&2;1.39583333333333&U17A&0.395833333333333&AWAY&FC.TILLEUR B&UKN&1&2;0.46875&U16A&0.46875&HOME&FOOTBALL CLUB LIÈGE B&GR1&1&2;0.40625&U15A&0.40625&HOME&ES.GEER&GR1&1&2;1.46875&U14A&0.46875&AWAY&FC.HERSTAL&UKN&1&2;1.46875&U14B&0.46875&AWAY&OUGRÉE&UKN&1&2; | K98: 7 | AB98: =IF(AC98="","",IF(ISERROR(VLOOKUP(AC98,AC$79:AC97,1,FALSE)),AC98,AC98+COUNTIF(AC$79:AC97,AC98))) ->  | AG98: =IF($AD98="","",LEFT(S98,T98-1)) ->  | AH98: =IF($AD98="","",LEFT(U98,V98-1)) ->  | AI98: =IF($AD98="","",LEFT(W98,X98-1)) ->  | AJ98: =IF($AD98="","",LEFT(Y98,Z98-1)) -> 
A99: U07A | B99: =IF(ISERROR(VLOOKUP($A$78,U07A!$A$11:$J$210,1,FALSE)),"",VLOOKUP($A$78,U07A!$A$11:$J$210,2,FALSE)) ->  | C99: =IF(ISERROR(VLOOKUP($A$78,U07A!$A$11:$J$210,1,FALSE)),"",VLOOKUP($A$78,U07A!$A$11:$J$210,7,FALSE)) ->  | D99: =IF(ISERROR(VLOOKUP($A$78,U07A!$A$11:$J$210,1,FALSE)),"",IF(C99="HOME",VLOOKUP($A$78,U07A!$A$11:$J$210,4,FALSE),VLOOKUP($A$78,U07A!$A$11:$J$210,3,FALSE))) ->  | E99: =IF(ISERROR(VLOOKUP($A$78,U07A!$A$11:$J$210,1,FALSE)),"",VLOOKUP($A$78,U07A!$A$11:$J$210,10,FALSE)) ->  | F99: 1 | G99: 2 | J99: 1.625&SENA&0.625&AWAY&FAIMES A&UKN&1&2;0.625&SENB&0.625&HOME&STOCKAY B&GR1&1&2;1.39583333333333&U17A&0.395833333333333&AWAY&FC.TILLEUR B&UKN&1&2;0.46875&U16A&0.46875&HOME&FOOTBALL CLUB LIÈGE B&GR1&1&2;0.40625&U15A&0.40625&HOME&ES.GEER&GR1&1&2;1.46875&U14A&0.46875&AWAY&FC.HERSTAL&UKN&1&2;1.46875&U14B&0.46875&AWAY&OUGRÉE&UKN&1&2; | K99: 7 | AB99: =IF(AC99="","",IF(ISERROR(VLOOKUP(AC99,AC$79:AC98,1,FALSE)),AC99,AC99+COUNTIF(AC$79:AC98,AC99))) ->  | AG99: =IF($AD99="","",LEFT(S99,T99-1)) ->  | AH99: =IF($AD99="","",LEFT(U99,V99-1)) ->  | AI99: =IF($AD99="","",LEFT(W99,X99-1)) ->  | AJ99: =IF($AD99="","",LEFT(Y99,Z99-1)) -> 
A100: U07B | B100: =IF(ISERROR(VLOOKUP($A$78,U07B!$A$11:$J$210,1,FALSE)),"",VLOOKUP($A$78,U07B!$A$11:$J$210,2,FALSE)) ->  | C100: =IF(ISERROR(VLOOKUP($A$78,U07B!$A$11:$J$210,1,FALSE)),"",VLOOKUP($A$78,U07B!$A$11:$J$210,7,FALSE)) ->  | D100: =IF(ISERROR(VLOOKUP($A$78,U07B!$A$11:$J$210,1,FALSE)),"",IF(C100="HOME",VLOOKUP($A$78,U07B!$A$11:$J$210,4,FALSE),VLOOKUP($A$78,U07B!$A$11:$J$210,3,FALSE))) ->  | E100: =IF(ISERROR(VLOOKUP($A$78,U07B!$A$11:$J$210,1,FALSE)),"",VLOOKUP($A$78,U07B!$A$11:$J$210,10,FALSE)) ->  | F100: 1 | G100: 2 | J100: 1.625&SENA&0.625&AWAY&FAIMES A&UKN&1&2;0.625&SENB&0.625&HOME&STOCKAY B&GR1&1&2;1.39583333333333&U17A&0.395833333333333&AWAY&FC.TILLEUR B&UKN&1&2;0.46875&U16A&0.46875&HOME&FOOTBALL CLUB LIÈGE B&GR1&1&2;0.40625&U15A&0.40625&HOME&ES.GEER&GR1&1&2;1.46875&U14A&0.46875&AWAY&FC.HERSTAL&UKN&1&2;1.46875&U14B&0.46875&AWAY&OUGRÉE&UKN&1&2; | K100: 7 | AB100: =IF(AC100="","",IF(ISERROR(VLOOKUP(AC100,AC$79:AC99,1,FALSE)),AC100,AC100+COUNTIF(AC$79:AC99,AC100))) ->  | AG100: =IF($AD100="","",LEFT(S100,T100-1)) ->  | AH100: =IF($AD100="","",LEFT(U100,V100-1)) ->  | AI100: =IF($AD100="","",LEFT(W100,X100-1)) ->  | AJ100: =IF($AD100="","",LEFT(Y100,Z100-1)) -> 
A101: U06A | B101: =IF(ISERROR(VLOOKUP($A$78,U06A!$A$11:$J$210,1,FALSE)),"",VLOOKUP($A$78,U06A!$A$11:$J$210,2,FALSE)) ->  | C101: =IF(ISERROR(VLOOKUP($A$78,U06A!$A$11:$J$210,1,FALSE)),"",VLOOKUP($A$78,U06A!$A$11:$J$210,7,FALSE)) ->  | D101: =IF(ISERROR(VLOOKUP($A$78,U06A!$A$11:$J$210,1,FALSE)),"",IF(C101="HOME",VLOOKUP($A$78,U06A!$A$11:$J$210,4,FALSE),VLOOKUP($A$78,U06A!$A$11:$J$210,3,FALSE))) ->  | E101: =IF(ISERROR(VLOOKUP($A$78,U06A!$A$11:$J$210,1,FALSE)),"",VLOOKUP($A$78,U06A!$A$11:$J$210,10,FALSE)) ->  | F101: 1 | G101: 2 | J101: 1.625&SENA&0.625&AWAY&FAIMES A&UKN&1&2;0.625&SENB&0.625&HOME&STOCKAY B&GR1&1&2;1.39583333333333&U17A&0.395833333333333&AWAY&FC.TILLEUR B&UKN&1&2;0.46875&U16A&0.46875&HOME&FOOTBALL CLUB LIÈGE B&GR1&1&2;0.40625&U15A&0.40625&HOME&ES.GEER&GR1&1&2;1.46875&U14A&0.46875&AWAY&FC.HERSTAL&UKN&1&2;1.46875&U14B&0.46875&AWAY&OUGRÉE&UKN&1&2; | K101: 7 | AB101: =IF(AC101="","",IF(ISERROR(VLOOKUP(AC101,AC$79:AC100,1,FALSE)),AC101,AC101+COUNTIF(AC$79:AC100,AC101))) ->  | AG101: =IF($AD101="","",LEFT(S101,T101-1)) ->  | AH101: =IF($AD101="","",LEFT(U101,V101-1)) ->  | AI101: =IF($AD101="","",LEFT(W101,X101-1)) ->  | AJ101: =IF($AD101="","",LEFT(Y101,Z101-1)) -> 
A102: U06B | B102: =IF(ISERROR(VLOOKUP($A$78,U06B!$A$11:$J$210,1,FALSE)),"",VLOOKUP($A$78,U06B!$A$11:$J$210,2,FALSE)) ->  | C102: =IF(ISERROR(VLOOKUP($A$78,U06B!$A$11:$J$210,1,FALSE)),"",VLOOKUP($A$78,U06B!$A$11:$J$210,7,FALSE)) ->  | D102: =IF(ISERROR(VLOOKUP($A$78,U06B!$A$11:$J$210,1,FALSE)),"",IF(C102="HOME",VLOOKUP($A$78,U06B!$A$11:$J$210,4,FALSE),VLOOKUP($A$78,U06B!$A$11:$J$210,3,FALSE))) ->  | E102: =IF(ISERROR(VLOOKUP($A$78,U06B!$A$11:$J$210,1,FALSE)),"",VLOOKUP($A$78,U06B!$A$11:$J$210,10,FALSE)) ->  | F102: 1 | G102: 2 | J102: 1.625&SENA&0.625&AWAY&FAIMES A&UKN&1&2;0.625&SENB&0.625&HOME&STOCKAY B&GR1&1&2;1.39583333333333&U17A&0.395833333333333&AWAY&FC.TILLEUR B&UKN&1&2;0.46875&U16A&0.46875&HOME&FOOTBALL CLUB LIÈGE B&GR1&1&2;0.40625&U15A&0.40625&HOME&ES.GEER&GR1&1&2;1.46875&U14A&0.46875&AWAY&FC.HERSTAL&UKN&1&2;1.46875&U14B&0.46875&AWAY&OUGRÉE&UKN&1&2; | K102: 7 | AB102: =IF(AC102="","",IF(ISERROR(VLOOKUP(AC102,AC$79:AC101,1,FALSE)),AC102,AC102+COUNTIF(AC$79:AC101,AC102))) ->  | AG102: =IF($AD102="","",LEFT(S102,T102-1)) ->  | AH102: =IF($AD102="","",LEFT(U102,V102-1)) ->  | AI102: =IF($AD102="","",LEFT(W102,X102-1)) ->  | AJ102: =IF($AD102="","",LEFT(Y102,Z102-1)) -> 
A103: U12B | B103: =IF(ISERROR(VLOOKUP($A$78,U12B!$A$11:$J$210,1,FALSE)),"",VLOOKUP($A$78,U12B!$A$11:$J$210,2,FALSE)) ->  | C103: =IF(ISERROR(VLOOKUP($A$78,U12B!$A$11:$J$210,1,FALSE)),"",VLOOKUP($A$78,U12B!$A$11:$J$210,7,FALSE)) ->  | D103: =IF(ISERROR(VLOOKUP($A$78,U12B!$A$11:$J$210,1,FALSE)),"",IF(C103="HOME",VLOOKUP($A$78,U12B!$A$11:$J$210,4,FALSE),VLOOKUP($A$78,U12B!$A$11:$J$210,3,FALSE))) ->  | E103: =IF(ISERROR(VLOOKUP($A$78,U12B!$A$11:$J$210,1,FALSE)),"",VLOOKUP($A$78,U12B!$A$11:$J$210,10,FALSE)) ->  | F103: 1 | G103: 2 | J103: 1.625&SENA&0.625&AWAY&FAIMES A&UKN&1&2;0.625&SENB&0.625&HOME&STOCKAY B&GR1&1&2;1.39583333333333&U17A&0.395833333333333&AWAY&FC.TILLEUR B&UKN&1&2;0.46875&U16A&0.46875&HOME&FOOTBALL CLUB LIÈGE B&GR1&1&2;0.40625&U15A&0.40625&HOME&ES.GEER&GR1&1&2;1.46875&U14A&0.46875&AWAY&FC.HERSTAL&UKN&1&2;1.46875&U14B&0.46875&AWAY&OUGRÉE&UKN&1&2; | K103: 7 | AB103: =IF(AC103="","",IF(ISERROR(VLOOKUP(AC103,AC$79:AC102,1,FALSE)),AC103,AC103+COUNTIF(AC$79:AC102,AC103))) ->  | AG103: =IF($AD103="","",LEFT(S103,T103-1)) ->  | AH103: =IF($AD103="","",LEFT(U103,V103-1)) ->  | AI103: =IF($AD103="","",LEFT(W103,X103-1)) ->  | AJ103: =IF($AD103="","",LEFT(Y103,Z103-1)) -> 
A104: U08C | B104: =IF(ISERROR(VLOOKUP($A$78,U08C!$A$11:$J$210,1,FALSE)),"",VLOOKUP($A$78,U08C!$A$11:$J$210,2,FALSE)) ->  | C104: =IF(ISERROR(VLOOKUP($A$78,U08C!$A$11:$J$210,1,FALSE)),"",VLOOKUP($A$78,U08C!$A$11:$J$210,7,FALSE)) ->  | D104: =IF(ISERROR(VLOOKUP($A$78,U08C!$A$11:$J$210,1,FALSE)),"",IF(C104="HOME",VLOOKUP($A$78,U08C!$A$11:$J$210,4,FALSE),VLOOKUP($A$78,U08C!$A$11:$J$210,3,FALSE))) ->  | E104: =IF(ISERROR(VLOOKUP($A$78,U08C!$A$11:$J$210,1,FALSE)),"",VLOOKUP($A$78,U08C!$A$11:$J$210,10,FALSE)) ->  | F104: 1 | G104: 2 | J104: 1.625&SENA&0.625&AWAY&FAIMES A&UKN&1&2;0.625&SENB&0.625&HOME&STOCKAY B&GR1&1&2;1.39583333333333&U17A&0.395833333333333&AWAY&FC.TILLEUR B&UKN&1&2;0.46875&U16A&0.46875&HOME&FOOTBALL CLUB LIÈGE B&GR1&1&2;0.40625&U15A&0.40625&HOME&ES.GEER&GR1&1&2;1.46875&U14A&0.46875&AWAY&FC.HERSTAL&UKN&1&2;1.46875&U14B&0.46875&AWAY&OUGRÉE&UKN&1&2; | K104: 7 | AB104: =IF(AC104="","",IF(ISERROR(VLOOKUP(AC104,AC$79:AC103,1,FALSE)),AC104,AC104+COUNTIF(AC$79:AC103,AC104))) ->  | AG104: =IF($AD104="","",LEFT(S104,T104-1)) ->  | AH104: =IF($AD104="","",LEFT(U104,V104-1)) ->  | AI104: =IF($AD104="","",LEFT(W104,X104-1)) ->  | AJ104: =IF($AD104="","",LEFT(Y104,Z104-1)) -> 
A105: U07C | B105: =IF(ISERROR(VLOOKUP($A$78,U07C!$A$11:$J$210,1,FALSE)),"",VLOOKUP($A$78,U07C!$A$11:$J$210,2,FALSE)) ->  | C105: =IF(ISERROR(VLOOKUP($A$78,U07C!$A$11:$J$210,1,FALSE)),"",VLOOKUP($A$78,U07C!$A$11:$J$210,7,FALSE)) ->  | D105: =IF(ISERROR(VLOOKUP($A$78,U07C!$A$11:$J$210,1,FALSE)),"",IF(C105="HOME",VLOOKUP($A$78,U07C!$A$11:$J$210,4,FALSE),VLOOKUP($A$78,U07C!$A$11:$J$210,3,FALSE))) ->  | E105: =IF(ISERROR(VLOOKUP($A$78,U07C!$A$11:$J$210,1,FALSE)),"",VLOOKUP($A$78,U07C!$A$11:$J$210,10,FALSE)) ->  | F105: 1 | G105: 2 | J105: 1.625&SENA&0.625&AWAY&FAIMES A&UKN&1&2;0.625&SENB&0.625&HOME&STOCKAY B&GR1&1&2;1.39583333333333&U17A&0.395833333333333&AWAY&FC.TILLEUR B&UKN&1&2;0.46875&U16A&0.46875&HOME&FOOTBALL CLUB LIÈGE B&GR1&1&2;0.40625&U15A&0.40625&HOME&ES.GEER&GR1&1&2;1.46875&U14A&0.46875&AWAY&FC.HERSTAL&UKN&1&2;1.46875&U14B&0.46875&AWAY&OUGRÉE&UKN&1&2; | K105: 7 | AB105: =IF(AC105="","",IF(ISERROR(VLOOKUP(AC105,AC$79:AC104,1,FALSE)),AC105,AC105+COUNTIF(AC$79:AC104,AC105))) ->  | AG105: =IF($AD105="","",LEFT(S105,T105-1)) ->  | AH105: =IF($AD105="","",LEFT(U105,V105-1)) ->  | AI105: =IF($AD105="","",LEFT(W105,X105-1)) ->  | AJ105: =IF($AD105="","",LEFT(Y105,Z105-1)) -> 
A106: U06C | B106: =IF(ISERROR(VLOOKUP($A$78,U06C!$A$11:$J$210,1,FALSE)),"",VLOOKUP($A$78,U06C!$A$11:$J$210,2,FALSE)) ->  | C106: =IF(ISERROR(VLOOKUP($A$78,U06C!$A$11:$J$210,1,FALSE)),"",VLOOKUP($A$78,U06C!$A$11:$J$210,7,FALSE)) ->  | D106: =IF(ISERROR(VLOOKUP($A$78,U06C!$A$11:$J$210,1,FALSE)),"",IF(C106="HOME",VLOOKUP($A$78,U06C!$A$11:$J$210,4,FALSE),VLOOKUP($A$78,U06C!$A$11:$J$210,3,FALSE))) ->  | E106: =IF(ISERROR(VLOOKUP($A$78,U06C!$A$11:$J$210,1,FALSE)),"",VLOOKUP($A$78,U06C!$A$11:$J$210,10,FALSE)) ->  | F106: 1 | G106: 2 | J106: 1.625&SENA&0.625&AWAY&FAIMES A&UKN&1&2;0.625&SENB&0.625&HOME&STOCKAY B&GR1&1&2;1.39583333333333&U17A&0.395833333333333&AWAY&FC.TILLEUR B&UKN&1&2;0.46875&U16A&0.46875&HOME&FOOTBALL CLUB LIÈGE B&GR1&1&2;0.40625&U15A&0.40625&HOME&ES.GEER&GR1&1&2;1.46875&U14A&0.46875&AWAY&FC.HERSTAL&UKN&1&2;1.46875&U14B&0.46875&AWAY&OUGRÉE&UKN&1&2; | K106: 7 | AB106: =IF(AC106="","",IF(ISERROR(VLOOKUP(AC106,AC$79:AC105,1,FALSE)),AC106,AC106+COUNTIF(AC$79:AC105,AC106))) ->  | AG106: =IF($AD106="","",LEFT(S106,T106-1)) ->  | AH106: =IF($AD106="","",LEFT(U106,V106-1)) ->  | AI106: =IF($AD106="","",LEFT(W106,X106-1)) ->  | AJ106: =IF($AD106="","",LEFT(Y106,Z106-1)) -> 
A107: VETA | B107: =IF(ISERROR(VLOOKUP($A$78,VETA!$A$11:$J$210,1,FALSE)),"",VLOOKUP($A$78,VETA!$A$11:$J$210,2,FALSE)) ->  | C107: =IF(ISERROR(VLOOKUP($A$78,VETA!$A$11:$J$210,1,FALSE)),"",VLOOKUP($A$78,VETA!$A$11:$J$210,7,FALSE)) ->  | D107: =IF(ISERROR(VLOOKUP($A$78,VETA!$A$11:$J$210,1,FALSE)),"",IF(C107="HOME",VLOOKUP($A$78,VETA!$A$11:$J$210,4,FALSE),VLOOKUP($A$78,VETA!$A$11:$J$210,3,FALSE))) ->  | E107: =IF(ISERROR(VLOOKUP($A$78,VETA!$A$11:$J$210,1,FALSE)),"",VLOOKUP($A$78,VETA!$A$11:$J$210,10,FALSE)) ->  | F107: 1 | G107: 2 | J107: 1.625&SENA&0.625&AWAY&FAIMES A&UKN&1&2;0.625&SENB&0.625&HOME&STOCKAY B&GR1&1&2;1.39583333333333&U17A&0.395833333333333&AWAY&FC.TILLEUR B&UKN&1&2;0.46875&U16A&0.46875&HOME&FOOTBALL CLUB LIÈGE B&GR1&1&2;0.40625&U15A&0.40625&HOME&ES.GEER&GR1&1&2;1.46875&U14A&0.46875&AWAY&FC.HERSTAL&UKN&1&2;1.46875&U14B&0.46875&AWAY&OUGRÉE&UKN&1&2; | K107: 7 | AB107: =IF(AC107="","",IF(ISERROR(VLOOKUP(AC107,AC$79:AC106,1,FALSE)),AC107,AC107+COUNTIF(AC$79:AC106,AC107))) ->  | AG107: =IF($AD107="","",LEFT(S107,T107-1)) ->  | AH107: =IF($AD107="","",LEFT(U107,V107-1)) ->  | AI107: =IF($AD107="","",LEFT(W107,X107-1)) ->  | AJ107: =IF($AD107="","",LEFT(Y107,Z107-1)) -> 
A109: SENA | B109: 01:45:00
A110: SENB | B110: 01:45:00
A111: U19A | B111: 01:45:00
A112: U17A | B112: 01:35:00
A113: U16A | B113: 01:35:00
A114: U15A | B114: 01:25:00
A115: U14A | B115: 01:25:00
A116: U14B | B116: 01:25:00
A117: U13A | B117: 01:15:00
A118: U13B | B118: 01:15:00
A119: U12A | B119: 01:15:00
A120: U11A | B120: 01:15:00
A121: U11B | B121: 01:15:00
A122: U10A | B122: 01:15:00
A123: U10B | B123: 01:15:00
A124: U09A | B124: 01:05:00
A125: U09B | B125: 01:05:00
A126: U09C | B126: 01:05:00
A127: U08A | B127: 01:05:00
A128: U08B | B128: 01:05:00
A129: U07A | B129: 01:05:00
A130: U07B | B130: 01:05:00
A131: U06A | B131: 01:45:00
A132: U06B | B132: 01:45:00
A133: U12B | B133: 01:15:00
A134: U08C | B134: 01:05:00
A135: U07C | B135: 01:05:00
A136: U06C | B136: 01:45:00
A137: VETA | B137: 01:45:00

Sheet Pts
A1: Calcul du nombre de point(s)
A3: Résultat | B3: Points | C3: Pts Adv. | D3: Exemple
A4: Victoire avec 2 buts d’écart ou plus et sans but reçu: | B4: 10 | C4: 0 | D4: 2-0 | E4: 9.5
A5: Victoire avec 2 buts d’écart ou plus et avec but(s) reçu(s): | B5: 9 | C5: 1 | D5: 3-1 | E5: 8.5
A6: Victoire avec 1 but d’écart et sans but reçu: | B6: 8 | C6: 2 | D6: 1-0 | E6: 7.5
A7: Victoire avec 1 but d’écart et avec but(s) reçu(s): | B7: 7 | C7: 3 | D7: 2-1 | E7: 6.5
A8: Nul 2-2 ou supérieur: | B8: 6 | C8: 6 | D8: 2-2 | E8: 5.5
A9: Nul 1-1: | B9: 5 | C9: 5 | D9: 1-1 | E9: 4.5
A10: Nul 0-0 (blanc): | B10: 4 | C10: 4 | D10: 0-0 | E10: 3.5
A11: Défaite avec 1 but d'écart et avec but(s) marqué(s): | B11: 3 | C11: 7 | D11: 1-2 | E11: 2.5
A12: Défaite avec 1 but d'écart et sans but marqué: | B12: 2 | C12: 8 | D12: 0-1 | E12: 1.5
A13: Défaite avec 2 buts d'écart ou plus et avec but(s) marqué(s): | B13: 1 | C13: 9 | D13: 1-3 | E13: 0.5
A14: Défaite avec 2 buts d'écart ou plus et sans but marqué: | B14: 0 | C14: 10 | D14: 0-2
A15: Forfait: Score de 1-0
A16: Cette méthode de calcul inhabituelle facilite le départage des équipes dans le classement mais surtout favorise le maintien de l'intérêt du matche et le "scoring".
A17: En cas d'égalité pour la première place il sera tiré 3 Pénos pour départager les teams.

Sheet Terrains

Sheet U17_SEN
A1: RES TEMPLIERS NANDRIN (URBSFA 00392) | B1: SENA | G1: SENB | L1: U19A | Q1: U17A | V1: VETA
B2: Série | C2: =SENA!$A$1 -> Ergo League A(Liege) [SENA] | G2: Série | H2: =SENB!$A$1 -> IV Provinciale E(Liege) [SENB] | L2: Série | M2: =U19A!$A$1 -> U19 Provinciaux(Liege) [U19A] | Q2: Série | R2: =U17A!$A$1 -> Scolaires Régionaux D(Liege) [U17A] | V2: Série | W2: =VETA!$A$1 -> ??? [VETA]
A3: Correspondant Qualifié | B3: T1 | C3: =CONCATENATE(SENA!$B$3,", ",SENA!$D$3,", ",SENA!$E$3) -> Ghislain DELTOUR, 0496/152436, Ghislain.DELTOUR@just.fgov.be | G3: T1 | H3: =CONCATENATE(SENB!$B$3,", ",SENB!$D$3,", ",SENB!$E$3) -> ?, ?, ? | L3: T1 | M3: =CONCATENATE(U19A!$B$3,", ",U19A!$D$3,", ",U19A!$E$3) -> Guy EKWALLA, ?, guyekwalla@gmail.com | Q3: T1 | R3: =CONCATENATE(U17A!$B$3,", ",U17A!$D$3,", ",U17A!$E$3) -> Sébastien WERY, 0496/361355, sebastien_wery@hotmail.com | V3: T1 | W3: =CONCATENATE(VETA!$B$3,", ",VETA!$D$3,", ",VETA!$E$3) -> ?, ?, ?
A4: Paul HENROTAY, Tel. 0497/921172 | B4: DEL | C4: =CONCATENATE(SENA!$B$5,", ",SENA!$D$5,", ",SENA!$E$5) -> ?, ?, ? | G4: DEL | H4: =CONCATENATE(SENB!$B$5,", ",SENB!$D$5,", ",SENB!$E$5) -> ?, ?, ? | L4: DEL | M4: =CONCATENATE(U19A!$B$5,", ",U19A!$D$5,", ",U19A!$E$5) -> ?, ?, ? | Q4: DEL | R4: =CONCATENATE(U17A!$B$5,", ",U17A!$D$5,", ",U17A!$E$5) -> ?, ?, ? | V4: DEL | W4: =CONCATENATE(VETA!$B$5,", ",VETA!$D$5,", ",VETA!$E$5) -> ?, ?, ?
A5: paul.henrotay@skynet.be | B5: CT11 | C5: Roger MOSSOUX, 0478/690883 | G5: CT11 | H5: Roger MOSSOUX, 0478/690883 | L5: CT11 | M5: Roger MOSSOUX, 0478/690883 | Q5: CT11 | R5: Roger MOSSOUX, 0478/690883 | V5: ADM | W5: =CONCATENATE(VETA!$B$2,", ",VETA!$D$2,", ",VETA!$E$2) -> ?, ?, ?
A6: Coordinateur Technique Général | B6: RAFJ | C6: Pierre LECOCQ, 0498/532496, RAFJ_TempliersNandrin@ngyx.eu | G6: RAFJ | H6: Pierre LECOCQ, 0498/532496, RAFJ_TempliersNandrin@ngyx.eu | L6: RAFJ | M6: Pierre LECOCQ, 0498/532496, RAFJ_TempliersNandrin@ngyx.eu | Q6: RAFJ | R6: Pierre LECOCQ, 0498/532496, RAFJ_TempliersNandrin@ngyx.eu | V6: RAFJ | W6: Pierre LECOCQ, 0498/532496, RAFJ_TempliersNandrin@ngyx.eu
A7: Raphael RASIR, Tel. 0496/578233 | B7: PR | C7: Eric HOSSAY, 0475/462624, hossay@msn.com | G7: PR | H7: Eric HOSSAY, 0475/462624, hossay@msn.com | L7: RTFJ | M7: Erik Vanhove, 0479/570106, erikvanhove@hotmail.com | Q7: RTFJ | R7: Erik Vanhove, 0479/570106, erikvanhove@hotmail.com | V7: PR | W7: Eric HOSSAY, 0475/462624, hossay@msn.com
A8: raphael.rasir@nizet.be | B8: Ter. | C8: =SENA!$F$7 -> GR1 | D8: Idx1 | E8: =IF(SENA!$C$7=0,"",SENA!$D$8) -> 1.5 | G8: Ter. | H8: =SENB!$F$7 -> GR1 | I8: Idx1 | J8: =IF(SENB!$C$7=0,"",SENB!$D$8) -> 0 | L8: Ter. | M8: =U19A!$F$7 -> GR1 | N8: Idx1 | O8: =IF(U19A!$C$7=0,"",U19A!$D$8) ->  | Q8: Ter. | R8: =U17A!$F$7 -> GR1 | S8: Idx1 | T8: =IF(U17A!$C$7=0,"",U17A!$D$8) ->  | V8: Ter. | W8: =VETA!$F$7 -> GR1 | X8: Idx1 | Y8: =IF(VETA!$C$7=0,"",VETA!$D$8) -> 
B9: Pts | C9: =IF(SENA!$C$8="","",SENA!$C$8) -> 3 | D9: Idx2 | E9: =IF(SENA!$C$7=0,"",SENA!$D$9) -> 4.5 | G9: Pts | H9: =IF(SENB!$C$8="","",SENB!$C$8) -> 0 | I9: Idx2 | J9: =IF(SENB!$C$7=0,"",SENB!$D$9) -> 6 | L9: Pts | M9: =IF(U19A!$C$8="","",U19A!$C$8) ->  | N9: Idx2 | O9: =IF(U19A!$C$7=0,"",U19A!$D$9) ->  | Q9: Pts | R9: =IF(U17A!$C$8="","",U17A!$C$8) ->  | S9: Idx2 | T9: =IF(U17A!$C$7=0,"",U17A!$D$9) ->  | V9: Pts | W9: =IF(VETA!$C$8="","",VETA!$C$8) ->  | X9: Idx2 | Y9: =IF(VETA!$C$7=0,"",VETA!$D$9) -> 
A10: Dates | B10: SENA | C10: Start | D10: End | E10: Opponent/type | F10: Ter. | G10: SENB | H10: Start | I10: End | J10: Opponent/type | K10: Ter. | L10: U19A | M10: Start | N10: End | O10: Opponent/type | P10: Ter. | Q10: U17A | R10: Start | S10: End | T10: Opponent/type | U10: Ter. | V10: VETA | W10: Start | X10: End | Y10: Opponent/type | Z10: Ter.
A11: 2017-07-01 | B11: =IF(ISERROR(VLOOKUP($A11,SENA!$A$11:$L$210,1,FALSE)),IF(WEEKDAY($A11,2)>5,"FREE",""),VLOOKUP($A11,SENA!$A$11:$L$210,7,FALSE)) -> FREE | C11: =IF(B11="","",IF(B11="FREE","",VLOOKUP($A11,SENA!$A$11:$L$210,2,FALSE))) ->  | D11: =IF(B11="","",IF(B11="FREE","",VLOOKUP($A11,SENA!$A$11:$L$210,8,FALSE))) ->  | E11: =IF(B11="","",IF(B11="FREE","",VLOOKUP($A11,SENA!$A$11:$L$210,11,FALSE))) ->  | F11: =IF(B11="","",IF(B11="FREE","",VLOOKUP($A11,SENA!$A$11:$L$210,10,FALSE))) ->  | G11: =IF(ISERROR(VLOOKUP($A11,SENB!$A$11:$L$210,1,FALSE)),IF(WEEKDAY($A11,2)>5,"FREE",""),VLOOKUP($A11,SENB!$A$11:$L$210,7,FALSE)) -> FREE | H11: =IF(G11="","",IF(G11="FREE","",VLOOKUP($A11,SENB!$A$11:$L$210,2,FALSE))) ->  | I11: =IF(G11="","",IF(G11="FREE","",VLOOKUP($A11,SENB!$A$11:$L$210,8,FALSE))) ->  | J11: =IF(G11="","",IF(G11="FREE","",VLOOKUP($A11,SENB!$A$11:$L$210,11,FALSE))) ->  | K11: =IF(G11="","",IF(G11="FREE","",VLOOKUP($A11,SENB!$A$11:$L$210,10,FALSE))) ->  | L11: =IF(ISERROR(VLOOKUP($A11,U19A!$A$11:$AC$210,1,FALSE)),IF(WEEKDAY($A11,2)>5,"FREE",""),VLOOKUP($A11,U19A!$A$11:$AC$210,7,FALSE)) -> FREE | M11: =IF(L11="","",IF(L11="FREE","",VLOOKUP($A11,U19A!$A$11:$AC$210,2,FALSE))) ->  | N11: =IF(L11="","",IF(L11="FREE","",VLOOKUP($A11,U19A!$A$11:$AC$210,8,FALSE))) ->  | O11: =IF(L11="","",IF(L11="FREE","",VLOOKUP($A11,U19A!$A$11:$AC$210,11,FALSE))) ->  | P11: =IF(L11="","",IF(L11="FREE","",VLOOKUP($A11,U19A!$A$11:$AC$210,10,FALSE))) ->  | Q11: =IF(ISERROR(VLOOKUP($A11,U17A!$A$11:$L$210,1,FALSE)),IF(WEEKDAY($A11,2)>5,"FREE",""),VLOOKUP($A11,U17A!$A$11:$L$210,7,FALSE)) -> FREE | R11: =IF(Q11="","",IF(Q11="FREE","",VLOOKUP($A11,U17A!$A$11:$L$210,2,FALSE))) ->  | S11: =IF(Q11="","",IF(Q11="FREE","",VLOOKUP($A11,U17A!$A$11:$L$210,8,FALSE))) ->  | T11: =IF(Q11="","",IF(Q11="FREE","",VLOOKUP($A11,U17A!$A$11:$L$210,11,FALSE))) ->  | U11: =IF(Q11="","",IF(Q11="FREE","",VLOOKUP($A11,U17A!$A$11:$L$210,10,FALSE))) ->  | V11: =IF(ISERROR(VLOOKUP($A11,VETA!$A$11:$L$210,1,FALSE)),IF(WEEKDAY($A11,2)>5,"FREE",""),VLOOKUP($A11,VETA!$A$11:$L$210,7,FALSE)) -> FREE | W11: =IF(V11="","",IF(V11="FREE","",VLOOKUP($A11,VETA!$A$11:$L$210,2,FALSE))) ->  | X11: =IF(V11="","",IF(V11="FREE","",VLOOKUP($A11,VETA!$A$11:$L$210,8,FALSE))) ->  | Y11: =IF(V11="","",IF(V11="FREE","",VLOOKUP($A11,VETA!$A$11:$L$210,11,FALSE))) ->  | Z11: =IF(V11="","",IF(V11="FREE","",VLOOKUP($A11,VETA!$A$11:$L$210,10,FALSE))) -> 
A12: =A11+1 -> 2017-07-02 | B12: =IF(ISERROR(VLOOKUP($A12,SENA!$A$11:$L$210,1,FALSE)),IF(WEEKDAY($A12,2)>5,"FREE",""),VLOOKUP($A12,SENA!$A$11:$L$210,7,FALSE)) -> FREE | C12: =IF(B12="","",IF(B12="FREE","",VLOOKUP($A12,SENA!$A$11:$L$210,2,FALSE))) ->  | D12: =IF(B12="","",IF(B12="FREE","",VLOOKUP($A12,SENA!$A$11:$L$210,8,FALSE))) ->  | E12: =IF(B12="","",IF(B12="FREE","",VLOOKUP($A12,SENA!$A$11:$L$210,11,FALSE))) ->  | F12: =IF(B12="","",IF(B12="FREE","",VLOOKUP($A12,SENA!$A$11:$L$210,10,FALSE))) ->  | G12: =IF(ISERROR(VLOOKUP($A12,SENB!$A$11:$L$210,1,FALSE)),IF(WEEKDAY($A12,2)>5,"FREE",""),VLOOKUP($A12,SENB!$A$11:$L$210,7,FALSE)) -> FREE | H12: =IF(G12="","",IF(G12="FREE","",VLOOKUP($A12,SENB!$A$11:$L$210,2,FALSE))) ->  | I12: =IF(G12="","",IF(G12="FREE","",VLOOKUP($A12,SENB!$A$11:$L$210,8,FALSE))) ->  | J12: =IF(G12="","",IF(G12="FREE","",VLOOKUP($A12,SENB!$A$11:$L$210,11,FALSE))) ->  | K12: =IF(G12="","",IF(G12="FREE","",VLOOKUP($A12,SENB!$A$11:$L$210,10,FALSE))) ->  | L12: =IF(ISERROR(VLOOKUP($A12,U19A!$A$11:$AC$210,1,FALSE)),IF(WEEKDAY($A12,2)>5,"FREE",""),VLOOKUP($A12,U19A!$A$11:$AC$210,7,FALSE)) -> FREE | M12: =IF(L12="","",IF(L12="FREE","",VLOOKUP($A12,U19A!$A$11:$AC$210,2,FALSE))) ->  | N12: =IF(L12="","",IF(L12="FREE","",VLOOKUP($A12,U19A!$A$11:$AC$210,8,FALSE))) ->  | O12: =IF(L12="","",IF(L12="FREE","",VLOOKUP($A12,U19A!$A$11:$AC$210,11,FALSE))) ->  | P12: =IF(L12="","",IF(L12="FREE","",VLOOKUP($A12,U19A!$A$11:$AC$210,10,FALSE))) ->  | Q12: =IF(ISERROR(VLOOKUP($A12,U17A!$A$11:$L$210,1,FALSE)),IF(WEEKDAY($A12,2)>5,"FREE",""),VLOOKUP($A12,U17A!$A$11:$L$210,7,FALSE)) -> FREE | R12: =IF(Q12="","",IF(Q12="FREE","",VLOOKUP($A12,U17A!$A$11:$L$210,2,FALSE))) ->  | S12: =IF(Q12="","",IF(Q12="FREE","",VLOOKUP($A12,U17A!$A$11:$L$210,8,FALSE))) ->  | T12: =IF(Q12="","",IF(Q12="FREE","",VLOOKUP($A12,U17A!$A$11:$L$210,11,FALSE))) ->  | U12: =IF(Q12="","",IF(Q12="FREE","",VLOOKUP($A12,U17A!$A$11:$L$210,10,FALSE))) ->  | V12: =IF(ISERROR(VLOOKUP($A12,VETA!$A$11:$L$210,1,FALSE)),IF(WEEKDAY($A12,2)>5,"FREE",""),VLOOKUP($A12,VETA!$A$11:$L$210,7,FALSE)) -> FREE | W12: =IF(V12="","",IF(V12="FREE","",VLOOKUP($A12,VETA!$A$11:$L$210,2,FALSE))) ->  | X12: =IF(V12="","",IF(V12="FREE","",VLOOKUP($A12,VETA!$A$11:$L$210,8,FALSE))) ->  | Y12: =IF(V12="","",IF(V12="FREE","",VLOOKUP($A12,VETA!$A$11:$L$210,11,FALSE))) ->  | Z12: =IF(V12="","",IF(V12="FREE","",VLOOKUP($A12,VETA!$A$11:$L$210,10,FALSE))) -> 
A13: =A12+1 -> 2017-07-03 | B13: =IF(ISERROR(VLOOKUP($A13,SENA!$A$11:$L$210,1,FALSE)),IF(WEEKDAY($A13,2)>5,"FREE",""),VLOOKUP($A13,SENA!$A$11:$L$210,7,FALSE)) ->  | C13: =IF(B13="","",IF(B13="FREE","",VLOOKUP($A13,SENA!$A$11:$L$210,2,FALSE))) ->  | D13: =IF(B13="","",IF(B13="FREE","",VLOOKUP($A13,SENA!$A$11:$L$210,8,FALSE))) ->  | E13: =IF(B13="","",IF(B13="FREE","",VLOOKUP($A13,SENA!$A$11:$L$210,11,FALSE))) ->  | F13: =IF(B13="","",IF(B13="FREE","",VLOOKUP($A13,SENA!$A$11:$L$210,10,FALSE))) ->  | G13: =IF(ISERROR(VLOOKUP($A13,SENB!$A$11:$L$210,1,FALSE)),IF(WEEKDAY($A13,2)>5,"FREE",""),VLOOKUP($A13,SENB!$A$11:$L$210,7,FALSE)) ->  | H13: =IF(G13="","",IF(G13="FREE","",VLOOKUP($A13,SENB!$A$11:$L$210,2,FALSE))) ->  | I13: =IF(G13="","",IF(G13="FREE","",VLOOKUP($A13,SENB!$A$11:$L$210,8,FALSE))) ->  | J13: =IF(G13="","",IF(G13="FREE","",VLOOKUP($A13,SENB!$A$11:$L$210,11,FALSE))) ->  | K13: =IF(G13="","",IF(G13="FREE","",VLOOKUP($A13,SENB!$A$11:$L$210,10,FALSE))) ->  | L13: =IF(ISERROR(VLOOKUP($A13,U19A!$A$11:$AC$210,1,FALSE)),IF(WEEKDAY($A13,2)>5,"FREE",""),VLOOKUP($A13,U19A!$A$11:$AC$210,7,FALSE)) ->  | M13: =IF(L13="","",IF(L13="FREE","",VLOOKUP($A13,U19A!$A$11:$AC$210,2,FALSE))) ->  | N13: =IF(L13="","",IF(L13="FREE","",VLOOKUP($A13,U19A!$A$11:$AC$210,8,FALSE))) ->  | O13: =IF(L13="","",IF(L13="FREE","",VLOOKUP($A13,U19A!$A$11:$AC$210,11,FALSE))) ->  | P13: =IF(L13="","",IF(L13="FREE","",VLOOKUP($A13,U19A!$A$11:$AC$210,10,FALSE))) ->  | Q13: =IF(ISERROR(VLOOKUP($A13,U17A!$A$11:$L$210,1,FALSE)),IF(WEEKDAY($A13,2)>5,"FREE",""),VLOOKUP($A13,U17A!$A$11:$L$210,7,FALSE)) ->  | R13: =IF(Q13="","",IF(Q13="FREE","",VLOOKUP($A13,U17A!$A$11:$L$210,2,FALSE))) ->  | S13: =IF(Q13="","",IF(Q13="FREE","",VLOOKUP($A13,U17A!$A$11:$L$210,8,FALSE))) ->  | T13: =IF(Q13="","",IF(Q13="FREE","",VLOOKUP($A13,U17A!$A$11:$L$210,11,FALSE))) ->  | U13: =IF(Q13="","",IF(Q13="FREE","",VLOOKUP($A13,U17A!$A$11:$L$210,10,FALSE))) ->  | V13: =IF(ISERROR(VLOOKUP($A13,VETA!$A$11:$L$210,1,FALSE)),IF(WEEKDAY($A13,2)>5,"FREE",""),VLOOKUP($A13,VETA!$A$11:$L$210,7,FALSE)) ->  | W13: =IF(V13="","",IF(V13="FREE","",VLOOKUP($A13,VETA!$A$11:$L$210,2,FALSE))) ->  | X13: =IF(V13="","",IF(V13="FREE","",VLOOKUP($A13,VETA!$A$11:$L$210,8,FALSE))) ->  | Y13: =IF(V13="","",IF(V13="FREE","",VLOOKUP($A13,VETA!$A$11:$L$210,11,FALSE))) ->  | Z13: =IF(V13="","",IF(V13="FREE","",VLOOKUP($A13,VETA!$A$11:$L$210,10,FALSE))) -> 
A14: 2017-07-04 | B14: =IF(ISERROR(VLOOKUP($A14,SENA!$A$11:$L$210,1,FALSE)),IF(WEEKDAY($A14,2)>5,"FREE",""),VLOOKUP($A14,SENA!$A$11:$L$210,7,FALSE)) ->  | C14: =IF(B14="","",IF(B14="FREE","",VLOOKUP($A14,SENA!$A$11:$L$210,2,FALSE))) ->  | D14: =IF(B14="","",IF(B14="FREE","",VLOOKUP($A14,SENA!$A$11:$L$210,8,FALSE))) ->  | E14: =IF(B14="","",IF(B14="FREE","",VLOOKUP($A14,SENA!$A$11:$L$210,11,FALSE))) ->  | F14: =IF(B14="","",IF(B14="FREE","",VLOOKUP($A14,SENA!$A$11:$L$210,10,FALSE))) ->  | G14: =IF(ISERROR(VLOOKUP($A14,SENB!$A$11:$L$210,1,FALSE)),IF(WEEKDAY($A14,2)>5,"FREE",""),VLOOKUP($A14,SENB!$A$11:$L$210,7,FALSE)) ->  | H14: =IF(G14="","",IF(G14="FREE","",VLOOKUP($A14,SENB!$A$11:$L$210,2,FALSE))) ->  | I14: =IF(G14="","",IF(G14="FREE","",VLOOKUP($A14,SENB!$A$11:$L$210,8,FALSE))) ->  | J14: =IF(G14="","",IF(G14="FREE","",VLOOKUP($A14,SENB!$A$11:$L$210,11,FALSE))) ->  | K14: =IF(G14="","",IF(G14="FREE","",VLOOKUP($A14,SENB!$A$11:$L$210,10,FALSE))) ->  | L14: =IF(ISERROR(VLOOKUP($A14,U19A!$A$11:$AC$210,1,FALSE)),IF(WEEKDAY($A14,2)>5,"FREE",""),VLOOKUP($A14,U19A!$A$11:$AC$210,7,FALSE)) ->  | M14: =IF(L14="","",IF(L14="FREE","",VLOOKUP($A14,U19A!$A$11:$AC$210,2,FALSE))) ->  | N14: =IF(L14="","",IF(L14="FREE","",VLOOKUP($A14,U19A!$A$11:$AC$210,8,FALSE))) ->  | O14: =IF(L14="","",IF(L14="FREE","",VLOOKUP($A14,U19A!$A$11:$AC$210,11,FALSE))) ->  | P14: =IF(L14="","",IF(L14="FREE","",VLOOKUP($A14,U19A!$A$11:$AC$210,10,FALSE))) ->  | Q14: =IF(ISERROR(VLOOKUP($A14,U17A!$A$11:$L$210,1,FALSE)),IF(WEEKDAY($A14,2)>5,"FREE",""),VLOOKUP($A14,U17A!$A$11:$L$210,7,FALSE)) ->  | R14: =IF(Q14="","",IF(Q14="FREE","",VLOOKUP($A14,U17A!$A$11:$L$210,2,FALSE))) ->  | S14: =IF(Q14="","",IF(Q14="FREE","",VLOOKUP($A14,U17A!$A$11:$L$210,8,FALSE))) ->  | T14: =IF(Q14="","",IF(Q14="FREE","",VLOOKUP($A14,U17A!$A$11:$L$210,11,FALSE))) ->  | U14: =IF(Q14="","",IF(Q14="FREE","",VLOOKUP($A14,U17A!$A$11:$L$210,10,FALSE))) ->  | V14: =IF(ISERROR(VLOOKUP($A14,VETA!$A$11:$L$210,1,FALSE)),IF(WEEKDAY($A14,2)>5,"FREE",""),VLOOKUP($A14,VETA!$A$11:$L$210,7,FALSE)) ->  | W14: =IF(V14="","",IF(V14="FREE","",VLOOKUP($A14,VETA!$A$11:$L$210,2,FALSE))) ->  | X14: =IF(V14="","",IF(V14="FREE","",VLOOKUP($A14,VETA!$A$11:$L$210,8,FALSE))) ->  | Y14: =IF(V14="","",IF(V14="FREE","",VLOOKUP($A14,VETA!$A$11:$L$210,11,FALSE))) ->  | Z14: =IF(V14="","",IF(V14="FREE","",VLOOKUP($A14,VETA!$A$11:$L$210,10,FALSE))) -> 
A15: 2017-07-05 | B15: =IF(ISERROR(VLOOKUP($A15,SENA!$A$11:$L$210,1,FALSE)),IF(WEEKDAY($A15,2)>5,"FREE",""),VLOOKUP($A15,SENA!$A$11:$L$210,7,FALSE)) ->  | C15: =IF(B15="","",IF(B15="FREE","",VLOOKUP($A15,SENA!$A$11:$L$210,2,FALSE))) ->  | D15: =IF(B15="","",IF(B15="FREE","",VLOOKUP($A15,SENA!$A$11:$L$210,8,FALSE))) ->  | E15: =IF(B15="","",IF(B15="FREE","",VLOOKUP($A15,SENA!$A$11:$L$210,11,FALSE))) ->  | F15: =IF(B15="","",IF(B15="FREE","",VLOOKUP($A15,SENA!$A$11:$L$210,10,FALSE))) ->  | G15: =IF(ISERROR(VLOOKUP($A15,SENB!$A$11:$L$210,1,FALSE)),IF(WEEKDAY($A15,2)>5,"FREE",""),VLOOKUP($A15,SENB!$A$11:$L$210,7,FALSE)) ->  | H15: =IF(G15="","",IF(G15="FREE","",VLOOKUP($A15,SENB!$A$11:$L$210,2,FALSE))) ->  | I15: =IF(G15="","",IF(G15="FREE","",VLOOKUP($A15,SENB!$A$11:$L$210,8,FALSE))) ->  | J15: =IF(G15="","",IF(G15="FREE","",VLOOKUP($A15,SENB!$A$11:$L$210,11,FALSE))) ->  | K15: =IF(G15="","",IF(G15="FREE","",VLOOKUP($A15,SENB!$A$11:$L$210,10,FALSE))) ->  | L15: =IF(ISERROR(VLOOKUP($A15,U19A!$A$11:$AC$210,1,FALSE)),IF(WEEKDAY($A15,2)>5,"FREE",""),VLOOKUP($A15,U19A!$A$11:$AC$210,7,FALSE)) ->  | M15: =IF(L15="","",IF(L15="FREE","",VLOOKUP($A15,U19A!$A$11:$AC$210,2,FALSE))) ->  | N15: =IF(L15="","",IF(L15="FREE","",VLOOKUP($A15,U19A!$A$11:$AC$210,8,FALSE))) ->  | O15: =IF(L15="","",IF(L15="FREE","",VLOOKUP($A15,U19A!$A$11:$AC$210,11,FALSE))) ->  | P15: =IF(L15="","",IF(L15="FREE","",VLOOKUP($A15,U19A!$A$11:$AC$210,10,FALSE))) ->  | Q15: =IF(ISERROR(VLOOKUP($A15,U17A!$A$11:$L$210,1,FALSE)),IF(WEEKDAY($A15,2)>5,"FREE",""),VLOOKUP($A15,U17A!$A$11:$L$210,7,FALSE)) ->  | R15: =IF(Q15="","",IF(Q15="FREE","",VLOOKUP($A15,U17A!$A$11:$L$210,2,FALSE))) ->  | S15: =IF(Q15="","",IF(Q15="FREE","",VLOOKUP($A15,U17A!$A$11:$L$210,8,FALSE))) ->  | T15: =IF(Q15="","",IF(Q15="FREE","",VLOOKUP($A15,U17A!$A$11:$L$210,11,FALSE))) ->  | U15: =IF(Q15="","",IF(Q15="FREE","",VLOOKUP($A15,U17A!$A$11:$L$210,10,FALSE))) ->  | V15: =IF(ISERROR(VLOOKUP($A15,VETA!$A$11:$L$210,1,FALSE)),IF(WEEKDAY($A15,2)>5,"FREE",""),VLOOKUP($A15,VETA!$A$11:$L$210,7,FALSE)) ->  | W15: =IF(V15="","",IF(V15="FREE","",VLOOKUP($A15,VETA!$A$11:$L$210,2,FALSE))) ->  | X15: =IF(V15="","",IF(V15="FREE","",VLOOKUP($A15,VETA!$A$11:$L$210,8,FALSE))) ->  | Y15: =IF(V15="","",IF(V15="FREE","",VLOOKUP($A15,VETA!$A$11:$L$210,11,FALSE))) ->  | Z15: =IF(V15="","",IF(V15="FREE","",VLOOKUP($A15,VETA!$A$11:$L$210,10,FALSE))) -> 
A16: 2017-07-06 | B16: =IF(ISERROR(VLOOKUP($A16,SENA!$A$11:$L$210,1,FALSE)),IF(WEEKDAY($A16,2)>5,"FREE",""),VLOOKUP($A16,SENA!$A$11:$L$210,7,FALSE)) ->  | C16: =IF(B16="","",IF(B16="FREE","",VLOOKUP($A16,SENA!$A$11:$L$210,2,FALSE))) ->  | D16: =IF(B16="","",IF(B16="FREE","",VLOOKUP($A16,SENA!$A$11:$L$210,8,FALSE))) ->  | E16: =IF(B16="","",IF(B16="FREE","",VLOOKUP($A16,SENA!$A$11:$L$210,11,FALSE))) ->  | F16: =IF(B16="","",IF(B16="FREE","",VLOOKUP($A16,SENA!$A$11:$L$210,10,FALSE))) ->  | G16: =IF(ISERROR(VLOOKUP($A16,SENB!$A$11:$L$210,1,FALSE)),IF(WEEKDAY($A16,2)>5,"FREE",""),VLOOKUP($A16,SENB!$A$11:$L$210,7,FALSE)) ->  | H16: =IF(G16="","",IF(G16="FREE","",VLOOKUP($A16,SENB!$A$11:$L$210,2,FALSE))) ->  | I16: =IF(G16="","",IF(G16="FREE","",VLOOKUP($A16,SENB!$A$11:$L$210,8,FALSE))) ->  | J16: =IF(G16="","",IF(G16="FREE","",VLOOKUP($A16,SENB!$A$11:$L$210,11,FALSE))) ->  | K16: =IF(G16="","",IF(G16="FREE","",VLOOKUP($A16,SENB!$A$11:$L$210,10,FALSE))) ->  | L16: =IF(ISERROR(VLOOKUP($A16,U19A!$A$11:$AC$210,1,FALSE)),IF(WEEKDAY($A16,2)>5,"FREE",""),VLOOKUP($A16,U19A!$A$11:$AC$210,7,FALSE)) ->  | M16: =IF(L16="","",IF(L16="FREE","",VLOOKUP($A16,U19A!$A$11:$AC$210,2,FALSE))) ->  | N16: =IF(L16="","",IF(L16="FREE","",VLOOKUP($A16,U19A!$A$11:$AC$210,8,FALSE))) ->  | O16: =IF(L16="","",IF(L16="FREE","",VLOOKUP($A16,U19A!$A$11:$AC$210,11,FALSE))) ->  | P16: =IF(L16="","",IF(L16="FREE","",VLOOKUP($A16,U19A!$A$11:$AC$210,10,FALSE))) ->  | Q16: =IF(ISERROR(VLOOKUP($A16,U17A!$A$11:$L$210,1,FALSE)),IF(WEEKDAY($A16,2)>5,"FREE",""),VLOOKUP($A16,U17A!$A$11:$L$210,7,FALSE)) ->  | R16: =IF(Q16="","",IF(Q16="FREE","",VLOOKUP($A16,U17A!$A$11:$L$210,2,FALSE))) ->  | S16: =IF(Q16="","",IF(Q16="FREE","",VLOOKUP($A16,U17A!$A$11:$L$210,8,FALSE))) ->  | T16: =IF(Q16="","",IF(Q16="FREE","",VLOOKUP($A16,U17A!$A$11:$L$210,11,FALSE))) ->  | U16: =IF(Q16="","",IF(Q16="FREE","",VLOOKUP($A16,U17A!$A$11:$L$210,10,FALSE))) ->  | V16: =IF(ISERROR(VLOOKUP($A16,VETA!$A$11:$L$210,1,FALSE)),IF(WEEKDAY($A16,2)>5,"FREE",""),VLOOKUP($A16,VETA!$A$11:$L$210,7,FALSE)) ->  | W16: =IF(V16="","",IF(V16="FREE","",VLOOKUP($A16,VETA!$A$11:$L$210,2,FALSE))) ->  | X16: =IF(V16="","",IF(V16="FREE","",VLOOKUP($A16,VETA!$A$11:$L$210,8,FALSE))) ->  | Y16: =IF(V16="","",IF(V16="FREE","",VLOOKUP($A16,VETA!$A$11:$L$210,11,FALSE))) ->  | Z16: =IF(V16="","",IF(V16="FREE","",VLOOKUP($A16,VETA!$A$11:$L$210,10,FALSE))) -> 
A17: 2017-07-07 | B17: =IF(ISERROR(VLOOKUP($A17,SENA!$A$11:$L$210,1,FALSE)),IF(WEEKDAY($A17,2)>5,"FREE",""),VLOOKUP($A17,SENA!$A$11:$L$210,7,FALSE)) ->  | C17: =IF(B17="","",IF(B17="FREE","",VLOOKUP($A17,SENA!$A$11:$L$210,2,FALSE))) ->  | D17: =IF(B17="","",IF(B17="FREE","",VLOOKUP($A17,SENA!$A$11:$L$210,8,FALSE))) ->  | E17: =IF(B17="","",IF(B17="FREE","",VLOOKUP($A17,SENA!$A$11:$L$210,11,FALSE))) ->  | F17: =IF(B17="","",IF(B17="FREE","",VLOOKUP($A17,SENA!$A$11:$L$210,10,FALSE))) ->  | G17: =IF(ISERROR(VLOOKUP($A17,SENB!$A$11:$L$210,1,FALSE)),IF(WEEKDAY($A17,2)>5,"FREE",""),VLOOKUP($A17,SENB!$A$11:$L$210,7,FALSE)) ->  | H17: =IF(G17="","",IF(G17="FREE","",VLOOKUP($A17,SENB!$A$11:$L$210,2,FALSE))) ->  | I17: =IF(G17="","",IF(G17="FREE","",VLOOKUP($A17,SENB!$A$11:$L$210,8,FALSE))) ->  | J17: =IF(G17="","",IF(G17="FREE","",VLOOKUP($A17,SENB!$A$11:$L$210,11,FALSE))) ->  | K17: =IF(G17="","",IF(G17="FREE","",VLOOKUP($A17,SENB!$A$11:$L$210,10,FALSE))) ->  | L17: =IF(ISERROR(VLOOKUP($A17,U19A!$A$11:$AC$210,1,FALSE)),IF(WEEKDAY($A17,2)>5,"FREE",""),VLOOKUP($A17,U19A!$A$11:$AC$210,7,FALSE)) ->  | M17: =IF(L17="","",IF(L17="FREE","",VLOOKUP($A17,U19A!$A$11:$AC$210,2,FALSE))) ->  | N17: =IF(L17="","",IF(L17="FREE","",VLOOKUP($A17,U19A!$A$11:$AC$210,8,FALSE))) ->  | O17: =IF(L17="","",IF(L17="FREE","",VLOOKUP($A17,U19A!$A$11:$AC$210,11,FALSE))) ->  | P17: =IF(L17="","",IF(L17="FREE","",VLOOKUP($A17,U19A!$A$11:$AC$210,10,FALSE))) ->  | Q17: =IF(ISERROR(VLOOKUP($A17,U17A!$A$11:$L$210,1,FALSE)),IF(WEEKDAY($A17,2)>5,"FREE",""),VLOOKUP($A17,U17A!$A$11:$L$210,7,FALSE)) ->  | R17: =IF(Q17="","",IF(Q17="FREE","",VLOOKUP($A17,U17A!$A$11:$L$210,2,FALSE))) ->  | S17: =IF(Q17="","",IF(Q17="FREE","",VLOOKUP($A17,U17A!$A$11:$L$210,8,FALSE))) ->  | T17: =IF(Q17="","",IF(Q17="FREE","",VLOOKUP($A17,U17A!$A$11:$L$210,11,FALSE))) ->  | U17: =IF(Q17="","",IF(Q17="FREE","",VLOOKUP($A17,U17A!$A$11:$L$210,10,FALSE))) ->  | V17: =IF(ISERROR(VLOOKUP($A17,VETA!$A$11:$L$210,1,FALSE)),IF(WEEKDAY($A17,2)>5,"FREE",""),VLOOKUP($A17,VETA!$A$11:$L$210,7,FALSE)) ->  | W17: =IF(V17="","",IF(V17="FREE","",VLOOKUP($A17,VETA!$A$11:$L$210,2,FALSE))) ->  | X17: =IF(V17="","",IF(V17="FREE","",VLOOKUP($A17,VETA!$A$11:$L$210,8,FALSE))) ->  | Y17: =IF(V17="","",IF(V17="FREE","",VLOOKUP($A17,VETA!$A$11:$L$210,11,FALSE))) ->  | Z17: =IF(V17="","",IF(V17="FREE","",VLOOKUP($A17,VETA!$A$11:$L$210,10,FALSE))) -> 
A18: 2017-07-08 | B18: =IF(ISERROR(VLOOKUP($A18,SENA!$A$11:$L$210,1,FALSE)),IF(WEEKDAY($A18,2)>5,"FREE",""),VLOOKUP($A18,SENA!$A$11:$L$210,7,FALSE)) -> FREE | C18: =IF(B18="","",IF(B18="FREE","",VLOOKUP($A18,SENA!$A$11:$L$210,2,FALSE))) ->  | D18: =IF(B18="","",IF(B18="FREE","",VLOOKUP($A18,SENA!$A$11:$L$210,8,FALSE))) ->  | E18: =IF(B18="","",IF(B18="FREE","",VLOOKUP($A18,SENA!$A$11:$L$210,11,FALSE))) ->  | F18: =IF(B18="","",IF(B18="FREE","",VLOOKUP($A18,SENA!$A$11:$L$210,10,FALSE))) ->  | G18: =IF(ISERROR(VLOOKUP($A18,SENB!$A$11:$L$210,1,FALSE)),IF(WEEKDAY($A18,2)>5,"FREE",""),VLOOKUP($A18,SENB!$A$11:$L$210,7,FALSE)) -> FREE | H18: =IF(G18="","",IF(G18="FREE","",VLOOKUP($A18,SENB!$A$11:$L$210,2,FALSE))) ->  | I18: =IF(G18="","",IF(G18="FREE","",VLOOKUP($A18,SENB!$A$11:$L$210,8,FALSE))) ->  | J18: =IF(G18="","",IF(G18="FREE","",VLOOKUP($A18,SENB!$A$11:$L$210,11,FALSE))) ->  | K18: =IF(G18="","",IF(G18="FREE","",VLOOKUP($A18,SENB!$A$11:$L$210,10,FALSE))) ->  | L18: =IF(ISERROR(VLOOKUP($A18,U19A!$A$11:$AC$210,1,FALSE)),IF(WEEKDAY($A18,2)>5,"FREE",""),VLOOKUP($A18,U19A!$A$11:$AC$210,7,FALSE)) -> FREE | M18: =IF(L18="","",IF(L18="FREE","",VLOOKUP($A18,U19A!$A$11:$AC$210,2,FALSE))) ->  | N18: =IF(L18="","",IF(L18="FREE","",VLOOKUP($A18,U19A!$A$11:$AC$210,8,FALSE))) ->  | O18: =IF(L18="","",IF(L18="FREE","",VLOOKUP($A18,U19A!$A$11:$AC$210,11,FALSE))) ->  | P18: =IF(L18="","",IF(L18="FREE","",VLOOKUP($A18,U19A!$A$11:$AC$210,10,FALSE))) ->  | Q18: =IF(ISERROR(VLOOKUP($A18,U17A!$A$11:$L$210,1,FALSE)),IF(WEEKDAY($A18,2)>5,"FREE",""),VLOOKUP($A18,U17A!$A$11:$L$210,7,FALSE)) -> FREE | R18: =IF(Q18="","",IF(Q18="FREE","",VLOOKUP($A18,U17A!$A$11:$L$210,2,FALSE))) ->  | S18: =IF(Q18="","",IF(Q18="FREE","",VLOOKUP($A18,U17A!$A$11:$L$210,8,FALSE))) ->  | T18: =IF(Q18="","",IF(Q18="FREE","",VLOOKUP($A18,U17A!$A$11:$L$210,11,FALSE))) ->  | U18: =IF(Q18="","",IF(Q18="FREE","",VLOOKUP($A18,U17A!$A$11:$L$210,10,FALSE))) ->  | V18: =IF(ISERROR(VLOOKUP($A18,VETA!$A$11:$L$210,1,FALSE)),IF(WEEKDAY($A18,2)>5,"FREE",""),VLOOKUP($A18,VETA!$A$11:$L$210,7,FALSE)) -> FREE | W18: =IF(V18="","",IF(V18="FREE","",VLOOKUP($A18,VETA!$A$11:$L$210,2,FALSE))) ->  | X18: =IF(V18="","",IF(V18="FREE","",VLOOKUP($A18,VETA!$A$11:$L$210,8,FALSE))) ->  | Y18: =IF(V18="","",IF(V18="FREE","",VLOOKUP($A18,VETA!$A$11:$L$210,11,FALSE))) ->  | Z18: =IF(V18="","",IF(V18="FREE","",VLOOKUP($A18,VETA!$A$11:$L$210,10,FALSE))) -> 
A19: 2017-07-09 | B19: =IF(ISERROR(VLOOKUP($A19,SENA!$A$11:$L$210,1,FALSE)),IF(WEEKDAY($A19,2)>5,"FREE",""),VLOOKUP($A19,SENA!$A$11:$L$210,7,FALSE)) -> FREE | C19: =IF(B19="","",IF(B19="FREE","",VLOOKUP($A19,SENA!$A$11:$L$210,2,FALSE))) ->  | D19: =IF(B19="","",IF(B19="FREE","",VLOOKUP($A19,SENA!$A$11:$L$210,8,FALSE))) ->  | E19: =IF(B19="","",IF(B19="FREE","",VLOOKUP($A19,SENA!$A$11:$L$210,11,FALSE))) ->  | F19: =IF(B19="","",IF(B19="FREE","",VLOOKUP($A19,SENA!$A$11:$L$210,10,FALSE))) ->  | G19: =IF(ISERROR(VLOOKUP($A19,SENB!$A$11:$L$210,1,FALSE)),IF(WEEKDAY($A19,2)>5,"FREE",""),VLOOKUP($A19,SENB!$A$11:$L$210,7,FALSE)) -> FREE | H19: =IF(G19="","",IF(G19="FREE","",VLOOKUP($A19,SENB!$A$11:$L$210,2,FALSE))) ->  | I19: =IF(G19="","",IF(G19="FREE","",VLOOKUP($A19,SENB!$A$11:$L$210,8,FALSE))) ->  | J19: =IF(G19="","",IF(G19="FREE","",VLOOKUP($A19,SENB!$A$11:$L$210,11,FALSE))) ->  | K19: =IF(G19="","",IF(G19="FREE","",VLOOKUP($A19,SENB!$A$11:$L$210,10,FALSE))) ->  | L19: =IF(ISERROR(VLOOKUP($A19,U19A!$A$11:$AC$210,1,FALSE)),IF(WEEKDAY($A19,2)>5,"FREE",""),VLOOKUP($A19,U19A!$A$11:$AC$210,7,FALSE)) -> FREE | M19: =IF(L19="","",IF(L19="FREE","",VLOOKUP($A19,U19A!$A$11:$AC$210,2,FALSE))) ->  | N19: =IF(L19="","",IF(L19="FREE","",VLOOKUP($A19,U19A!$A$11:$AC$210,8,FALSE))) ->  | O19: =IF(L19="","",IF(L19="FREE","",VLOOKUP($A19,U19A!$A$11:$AC$210,11,FALSE))) ->  | P19: =IF(L19="","",IF(L19="FREE","",VLOOKUP($A19,U19A!$A$11:$AC$210,10,FALSE))) ->  | Q19: =IF(ISERROR(VLOOKUP($A19,U17A!$A$11:$L$210,1,FALSE)),IF(WEEKDAY($A19,2)>5,"FREE",""),VLOOKUP($A19,U17A!$A$11:$L$210,7,FALSE)) -> FREE | R19: =IF(Q19="","",IF(Q19="FREE","",VLOOKUP($A19,U17A!$A$11:$L$210,2,FALSE))) ->  | S19: =IF(Q19="","",IF(Q19="FREE","",VLOOKUP($A19,U17A!$A$11:$L$210,8,FALSE))) ->  | T19: =IF(Q19="","",IF(Q19="FREE","",VLOOKUP($A19,U17A!$A$11:$L$210,11,FALSE))) ->  | U19: =IF(Q19="","",IF(Q19="FREE","",VLOOKUP($A19,U17A!$A$11:$L$210,10,FALSE))) ->  | V19: =IF(ISERROR(VLOOKUP($A19,VETA!$A$11:$L$210,1,FALSE)),IF(WEEKDAY($A19,2)>5,"FREE",""),VLOOKUP($A19,VETA!$A$11:$L$210,7,FALSE)) -> FREE | W19: =IF(V19="","",IF(V19="FREE","",VLOOKUP($A19,VETA!$A$11:$L$210,2,FALSE))) ->  | X19: =IF(V19="","",IF(V19="FREE","",VLOOKUP($A19,VETA!$A$11:$L$210,8,FALSE))) ->  | Y19: =IF(V19="","",IF(V19="FREE","",VLOOKUP($A19,VETA!$A$11:$L$210,11,FALSE))) ->  | Z19: =IF(V19="","",IF(V19="FREE","",VLOOKUP($A19,VETA!$A$11:$L$210,10,FALSE))) -> 
A20: 2017-07-10 | B20: =IF(ISERROR(VLOOKUP($A20,SENA!$A$11:$L$210,1,FALSE)),IF(WEEKDAY($A20,2)>5,"FREE",""),VLOOKUP($A20,SENA!$A$11:$L$210,7,FALSE)) ->  | C20: =IF(B20="","",IF(B20="FREE","",VLOOKUP($A20,SENA!$A$11:$L$210,2,FALSE))) ->  | D20: =IF(B20="","",IF(B20="FREE","",VLOOKUP($A20,SENA!$A$11:$L$210,8,FALSE))) ->  | E20: =IF(B20="","",IF(B20="FREE","",VLOOKUP($A20,SENA!$A$11:$L$210,11,FALSE))) ->  | F20: =IF(B20="","",IF(B20="FREE","",VLOOKUP($A20,SENA!$A$11:$L$210,10,FALSE))) ->  | G20: =IF(ISERROR(VLOOKUP($A20,SENB!$A$11:$L$210,1,FALSE)),IF(WEEKDAY($A20,2)>5,"FREE",""),VLOOKUP($A20,SENB!$A$11:$L$210,7,FALSE)) ->  | H20: =IF(G20="","",IF(G20="FREE","",VLOOKUP($A20,SENB!$A$11:$L$210,2,FALSE))) ->  | I20: =IF(G20="","",IF(G20="FREE","",VLOOKUP($A20,SENB!$A$11:$L$210,8,FALSE))) ->  | J20: =IF(G20="","",IF(G20="FREE","",VLOOKUP($A20,SENB!$A$11:$L$210,11,FALSE))) ->  | K20: =IF(G20="","",IF(G20="FREE","",VLOOKUP($A20,SENB!$A$11:$L$210,10,FALSE))) ->  | L20: =IF(ISERROR(VLOOKUP($A20,U19A!$A$11:$AC$210,1,FALSE)),IF(WEEKDAY($A20,2)>5,"FREE",""),VLOOKUP($A20,U19A!$A$11:$AC$210,7,FALSE)) ->  | M20: =IF(L20="","",IF(L20="FREE","",VLOOKUP($A20,U19A!$A$11:$AC$210,2,FALSE))) ->  | N20: =IF(L20="","",IF(L20="FREE","",VLOOKUP($A20,U19A!$A$11:$AC$210,8,FALSE))) ->  | O20: =IF(L20="","",IF(L20="FREE","",VLOOKUP($A20,U19A!$A$11:$AC$210,11,FALSE))) ->  | P20: =IF(L20="","",IF(L20="FREE","",VLOOKUP($A20,U19A!$A$11:$AC$210,10,FALSE))) ->  | Q20: =IF(ISERROR(VLOOKUP($A20,U17A!$A$11:$L$210,1,FALSE)),IF(WEEKDAY($A20,2)>5,"FREE",""),VLOOKUP($A20,U17A!$A$11:$L$210,7,FALSE)) ->  | R20: =IF(Q20="","",IF(Q20="FREE","",VLOOKUP($A20,U17A!$A$11:$L$210,2,FALSE))) ->  | S20: =IF(Q20="","",IF(Q20="FREE","",VLOOKUP($A20,U17A!$A$11:$L$210,8,FALSE))) ->  | T20: =IF(Q20="","",IF(Q20="FREE","",VLOOKUP($A20,U17A!$A$11:$L$210,11,FALSE))) ->  | U20: =IF(Q20="","",IF(Q20="FREE","",VLOOKUP($A20,U17A!$A$11:$L$210,10,FALSE))) ->  | V20: =IF(ISERROR(VLOOKUP($A20,VETA!$A$11:$L$210,1,FALSE)),IF(WEEKDAY($A20,2)>5,"FREE",""),VLOOKUP($A20,VETA!$A$11:$L$210,7,FALSE)) ->  | W20: =IF(V20="","",IF(V20="FREE","",VLOOKUP($A20,VETA!$A$11:$L$210,2,FALSE))) ->  | X20: =IF(V20="","",IF(V20="FREE","",VLOOKUP($A20,VETA!$A$11:$L$210,8,FALSE))) ->  | Y20: =IF(V20="","",IF(V20="FREE","",VLOOKUP($A20,VETA!$A$11:$L$210,11,FALSE))) ->  | Z20: =IF(V20="","",IF(V20="FREE","",VLOOKUP($A20,VETA!$A$11:$L$210,10,FALSE))) -> 
A21: 2017-07-11 | B21: =IF(ISERROR(VLOOKUP($A21,SENA!$A$11:$L$210,1,FALSE)),IF(WEEKDAY($A21,2)>5,"FREE",""),VLOOKUP($A21,SENA!$A$11:$L$210,7,FALSE)) ->  | C21: =IF(B21="","",IF(B21="FREE","",VLOOKUP($A21,SENA!$A$11:$L$210,2,FALSE))) ->  | D21: =IF(B21="","",IF(B21="FREE","",VLOOKUP($A21,SENA!$A$11:$L$210,8,FALSE))) ->  | E21: =IF(B21="","",IF(B21="FREE","",VLOOKUP($A21,SENA!$A$11:$L$210,11,FALSE))) ->  | F21: =IF(B21="","",IF(B21="FREE","",VLOOKUP($A21,SENA!$A$11:$L$210,10,FALSE))) ->  | G21: =IF(ISERROR(VLOOKUP($A21,SENB!$A$11:$L$210,1,FALSE)),IF(WEEKDAY($A21,2)>5,"FREE",""),VLOOKUP($A21,SENB!$A$11:$L$210,7,FALSE)) ->  | H21: =IF(G21="","",IF(G21="FREE","",VLOOKUP($A21,SENB!$A$11:$L$210,2,FALSE))) ->  | I21: =IF(G21="","",IF(G21="FREE","",VLOOKUP($A21,SENB!$A$11:$L$210,8,FALSE))) ->  | J21: =IF(G21="","",IF(G21="FREE","",VLOOKUP($A21,SENB!$A$11:$L$210,11,FALSE))) ->  | K21: =IF(G21="","",IF(G21="FREE","",VLOOKUP($A21,SENB!$A$11:$L$210,10,FALSE))) ->  | L21: =IF(ISERROR(VLOOKUP($A21,U19A!$A$11:$AC$210,1,FALSE)),IF(WEEKDAY($A21,2)>5,"FREE",""),VLOOKUP($A21,U19A!$A$11:$AC$210,7,FALSE)) ->  | M21: =IF(L21="","",IF(L21="FREE","",VLOOKUP($A21,U19A!$A$11:$AC$210,2,FALSE))) ->  | N21: =IF(L21="","",IF(L21="FREE","",VLOOKUP($A21,U19A!$A$11:$AC$210,8,FALSE))) ->  | O21: =IF(L21="","",IF(L21="FREE","",VLOOKUP($A21,U19A!$A$11:$AC$210,11,FALSE))) ->  | P21: =IF(L21="","",IF(L21="FREE","",VLOOKUP($A21,U19A!$A$11:$AC$210,10,FALSE))) ->  | Q21: =IF(ISERROR(VLOOKUP($A21,U17A!$A$11:$L$210,1,FALSE)),IF(WEEKDAY($A21,2)>5,"FREE",""),VLOOKUP($A21,U17A!$A$11:$L$210,7,FALSE)) ->  | R21: =IF(Q21="","",IF(Q21="FREE","",VLOOKUP($A21,U17A!$A$11:$L$210,2,FALSE))) ->  | S21: =IF(Q21="","",IF(Q21="FREE","",VLOOKUP($A21,U17A!$A$11:$L$210,8,FALSE))) ->  | T21: =IF(Q21="","",IF(Q21="FREE","",VLOOKUP($A21,U17A!$A$11:$L$210,11,FALSE))) ->  | U21: =IF(Q21="","",IF(Q21="FREE","",VLOOKUP($A21,U17A!$A$11:$L$210,10,FALSE))) ->  | V21: =IF(ISERROR(VLOOKUP($A21,VETA!$A$11:$L$210,1,FALSE)),IF(WEEKDAY($A21,2)>5,"FREE",""),VLOOKUP($A21,VETA!$A$11:$L$210,7,FALSE)) ->  | W21: =IF(V21="","",IF(V21="FREE","",VLOOKUP($A21,VETA!$A$11:$L$210,2,FALSE))) ->  | X21: =IF(V21="","",IF(V21="FREE","",VLOOKUP($A21,VETA!$A$11:$L$210,8,FALSE))) ->  | Y21: =IF(V21="","",IF(V21="FREE","",VLOOKUP($A21,VETA!$A$11:$L$210,11,FALSE))) ->  | Z21: =IF(V21="","",IF(V21="FREE","",VLOOKUP($A21,VETA!$A$11:$L$210,10,FALSE))) -> 
A22: 2017-07-12 | B22: =IF(ISERROR(VLOOKUP($A22,SENA!$A$11:$L$210,1,FALSE)),IF(WEEKDAY($A22,2)>5,"FREE",""),VLOOKUP($A22,SENA!$A$11:$L$210,7,FALSE)) ->  | C22: =IF(B22="","",IF(B22="FREE","",VLOOKUP($A22,SENA!$A$11:$L$210,2,FALSE))) ->  | D22: =IF(B22="","",IF(B22="FREE","",VLOOKUP($A22,SENA!$A$11:$L$210,8,FALSE))) ->  | E22: =IF(B22="","",IF(B22="FREE","",VLOOKUP($A22,SENA!$A$11:$L$210,11,FALSE))) ->  | F22: =IF(B22="","",IF(B22="FREE","",VLOOKUP($A22,SENA!$A$11:$L$210,10,FALSE))) ->  | G22: =IF(ISERROR(VLOOKUP($A22,SENB!$A$11:$L$210,1,FALSE)),IF(WEEKDAY($A22,2)>5,"FREE",""),VLOOKUP($A22,SENB!$A$11:$L$210,7,FALSE)) ->  | H22: =IF(G22="","",IF(G22="FREE","",VLOOKUP($A22,SENB!$A$11:$L$210,2,FALSE))) ->  | I22: =IF(G22="","",IF(G22="FREE","",VLOOKUP($A22,SENB!$A$11:$L$210,8,FALSE))) ->  | J22: =IF(G22="","",IF(G22="FREE","",VLOOKUP($A22,SENB!$A$11:$L$210,11,FALSE))) ->  | K22: =IF(G22="","",IF(G22="FREE","",VLOOKUP($A22,SENB!$A$11:$L$210,10,FALSE))) ->  | L22: =IF(ISERROR(VLOOKUP($A22,U19A!$A$11:$AC$210,1,FALSE)),IF(WEEKDAY($A22,2)>5,"FREE",""),VLOOKUP($A22,U19A!$A$11:$AC$210,7,FALSE)) ->  | M22: =IF(L22="","",IF(L22="FREE","",VLOOKUP($A22,U19A!$A$11:$AC$210,2,FALSE))) ->  | N22: =IF(L22="","",IF(L22="FREE","",VLOOKUP($A22,U19A!$A$11:$AC$210,8,FALSE))) ->  | O22: =IF(L22="","",IF(L22="FREE","",VLOOKUP($A22,U19A!$A$11:$AC$210,11,FALSE))) ->  | P22: =IF(L22="","",IF(L22="FREE","",VLOOKUP($A22,U19A!$A$11:$AC$210,10,FALSE))) ->  | Q22: =IF(ISERROR(VLOOKUP($A22,U17A!$A$11:$L$210,1,FALSE)),IF(WEEKDAY($A22,2)>5,"FREE",""),VLOOKUP($A22,U17A!$A$11:$L$210,7,FALSE)) ->  | R22: =IF(Q22="","",IF(Q22="FREE","",VLOOKUP($A22,U17A!$A$11:$L$210,2,FALSE))) ->  | S22: =IF(Q22="","",IF(Q22="FREE","",VLOOKUP($A22,U17A!$A$11:$L$210,8,FALSE))) ->  | T22: =IF(Q22="","",IF(Q22="FREE","",VLOOKUP($A22,U17A!$A$11:$L$210,11,FALSE))) ->  | U22: =IF(Q22="","",IF(Q22="FREE","",VLOOKUP($A22,U17A!$A$11:$L$210,10,FALSE))) ->  | V22: =IF(ISERROR(VLOOKUP($A22,VETA!$A$11:$L$210,1,FALSE)),IF(WEEKDAY($A22,2)>5,"FREE",""),VLOOKUP($A22,VETA!$A$11:$L$210,7,FALSE)) ->  | W22: =IF(V22="","",IF(V22="FREE","",VLOOKUP($A22,VETA!$A$11:$L$210,2,FALSE))) ->  | X22: =IF(V22="","",IF(V22="FREE","",VLOOKUP($A22,VETA!$A$11:$L$210,8,FALSE))) ->  | Y22: =IF(V22="","",IF(V22="FREE","",VLOOKUP($A22,VETA!$A$11:$L$210,11,FALSE))) ->  | Z22: =IF(V22="","",IF(V22="FREE","",VLOOKUP($A22,VETA!$A$11:$L$210,10,FALSE))) -> 
A23: 2017-07-13 | B23: =IF(ISERROR(VLOOKUP($A23,SENA!$A$11:$L$210,1,FALSE)),IF(WEEKDAY($A23,2)>5,"FREE",""),VLOOKUP($A23,SENA!$A$11:$L$210,7,FALSE)) ->  | C23: =IF(B23="","",IF(B23="FREE","",VLOOKUP($A23,SENA!$A$11:$L$210,2,FALSE))) ->  | D23: =IF(B23="","",IF(B23="FREE","",VLOOKUP($A23,SENA!$A$11:$L$210,8,FALSE))) ->  | E23: =IF(B23="","",IF(B23="FREE","",VLOOKUP($A23,SENA!$A$11:$L$210,11,FALSE))) ->  | F23: =IF(B23="","",IF(B23="FREE","",VLOOKUP($A23,SENA!$A$11:$L$210,10,FALSE))) ->  | G23: =IF(ISERROR(VLOOKUP($A23,SENB!$A$11:$L$210,1,FALSE)),IF(WEEKDAY($A23,2)>5,"FREE",""),VLOOKUP($A23,SENB!$A$11:$L$210,7,FALSE)) ->  | H23: =IF(G23="","",IF(G23="FREE","",VLOOKUP($A23,SENB!$A$11:$L$210,2,FALSE))) ->  | I23: =IF(G23="","",IF(G23="FREE","",VLOOKUP($A23,SENB!$A$11:$L$210,8,FALSE))) ->  | J23: =IF(G23="","",IF(G23="FREE","",VLOOKUP($A23,SENB!$A$11:$L$210,11,FALSE))) ->  | K23: =IF(G23="","",IF(G23="FREE","",VLOOKUP($A23,SENB!$A$11:$L$210,10,FALSE))) ->  | L23: =IF(ISERROR(VLOOKUP($A23,U19A!$A$11:$AC$210,1,FALSE)),IF(WEEKDAY($A23,2)>5,"FREE",""),VLOOKUP($A23,U19A!$A$11:$AC$210,7,FALSE)) ->  | M23: =IF(L23="","",IF(L23="FREE","",VLOOKUP($A23,U19A!$A$11:$AC$210,2,FALSE))) ->  | N23: =IF(L23="","",IF(L23="FREE","",VLOOKUP($A23,U19A!$A$11:$AC$210,8,FALSE))) ->  | O23: =IF(L23="","",IF(L23="FREE","",VLOOKUP($A23,U19A!$A$11:$AC$210,11,FALSE))) ->  | P23: =IF(L23="","",IF(L23="FREE","",VLOOKUP($A23,U19A!$A$11:$AC$210,10,FALSE))) ->  | Q23: =IF(ISERROR(VLOOKUP($A23,U17A!$A$11:$L$210,1,FALSE)),IF(WEEKDAY($A23,2)>5,"FREE",""),VLOOKUP($A23,U17A!$A$11:$L$210,7,FALSE)) ->  | R23: =IF(Q23="","",IF(Q23="FREE","",VLOOKUP($A23,U17A!$A$11:$L$210,2,FALSE))) ->  | S23: =IF(Q23="","",IF(Q23="FREE","",VLOOKUP($A23,U17A!$A$11:$L$210,8,FALSE))) ->  | T23: =IF(Q23="","",IF(Q23="FREE","",VLOOKUP($A23,U17A!$A$11:$L$210,11,FALSE))) ->  | U23: =IF(Q23="","",IF(Q23="FREE","",VLOOKUP($A23,U17A!$A$11:$L$210,10,FALSE))) ->  | V23: =IF(ISERROR(VLOOKUP($A23,VETA!$A$11:$L$210,1,FALSE)),IF(WEEKDAY($A23,2)>5,"FREE",""),VLOOKUP($A23,VETA!$A$11:$L$210,7,FALSE)) ->  | W23: =IF(V23="","",IF(V23="FREE","",VLOOKUP($A23,VETA!$A$11:$L$210,2,FALSE))) ->  | X23: =IF(V23="","",IF(V23="FREE","",VLOOKUP($A23,VETA!$A$11:$L$210,8,FALSE))) ->  | Y23: =IF(V23="","",IF(V23="FREE","",VLOOKUP($A23,VETA!$A$11:$L$210,11,FALSE))) ->  | Z23: =IF(V23="","",IF(V23="FREE","",VLOOKUP($A23,VETA!$A$11:$L$210,10,FALSE))) -> 
A24: 2017-07-14 | B24: =IF(ISERROR(VLOOKUP($A24,SENA!$A$11:$L$210,1,FALSE)),IF(WEEKDAY($A24,2)>5,"FREE",""),VLOOKUP($A24,SENA!$A$11:$L$210,7,FALSE)) ->  | C24: =IF(B24="","",IF(B24="FREE","",VLOOKUP($A24,SENA!$A$11:$L$210,2,FALSE))) ->  | D24: =IF(B24="","",IF(B24="FREE","",VLOOKUP($A24,SENA!$A$11:$L$210,8,FALSE))) ->  | E24: =IF(B24="","",IF(B24="FREE","",VLOOKUP($A24,SENA!$A$11:$L$210,11,FALSE))) ->  | F24: =IF(B24="","",IF(B24="FREE","",VLOOKUP($A24,SENA!$A$11:$L$210,10,FALSE))) ->  | G24: =IF(ISERROR(VLOOKUP($A24,SENB!$A$11:$L$210,1,FALSE)),IF(WEEKDAY($A24,2)>5,"FREE",""),VLOOKUP($A24,SENB!$A$11:$L$210,7,FALSE)) ->  | H24: =IF(G24="","",IF(G24="FREE","",VLOOKUP($A24,SENB!$A$11:$L$210,2,FALSE))) ->  | I24: =IF(G24="","",IF(G24="FREE","",VLOOKUP($A24,SENB!$A$11:$L$210,8,FALSE))) ->  | J24: =IF(G24="","",IF(G24="FREE","",VLOOKUP($A24,SENB!$A$11:$L$210,11,FALSE))) ->  | K24: =IF(G24="","",IF(G24="FREE","",VLOOKUP($A24,SENB!$A$11:$L$210,10,FALSE))) ->  | L24: =IF(ISERROR(VLOOKUP($A24,U19A!$A$11:$AC$210,1,FALSE)),IF(WEEKDAY($A24,2)>5,"FREE",""),VLOOKUP($A24,U19A!$A$11:$AC$210,7,FALSE)) ->  | M24: =IF(L24="","",IF(L24="FREE","",VLOOKUP($A24,U19A!$A$11:$AC$210,2,FALSE))) ->  | N24: =IF(L24="","",IF(L24="FREE","",VLOOKUP($A24,U19A!$A$11:$AC$210,8,FALSE))) ->  | O24: =IF(L24="","",IF(L24="FREE","",VLOOKUP($A24,U19A!$A$11:$AC$210,11,FALSE))) ->  | P24: =IF(L24="","",IF(L24="FREE","",VLOOKUP($A24,U19A!$A$11:$AC$210,10,FALSE))) ->  | Q24: =IF(ISERROR(VLOOKUP($A24,U17A!$A$11:$L$210,1,FALSE)),IF(WEEKDAY($A24,2)>5,"FREE",""),VLOOKUP($A24,U17A!$A$11:$L$210,7,FALSE)) ->  | R24: =IF(Q24="","",IF(Q24="FREE","",VLOOKUP($A24,U17A!$A$11:$L$210,2,FALSE))) ->  | S24: =IF(Q24="","",IF(Q24="FREE","",VLOOKUP($A24,U17A!$A$11:$L$210,8,FALSE))) ->  | T24: =IF(Q24="","",IF(Q24="FREE","",VLOOKUP($A24,U17A!$A$11:$L$210,11,FALSE))) ->  | U24: =IF(Q24="","",IF(Q24="FREE","",VLOOKUP($A24,U17A!$A$11:$L$210,10,FALSE))) ->  | V24: =IF(ISERROR(VLOOKUP($A24,VETA!$A$11:$L$210,1,FALSE)),IF(WEEKDAY($A24,2)>5,"FREE",""),VLOOKUP($A24,VETA!$A$11:$L$210,7,FALSE)) ->  | W24: =IF(V24="","",IF(V24="FREE","",VLOOKUP($A24,VETA!$A$11:$L$210,2,FALSE))) ->  | X24: =IF(V24="","",IF(V24="FREE","",VLOOKUP($A24,VETA!$A$11:$L$210,8,FALSE))) ->  | Y24: =IF(V24="","",IF(V24="FREE","",VLOOKUP($A24,VETA!$A$11:$L$210,11,FALSE))) ->  | Z24: =IF(V24="","",IF(V24="FREE","",VLOOKUP($A24,VETA!$A$11:$L$210,10,FALSE))) -> 
A25: 2017-07-15 | B25: =IF(ISERROR(VLOOKUP($A25,SENA!$A$11:$L$210,1,FALSE)),IF(WEEKDAY($A25,2)>5,"FREE",""),VLOOKUP($A25,SENA!$A$11:$L$210,7,FALSE)) -> FREE | C25: =IF(B25="","",IF(B25="FREE","",VLOOKUP($A25,SENA!$A$11:$L$210,2,FALSE))) ->  | D25: =IF(B25="","",IF(B25="FREE","",VLOOKUP($A25,SENA!$A$11:$L$210,8,FALSE))) ->  | E25: =IF(B25="","",IF(B25="FREE","",VLOOKUP($A25,SENA!$A$11:$L$210,11,FALSE))) ->  | F25: =IF(B25="","",IF(B25="FREE","",VLOOKUP($A25,SENA!$A$11:$L$210,10,FALSE))) ->  | G25: =IF(ISERROR(VLOOKUP($A25,SENB!$A$11:$L$210,1,FALSE)),IF(WEEKDAY($A25,2)>5,"FREE",""),VLOOKUP($A25,SENB!$A$11:$L$210,7,FALSE)) -> FREE | H25: =IF(G25="","",IF(G25="FREE","",VLOOKUP($A25,SENB!$A$11:$L$210,2,FALSE))) ->  | I25: =IF(G25="","",IF(G25="FREE","",VLOOKUP($A25,SENB!$A$11:$L$210,8,FALSE))) ->  | J25: =IF(G25="","",IF(G25="FREE","",VLOOKUP($A25,SENB!$A$11:$L$210,11,FALSE))) ->  | K25: =IF(G25="","",IF(G25="FREE","",VLOOKUP($A25,SENB!$A$11:$L$210,10,FALSE))) ->  | L25: =IF(ISERROR(VLOOKUP($A25,U19A!$A$11:$AC$210,1,FALSE)),IF(WEEKDAY($A25,2)>5,"FREE",""),VLOOKUP($A25,U19A!$A$11:$AC$210,7,FALSE)) -> FREE | M25: =IF(L25="","",IF(L25="FREE","",VLOOKUP($A25,U19A!$A$11:$AC$210,2,FALSE))) ->  | N25: =IF(L25="","",IF(L25="FREE","",VLOOKUP($A25,U19A!$A$11:$AC$210,8,FALSE))) ->  | O25: =IF(L25="","",IF(L25="FREE","",VLOOKUP($A25,U19A!$A$11:$AC$210,11,FALSE))) ->  | P25: =IF(L25="","",IF(L25="FREE","",VLOOKUP($A25,U19A!$A$11:$AC$210,10,FALSE))) ->  | Q25: =IF(ISERROR(VLOOKUP($A25,U17A!$A$11:$L$210,1,FALSE)),IF(WEEKDAY($A25,2)>5,"FREE",""),VLOOKUP($A25,U17A!$A$11:$L$210,7,FALSE)) -> FREE | R25: =IF(Q25="","",IF(Q25="FREE","",VLOOKUP($A25,U17A!$A$11:$L$210,2,FALSE))) ->  | S25: =IF(Q25="","",IF(Q25="FREE","",VLOOKUP($A25,U17A!$A$11:$L$210,8,FALSE))) ->  | T25: =IF(Q25="","",IF(Q25="FREE","",VLOOKUP($A25,U17A!$A$11:$L$210,11,FALSE))) ->  | U25: =IF(Q25="","",IF(Q25="FREE","",VLOOKUP($A25,U17A!$A$11:$L$210,10,FALSE))) ->  | V25: =IF(ISERROR(VLOOKUP($A25,VETA!$A$11:$L$210,1,FALSE)),IF(WEEKDAY($A25,2)>5,"FREE",""),VLOOKUP($A25,VETA!$A$11:$L$210,7,FALSE)) -> FREE | W25: =IF(V25="","",IF(V25="FREE","",VLOOKUP($A25,VETA!$A$11:$L$210,2,FALSE))) ->  | X25: =IF(V25="","",IF(V25="FREE","",VLOOKUP($A25,VETA!$A$11:$L$210,8,FALSE))) ->  | Y25: =IF(V25="","",IF(V25="FREE","",VLOOKUP($A25,VETA!$A$11:$L$210,11,FALSE))) ->  | Z25: =IF(V25="","",IF(V25="FREE","",VLOOKUP($A25,VETA!$A$11:$L$210,10,FALSE))) -> 
A26: 2017-07-16 | B26: =IF(ISERROR(VLOOKUP($A26,SENA!$A$11:$L$210,1,FALSE)),IF(WEEKDAY($A26,2)>5,"FREE",""),VLOOKUP($A26,SENA!$A$11:$L$210,7,FALSE)) -> FREE | C26: =IF(B26="","",IF(B26="FREE","",VLOOKUP($A26,SENA!$A$11:$L$210,2,FALSE))) ->  | D26: =IF(B26="","",IF(B26="FREE","",VLOOKUP($A26,SENA!$A$11:$L$210,8,FALSE))) ->  | E26: =IF(B26="","",IF(B26="FREE","",VLOOKUP($A26,SENA!$A$11:$L$210,11,FALSE))) ->  | F26: =IF(B26="","",IF(B26="FREE","",VLOOKUP($A26,SENA!$A$11:$L$210,10,FALSE))) ->  | G26: =IF(ISERROR(VLOOKUP($A26,SENB!$A$11:$L$210,1,FALSE)),IF(WEEKDAY($A26,2)>5,"FREE",""),VLOOKUP($A26,SENB!$A$11:$L$210,7,FALSE)) -> FREE | H26: =IF(G26="","",IF(G26="FREE","",VLOOKUP($A26,SENB!$A$11:$L$210,2,FALSE))) ->  | I26: =IF(G26="","",IF(G26="FREE","",VLOOKUP($A26,SENB!$A$11:$L$210,8,FALSE))) ->  | J26: =IF(G26="","",IF(G26="FREE","",VLOOKUP($A26,SENB!$A$11:$L$210,11,FALSE))) ->  | K26: =IF(G26="","",IF(G26="FREE","",VLOOKUP($A26,SENB!$A$11:$L$210,10,FALSE))) ->  | L26: =IF(ISERROR(VLOOKUP($A26,U19A!$A$11:$AC$210,1,FALSE)),IF(WEEKDAY($A26,2)>5,"FREE",""),VLOOKUP($A26,U19A!$A$11:$AC$210,7,FALSE)) -> FREE | M26: =IF(L26="","",IF(L26="FREE","",VLOOKUP($A26,U19A!$A$11:$AC$210,2,FALSE))) ->  | N26: =IF(L26="","",IF(L26="FREE","",VLOOKUP($A26,U19A!$A$11:$AC$210,8,FALSE))) ->  | O26: =IF(L26="","",IF(L26="FREE","",VLOOKUP($A26,U19A!$A$11:$AC$210,11,FALSE))) ->  | P26: =IF(L26="","",IF(L26="FREE","",VLOOKUP($A26,U19A!$A$11:$AC$210,10,FALSE))) ->  | Q26: =IF(ISERROR(VLOOKUP($A26,U17A!$A$11:$L$210,1,FALSE)),IF(WEEKDAY($A26,2)>5,"FREE",""),VLOOKUP($A26,U17A!$A$11:$L$210,7,FALSE)) -> FREE | R26: =IF(Q26="","",IF(Q26="FREE","",VLOOKUP($A26,U17A!$A$11:$L$210,2,FALSE))) ->  | S26: =IF(Q26="","",IF(Q26="FREE","",VLOOKUP($A26,U17A!$A$11:$L$210,8,FALSE))) ->  | T26: =IF(Q26="","",IF(Q26="FREE","",VLOOKUP($A26,U17A!$A$11:$L$210,11,FALSE))) ->  | U26: =IF(Q26="","",IF(Q26="FREE","",VLOOKUP($A26,U17A!$A$11:$L$210,10,FALSE))) ->  | V26: =IF(ISERROR(VLOOKUP($A26,VETA!$A$11:$L$210,1,FALSE)),IF(WEEKDAY($A26,2)>5,"FREE",""),VLOOKUP($A26,VETA!$A$11:$L$210,7,FALSE)) -> FREE | W26: =IF(V26="","",IF(V26="FREE","",VLOOKUP($A26,VETA!$A$11:$L$210,2,FALSE))) ->  | X26: =IF(V26="","",IF(V26="FREE","",VLOOKUP($A26,VETA!$A$11:$L$210,8,FALSE))) ->  | Y26: =IF(V26="","",IF(V26="FREE","",VLOOKUP($A26,VETA!$A$11:$L$210,11,FALSE))) ->  | Z26: =IF(V26="","",IF(V26="FREE","",VLOOKUP($A26,VETA!$A$11:$L$210,10,FALSE))) -> 
A27: 2017-07-17 | B27: =IF(ISERROR(VLOOKUP($A27,SENA!$A$11:$L$210,1,FALSE)),IF(WEEKDAY($A27,2)>5,"FREE",""),VLOOKUP($A27,SENA!$A$11:$L$210,7,FALSE)) ->  | C27: =IF(B27="","",IF(B27="FREE","",VLOOKUP($A27,SENA!$A$11:$L$210,2,FALSE))) ->  | D27: =IF(B27="","",IF(B27="FREE","",VLOOKUP($A27,SENA!$A$11:$L$210,8,FALSE))) ->  | E27: =IF(B27="","",IF(B27="FREE","",VLOOKUP($A27,SENA!$A$11:$L$210,11,FALSE))) ->  | F27: =IF(B27="","",IF(B27="FREE","",VLOOKUP($A27,SENA!$A$11:$L$210,10,FALSE))) ->  | G27: =IF(ISERROR(VLOOKUP($A27,SENB!$A$11:$L$210,1,FALSE)),IF(WEEKDAY($A27,2)>5,"FREE",""),VLOOKUP($A27,SENB!$A$11:$L$210,7,FALSE)) ->  | H27: =IF(G27="","",IF(G27="FREE","",VLOOKUP($A27,SENB!$A$11:$L$210,2,FALSE))) ->  | I27: =IF(G27="","",IF(G27="FREE","",VLOOKUP($A27,SENB!$A$11:$L$210,8,FALSE))) ->  | J27: =IF(G27="","",IF(G27="FREE","",VLOOKUP($A27,SENB!$A$11:$L$210,11,FALSE))) ->  | K27: =IF(G27="","",IF(G27="FREE","",VLOOKUP($A27,SENB!$A$11:$L$210,10,FALSE))) ->  | L27: =IF(ISERROR(VLOOKUP($A27,U19A!$A$11:$AC$210,1,FALSE)),IF(WEEKDAY($A27,2)>5,"FREE",""),VLOOKUP($A27,U19A!$A$11:$AC$210,7,FALSE)) ->  | M27: =IF(L27="","",IF(L27="FREE","",VLOOKUP($A27,U19A!$A$11:$AC$210,2,FALSE))) ->  | N27: =IF(L27="","",IF(L27="FREE","",VLOOKUP($A27,U19A!$A$11:$AC$210,8,FALSE))) ->  | O27: =IF(L27="","",IF(L27="FREE","",VLOOKUP($A27,U19A!$A$11:$AC$210,11,FALSE))) ->  | P27: =IF(L27="","",IF(L27="FREE","",VLOOKUP($A27,U19A!$A$11:$AC$210,10,FALSE))) ->  | Q27: =IF(ISERROR(VLOOKUP($A27,U17A!$A$11:$L$210,1,FALSE)),IF(WEEKDAY($A27,2)>5,"FREE",""),VLOOKUP($A27,U17A!$A$11:$L$210,7,FALSE)) ->  | R27: =IF(Q27="","",IF(Q27="FREE","",VLOOKUP($A27,U17A!$A$11:$L$210,2,FALSE))) ->  | S27: =IF(Q27="","",IF(Q27="FREE","",VLOOKUP($A27,U17A!$A$11:$L$210,8,FALSE))) ->  | T27: =IF(Q27="","",IF(Q27="FREE","",VLOOKUP($A27,U17A!$A$11:$L$210,11,FALSE))) ->  | U27: =IF(Q27="","",IF(Q27="FREE","",VLOOKUP($A27,U17A!$A$11:$L$210,10,FALSE))) ->  | V27: =IF(ISERROR(VLOOKUP($A27,VETA!$A$11:$L$210,1,FALSE)),IF(WEEKDAY($A27,2)>5,"FREE",""),VLOOKUP($A27,VETA!$A$11:$L$210,7,FALSE)) ->  | W27: =IF(V27="","",IF(V27="FREE","",VLOOKUP($A27,VETA!$A$11:$L$210,2,FALSE))) ->  | X27: =IF(V27="","",IF(V27="FREE","",VLOOKUP($A27,VETA!$A$11:$L$210,8,FALSE))) ->  | Y27: =IF(V27="","",IF(V27="FREE","",VLOOKUP($A27,VETA!$A$11:$L$210,11,FALSE))) ->  | Z27: =IF(V27="","",IF(V27="FREE","",VLOOKUP($A27,VETA!$A$11:$L$210,10,FALSE))) -> 
A28: 2017-07-18 | B28: =IF(ISERROR(VLOOKUP($A28,SENA!$A$11:$L$210,1,FALSE)),IF(WEEKDAY($A28,2)>5,"FREE",""),VLOOKUP($A28,SENA!$A$11:$L$210,7,FALSE)) ->  | C28: =IF(B28="","",IF(B28="FREE","",VLOOKUP($A28,SENA!$A$11:$L$210,2,FALSE))) ->  | D28: =IF(B28="","",IF(B28="FREE","",VLOOKUP($A28,SENA!$A$11:$L$210,8,FALSE))) ->  | E28: =IF(B28="","",IF(B28="FREE","",VLOOKUP($A28,SENA!$A$11:$L$210,11,FALSE))) ->  | F28: =IF(B28="","",IF(B28="FREE","",VLOOKUP($A28,SENA!$A$11:$L$210,10,FALSE))) ->  | G28: =IF(ISERROR(VLOOKUP($A28,SENB!$A$11:$L$210,1,FALSE)),IF(WEEKDAY($A28,2)>5,"FREE",""),VLOOKUP($A28,SENB!$A$11:$L$210,7,FALSE)) ->  | H28: =IF(G28="","",IF(G28="FREE","",VLOOKUP($A28,SENB!$A$11:$L$210,2,FALSE))) ->  | I28: =IF(G28="","",IF(G28="FREE","",VLOOKUP($A28,SENB!$A$11:$L$210,8,FALSE))) ->  | J28: =IF(G28="","",IF(G28="FREE","",VLOOKUP($A28,SENB!$A$11:$L$210,11,FALSE))) ->  | K28: =IF(G28="","",IF(G28="FREE","",VLOOKUP($A28,SENB!$A$11:$L$210,10,FALSE))) ->  | L28: =IF(ISERROR(VLOOKUP($A28,U19A!$A$11:$AC$210,1,FALSE)),IF(WEEKDAY($A28,2)>5,"FREE",""),VLOOKUP($A28,U19A!$A$11:$AC$210,7,FALSE)) ->  | M28: =IF(L28="","",IF(L28="FREE","",VLOOKUP($A28,U19A!$A$11:$AC$210,2,FALSE))) ->  | N28: =IF(L28="","",IF(L28="FREE","",VLOOKUP($A28,U19A!$A$11:$AC$210,8,FALSE))) ->  | O28: =IF(L28="","",IF(L28="FREE","",VLOOKUP($A28,U19A!$A$11:$AC$210,11,FALSE))) ->  | P28: =IF(L28="","",IF(L28="FREE","",VLOOKUP($A28,U19A!$A$11:$AC$210,10,FALSE))) ->  | Q28: =IF(ISERROR(VLOOKUP($A28,U17A!$A$11:$L$210,1,FALSE)),IF(WEEKDAY($A28,2)>5,"FREE",""),VLOOKUP($A28,U17A!$A$11:$L$210,7,FALSE)) ->  | R28: =IF(Q28="","",IF(Q28="FREE","",VLOOKUP($A28,U17A!$A$11:$L$210,2,FALSE))) ->  | S28: =IF(Q28="","",IF(Q28="FREE","",VLOOKUP($A28,U17A!$A$11:$L$210,8,FALSE))) ->  | T28: =IF(Q28="","",IF(Q28="FREE","",VLOOKUP($A28,U17A!$A$11:$L$210,11,FALSE))) ->  | U28: =IF(Q28="","",IF(Q28="FREE","",VLOOKUP($A28,U17A!$A$11:$L$210,10,FALSE))) ->  | V28: =IF(ISERROR(VLOOKUP($A28,VETA!$A$11:$L$210,1,FALSE)),IF(WEEKDAY($A28,2)>5,"FREE",""),VLOOKUP($A28,VETA!$A$11:$L$210,7,FALSE)) ->  | W28: =IF(V28="","",IF(V28="FREE","",VLOOKUP($A28,VETA!$A$11:$L$210,2,FALSE))) ->  | X28: =IF(V28="","",IF(V28="FREE","",VLOOKUP($A28,VETA!$A$11:$L$210,8,FALSE))) ->  | Y28: =IF(V28="","",IF(V28="FREE","",VLOOKUP($A28,VETA!$A$11:$L$210,11,FALSE))) ->  | Z28: =IF(V28="","",IF(V28="FREE","",VLOOKUP($A28,VETA!$A$11:$L$210,10,FALSE))) -> 
A29: 2017-07-19 | B29: =IF(ISERROR(VLOOKUP($A29,SENA!$A$11:$L$210,1,FALSE)),IF(WEEKDAY($A29,2)>5,"FREE",""),VLOOKUP($A29,SENA!$A$11:$L$210,7,FALSE)) ->  | C29: =IF(B29="","",IF(B29="FREE","",VLOOKUP($A29,SENA!$A$11:$L$210,2,FALSE))) ->  | D29: =IF(B29="","",IF(B29="FREE","",VLOOKUP($A29,SENA!$A$11:$L$210,8,FALSE))) ->  | E29: =IF(B29="","",IF(B29="FREE","",VLOOKUP($A29,SENA!$A$11:$L$210,11,FALSE))) ->  | F29: =IF(B29="","",IF(B29="FREE","",VLOOKUP($A29,SENA!$A$11:$L$210,10,FALSE))) ->  | G29: =IF(ISERROR(VLOOKUP($A29,SENB!$A$11:$L$210,1,FALSE)),IF(WEEKDAY($A29,2)>5,"FREE",""),VLOOKUP($A29,SENB!$A$11:$L$210,7,FALSE)) ->  | H29: =IF(G29="","",IF(G29="FREE","",VLOOKUP($A29,SENB!$A$11:$L$210,2,FALSE))) ->  | I29: =IF(G29="","",IF(G29="FREE","",VLOOKUP($A29,SENB!$A$11:$L$210,8,FALSE))) ->  | J29: =IF(G29="","",IF(G29="FREE","",VLOOKUP($A29,SENB!$A$11:$L$210,11,FALSE))) ->  | K29: =IF(G29="","",IF(G29="FREE","",VLOOKUP($A29,SENB!$A$11:$L$210,10,FALSE))) ->  | L29: =IF(ISERROR(VLOOKUP($A29,U19A!$A$11:$AC$210,1,FALSE)),IF(WEEKDAY($A29,2)>5,"FREE",""),VLOOKUP($A29,U19A!$A$11:$AC$210,7,FALSE)) ->  | M29: =IF(L29="","",IF(L29="FREE","",VLOOKUP($A29,U19A!$A$11:$AC$210,2,FALSE))) ->  | N29: =IF(L29="","",IF(L29="FREE","",VLOOKUP($A29,U19A!$A$11:$AC$210,8,FALSE))) ->  | O29: =IF(L29="","",IF(L29="FREE","",VLOOKUP($A29,U19A!$A$11:$AC$210,11,FALSE))) ->  | P29: =IF(L29="","",IF(L29="FREE","",VLOOKUP($A29,U19A!$A$11:$AC$210,10,FALSE))) ->  | Q29: =IF(ISERROR(VLOOKUP($A29,U17A!$A$11:$L$210,1,FALSE)),IF(WEEKDAY($A29,2)>5,"FREE",""),VLOOKUP($A29,U17A!$A$11:$L$210,7,FALSE)) ->  | R29: =IF(Q29="","",IF(Q29="FREE","",VLOOKUP($A29,U17A!$A$11:$L$210,2,FALSE))) ->  | S29: =IF(Q29="","",IF(Q29="FREE","",VLOOKUP($A29,U17A!$A$11:$L$210,8,FALSE))) ->  | T29: =IF(Q29="","",IF(Q29="FREE","",VLOOKUP($A29,U17A!$A$11:$L$210,11,FALSE))) ->  | U29: =IF(Q29="","",IF(Q29="FREE","",VLOOKUP($A29,U17A!$A$11:$L$210,10,FALSE))) ->  | V29: =IF(ISERROR(VLOOKUP($A29,VETA!$A$11:$L$210,1,FALSE)),IF(WEEKDAY($A29,2)>5,"FREE",""),VLOOKUP($A29,VETA!$A$11:$L$210,7,FALSE)) ->  | W29: =IF(V29="","",IF(V29="FREE","",VLOOKUP($A29,VETA!$A$11:$L$210,2,FALSE))) ->  | X29: =IF(V29="","",IF(V29="FREE","",VLOOKUP($A29,VETA!$A$11:$L$210,8,FALSE))) ->  | Y29: =IF(V29="","",IF(V29="FREE","",VLOOKUP($A29,VETA!$A$11:$L$210,11,FALSE))) ->  | Z29: =IF(V29="","",IF(V29="FREE","",VLOOKUP($A29,VETA!$A$11:$L$210,10,FALSE))) -> 
A30: 2017-07-20 | B30: =IF(ISERROR(VLOOKUP($A30,SENA!$A$11:$L$210,1,FALSE)),IF(WEEKDAY($A30,2)>5,"FREE",""),VLOOKUP($A30,SENA!$A$11:$L$210,7,FALSE)) ->  | C30: =IF(B30="","",IF(B30="FREE","",VLOOKUP($A30,SENA!$A$11:$L$210,2,FALSE))) ->  | D30: =IF(B30="","",IF(B30="FREE","",VLOOKUP($A30,SENA!$A$11:$L$210,8,FALSE))) ->  | E30: =IF(B30="","",IF(B30="FREE","",VLOOKUP($A30,SENA!$A$11:$L$210,11,FALSE))) ->  | F30: =IF(B30="","",IF(B30="FREE","",VLOOKUP($A30,SENA!$A$11:$L$210,10,FALSE))) ->  | G30: =IF(ISERROR(VLOOKUP($A30,SENB!$A$11:$L$210,1,FALSE)),IF(WEEKDAY($A30,2)>5,"FREE",""),VLOOKUP($A30,SENB!$A$11:$L$210,7,FALSE)) ->  | H30: =IF(G30="","",IF(G30="FREE","",VLOOKUP($A30,SENB!$A$11:$L$210,2,FALSE))) ->  | I30: =IF(G30="","",IF(G30="FREE","",VLOOKUP($A30,SENB!$A$11:$L$210,8,FALSE))) ->  | J30: =IF(G30="","",IF(G30="FREE","",VLOOKUP($A30,SENB!$A$11:$L$210,11,FALSE))) ->  | K30: =IF(G30="","",IF(G30="FREE","",VLOOKUP($A30,SENB!$A$11:$L$210,10,FALSE))) ->  | L30: =IF(ISERROR(VLOOKUP($A30,U19A!$A$11:$AC$210,1,FALSE)),IF(WEEKDAY($A30,2)>5,"FREE",""),VLOOKUP($A30,U19A!$A$11:$AC$210,7,FALSE)) ->  | M30: =IF(L30="","",IF(L30="FREE","",VLOOKUP($A30,U19A!$A$11:$AC$210,2,FALSE))) ->  | N30: =IF(L30="","",IF(L30="FREE","",VLOOKUP($A30,U19A!$A$11:$AC$210,8,FALSE))) ->  | O30: =IF(L30="","",IF(L30="FREE","",VLOOKUP($A30,U19A!$A$11:$AC$210,11,FALSE))) ->  | P30: =IF(L30="","",IF(L30="FREE","",VLOOKUP($A30,U19A!$A$11:$AC$210,10,FALSE))) ->  | Q30: =IF(ISERROR(VLOOKUP($A30,U17A!$A$11:$L$210,1,FALSE)),IF(WEEKDAY($A30,2)>5,"FREE",""),VLOOKUP($A30,U17A!$A$11:$L$210,7,FALSE)) ->  | R30: =IF(Q30="","",IF(Q30="FREE","",VLOOKUP($A30,U17A!$A$11:$L$210,2,FALSE))) ->  | S30: =IF(Q30="","",IF(Q30="FREE","",VLOOKUP($A30,U17A!$A$11:$L$210,8,FALSE))) ->  | T30: =IF(Q30="","",IF(Q30="FREE","",VLOOKUP($A30,U17A!$A$11:$L$210,11,FALSE))) ->  | U30: =IF(Q30="","",IF(Q30="FREE","",VLOOKUP($A30,U17A!$A$11:$L$210,10,FALSE))) ->  | V30: =IF(ISERROR(VLOOKUP($A30,VETA!$A$11:$L$210,1,FALSE)),IF(WEEKDAY($A30,2)>5,"FREE",""),VLOOKUP($A30,VETA!$A$11:$L$210,7,FALSE)) ->  | W30: =IF(V30="","",IF(V30="FREE","",VLOOKUP($A30,VETA!$A$11:$L$210,2,FALSE))) ->  | X30: =IF(V30="","",IF(V30="FREE","",VLOOKUP($A30,VETA!$A$11:$L$210,8,FALSE))) ->  | Y30: =IF(V30="","",IF(V30="FREE","",VLOOKUP($A30,VETA!$A$11:$L$210,11,FALSE))) ->  | Z30: =IF(V30="","",IF(V30="FREE","",VLOOKUP($A30,VETA!$A$11:$L$210,10,FALSE))) -> 
A31: 2017-07-21 | B31: =IF(ISERROR(VLOOKUP($A31,SENA!$A$11:$L$210,1,FALSE)),IF(WEEKDAY($A31,2)>5,"FREE",""),VLOOKUP($A31,SENA!$A$11:$L$210,7,FALSE)) ->  | C31: =IF(B31="","",IF(B31="FREE","",VLOOKUP($A31,SENA!$A$11:$L$210,2,FALSE))) ->  | D31: =IF(B31="","",IF(B31="FREE","",VLOOKUP($A31,SENA!$A$11:$L$210,8,FALSE))) ->  | E31: =IF(B31="","",IF(B31="FREE","",VLOOKUP($A31,SENA!$A$11:$L$210,11,FALSE))) ->  | F31: =IF(B31="","",IF(B31="FREE","",VLOOKUP($A31,SENA!$A$11:$L$210,10,FALSE))) ->  | G31: =IF(ISERROR(VLOOKUP($A31,SENB!$A$11:$L$210,1,FALSE)),IF(WEEKDAY($A31,2)>5,"FREE",""),VLOOKUP($A31,SENB!$A$11:$L$210,7,FALSE)) ->  | H31: =IF(G31="","",IF(G31="FREE","",VLOOKUP($A31,SENB!$A$11:$L$210,2,FALSE))) ->  | I31: =IF(G31="","",IF(G31="FREE","",VLOOKUP($A31,SENB!$A$11:$L$210,8,FALSE))) ->  | J31: =IF(G31="","",IF(G31="FREE","",VLOOKUP($A31,SENB!$A$11:$L$210,11,FALSE))) ->  | K31: =IF(G31="","",IF(G31="FREE","",VLOOKUP($A31,SENB!$A$11:$L$210,10,FALSE))) ->  | L31: =IF(ISERROR(VLOOKUP($A31,U19A!$A$11:$AC$210,1,FALSE)),IF(WEEKDAY($A31,2)>5,"FREE",""),VLOOKUP($A31,U19A!$A$11:$AC$210,7,FALSE)) ->  | M31: =IF(L31="","",IF(L31="FREE","",VLOOKUP($A31,U19A!$A$11:$AC$210,2,FALSE))) ->  | N31: =IF(L31="","",IF(L31="FREE","",VLOOKUP($A31,U19A!$A$11:$AC$210,8,FALSE))) ->  | O31: =IF(L31="","",IF(L31="FREE","",VLOOKUP($A31,U19A!$A$11:$AC$210,11,FALSE))) ->  | P31: =IF(L31="","",IF(L31="FREE","",VLOOKUP($A31,U19A!$A$11:$AC$210,10,FALSE))) ->  | Q31: =IF(ISERROR(VLOOKUP($A31,U17A!$A$11:$L$210,1,FALSE)),IF(WEEKDAY($A31,2)>5,"FREE",""),VLOOKUP($A31,U17A!$A$11:$L$210,7,FALSE)) ->  | R31: =IF(Q31="","",IF(Q31="FREE","",VLOOKUP($A31,U17A!$A$11:$L$210,2,FALSE))) ->  | S31: =IF(Q31="","",IF(Q31="FREE","",VLOOKUP($A31,U17A!$A$11:$L$210,8,FALSE))) ->  | T31: =IF(Q31="","",IF(Q31="FREE","",VLOOKUP($A31,U17A!$A$11:$L$210,11,FALSE))) ->  | U31: =IF(Q31="","",IF(Q31="FREE","",VLOOKUP($A31,U17A!$A$11:$L$210,10,FALSE))) ->  | V31: =IF(ISERROR(VLOOKUP($A31,VETA!$A$11:$L$210,1,FALSE)),IF(WEEKDAY($A31,2)>5,"FREE",""),VLOOKUP($A31,VETA!$A$11:$L$210,7,FALSE)) ->  | W31: =IF(V31="","",IF(V31="FREE","",VLOOKUP($A31,VETA!$A$11:$L$210,2,FALSE))) ->  | X31: =IF(V31="","",IF(V31="FREE","",VLOOKUP($A31,VETA!$A$11:$L$210,8,FALSE))) ->  | Y31: =IF(V31="","",IF(V31="FREE","",VLOOKUP($A31,VETA!$A$11:$L$210,11,FALSE))) ->  | Z31: =IF(V31="","",IF(V31="FREE","",VLOOKUP($A31,VETA!$A$11:$L$210,10,FALSE))) -> 
A32: 2017-07-22 | B32: =IF(ISERROR(VLOOKUP($A32,SENA!$A$11:$L$210,1,FALSE)),IF(WEEKDAY($A32,2)>5,"FREE",""),VLOOKUP($A32,SENA!$A$11:$L$210,7,FALSE)) -> FREE | C32: =IF(B32="","",IF(B32="FREE","",VLOOKUP($A32,SENA!$A$11:$L$210,2,FALSE))) ->  | D32: =IF(B32="","",IF(B32="FREE","",VLOOKUP($A32,SENA!$A$11:$L$210,8,FALSE))) ->  | E32: =IF(B32="","",IF(B32="FREE","",VLOOKUP($A32,SENA!$A$11:$L$210,11,FALSE))) ->  | F32: =IF(B32="","",IF(B32="FREE","",VLOOKUP($A32,SENA!$A$11:$L$210,10,FALSE))) ->  | G32: =IF(ISERROR(VLOOKUP($A32,SENB!$A$11:$L$210,1,FALSE)),IF(WEEKDAY($A32,2)>5,"FREE",""),VLOOKUP($A32,SENB!$A$11:$L$210,7,FALSE)) -> FREE | H32: =IF(G32="","",IF(G32="FREE","",VLOOKUP($A32,SENB!$A$11:$L$210,2,FALSE))) ->  | I32: =IF(G32="","",IF(G32="FREE","",VLOOKUP($A32,SENB!$A$11:$L$210,8,FALSE))) ->  | J32: =IF(G32="","",IF(G32="FREE","",VLOOKUP($A32,SENB!$A$11:$L$210,11,FALSE))) ->  | K32: =IF(G32="","",IF(G32="FREE","",VLOOKUP($A32,SENB!$A$11:$L$210,10,FALSE))) ->  | L32: =IF(ISERROR(VLOOKUP($A32,U19A!$A$11:$AC$210,1,FALSE)),IF(WEEKDAY($A32,2)>5,"FREE",""),VLOOKUP($A32,U19A!$A$11:$AC$210,7,FALSE)) -> FREE | M32: =IF(L32="","",IF(L32="FREE","",VLOOKUP($A32,U19A!$A$11:$AC$210,2,FALSE))) ->  | N32: =IF(L32="","",IF(L32="FREE","",VLOOKUP($A32,U19A!$A$11:$AC$210,8,FALSE))) ->  | O32: =IF(L32="","",IF(L32="FREE","",VLOOKUP($A32,U19A!$A$11:$AC$210,11,FALSE))) ->  | P32: =IF(L32="","",IF(L32="FREE","",VLOOKUP($A32,U19A!$A$11:$AC$210,10,FALSE))) ->  | Q32: =IF(ISERROR(VLOOKUP($A32,U17A!$A$11:$L$210,1,FALSE)),IF(WEEKDAY($A32,2)>5,"FREE",""),VLOOKUP($A32,U17A!$A$11:$L$210,7,FALSE)) -> FREE | R32: =IF(Q32="","",IF(Q32="FREE","",VLOOKUP($A32,U17A!$A$11:$L$210,2,FALSE))) ->  | S32: =IF(Q32="","",IF(Q32="FREE","",VLOOKUP($A32,U17A!$A$11:$L$210,8,FALSE))) ->  | T32: =IF(Q32="","",IF(Q32="FREE","",VLOOKUP($A32,U17A!$A$11:$L$210,11,FALSE))) ->  | U32: =IF(Q32="","",IF(Q32="FREE","",VLOOKUP($A32,U17A!$A$11:$L$210,10,FALSE))) ->  | V32: =IF(ISERROR(VLOOKUP($A32,VETA!$A$11:$L$210,1,FALSE)),IF(WEEKDAY($A32,2)>5,"FREE",""),VLOOKUP($A32,VETA!$A$11:$L$210,7,FALSE)) -> FREE | W32: =IF(V32="","",IF(V32="FREE","",VLOOKUP($A32,VETA!$A$11:$L$210,2,FALSE))) ->  | X32: =IF(V32="","",IF(V32="FREE","",VLOOKUP($A32,VETA!$A$11:$L$210,8,FALSE))) ->  | Y32: =IF(V32="","",IF(V32="FREE","",VLOOKUP($A32,VETA!$A$11:$L$210,11,FALSE))) ->  | Z32: =IF(V32="","",IF(V32="FREE","",VLOOKUP($A32,VETA!$A$11:$L$210,10,FALSE))) -> 
A33: 2017-07-23 | B33: =IF(ISERROR(VLOOKUP($A33,SENA!$A$11:$L$210,1,FALSE)),IF(WEEKDAY($A33,2)>5,"FREE",""),VLOOKUP($A33,SENA!$A$11:$L$210,7,FALSE)) -> FREE | C33: =IF(B33="","",IF(B33="FREE","",VLOOKUP($A33,SENA!$A$11:$L$210,2,FALSE))) ->  | D33: =IF(B33="","",IF(B33="FREE","",VLOOKUP($A33,SENA!$A$11:$L$210,8,FALSE))) ->  | E33: =IF(B33="","",IF(B33="FREE","",VLOOKUP($A33,SENA!$A$11:$L$210,11,FALSE))) ->  | F33: =IF(B33="","",IF(B33="FREE","",VLOOKUP($A33,SENA!$A$11:$L$210,10,FALSE))) ->  | G33: =IF(ISERROR(VLOOKUP($A33,SENB!$A$11:$L$210,1,FALSE)),IF(WEEKDAY($A33,2)>5,"FREE",""),VLOOKUP($A33,SENB!$A$11:$L$210,7,FALSE)) -> AWAY | H33: =IF(G33="","",IF(G33="FREE","",VLOOKUP($A33,SENB!$A$11:$L$210,2,FALSE))) -> 16:00:00 | I33: =IF(G33="","",IF(G33="FREE","",VLOOKUP($A33,SENB!$A$11:$L$210,8,FALSE))) -> 18:00:00 | J33: =IF(G33="","",IF(G33="FREE","",VLOOKUP($A33,SENB!$A$11:$L$210,11,FALSE))) -> VAUX CHAUDFONTAINE_COUPE | K33: =IF(G33="","",IF(G33="FREE","",VLOOKUP($A33,SENB!$A$11:$L$210,10,FALSE))) -> UKN | L33: =IF(ISERROR(VLOOKUP($A33,U19A!$A$11:$AC$210,1,FALSE)),IF(WEEKDAY($A33,2)>5,"FREE",""),VLOOKUP($A33,U19A!$A$11:$AC$210,7,FALSE)) -> FREE | M33: =IF(L33="","",IF(L33="FREE","",VLOOKUP($A33,U19A!$A$11:$AC$210,2,FALSE))) ->  | N33: =IF(L33="","",IF(L33="FREE","",VLOOKUP($A33,U19A!$A$11:$AC$210,8,FALSE))) ->  | O33: =IF(L33="","",IF(L33="FREE","",VLOOKUP($A33,U19A!$A$11:$AC$210,11,FALSE))) ->  | P33: =IF(L33="","",IF(L33="FREE","",VLOOKUP($A33,U19A!$A$11:$AC$210,10,FALSE))) ->  | Q33: =IF(ISERROR(VLOOKUP($A33,U17A!$A$11:$L$210,1,FALSE)),IF(WEEKDAY($A33,2)>5,"FREE",""),VLOOKUP($A33,U17A!$A$11:$L$210,7,FALSE)) -> FREE | R33: =IF(Q33="","",IF(Q33="FREE","",VLOOKUP($A33,U17A!$A$11:$L$210,2,FALSE))) ->  | S33: =IF(Q33="","",IF(Q33="FREE","",VLOOKUP($A33,U17A!$A$11:$L$210,8,FALSE))) ->  | T33: =IF(Q33="","",IF(Q33="FREE","",VLOOKUP($A33,U17A!$A$11:$L$210,11,FALSE))) ->  | U33: =IF(Q33="","",IF(Q33="FREE","",VLOOKUP($A33,U17A!$A$11:$L$210,10,FALSE))) ->  | V33: =IF(ISERROR(VLOOKUP($A33,VETA!$A$11:$L$210,1,FALSE)),IF(WEEKDAY($A33,2)>5,"FREE",""),VLOOKUP($A33,VETA!$A$11:$L$210,7,FALSE)) -> FREE | W33: =IF(V33="","",IF(V33="FREE","",VLOOKUP($A33,VETA!$A$11:$L$210,2,FALSE))) ->  | X33: =IF(V33="","",IF(V33="FREE","",VLOOKUP($A33,VETA!$A$11:$L$210,8,FALSE))) ->  | Y33: =IF(V33="","",IF(V33="FREE","",VLOOKUP($A33,VETA!$A$11:$L$210,11,FALSE))) ->  | Z33: =IF(V33="","",IF(V33="FREE","",VLOOKUP($A33,VETA!$A$11:$L$210,10,FALSE))) -> 
A34: 2017-07-24 | B34: =IF(ISERROR(VLOOKUP($A34,SENA!$A$11:$L$210,1,FALSE)),IF(WEEKDAY($A34,2)>5,"FREE",""),VLOOKUP($A34,SENA!$A$11:$L$210,7,FALSE)) ->  | C34: =IF(B34="","",IF(B34="FREE","",VLOOKUP($A34,SENA!$A$11:$L$210,2,FALSE))) ->  | D34: =IF(B34="","",IF(B34="FREE","",VLOOKUP($A34,SENA!$A$11:$L$210,8,FALSE))) ->  | E34: =IF(B34="","",IF(B34="FREE","",VLOOKUP($A34,SENA!$A$11:$L$210,11,FALSE))) ->  | F34: =IF(B34="","",IF(B34="FREE","",VLOOKUP($A34,SENA!$A$11:$L$210,10,FALSE))) ->  | G34: =IF(ISERROR(VLOOKUP($A34,SENB!$A$11:$L$210,1,FALSE)),IF(WEEKDAY($A34,2)>5,"FREE",""),VLOOKUP($A34,SENB!$A$11:$L$210,7,FALSE)) ->  | H34: =IF(G34="","",IF(G34="FREE","",VLOOKUP($A34,SENB!$A$11:$L$210,2,FALSE))) ->  | I34: =IF(G34="","",IF(G34="FREE","",VLOOKUP($A34,SENB!$A$11:$L$210,8,FALSE))) ->  | J34: =IF(G34="","",IF(G34="FREE","",VLOOKUP($A34,SENB!$A$11:$L$210,11,FALSE))) ->  | K34: =IF(G34="","",IF(G34="FREE","",VLOOKUP($A34,SENB!$A$11:$L$210,10,FALSE))) ->  | L34: =IF(ISERROR(VLOOKUP($A34,U19A!$A$11:$AC$210,1,FALSE)),IF(WEEKDAY($A34,2)>5,"FREE",""),VLOOKUP($A34,U19A!$A$11:$AC$210,7,FALSE)) ->  | M34: =IF(L34="","",IF(L34="FREE","",VLOOKUP($A34,U19A!$A$11:$AC$210,2,FALSE))) ->  | N34: =IF(L34="","",IF(L34="FREE","",VLOOKUP($A34,U19A!$A$11:$AC$210,8,FALSE))) ->  | O34: =IF(L34="","",IF(L34="FREE","",VLOOKUP($A34,U19A!$A$11:$AC$210,11,FALSE))) ->  | P34: =IF(L34="","",IF(L34="FREE","",VLOOKUP($A34,U19A!$A$11:$AC$210,10,FALSE))) ->  | Q34: =IF(ISERROR(VLOOKUP($A34,U17A!$A$11:$L$210,1,FALSE)),IF(WEEKDAY($A34,2)>5,"FREE",""),VLOOKUP($A34,U17A!$A$11:$L$210,7,FALSE)) ->  | R34: =IF(Q34="","",IF(Q34="FREE","",VLOOKUP($A34,U17A!$A$11:$L$210,2,FALSE))) ->  | S34: =IF(Q34="","",IF(Q34="FREE","",VLOOKUP($A34,U17A!$A$11:$L$210,8,FALSE))) ->  | T34: =IF(Q34="","",IF(Q34="FREE","",VLOOKUP($A34,U17A!$A$11:$L$210,11,FALSE))) ->  | U34: =IF(Q34="","",IF(Q34="FREE","",VLOOKUP($A34,U17A!$A$11:$L$210,10,FALSE))) ->  | V34: =IF(ISERROR(VLOOKUP($A34,VETA!$A$11:$L$210,1,FALSE)),IF(WEEKDAY($A34,2)>5,"FREE",""),VLOOKUP($A34,VETA!$A$11:$L$210,7,FALSE)) ->  | W34: =IF(V34="","",IF(V34="FREE","",VLOOKUP($A34,VETA!$A$11:$L$210,2,FALSE))) ->  | X34: =IF(V34="","",IF(V34="FREE","",VLOOKUP($A34,VETA!$A$11:$L$210,8,FALSE))) ->  | Y34: =IF(V34="","",IF(V34="FREE","",VLOOKUP($A34,VETA!$A$11:$L$210,11,FALSE))) ->  | Z34: =IF(V34="","",IF(V34="FREE","",VLOOKUP($A34,VETA!$A$11:$L$210,10,FALSE))) -> 
A35: 2017-07-25 | B35: =IF(ISERROR(VLOOKUP($A35,SENA!$A$11:$L$210,1,FALSE)),IF(WEEKDAY($A35,2)>5,"FREE",""),VLOOKUP($A35,SENA!$A$11:$L$210,7,FALSE)) ->  | C35: =IF(B35="","",IF(B35="FREE","",VLOOKUP($A35,SENA!$A$11:$L$210,2,FALSE))) ->  | D35: =IF(B35="","",IF(B35="FREE","",VLOOKUP($A35,SENA!$A$11:$L$210,8,FALSE))) ->  | E35: =IF(B35="","",IF(B35="FREE","",VLOOKUP($A35,SENA!$A$11:$L$210,11,FALSE))) ->  | F35: =IF(B35="","",IF(B35="FREE","",VLOOKUP($A35,SENA!$A$11:$L$210,10,FALSE))) ->  | G35: =IF(ISERROR(VLOOKUP($A35,SENB!$A$11:$L$210,1,FALSE)),IF(WEEKDAY($A35,2)>5,"FREE",""),VLOOKUP($A35,SENB!$A$11:$L$210,7,FALSE)) ->  | H35: =IF(G35="","",IF(G35="FREE","",VLOOKUP($A35,SENB!$A$11:$L$210,2,FALSE))) ->  | I35: =IF(G35="","",IF(G35="FREE","",VLOOKUP($A35,SENB!$A$11:$L$210,8,FALSE))) ->  | J35: =IF(G35="","",IF(G35="FREE","",VLOOKUP($A35,SENB!$A$11:$L$210,11,FALSE))) ->  | K35: =IF(G35="","",IF(G35="FREE","",VLOOKUP($A35,SENB!$A$11:$L$210,10,FALSE))) ->  | L35: =IF(ISERROR(VLOOKUP($A35,U19A!$A$11:$AC$210,1,FALSE)),IF(WEEKDAY($A35,2)>5,"FREE",""),VLOOKUP($A35,U19A!$A$11:$AC$210,7,FALSE)) ->  | M35: =IF(L35="","",IF(L35="FREE","",VLOOKUP($A35,U19A!$A$11:$AC$210,2,FALSE))) ->  | N35: =IF(L35="","",IF(L35="FREE","",VLOOKUP($A35,U19A!$A$11:$AC$210,8,FALSE))) ->  | O35: =IF(L35="","",IF(L35="FREE","",VLOOKUP($A35,U19A!$A$11:$AC$210,11,FALSE))) ->  | P35: =IF(L35="","",IF(L35="FREE","",VLOOKUP($A35,U19A!$A$11:$AC$210,10,FALSE))) ->  | Q35: =IF(ISERROR(VLOOKUP($A35,U17A!$A$11:$L$210,1,FALSE)),IF(WEEKDAY($A35,2)>5,"FREE",""),VLOOKUP($A35,U17A!$A$11:$L$210,7,FALSE)) ->  | R35: =IF(Q35="","",IF(Q35="FREE","",VLOOKUP($A35,U17A!$A$11:$L$210,2,FALSE))) ->  | S35: =IF(Q35="","",IF(Q35="FREE","",VLOOKUP($A35,U17A!$A$11:$L$210,8,FALSE))) ->  | T35: =IF(Q35="","",IF(Q35="FREE","",VLOOKUP($A35,U17A!$A$11:$L$210,11,FALSE))) ->  | U35: =IF(Q35="","",IF(Q35="FREE","",VLOOKUP($A35,U17A!$A$11:$L$210,10,FALSE))) ->  | V35: =IF(ISERROR(VLOOKUP($A35,VETA!$A$11:$L$210,1,FALSE)),IF(WEEKDAY($A35,2)>5,"FREE",""),VLOOKUP($A35,VETA!$A$11:$L$210,7,FALSE)) ->  | W35: =IF(V35="","",IF(V35="FREE","",VLOOKUP($A35,VETA!$A$11:$L$210,2,FALSE))) ->  | X35: =IF(V35="","",IF(V35="FREE","",VLOOKUP($A35,VETA!$A$11:$L$210,8,FALSE))) ->  | Y35: =IF(V35="","",IF(V35="FREE","",VLOOKUP($A35,VETA!$A$11:$L$210,11,FALSE))) ->  | Z35: =IF(V35="","",IF(V35="FREE","",VLOOKUP($A35,VETA!$A$11:$L$210,10,FALSE))) -> 
A36: 2017-07-26 | B36: =IF(ISERROR(VLOOKUP($A36,SENA!$A$11:$L$210,1,FALSE)),IF(WEEKDAY($A36,2)>5,"FREE",""),VLOOKUP($A36,SENA!$A$11:$L$210,7,FALSE)) ->  | C36: =IF(B36="","",IF(B36="FREE","",VLOOKUP($A36,SENA!$A$11:$L$210,2,FALSE))) ->  | D36: =IF(B36="","",IF(B36="FREE","",VLOOKUP($A36,SENA!$A$11:$L$210,8,FALSE))) ->  | E36: =IF(B36="","",IF(B36="FREE","",VLOOKUP($A36,SENA!$A$11:$L$210,11,FALSE))) ->  | F36: =IF(B36="","",IF(B36="FREE","",VLOOKUP($A36,SENA!$A$11:$L$210,10,FALSE))) ->  | G36: =IF(ISERROR(VLOOKUP($A36,SENB!$A$11:$L$210,1,FALSE)),IF(WEEKDAY($A36,2)>5,"FREE",""),VLOOKUP($A36,SENB!$A$11:$L$210,7,FALSE)) ->  | H36: =IF(G36="","",IF(G36="FREE","",VLOOKUP($A36,SENB!$A$11:$L$210,2,FALSE))) ->  | I36: =IF(G36="","",IF(G36="FREE","",VLOOKUP($A36,SENB!$A$11:$L$210,8,FALSE))) ->  | J36: =IF(G36="","",IF(G36="FREE","",VLOOKUP($A36,SENB!$A$11:$L$210,11,FALSE))) ->  | K36: =IF(G36="","",IF(G36="FREE","",VLOOKUP($A36,SENB!$A$11:$L$210,10,FALSE))) ->  | L36: =IF(ISERROR(VLOOKUP($A36,U19A!$A$11:$AC$210,1,FALSE)),IF(WEEKDAY($A36,2)>5,"FREE",""),VLOOKUP($A36,U19A!$A$11:$AC$210,7,FALSE)) ->  | M36: =IF(L36="","",IF(L36="FREE","",VLOOKUP($A36,U19A!$A$11:$AC$210,2,FALSE))) ->  | N36: =IF(L36="","",IF(L36="FREE","",VLOOKUP($A36,U19A!$A$11:$AC$210,8,FALSE))) ->  | O36: =IF(L36="","",IF(L36="FREE","",VLOOKUP($A36,U19A!$A$11:$AC$210,11,FALSE))) ->  | P36: =IF(L36="","",IF(L36="FREE","",VLOOKUP($A36,U19A!$A$11:$AC$210,10,FALSE))) ->  | Q36: =IF(ISERROR(VLOOKUP($A36,U17A!$A$11:$L$210,1,FALSE)),IF(WEEKDAY($A36,2)>5,"FREE",""),VLOOKUP($A36,U17A!$A$11:$L$210,7,FALSE)) ->  | R36: =IF(Q36="","",IF(Q36="FREE","",VLOOKUP($A36,U17A!$A$11:$L$210,2,FALSE))) ->  | S36: =IF(Q36="","",IF(Q36="FREE","",VLOOKUP($A36,U17A!$A$11:$L$210,8,FALSE))) ->  | T36: =IF(Q36="","",IF(Q36="FREE","",VLOOKUP($A36,U17A!$A$11:$L$210,11,FALSE))) ->  | U36: =IF(Q36="","",IF(Q36="FREE","",VLOOKUP($A36,U17A!$A$11:$L$210,10,FALSE))) ->  | V36: =IF(ISERROR(VLOOKUP($A36,VETA!$A$11:$L$210,1,FALSE)),IF(WEEKDAY($A36,2)>5,"FREE",""),VLOOKUP($A36,VETA!$A$11:$L$210,7,FALSE)) ->  | W36: =IF(V36="","",IF(V36="FREE","",VLOOKUP($A36,VETA!$A$11:$L$210,2,FALSE))) ->  | X36: =IF(V36="","",IF(V36="FREE","",VLOOKUP($A36,VETA!$A$11:$L$210,8,FALSE))) ->  | Y36: =IF(V36="","",IF(V36="FREE","",VLOOKUP($A36,VETA!$A$11:$L$210,11,FALSE))) ->  | Z36: =IF(V36="","",IF(V36="FREE","",VLOOKUP($A36,VETA!$A$11:$L$210,10,FALSE))) -> 
A37: 2017-07-27 | B37: =IF(ISERROR(VLOOKUP($A37,SENA!$A$11:$L$210,1,FALSE)),IF(WEEKDAY($A37,2)>5,"FREE",""),VLOOKUP($A37,SENA!$A$11:$L$210,7,FALSE)) ->  | C37: =IF(B37="","",IF(B37="FREE","",VLOOKUP($A37,SENA!$A$11:$L$210,2,FALSE))) ->  | D37: =IF(B37="","",IF(B37="FREE","",VLOOKUP($A37,SENA!$A$11:$L$210,8,FALSE))) ->  | E37: =IF(B37="","",IF(B37="FREE","",VLOOKUP($A37,SENA!$A$11:$L$210,11,FALSE))) ->  | F37: =IF(B37="","",IF(B37="FREE","",VLOOKUP($A37,SENA!$A$11:$L$210,10,FALSE))) ->  | G37: =IF(ISERROR(VLOOKUP($A37,SENB!$A$11:$L$210,1,FALSE)),IF(WEEKDAY($A37,2)>5,"FREE",""),VLOOKUP($A37,SENB!$A$11:$L$210,7,FALSE)) ->  | H37: =IF(G37="","",IF(G37="FREE","",VLOOKUP($A37,SENB!$A$11:$L$210,2,FALSE))) ->  | I37: =IF(G37="","",IF(G37="FREE","",VLOOKUP($A37,SENB!$A$11:$L$210,8,FALSE))) ->  | J37: =IF(G37="","",IF(G37="FREE","",VLOOKUP($A37,SENB!$A$11:$L$210,11,FALSE))) ->  | K37: =IF(G37="","",IF(G37="FREE","",VLOOKUP($A37,SENB!$A$11:$L$210,10,FALSE))) ->  | L37: =IF(ISERROR(VLOOKUP($A37,U19A!$A$11:$AC$210,1,FALSE)),IF(WEEKDAY($A37,2)>5,"FREE",""),VLOOKUP($A37,U19A!$A$11:$AC$210,7,FALSE)) ->  | M37: =IF(L37="","",IF(L37="FREE","",VLOOKUP($A37,U19A!$A$11:$AC$210,2,FALSE))) ->  | N37: =IF(L37="","",IF(L37="FREE","",VLOOKUP($A37,U19A!$A$11:$AC$210,8,FALSE))) ->  | O37: =IF(L37="","",IF(L37="FREE","",VLOOKUP($A37,U19A!$A$11:$AC$210,11,FALSE))) ->  | P37: =IF(L37="","",IF(L37="FREE","",VLOOKUP($A37,U19A!$A$11:$AC$210,10,FALSE))) ->  | Q37: =IF(ISERROR(VLOOKUP($A37,U17A!$A$11:$L$210,1,FALSE)),IF(WEEKDAY($A37,2)>5,"FREE",""),VLOOKUP($A37,U17A!$A$11:$L$210,7,FALSE)) ->  | R37: =IF(Q37="","",IF(Q37="FREE","",VLOOKUP($A37,U17A!$A$11:$L$210,2,FALSE))) ->  | S37: =IF(Q37="","",IF(Q37="FREE","",VLOOKUP($A37,U17A!$A$11:$L$210,8,FALSE))) ->  | T37: =IF(Q37="","",IF(Q37="FREE","",VLOOKUP($A37,U17A!$A$11:$L$210,11,FALSE))) ->  | U37: =IF(Q37="","",IF(Q37="FREE","",VLOOKUP($A37,U17A!$A$11:$L$210,10,FALSE))) ->  | V37: =IF(ISERROR(VLOOKUP($A37,VETA!$A$11:$L$210,1,FALSE)),IF(WEEKDAY($A37,2)>5,"FREE",""),VLOOKUP($A37,VETA!$A$11:$L$210,7,FALSE)) ->  | W37: =IF(V37="","",IF(V37="FREE","",VLOOKUP($A37,VETA!$A$11:$L$210,2,FALSE))) ->  | X37: =IF(V37="","",IF(V37="FREE","",VLOOKUP($A37,VETA!$A$11:$L$210,8,FALSE))) ->  | Y37: =IF(V37="","",IF(V37="FREE","",VLOOKUP($A37,VETA!$A$11:$L$210,11,FALSE))) ->  | Z37: =IF(V37="","",IF(V37="FREE","",VLOOKUP($A37,VETA!$A$11:$L$210,10,FALSE))) -> 
A38: 2017-07-28 | B38: =IF(ISERROR(VLOOKUP($A38,SENA!$A$11:$L$210,1,FALSE)),IF(WEEKDAY($A38,2)>5,"FREE",""),VLOOKUP($A38,SENA!$A$11:$L$210,7,FALSE)) ->  | C38: =IF(B38="","",IF(B38="FREE","",VLOOKUP($A38,SENA!$A$11:$L$210,2,FALSE))) ->  | D38: =IF(B38="","",IF(B38="FREE","",VLOOKUP($A38,SENA!$A$11:$L$210,8,FALSE))) ->  | E38: =IF(B38="","",IF(B38="FREE","",VLOOKUP($A38,SENA!$A$11:$L$210,11,FALSE))) ->  | F38: =IF(B38="","",IF(B38="FREE","",VLOOKUP($A38,SENA!$A$11:$L$210,10,FALSE))) ->  | G38: =IF(ISERROR(VLOOKUP($A38,SENB!$A$11:$L$210,1,FALSE)),IF(WEEKDAY($A38,2)>5,"FREE",""),VLOOKUP($A38,SENB!$A$11:$L$210,7,FALSE)) ->  | H38: =IF(G38="","",IF(G38="FREE","",VLOOKUP($A38,SENB!$A$11:$L$210,2,FALSE))) ->  | I38: =IF(G38="","",IF(G38="FREE","",VLOOKUP($A38,SENB!$A$11:$L$210,8,FALSE))) ->  | J38: =IF(G38="","",IF(G38="FREE","",VLOOKUP($A38,SENB!$A$11:$L$210,11,FALSE))) ->  | K38: =IF(G38="","",IF(G38="FREE","",VLOOKUP($A38,SENB!$A$11:$L$210,10,FALSE))) ->  | L38: =IF(ISERROR(VLOOKUP($A38,U19A!$A$11:$AC$210,1,FALSE)),IF(WEEKDAY($A38,2)>5,"FREE",""),VLOOKUP($A38,U19A!$A$11:$AC$210,7,FALSE)) ->  | M38: =IF(L38="","",IF(L38="FREE","",VLOOKUP($A38,U19A!$A$11:$AC$210,2,FALSE))) ->  | N38: =IF(L38="","",IF(L38="FREE","",VLOOKUP($A38,U19A!$A$11:$AC$210,8,FALSE))) ->  | O38: =IF(L38="","",IF(L38="FREE","",VLOOKUP($A38,U19A!$A$11:$AC$210,11,FALSE))) ->  | P38: =IF(L38="","",IF(L38="FREE","",VLOOKUP($A38,U19A!$A$11:$AC$210,10,FALSE))) ->  | Q38: =IF(ISERROR(VLOOKUP($A38,U17A!$A$11:$L$210,1,FALSE)),IF(WEEKDAY($A38,2)>5,"FREE",""),VLOOKUP($A38,U17A!$A$11:$L$210,7,FALSE)) ->  | R38: =IF(Q38="","",IF(Q38="FREE","",VLOOKUP($A38,U17A!$A$11:$L$210,2,FALSE))) ->  | S38: =IF(Q38="","",IF(Q38="FREE","",VLOOKUP($A38,U17A!$A$11:$L$210,8,FALSE))) ->  | T38: =IF(Q38="","",IF(Q38="FREE","",VLOOKUP($A38,U17A!$A$11:$L$210,11,FALSE))) ->  | U38: =IF(Q38="","",IF(Q38="FREE","",VLOOKUP($A38,U17A!$A$11:$L$210,10,FALSE))) ->  | V38: =IF(ISERROR(VLOOKUP($A38,VETA!$A$11:$L$210,1,FALSE)),IF(WEEKDAY($A38,2)>5,"FREE",""),VLOOKUP($A38,VETA!$A$11:$L$210,7,FALSE)) ->  | W38: =IF(V38="","",IF(V38="FREE","",VLOOKUP($A38,VETA!$A$11:$L$210,2,FALSE))) ->  | X38: =IF(V38="","",IF(V38="FREE","",VLOOKUP($A38,VETA!$A$11:$L$210,8,FALSE))) ->  | Y38: =IF(V38="","",IF(V38="FREE","",VLOOKUP($A38,VETA!$A$11:$L$210,11,FALSE))) ->  | Z38: =IF(V38="","",IF(V38="FREE","",VLOOKUP($A38,VETA!$A$11:$L$210,10,FALSE))) -> 
A39: 2017-07-29 | B39: =IF(ISERROR(VLOOKUP($A39,SENA!$A$11:$L$210,1,FALSE)),IF(WEEKDAY($A39,2)>5,"FREE",""),VLOOKUP($A39,SENA!$A$11:$L$210,7,FALSE)) -> FREE | C39: =IF(B39="","",IF(B39="FREE","",VLOOKUP($A39,SENA!$A$11:$L$210,2,FALSE))) ->  | D39: =IF(B39="","",IF(B39="FREE","",VLOOKUP($A39,SENA!$A$11:$L$210,8,FALSE))) ->  | E39: =IF(B39="","",IF(B39="FREE","",VLOOKUP($A39,SENA!$A$11:$L$210,11,FALSE))) ->  | F39: =IF(B39="","",IF(B39="FREE","",VLOOKUP($A39,SENA!$A$11:$L$210,10,FALSE))) ->  | G39: =IF(ISERROR(VLOOKUP($A39,SENB!$A$11:$L$210,1,FALSE)),IF(WEEKDAY($A39,2)>5,"FREE",""),VLOOKUP($A39,SENB!$A$11:$L$210,7,FALSE)) -> FREE | H39: =IF(G39="","",IF(G39="FREE","",VLOOKUP($A39,SENB!$A$11:$L$210,2,FALSE))) ->  | I39: =IF(G39="","",IF(G39="FREE","",VLOOKUP($A39,SENB!$A$11:$L$210,8,FALSE))) ->  | J39: =IF(G39="","",IF(G39="FREE","",VLOOKUP($A39,SENB!$A$11:$L$210,11,FALSE))) ->  | K39: =IF(G39="","",IF(G39="FREE","",VLOOKUP($A39,SENB!$A$11:$L$210,10,FALSE))) ->  | L39: =IF(ISERROR(VLOOKUP($A39,U19A!$A$11:$AC$210,1,FALSE)),IF(WEEKDAY($A39,2)>5,"FREE",""),VLOOKUP($A39,U19A!$A$11:$AC$210,7,FALSE)) -> FREE | M39: =IF(L39="","",IF(L39="FREE","",VLOOKUP($A39,U19A!$A$11:$AC$210,2,FALSE))) ->  | N39: =IF(L39="","",IF(L39="FREE","",VLOOKUP($A39,U19A!$A$11:$AC$210,8,FALSE))) ->  | O39: =IF(L39="","",IF(L39="FREE","",VLOOKUP($A39,U19A!$A$11:$AC$210,11,FALSE))) ->  | P39: =IF(L39="","",IF(L39="FREE","",VLOOKUP($A39,U19A!$A$11:$AC$210,10,FALSE))) ->  | Q39: =IF(ISERROR(VLOOKUP($A39,U17A!$A$11:$L$210,1,FALSE)),IF(WEEKDAY($A39,2)>5,"FREE",""),VLOOKUP($A39,U17A!$A$11:$L$210,7,FALSE)) -> FREE | R39: =IF(Q39="","",IF(Q39="FREE","",VLOOKUP($A39,U17A!$A$11:$L$210,2,FALSE))) ->  | S39: =IF(Q39="","",IF(Q39="FREE","",VLOOKUP($A39,U17A!$A$11:$L$210,8,FALSE))) ->  | T39: =IF(Q39="","",IF(Q39="FREE","",VLOOKUP($A39,U17A!$A$11:$L$210,11,FALSE))) ->  | U39: =IF(Q39="","",IF(Q39="FREE","",VLOOKUP($A39,U17A!$A$11:$L$210,10,FALSE))) ->  | V39: =IF(ISERROR(VLOOKUP($A39,VETA!$A$11:$L$210,1,FALSE)),IF(WEEKDAY($A39,2)>5,"FREE",""),VLOOKUP($A39,VETA!$A$11:$L$210,7,FALSE)) -> FREE | W39: =IF(V39="","",IF(V39="FREE","",VLOOKUP($A39,VETA!$A$11:$L$210,2,FALSE))) ->  | X39: =IF(V39="","",IF(V39="FREE","",VLOOKUP($A39,VETA!$A$11:$L$210,8,FALSE))) ->  | Y39: =IF(V39="","",IF(V39="FREE","",VLOOKUP($A39,VETA!$A$11:$L$210,11,FALSE))) ->  | Z39: =IF(V39="","",IF(V39="FREE","",VLOOKUP($A39,VETA!$A$11:$L$210,10,FALSE))) -> 
A40: 2017-07-30 | B40: =IF(ISERROR(VLOOKUP($A40,SENA!$A$11:$L$210,1,FALSE)),IF(WEEKDAY($A40,2)>5,"FREE",""),VLOOKUP($A40,SENA!$A$11:$L$210,7,FALSE)) -> AWAY | C40: =IF(B40="","",IF(B40="FREE","",VLOOKUP($A40,SENA!$A$11:$L$210,2,FALSE))) -> 16:00:00 | D40: =IF(B40="","",IF(B40="FREE","",VLOOKUP($A40,SENA!$A$11:$L$210,8,FALSE))) -> 18:00:00 | E40: =IF(B40="","",IF(B40="FREE","",VLOOKUP($A40,SENA!$A$11:$L$210,11,FALSE))) -> HERMEE_COUPE | F40: =IF(B40="","",IF(B40="FREE","",VLOOKUP($A40,SENA!$A$11:$L$210,10,FALSE))) -> UKN | G40: =IF(ISERROR(VLOOKUP($A40,SENB!$A$11:$L$210,1,FALSE)),IF(WEEKDAY($A40,2)>5,"FREE",""),VLOOKUP($A40,SENB!$A$11:$L$210,7,FALSE)) -> FREE | H40: =IF(G40="","",IF(G40="FREE","",VLOOKUP($A40,SENB!$A$11:$L$210,2,FALSE))) ->  | I40: =IF(G40="","",IF(G40="FREE","",VLOOKUP($A40,SENB!$A$11:$L$210,8,FALSE))) ->  | J40: =IF(G40="","",IF(G40="FREE","",VLOOKUP($A40,SENB!$A$11:$L$210,11,FALSE))) ->  | K40: =IF(G40="","",IF(G40="FREE","",VLOOKUP($A40,SENB!$A$11:$L$210,10,FALSE))) ->  | L40: =IF(ISERROR(VLOOKUP($A40,U19A!$A$11:$AC$210,1,FALSE)),IF(WEEKDAY($A40,2)>5,"FREE",""),VLOOKUP($A40,U19A!$A$11:$AC$210,7,FALSE)) -> FREE | M40: =IF(L40="","",IF(L40="FREE","",VLOOKUP($A40,U19A!$A$11:$AC$210,2,FALSE))) ->  | N40: =IF(L40="","",IF(L40="FREE","",VLOOKUP($A40,U19A!$A$11:$AC$210,8,FALSE))) ->  | O40: =IF(L40="","",IF(L40="FREE","",VLOOKUP($A40,U19A!$A$11:$AC$210,11,FALSE))) ->  | P40: =IF(L40="","",IF(L40="FREE","",VLOOKUP($A40,U19A!$A$11:$AC$210,10,FALSE))) ->  | Q40: =IF(ISERROR(VLOOKUP($A40,U17A!$A$11:$L$210,1,FALSE)),IF(WEEKDAY($A40,2)>5,"FREE",""),VLOOKUP($A40,U17A!$A$11:$L$210,7,FALSE)) -> FREE | R40: =IF(Q40="","",IF(Q40="FREE","",VLOOKUP($A40,U17A!$A$11:$L$210,2,FALSE))) ->  | S40: =IF(Q40="","",IF(Q40="FREE","",VLOOKUP($A40,U17A!$A$11:$L$210,8,FALSE))) ->  | T40: =IF(Q40="","",IF(Q40="FREE","",VLOOKUP($A40,U17A!$A$11:$L$210,11,FALSE))) ->  | U40: =IF(Q40="","",IF(Q40="FREE","",VLOOKUP($A40,U17A!$A$11:$L$210,10,FALSE))) ->  | V40: =IF(ISERROR(VLOOKUP($A40,VETA!$A$11:$L$210,1,FALSE)),IF(WEEKDAY($A40,2)>5,"FREE",""),VLOOKUP($A40,VETA!$A$11:$L$210,7,FALSE)) -> FREE | W40: =IF(V40="","",IF(V40="FREE","",VLOOKUP($A40,VETA!$A$11:$L$210,2,FALSE))) ->  | X40: =IF(V40="","",IF(V40="FREE","",VLOOKUP($A40,VETA!$A$11:$L$210,8,FALSE))) ->  | Y40: =IF(V40="","",IF(V40="FREE","",VLOOKUP($A40,VETA!$A$11:$L$210,11,FALSE))) ->  | Z40: =IF(V40="","",IF(V40="FREE","",VLOOKUP($A40,VETA!$A$11:$L$210,10,FALSE))) -> 
A41: 2017-07-31 | B41: =IF(ISERROR(VLOOKUP($A41,SENA!$A$11:$L$210,1,FALSE)),IF(WEEKDAY($A41,2)>5,"FREE",""),VLOOKUP($A41,SENA!$A$11:$L$210,7,FALSE)) ->  | C41: =IF(B41="","",IF(B41="FREE","",VLOOKUP($A41,SENA!$A$11:$L$210,2,FALSE))) ->  | D41: =IF(B41="","",IF(B41="FREE","",VLOOKUP($A41,SENA!$A$11:$L$210,8,FALSE))) ->  | E41: =IF(B41="","",IF(B41="FREE","",VLOOKUP($A41,SENA!$A$11:$L$210,11,FALSE))) ->  | F41: =IF(B41="","",IF(B41="FREE","",VLOOKUP($A41,SENA!$A$11:$L$210,10,FALSE))) ->  | G41: =IF(ISERROR(VLOOKUP($A41,SENB!$A$11:$L$210,1,FALSE)),IF(WEEKDAY($A41,2)>5,"FREE",""),VLOOKUP($A41,SENB!$A$11:$L$210,7,FALSE)) ->  | H41: =IF(G41="","",IF(G41="FREE","",VLOOKUP($A41,SENB!$A$11:$L$210,2,FALSE))) ->  | I41: =IF(G41="","",IF(G41="FREE","",VLOOKUP($A41,SENB!$A$11:$L$210,8,FALSE))) ->  | J41: =IF(G41="","",IF(G41="FREE","",VLOOKUP($A41,SENB!$A$11:$L$210,11,FALSE))) ->  | K41: =IF(G41="","",IF(G41="FREE","",VLOOKUP($A41,SENB!$A$11:$L$210,10,FALSE))) ->  | L41: =IF(ISERROR(VLOOKUP($A41,U19A!$A$11:$AC$210,1,FALSE)),IF(WEEKDAY($A41,2)>5,"FREE",""),VLOOKUP($A41,U19A!$A$11:$AC$210,7,FALSE)) ->  | M41: =IF(L41="","",IF(L41="FREE","",VLOOKUP($A41,U19A!$A$11:$AC$210,2,FALSE))) ->  | N41: =IF(L41="","",IF(L41="FREE","",VLOOKUP($A41,U19A!$A$11:$AC$210,8,FALSE))) ->  | O41: =IF(L41="","",IF(L41="FREE","",VLOOKUP($A41,U19A!$A$11:$AC$210,11,FALSE))) ->  | P41: =IF(L41="","",IF(L41="FREE","",VLOOKUP($A41,U19A!$A$11:$AC$210,10,FALSE))) ->  | Q41: =IF(ISERROR(VLOOKUP($A41,U17A!$A$11:$L$210,1,FALSE)),IF(WEEKDAY($A41,2)>5,"FREE",""),VLOOKUP($A41,U17A!$A$11:$L$210,7,FALSE)) ->  | R41: =IF(Q41="","",IF(Q41="FREE","",VLOOKUP($A41,U17A!$A$11:$L$210,2,FALSE))) ->  | S41: =IF(Q41="","",IF(Q41="FREE","",VLOOKUP($A41,U17A!$A$11:$L$210,8,FALSE))) ->  | T41: =IF(Q41="","",IF(Q41="FREE","",VLOOKUP($A41,U17A!$A$11:$L$210,11,FALSE))) ->  | U41: =IF(Q41="","",IF(Q41="FREE","",VLOOKUP($A41,U17A!$A$11:$L$210,10,FALSE))) ->  | V41: =IF(ISERROR(VLOOKUP($A41,VETA!$A$11:$L$210,1,FALSE)),IF(WEEKDAY($A41,2)>5,"FREE",""),VLOOKUP($A41,VETA!$A$11:$L$210,7,FALSE)) ->  | W41: =IF(V41="","",IF(V41="FREE","",VLOOKUP($A41,VETA!$A$11:$L$210,2,FALSE))) ->  | X41: =IF(V41="","",IF(V41="FREE","",VLOOKUP($A41,VETA!$A$11:$L$210,8,FALSE))) ->  | Y41: =IF(V41="","",IF(V41="FREE","",VLOOKUP($A41,VETA!$A$11:$L$210,11,FALSE))) ->  | Z41: =IF(V41="","",IF(V41="FREE","",VLOOKUP($A41,VETA!$A$11:$L$210,10,FALSE))) -> 
A42: 2017-08-01 | B42: =IF(ISERROR(VLOOKUP($A42,SENA!$A$11:$L$210,1,FALSE)),IF(WEEKDAY($A42,2)>5,"FREE",""),VLOOKUP($A42,SENA!$A$11:$L$210,7,FALSE)) ->  | C42: =IF(B42="","",IF(B42="FREE","",VLOOKUP($A42,SENA!$A$11:$L$210,2,FALSE))) ->  | D42: =IF(B42="","",IF(B42="FREE","",VLOOKUP($A42,SENA!$A$11:$L$210,8,FALSE))) ->  | E42: =IF(B42="","",IF(B42="FREE","",VLOOKUP($A42,SENA!$A$11:$L$210,11,FALSE))) ->  | F42: =IF(B42="","",IF(B42="FREE","",VLOOKUP($A42,SENA!$A$11:$L$210,10,FALSE))) ->  | G42: =IF(ISERROR(VLOOKUP($A42,SENB!$A$11:$L$210,1,FALSE)),IF(WEEKDAY($A42,2)>5,"FREE",""),VLOOKUP($A42,SENB!$A$11:$L$210,7,FALSE)) ->  | H42: =IF(G42="","",IF(G42="FREE","",VLOOKUP($A42,SENB!$A$11:$L$210,2,FALSE))) ->  | I42: =IF(G42="","",IF(G42="FREE","",VLOOKUP($A42,SENB!$A$11:$L$210,8,FALSE))) ->  | J42: =IF(G42="","",IF(G42="FREE","",VLOOKUP($A42,SENB!$A$11:$L$210,11,FALSE))) ->  | K42: =IF(G42="","",IF(G42="FREE","",VLOOKUP($A42,SENB!$A$11:$L$210,10,FALSE))) ->  | L42: =IF(ISERROR(VLOOKUP($A42,U19A!$A$11:$AC$210,1,FALSE)),IF(WEEKDAY($A42,2)>5,"FREE",""),VLOOKUP($A42,U19A!$A$11:$AC$210,7,FALSE)) ->  | M42: =IF(L42="","",IF(L42="FREE","",VLOOKUP($A42,U19A!$A$11:$AC$210,2,FALSE))) ->  | N42: =IF(L42="","",IF(L42="FREE","",VLOOKUP($A42,U19A!$A$11:$AC$210,8,FALSE))) ->  | O42: =IF(L42="","",IF(L42="FREE","",VLOOKUP($A42,U19A!$A$11:$AC$210,11,FALSE))) ->  | P42: =IF(L42="","",IF(L42="FREE","",VLOOKUP($A42,U19A!$A$11:$AC$210,10,FALSE))) ->  | Q42: =IF(ISERROR(VLOOKUP($A42,U17A!$A$11:$L$210,1,FALSE)),IF(WEEKDAY($A42,2)>5,"FREE",""),VLOOKUP($A42,U17A!$A$11:$L$210,7,FALSE)) ->  | R42: =IF(Q42="","",IF(Q42="FREE","",VLOOKUP($A42,U17A!$A$11:$L$210,2,FALSE))) ->  | S42: =IF(Q42="","",IF(Q42="FREE","",VLOOKUP($A42,U17A!$A$11:$L$210,8,FALSE))) ->  | T42: =IF(Q42="","",IF(Q42="FREE","",VLOOKUP($A42,U17A!$A$11:$L$210,11,FALSE))) ->  | U42: =IF(Q42="","",IF(Q42="FREE","",VLOOKUP($A42,U17A!$A$11:$L$210,10,FALSE))) ->  | V42: =IF(ISERROR(VLOOKUP($A42,VETA!$A$11:$L$210,1,FALSE)),IF(WEEKDAY($A42,2)>5,"FREE",""),VLOOKUP($A42,VETA!$A$11:$L$210,7,FALSE)) ->  | W42: =IF(V42="","",IF(V42="FREE","",VLOOKUP($A42,VETA!$A$11:$L$210,2,FALSE))) ->  | X42: =IF(V42="","",IF(V42="FREE","",VLOOKUP($A42,VETA!$A$11:$L$210,8,FALSE))) ->  | Y42: =IF(V42="","",IF(V42="FREE","",VLOOKUP($A42,VETA!$A$11:$L$210,11,FALSE))) ->  | Z42: =IF(V42="","",IF(V42="FREE","",VLOOKUP($A42,VETA!$A$11:$L$210,10,FALSE))) -> 
A43: 2017-08-02 | B43: =IF(ISERROR(VLOOKUP($A43,SENA!$A$11:$L$210,1,FALSE)),IF(WEEKDAY($A43,2)>5,"FREE",""),VLOOKUP($A43,SENA!$A$11:$L$210,7,FALSE)) ->  | C43: =IF(B43="","",IF(B43="FREE","",VLOOKUP($A43,SENA!$A$11:$L$210,2,FALSE))) ->  | D43: =IF(B43="","",IF(B43="FREE","",VLOOKUP($A43,SENA!$A$11:$L$210,8,FALSE))) ->  | E43: =IF(B43="","",IF(B43="FREE","",VLOOKUP($A43,SENA!$A$11:$L$210,11,FALSE))) ->  | F43: =IF(B43="","",IF(B43="FREE","",VLOOKUP($A43,SENA!$A$11:$L$210,10,FALSE))) ->  | G43: =IF(ISERROR(VLOOKUP($A43,SENB!$A$11:$L$210,1,FALSE)),IF(WEEKDAY($A43,2)>5,"FREE",""),VLOOKUP($A43,SENB!$A$11:$L$210,7,FALSE)) ->  | H43: =IF(G43="","",IF(G43="FREE","",VLOOKUP($A43,SENB!$A$11:$L$210,2,FALSE))) ->  | I43: =IF(G43="","",IF(G43="FREE","",VLOOKUP($A43,SENB!$A$11:$L$210,8,FALSE))) ->  | J43: =IF(G43="","",IF(G43="FREE","",VLOOKUP($A43,SENB!$A$11:$L$210,11,FALSE))) ->  | K43: =IF(G43="","",IF(G43="FREE","",VLOOKUP($A43,SENB!$A$11:$L$210,10,FALSE))) ->  | L43: =IF(ISERROR(VLOOKUP($A43,U19A!$A$11:$AC$210,1,FALSE)),IF(WEEKDAY($A43,2)>5,"FREE",""),VLOOKUP($A43,U19A!$A$11:$AC$210,7,FALSE)) ->  | M43: =IF(L43="","",IF(L43="FREE","",VLOOKUP($A43,U19A!$A$11:$AC$210,2,FALSE))) ->  | N43: =IF(L43="","",IF(L43="FREE","",VLOOKUP($A43,U19A!$A$11:$AC$210,8,FALSE))) ->  | O43: =IF(L43="","",IF(L43="FREE","",VLOOKUP($A43,U19A!$A$11:$AC$210,11,FALSE))) ->  | P43: =IF(L43="","",IF(L43="FREE","",VLOOKUP($A43,U19A!$A$11:$AC$210,10,FALSE))) ->  | Q43: =IF(ISERROR(VLOOKUP($A43,U17A!$A$11:$L$210,1,FALSE)),IF(WEEKDAY($A43,2)>5,"FREE",""),VLOOKUP($A43,U17A!$A$11:$L$210,7,FALSE)) ->  | R43: =IF(Q43="","",IF(Q43="FREE","",VLOOKUP($A43,U17A!$A$11:$L$210,2,FALSE))) ->  | S43: =IF(Q43="","",IF(Q43="FREE","",VLOOKUP($A43,U17A!$A$11:$L$210,8,FALSE))) ->  | T43: =IF(Q43="","",IF(Q43="FREE","",VLOOKUP($A43,U17A!$A$11:$L$210,11,FALSE))) ->  | U43: =IF(Q43="","",IF(Q43="FREE","",VLOOKUP($A43,U17A!$A$11:$L$210,10,FALSE))) ->  | V43: =IF(ISERROR(VLOOKUP($A43,VETA!$A$11:$L$210,1,FALSE)),IF(WEEKDAY($A43,2)>5,"FREE",""),VLOOKUP($A43,VETA!$A$11:$L$210,7,FALSE)) ->  | W43: =IF(V43="","",IF(V43="FREE","",VLOOKUP($A43,VETA!$A$11:$L$210,2,FALSE))) ->  | X43: =IF(V43="","",IF(V43="FREE","",VLOOKUP($A43,VETA!$A$11:$L$210,8,FALSE))) ->  | Y43: =IF(V43="","",IF(V43="FREE","",VLOOKUP($A43,VETA!$A$11:$L$210,11,FALSE))) ->  | Z43: =IF(V43="","",IF(V43="FREE","",VLOOKUP($A43,VETA!$A$11:$L$210,10,FALSE))) -> 
A44: 2017-08-03 | B44: =IF(ISERROR(VLOOKUP($A44,SENA!$A$11:$L$210,1,FALSE)),IF(WEEKDAY($A44,2)>5,"FREE",""),VLOOKUP($A44,SENA!$A$11:$L$210,7,FALSE)) ->  | C44: =IF(B44="","",IF(B44="FREE","",VLOOKUP($A44,SENA!$A$11:$L$210,2,FALSE))) ->  | D44: =IF(B44="","",IF(B44="FREE","",VLOOKUP($A44,SENA!$A$11:$L$210,8,FALSE))) ->  | E44: =IF(B44="","",IF(B44="FREE","",VLOOKUP($A44,SENA!$A$11:$L$210,11,FALSE))) ->  | F44: =IF(B44="","",IF(B44="FREE","",VLOOKUP($A44,SENA!$A$11:$L$210,10,FALSE))) ->  | G44: =IF(ISERROR(VLOOKUP($A44,SENB!$A$11:$L$210,1,FALSE)),IF(WEEKDAY($A44,2)>5,"FREE",""),VLOOKUP($A44,SENB!$A$11:$L$210,7,FALSE)) ->  | H44: =IF(G44="","",IF(G44="FREE","",VLOOKUP($A44,SENB!$A$11:$L$210,2,FALSE))) ->  | I44: =IF(G44="","",IF(G44="FREE","",VLOOKUP($A44,SENB!$A$11:$L$210,8,FALSE))) ->  | J44: =IF(G44="","",IF(G44="FREE","",VLOOKUP($A44,SENB!$A$11:$L$210,11,FALSE))) ->  | K44: =IF(G44="","",IF(G44="FREE","",VLOOKUP($A44,SENB!$A$11:$L$210,10,FALSE))) ->  | L44: =IF(ISERROR(VLOOKUP($A44,U19A!$A$11:$AC$210,1,FALSE)),IF(WEEKDAY($A44,2)>5,"FREE",""),VLOOKUP($A44,U19A!$A$11:$AC$210,7,FALSE)) ->  | M44: =IF(L44="","",IF(L44="FREE","",VLOOKUP($A44,U19A!$A$11:$AC$210,2,FALSE))) ->  | N44: =IF(L44="","",IF(L44="FREE","",VLOOKUP($A44,U19A!$A$11:$AC$210,8,FALSE))) ->  | O44: =IF(L44="","",IF(L44="FREE","",VLOOKUP($A44,U19A!$A$11:$AC$210,11,FALSE))) ->  | P44: =IF(L44="","",IF(L44="FREE","",VLOOKUP($A44,U19A!$A$11:$AC$210,10,FALSE))) ->  | Q44: =IF(ISERROR(VLOOKUP($A44,U17A!$A$11:$L$210,1,FALSE)),IF(WEEKDAY($A44,2)>5,"FREE",""),VLOOKUP($A44,U17A!$A$11:$L$210,7,FALSE)) ->  | R44: =IF(Q44="","",IF(Q44="FREE","",VLOOKUP($A44,U17A!$A$11:$L$210,2,FALSE))) ->  | S44: =IF(Q44="","",IF(Q44="FREE","",VLOOKUP($A44,U17A!$A$11:$L$210,8,FALSE))) ->  | T44: =IF(Q44="","",IF(Q44="FREE","",VLOOKUP($A44,U17A!$A$11:$L$210,11,FALSE))) ->  | U44: =IF(Q44="","",IF(Q44="FREE","",VLOOKUP($A44,U17A!$A$11:$L$210,10,FALSE))) ->  | V44: =IF(ISERROR(VLOOKUP($A44,VETA!$A$11:$L$210,1,FALSE)),IF(WEEKDAY($A44,2)>5,"FREE",""),VLOOKUP($A44,VETA!$A$11:$L$210,7,FALSE)) ->  | W44: =IF(V44="","",IF(V44="FREE","",VLOOKUP($A44,VETA!$A$11:$L$210,2,FALSE))) ->  | X44: =IF(V44="","",IF(V44="FREE","",VLOOKUP($A44,VETA!$A$11:$L$210,8,FALSE))) ->  | Y44: =IF(V44="","",IF(V44="FREE","",VLOOKUP($A44,VETA!$A$11:$L$210,11,FALSE))) ->  | Z44: =IF(V44="","",IF(V44="FREE","",VLOOKUP($A44,VETA!$A$11:$L$210,10,FALSE))) -> 
A45: 2017-08-04 | B45: =IF(ISERROR(VLOOKUP($A45,SENA!$A$11:$L$210,1,FALSE)),IF(WEEKDAY($A45,2)>5,"FREE",""),VLOOKUP($A45,SENA!$A$11:$L$210,7,FALSE)) ->  | C45: =IF(B45="","",IF(B45="FREE","",VLOOKUP($A45,SENA!$A$11:$L$210,2,FALSE))) ->  | D45: =IF(B45="","",IF(B45="FREE","",VLOOKUP($A45,SENA!$A$11:$L$210,8,FALSE))) ->  | E45: =IF(B45="","",IF(B45="FREE","",VLOOKUP($A45,SENA!$A$11:$L$210,11,FALSE))) ->  | F45: =IF(B45="","",IF(B45="FREE","",VLOOKUP($A45,SENA!$A$11:$L$210,10,FALSE))) ->  | G45: =IF(ISERROR(VLOOKUP($A45,SENB!$A$11:$L$210,1,FALSE)),IF(WEEKDAY($A45,2)>5,"FREE",""),VLOOKUP($A45,SENB!$A$11:$L$210,7,FALSE)) ->  | H45: =IF(G45="","",IF(G45="FREE","",VLOOKUP($A45,SENB!$A$11:$L$210,2,FALSE))) ->  | I45: =IF(G45="","",IF(G45="FREE","",VLOOKUP($A45,SENB!$A$11:$L$210,8,FALSE))) ->  | J45: =IF(G45="","",IF(G45="FREE","",VLOOKUP($A45,SENB!$A$11:$L$210,11,FALSE))) ->  | K45: =IF(G45="","",IF(G45="FREE","",VLOOKUP($A45,SENB!$A$11:$L$210,10,FALSE))) ->  | L45: =IF(ISERROR(VLOOKUP($A45,U19A!$A$11:$AC$210,1,FALSE)),IF(WEEKDAY($A45,2)>5,"FREE",""),VLOOKUP($A45,U19A!$A$11:$AC$210,7,FALSE)) ->  | M45: =IF(L45="","",IF(L45="FREE","",VLOOKUP($A45,U19A!$A$11:$AC$210,2,FALSE))) ->  | N45: =IF(L45="","",IF(L45="FREE","",VLOOKUP($A45,U19A!$A$11:$AC$210,8,FALSE))) ->  | O45: =IF(L45="","",IF(L45="FREE","",VLOOKUP($A45,U19A!$A$11:$AC$210,11,FALSE))) ->  | P45: =IF(L45="","",IF(L45="FREE","",VLOOKUP($A45,U19A!$A$11:$AC$210,10,FALSE))) ->  | Q45: =IF(ISERROR(VLOOKUP($A45,U17A!$A$11:$L$210,1,FALSE)),IF(WEEKDAY($A45,2)>5,"FREE",""),VLOOKUP($A45,U17A!$A$11:$L$210,7,FALSE)) ->  | R45: =IF(Q45="","",IF(Q45="FREE","",VLOOKUP($A45,U17A!$A$11:$L$210,2,FALSE))) ->  | S45: =IF(Q45="","",IF(Q45="FREE","",VLOOKUP($A45,U17A!$A$11:$L$210,8,FALSE))) ->  | T45: =IF(Q45="","",IF(Q45="FREE","",VLOOKUP($A45,U17A!$A$11:$L$210,11,FALSE))) ->  | U45: =IF(Q45="","",IF(Q45="FREE","",VLOOKUP($A45,U17A!$A$11:$L$210,10,FALSE))) ->  | V45: =IF(ISERROR(VLOOKUP($A45,VETA!$A$11:$L$210,1,FALSE)),IF(WEEKDAY($A45,2)>5,"FREE",""),VLOOKUP($A45,VETA!$A$11:$L$210,7,FALSE)) ->  | W45: =IF(V45="","",IF(V45="FREE","",VLOOKUP($A45,VETA!$A$11:$L$210,2,FALSE))) ->  | X45: =IF(V45="","",IF(V45="FREE","",VLOOKUP($A45,VETA!$A$11:$L$210,8,FALSE))) ->  | Y45: =IF(V45="","",IF(V45="FREE","",VLOOKUP($A45,VETA!$A$11:$L$210,11,FALSE))) ->  | Z45: =IF(V45="","",IF(V45="FREE","",VLOOKUP($A45,VETA!$A$11:$L$210,10,FALSE))) -> 
A46: 2017-08-05 | B46: =IF(ISERROR(VLOOKUP($A46,SENA!$A$11:$L$210,1,FALSE)),IF(WEEKDAY($A46,2)>5,"FREE",""),VLOOKUP($A46,SENA!$A$11:$L$210,7,FALSE)) -> FREE | C46: =IF(B46="","",IF(B46="FREE","",VLOOKUP($A46,SENA!$A$11:$L$210,2,FALSE))) ->  | D46: =IF(B46="","",IF(B46="FREE","",VLOOKUP($A46,SENA!$A$11:$L$210,8,FALSE))) ->  | E46: =IF(B46="","",IF(B46="FREE","",VLOOKUP($A46,SENA!$A$11:$L$210,11,FALSE))) ->  | F46: =IF(B46="","",IF(B46="FREE","",VLOOKUP($A46,SENA!$A$11:$L$210,10,FALSE))) ->  | G46: =IF(ISERROR(VLOOKUP($A46,SENB!$A$11:$L$210,1,FALSE)),IF(WEEKDAY($A46,2)>5,"FREE",""),VLOOKUP($A46,SENB!$A$11:$L$210,7,FALSE)) -> FREE | H46: =IF(G46="","",IF(G46="FREE","",VLOOKUP($A46,SENB!$A$11:$L$210,2,FALSE))) ->  | I46: =IF(G46="","",IF(G46="FREE","",VLOOKUP($A46,SENB!$A$11:$L$210,8,FALSE))) ->  | J46: =IF(G46="","",IF(G46="FREE","",VLOOKUP($A46,SENB!$A$11:$L$210,11,FALSE))) ->  | K46: =IF(G46="","",IF(G46="FREE","",VLOOKUP($A46,SENB!$A$11:$L$210,10,FALSE))) ->  | L46: =IF(ISERROR(VLOOKUP($A46,U19A!$A$11:$AC$210,1,FALSE)),IF(WEEKDAY($A46,2)>5,"FREE",""),VLOOKUP($A46,U19A!$A$11:$AC$210,7,FALSE)) -> FREE | M46: =IF(L46="","",IF(L46="FREE","",VLOOKUP($A46,U19A!$A$11:$AC$210,2,FALSE))) ->  | N46: =IF(L46="","",IF(L46="FREE","",VLOOKUP($A46,U19A!$A$11:$AC$210,8,FALSE))) ->  | O46: =IF(L46="","",IF(L46="FREE","",VLOOKUP($A46,U19A!$A$11:$AC$210,11,FALSE))) ->  | P46: =IF(L46="","",IF(L46="FREE","",VLOOKUP($A46,U19A!$A$11:$AC$210,10,FALSE))) ->  | Q46: =IF(ISERROR(VLOOKUP($A46,U17A!$A$11:$L$210,1,FALSE)),IF(WEEKDAY($A46,2)>5,"FREE",""),VLOOKUP($A46,U17A!$A$11:$L$210,7,FALSE)) -> FREE | R46: =IF(Q46="","",IF(Q46="FREE","",VLOOKUP($A46,U17A!$A$11:$L$210,2,FALSE))) ->  | S46: =IF(Q46="","",IF(Q46="FREE","",VLOOKUP($A46,U17A!$A$11:$L$210,8,FALSE))) ->  | T46: =IF(Q46="","",IF(Q46="FREE","",VLOOKUP($A46,U17A!$A$11:$L$210,11,FALSE))) ->  | U46: =IF(Q46="","",IF(Q46="FREE","",VLOOKUP($A46,U17A!$A$11:$L$210,10,FALSE))) ->  | V46: =IF(ISERROR(VLOOKUP($A46,VETA!$A$11:$L$210,1,FALSE)),IF(WEEKDAY($A46,2)>5,"FREE",""),VLOOKUP($A46,VETA!$A$11:$L$210,7,FALSE)) -> FREE | W46: =IF(V46="","",IF(V46="FREE","",VLOOKUP($A46,VETA!$A$11:$L$210,2,FALSE))) ->  | X46: =IF(V46="","",IF(V46="FREE","",VLOOKUP($A46,VETA!$A$11:$L$210,8,FALSE))) ->  | Y46: =IF(V46="","",IF(V46="FREE","",VLOOKUP($A46,VETA!$A$11:$L$210,11,FALSE))) ->  | Z46: =IF(V46="","",IF(V46="FREE","",VLOOKUP($A46,VETA!$A$11:$L$210,10,FALSE))) -> 
A47: 2017-08-06 | B47: =IF(ISERROR(VLOOKUP($A47,SENA!$A$11:$L$210,1,FALSE)),IF(WEEKDAY($A47,2)>5,"FREE",""),VLOOKUP($A47,SENA!$A$11:$L$210,7,FALSE)) -> AWAY | C47: =IF(B47="","",IF(B47="FREE","",VLOOKUP($A47,SENA!$A$11:$L$210,2,FALSE))) -> 16:00:00 | D47: =IF(B47="","",IF(B47="FREE","",VLOOKUP($A47,SENA!$A$11:$L$210,8,FALSE))) -> 18:00:00 | E47: =IF(B47="","",IF(B47="FREE","",VLOOKUP($A47,SENA!$A$11:$L$210,11,FALSE))) -> PONTISSE A_COUPE | F47: =IF(B47="","",IF(B47="FREE","",VLOOKUP($A47,SENA!$A$11:$L$210,10,FALSE))) -> UKN | G47: =IF(ISERROR(VLOOKUP($A47,SENB!$A$11:$L$210,1,FALSE)),IF(WEEKDAY($A47,2)>5,"FREE",""),VLOOKUP($A47,SENB!$A$11:$L$210,7,FALSE)) -> FREE | H47: =IF(G47="","",IF(G47="FREE","",VLOOKUP($A47,SENB!$A$11:$L$210,2,FALSE))) ->  | I47: =IF(G47="","",IF(G47="FREE","",VLOOKUP($A47,SENB!$A$11:$L$210,8,FALSE))) ->  | J47: =IF(G47="","",IF(G47="FREE","",VLOOKUP($A47,SENB!$A$11:$L$210,11,FALSE))) ->  | K47: =IF(G47="","",IF(G47="FREE","",VLOOKUP($A47,SENB!$A$11:$L$210,10,FALSE))) ->  | L47: =IF(ISERROR(VLOOKUP($A47,U19A!$A$11:$AC$210,1,FALSE)),IF(WEEKDAY($A47,2)>5,"FREE",""),VLOOKUP($A47,U19A!$A$11:$AC$210,7,FALSE)) -> FREE | M47: =IF(L47="","",IF(L47="FREE","",VLOOKUP($A47,U19A!$A$11:$AC$210,2,FALSE))) ->  | N47: =IF(L47="","",IF(L47="FREE","",VLOOKUP($A47,U19A!$A$11:$AC$210,8,FALSE))) ->  | O47: =IF(L47="","",IF(L47="FREE","",VLOOKUP($A47,U19A!$A$11:$AC$210,11,FALSE))) ->  | P47: =IF(L47="","",IF(L47="FREE","",VLOOKUP($A47,U19A!$A$11:$AC$210,10,FALSE))) ->  | Q47: =IF(ISERROR(VLOOKUP($A47,U17A!$A$11:$L$210,1,FALSE)),IF(WEEKDAY($A47,2)>5,"FREE",""),VLOOKUP($A47,U17A!$A$11:$L$210,7,FALSE)) -> FREE | R47: =IF(Q47="","",IF(Q47="FREE","",VLOOKUP($A47,U17A!$A$11:$L$210,2,FALSE))) ->  | S47: =IF(Q47="","",IF(Q47="FREE","",VLOOKUP($A47,U17A!$A$11:$L$210,8,FALSE))) ->  | T47: =IF(Q47="","",IF(Q47="FREE","",VLOOKUP($A47,U17A!$A$11:$L$210,11,FALSE))) ->  | U47: =IF(Q47="","",IF(Q47="FREE","",VLOOKUP($A47,U17A!$A$11:$L$210,10,FALSE))) ->  | V47: =IF(ISERROR(VLOOKUP($A47,VETA!$A$11:$L$210,1,FALSE)),IF(WEEKDAY($A47,2)>5,"FREE",""),VLOOKUP($A47,VETA!$A$11:$L$210,7,FALSE)) -> FREE | W47: =IF(V47="","",IF(V47="FREE","",VLOOKUP($A47,VETA!$A$11:$L$210,2,FALSE))) ->  | X47: =IF(V47="","",IF(V47="FREE","",VLOOKUP($A47,VETA!$A$11:$L$210,8,FALSE))) ->  | Y47: =IF(V47="","",IF(V47="FREE","",VLOOKUP($A47,VETA!$A$11:$L$210,11,FALSE))) ->  | Z47: =IF(V47="","",IF(V47="FREE","",VLOOKUP($A47,VETA!$A$11:$L$210,10,FALSE))) -> 
A48: 2017-08-07 | B48: =IF(ISERROR(VLOOKUP($A48,SENA!$A$11:$L$210,1,FALSE)),IF(WEEKDAY($A48,2)>5,"FREE",""),VLOOKUP($A48,SENA!$A$11:$L$210,7,FALSE)) ->  | C48: =IF(B48="","",IF(B48="FREE","",VLOOKUP($A48,SENA!$A$11:$L$210,2,FALSE))) ->  | D48: =IF(B48="","",IF(B48="FREE","",VLOOKUP($A48,SENA!$A$11:$L$210,8,FALSE))) ->  | E48: =IF(B48="","",IF(B48="FREE","",VLOOKUP($A48,SENA!$A$11:$L$210,11,FALSE))) ->  | F48: =IF(B48="","",IF(B48="FREE","",VLOOKUP($A48,SENA!$A$11:$L$210,10,FALSE))) ->  | G48: =IF(ISERROR(VLOOKUP($A48,SENB!$A$11:$L$210,1,FALSE)),IF(WEEKDAY($A48,2)>5,"FREE",""),VLOOKUP($A48,SENB!$A$11:$L$210,7,FALSE)) ->  | H48: =IF(G48="","",IF(G48="FREE","",VLOOKUP($A48,SENB!$A$11:$L$210,2,FALSE))) ->  | I48: =IF(G48="","",IF(G48="FREE","",VLOOKUP($A48,SENB!$A$11:$L$210,8,FALSE))) ->  | J48: =IF(G48="","",IF(G48="FREE","",VLOOKUP($A48,SENB!$A$11:$L$210,11,FALSE))) ->  | K48: =IF(G48="","",IF(G48="FREE","",VLOOKUP($A48,SENB!$A$11:$L$210,10,FALSE))) ->  | L48: =IF(ISERROR(VLOOKUP($A48,U19A!$A$11:$AC$210,1,FALSE)),IF(WEEKDAY($A48,2)>5,"FREE",""),VLOOKUP($A48,U19A!$A$11:$AC$210,7,FALSE)) ->  | M48: =IF(L48="","",IF(L48="FREE","",VLOOKUP($A48,U19A!$A$11:$AC$210,2,FALSE))) ->  | N48: =IF(L48="","",IF(L48="FREE","",VLOOKUP($A48,U19A!$A$11:$AC$210,8,FALSE))) ->  | O48: =IF(L48="","",IF(L48="FREE","",VLOOKUP($A48,U19A!$A$11:$AC$210,11,FALSE))) ->  | P48: =IF(L48="","",IF(L48="FREE","",VLOOKUP($A48,U19A!$A$11:$AC$210,10,FALSE))) ->  | Q48: =IF(ISERROR(VLOOKUP($A48,U17A!$A$11:$L$210,1,FALSE)),IF(WEEKDAY($A48,2)>5,"FREE",""),VLOOKUP($A48,U17A!$A$11:$L$210,7,FALSE)) ->  | R48: =IF(Q48="","",IF(Q48="FREE","",VLOOKUP($A48,U17A!$A$11:$L$210,2,FALSE))) ->  | S48: =IF(Q48="","",IF(Q48="FREE","",VLOOKUP($A48,U17A!$A$11:$L$210,8,FALSE))) ->  | T48: =IF(Q48="","",IF(Q48="FREE","",VLOOKUP($A48,U17A!$A$11:$L$210,11,FALSE))) ->  | U48: =IF(Q48="","",IF(Q48="FREE","",VLOOKUP($A48,U17A!$A$11:$L$210,10,FALSE))) ->  | V48: =IF(ISERROR(VLOOKUP($A48,VETA!$A$11:$L$210,1,FALSE)),IF(WEEKDAY($A48,2)>5,"FREE",""),VLOOKUP($A48,VETA!$A$11:$L$210,7,FALSE)) ->  | W48: =IF(V48="","",IF(V48="FREE","",VLOOKUP($A48,VETA!$A$11:$L$210,2,FALSE))) ->  | X48: =IF(V48="","",IF(V48="FREE","",VLOOKUP($A48,VETA!$A$11:$L$210,8,FALSE))) ->  | Y48: =IF(V48="","",IF(V48="FREE","",VLOOKUP($A48,VETA!$A$11:$L$210,11,FALSE))) ->  | Z48: =IF(V48="","",IF(V48="FREE","",VLOOKUP($A48,VETA!$A$11:$L$210,10,FALSE))) -> 
A49: 2017-08-08 | B49: =IF(ISERROR(VLOOKUP($A49,SENA!$A$11:$L$210,1,FALSE)),IF(WEEKDAY($A49,2)>5,"FREE",""),VLOOKUP($A49,SENA!$A$11:$L$210,7,FALSE)) ->  | C49: =IF(B49="","",IF(B49="FREE","",VLOOKUP($A49,SENA!$A$11:$L$210,2,FALSE))) ->  | D49: =IF(B49="","",IF(B49="FREE","",VLOOKUP($A49,SENA!$A$11:$L$210,8,FALSE))) ->  | E49: =IF(B49="","",IF(B49="FREE","",VLOOKUP($A49,SENA!$A$11:$L$210,11,FALSE))) ->  | F49: =IF(B49="","",IF(B49="FREE","",VLOOKUP($A49,SENA!$A$11:$L$210,10,FALSE))) ->  | G49: =IF(ISERROR(VLOOKUP($A49,SENB!$A$11:$L$210,1,FALSE)),IF(WEEKDAY($A49,2)>5,"FREE",""),VLOOKUP($A49,SENB!$A$11:$L$210,7,FALSE)) ->  | H49: =IF(G49="","",IF(G49="FREE","",VLOOKUP($A49,SENB!$A$11:$L$210,2,FALSE))) ->  | I49: =IF(G49="","",IF(G49="FREE","",VLOOKUP($A49,SENB!$A$11:$L$210,8,FALSE))) ->  | J49: =IF(G49="","",IF(G49="FREE","",VLOOKUP($A49,SENB!$A$11:$L$210,11,FALSE))) ->  | K49: =IF(G49="","",IF(G49="FREE","",VLOOKUP($A49,SENB!$A$11:$L$210,10,FALSE))) ->  | L49: =IF(ISERROR(VLOOKUP($A49,U19A!$A$11:$AC$210,1,FALSE)),IF(WEEKDAY($A49,2)>5,"FREE",""),VLOOKUP($A49,U19A!$A$11:$AC$210,7,FALSE)) ->  | M49: =IF(L49="","",IF(L49="FREE","",VLOOKUP($A49,U19A!$A$11:$AC$210,2,FALSE))) ->  | N49: =IF(L49="","",IF(L49="FREE","",VLOOKUP($A49,U19A!$A$11:$AC$210,8,FALSE))) ->  | O49: =IF(L49="","",IF(L49="FREE","",VLOOKUP($A49,U19A!$A$11:$AC$210,11,FALSE))) ->  | P49: =IF(L49="","",IF(L49="FREE","",VLOOKUP($A49,U19A!$A$11:$AC$210,10,FALSE))) ->  | Q49: =IF(ISERROR(VLOOKUP($A49,U17A!$A$11:$L$210,1,FALSE)),IF(WEEKDAY($A49,2)>5,"FREE",""),VLOOKUP($A49,U17A!$A$11:$L$210,7,FALSE)) ->  | R49: =IF(Q49="","",IF(Q49="FREE","",VLOOKUP($A49,U17A!$A$11:$L$210,2,FALSE))) ->  | S49: =IF(Q49="","",IF(Q49="FREE","",VLOOKUP($A49,U17A!$A$11:$L$210,8,FALSE))) ->  | T49: =IF(Q49="","",IF(Q49="FREE","",VLOOKUP($A49,U17A!$A$11:$L$210,11,FALSE))) ->  | U49: =IF(Q49="","",IF(Q49="FREE","",VLOOKUP($A49,U17A!$A$11:$L$210,10,FALSE))) ->  | V49: =IF(ISERROR(VLOOKUP($A49,VETA!$A$11:$L$210,1,FALSE)),IF(WEEKDAY($A49,2)>5,"FREE",""),VLOOKUP($A49,VETA!$A$11:$L$210,7,FALSE)) ->  | W49: =IF(V49="","",IF(V49="FREE","",VLOOKUP($A49,VETA!$A$11:$L$210,2,FALSE))) ->  | X49: =IF(V49="","",IF(V49="FREE","",VLOOKUP($A49,VETA!$A$11:$L$210,8,FALSE))) ->  | Y49: =IF(V49="","",IF(V49="FREE","",VLOOKUP($A49,VETA!$A$11:$L$210,11,FALSE))) ->  | Z49: =IF(V49="","",IF(V49="FREE","",VLOOKUP($A49,VETA!$A$11:$L$210,10,FALSE))) -> 
A50: 2017-08-09 | B50: =IF(ISERROR(VLOOKUP($A50,SENA!$A$11:$L$210,1,FALSE)),IF(WEEKDAY($A50,2)>5,"FREE",""),VLOOKUP($A50,SENA!$A$11:$L$210,7,FALSE)) ->  | C50: =IF(B50="","",IF(B50="FREE","",VLOOKUP($A50,SENA!$A$11:$L$210,2,FALSE))) ->  | D50: =IF(B50="","",IF(B50="FREE","",VLOOKUP($A50,SENA!$A$11:$L$210,8,FALSE))) ->  | E50: =IF(B50="","",IF(B50="FREE","",VLOOKUP($A50,SENA!$A$11:$L$210,11,FALSE))) ->  | F50: =IF(B50="","",IF(B50="FREE","",VLOOKUP($A50,SENA!$A$11:$L$210,10,FALSE))) ->  | G50: =IF(ISERROR(VLOOKUP($A50,SENB!$A$11:$L$210,1,FALSE)),IF(WEEKDAY($A50,2)>5,"FREE",""),VLOOKUP($A50,SENB!$A$11:$L$210,7,FALSE)) ->  | H50: =IF(G50="","",IF(G50="FREE","",VLOOKUP($A50,SENB!$A$11:$L$210,2,FALSE))) ->  | I50: =IF(G50="","",IF(G50="FREE","",VLOOKUP($A50,SENB!$A$11:$L$210,8,FALSE))) ->  | J50: =IF(G50="","",IF(G50="FREE","",VLOOKUP($A50,SENB!$A$11:$L$210,11,FALSE))) ->  | K50: =IF(G50="","",IF(G50="FREE","",VLOOKUP($A50,SENB!$A$11:$L$210,10,FALSE))) ->  | L50: =IF(ISERROR(VLOOKUP($A50,U19A!$A$11:$AC$210,1,FALSE)),IF(WEEKDAY($A50,2)>5,"FREE",""),VLOOKUP($A50,U19A!$A$11:$AC$210,7,FALSE)) ->  | M50: =IF(L50="","",IF(L50="FREE","",VLOOKUP($A50,U19A!$A$11:$AC$210,2,FALSE))) ->  | N50: =IF(L50="","",IF(L50="FREE","",VLOOKUP($A50,U19A!$A$11:$AC$210,8,FALSE))) ->  | O50: =IF(L50="","",IF(L50="FREE","",VLOOKUP($A50,U19A!$A$11:$AC$210,11,FALSE))) ->  | P50: =IF(L50="","",IF(L50="FREE","",VLOOKUP($A50,U19A!$A$11:$AC$210,10,FALSE))) ->  | Q50: =IF(ISERROR(VLOOKUP($A50,U17A!$A$11:$L$210,1,FALSE)),IF(WEEKDAY($A50,2)>5,"FREE",""),VLOOKUP($A50,U17A!$A$11:$L$210,7,FALSE)) ->  | R50: =IF(Q50="","",IF(Q50="FREE","",VLOOKUP($A50,U17A!$A$11:$L$210,2,FALSE))) ->  | S50: =IF(Q50="","",IF(Q50="FREE","",VLOOKUP($A50,U17A!$A$11:$L$210,8,FALSE))) ->  | T50: =IF(Q50="","",IF(Q50="FREE","",VLOOKUP($A50,U17A!$A$11:$L$210,11,FALSE))) ->  | U50: =IF(Q50="","",IF(Q50="FREE","",VLOOKUP($A50,U17A!$A$11:$L$210,10,FALSE))) ->  | V50: =IF(ISERROR(VLOOKUP($A50,VETA!$A$11:$L$210,1,FALSE)),IF(WEEKDAY($A50,2)>5,"FREE",""),VLOOKUP($A50,VETA!$A$11:$L$210,7,FALSE)) ->  | W50: =IF(V50="","",IF(V50="FREE","",VLOOKUP($A50,VETA!$A$11:$L$210,2,FALSE))) ->  | X50: =IF(V50="","",IF(V50="FREE","",VLOOKUP($A50,VETA!$A$11:$L$210,8,FALSE))) ->  | Y50: =IF(V50="","",IF(V50="FREE","",VLOOKUP($A50,VETA!$A$11:$L$210,11,FALSE))) ->  | Z50: =IF(V50="","",IF(V50="FREE","",VLOOKUP($A50,VETA!$A$11:$L$210,10,FALSE))) -> 
A51: 2017-08-10 | B51: =IF(ISERROR(VLOOKUP($A51,SENA!$A$11:$L$210,1,FALSE)),IF(WEEKDAY($A51,2)>5,"FREE",""),VLOOKUP($A51,SENA!$A$11:$L$210,7,FALSE)) ->  | C51: =IF(B51="","",IF(B51="FREE","",VLOOKUP($A51,SENA!$A$11:$L$210,2,FALSE))) ->  | D51: =IF(B51="","",IF(B51="FREE","",VLOOKUP($A51,SENA!$A$11:$L$210,8,FALSE))) ->  | E51: =IF(B51="","",IF(B51="FREE","",VLOOKUP($A51,SENA!$A$11:$L$210,11,FALSE))) ->  | F51: =IF(B51="","",IF(B51="FREE","",VLOOKUP($A51,SENA!$A$11:$L$210,10,FALSE))) ->  | G51: =IF(ISERROR(VLOOKUP($A51,SENB!$A$11:$L$210,1,FALSE)),IF(WEEKDAY($A51,2)>5,"FREE",""),VLOOKUP($A51,SENB!$A$11:$L$210,7,FALSE)) ->  | H51: =IF(G51="","",IF(G51="FREE","",VLOOKUP($A51,SENB!$A$11:$L$210,2,FALSE))) ->  | I51: =IF(G51="","",IF(G51="FREE","",VLOOKUP($A51,SENB!$A$11:$L$210,8,FALSE))) ->  | J51: =IF(G51="","",IF(G51="FREE","",VLOOKUP($A51,SENB!$A$11:$L$210,11,FALSE))) ->  | K51: =IF(G51="","",IF(G51="FREE","",VLOOKUP($A51,SENB!$A$11:$L$210,10,FALSE))) ->  | L51: =IF(ISERROR(VLOOKUP($A51,U19A!$A$11:$AC$210,1,FALSE)),IF(WEEKDAY($A51,2)>5,"FREE",""),VLOOKUP($A51,U19A!$A$11:$AC$210,7,FALSE)) ->  | M51: =IF(L51="","",IF(L51="FREE","",VLOOKUP($A51,U19A!$A$11:$AC$210,2,FALSE))) ->  | N51: =IF(L51="","",IF(L51="FREE","",VLOOKUP($A51,U19A!$A$11:$AC$210,8,FALSE))) ->  | O51: =IF(L51="","",IF(L51="FREE","",VLOOKUP($A51,U19A!$A$11:$AC$210,11,FALSE))) ->  | P51: =IF(L51="","",IF(L51="FREE","",VLOOKUP($A51,U19A!$A$11:$AC$210,10,FALSE))) ->  | Q51: =IF(ISERROR(VLOOKUP($A51,U17A!$A$11:$L$210,1,FALSE)),IF(WEEKDAY($A51,2)>5,"FREE",""),VLOOKUP($A51,U17A!$A$11:$L$210,7,FALSE)) ->  | R51: =IF(Q51="","",IF(Q51="FREE","",VLOOKUP($A51,U17A!$A$11:$L$210,2,FALSE))) ->  | S51: =IF(Q51="","",IF(Q51="FREE","",VLOOKUP($A51,U17A!$A$11:$L$210,8,FALSE))) ->  | T51: =IF(Q51="","",IF(Q51="FREE","",VLOOKUP($A51,U17A!$A$11:$L$210,11,FALSE))) ->  | U51: =IF(Q51="","",IF(Q51="FREE","",VLOOKUP($A51,U17A!$A$11:$L$210,10,FALSE))) ->  | V51: =IF(ISERROR(VLOOKUP($A51,VETA!$A$11:$L$210,1,FALSE)),IF(WEEKDAY($A51,2)>5,"FREE",""),VLOOKUP($A51,VETA!$A$11:$L$210,7,FALSE)) ->  | W51: =IF(V51="","",IF(V51="FREE","",VLOOKUP($A51,VETA!$A$11:$L$210,2,FALSE))) ->  | X51: =IF(V51="","",IF(V51="FREE","",VLOOKUP($A51,VETA!$A$11:$L$210,8,FALSE))) ->  | Y51: =IF(V51="","",IF(V51="FREE","",VLOOKUP($A51,VETA!$A$11:$L$210,11,FALSE))) ->  | Z51: =IF(V51="","",IF(V51="FREE","",VLOOKUP($A51,VETA!$A$11:$L$210,10,FALSE))) -> 
A52: 2017-08-11 | B52: =IF(ISERROR(VLOOKUP($A52,SENA!$A$11:$L$210,1,FALSE)),IF(WEEKDAY($A52,2)>5,"FREE",""),VLOOKUP($A52,SENA!$A$11:$L$210,7,FALSE)) ->  | C52: =IF(B52="","",IF(B52="FREE","",VLOOKUP($A52,SENA!$A$11:$L$210,2,FALSE))) ->  | D52: =IF(B52="","",IF(B52="FREE","",VLOOKUP($A52,SENA!$A$11:$L$210,8,FALSE))) ->  | E52: =IF(B52="","",IF(B52="FREE","",VLOOKUP($A52,SENA!$A$11:$L$210,11,FALSE))) ->  | F52: =IF(B52="","",IF(B52="FREE","",VLOOKUP($A52,SENA!$A$11:$L$210,10,FALSE))) ->  | G52: =IF(ISERROR(VLOOKUP($A52,SENB!$A$11:$L$210,1,FALSE)),IF(WEEKDAY($A52,2)>5,"FREE",""),VLOOKUP($A52,SENB!$A$11:$L$210,7,FALSE)) ->  | H52: =IF(G52="","",IF(G52="FREE","",VLOOKUP($A52,SENB!$A$11:$L$210,2,FALSE))) ->  | I52: =IF(G52="","",IF(G52="FREE","",VLOOKUP($A52,SENB!$A$11:$L$210,8,FALSE))) ->  | J52: =IF(G52="","",IF(G52="FREE","",VLOOKUP($A52,SENB!$A$11:$L$210,11,FALSE))) ->  | K52: =IF(G52="","",IF(G52="FREE","",VLOOKUP($A52,SENB!$A$11:$L$210,10,FALSE))) ->  | L52: =IF(ISERROR(VLOOKUP($A52,U19A!$A$11:$AC$210,1,FALSE)),IF(WEEKDAY($A52,2)>5,"FREE",""),VLOOKUP($A52,U19A!$A$11:$AC$210,7,FALSE)) ->  | M52: =IF(L52="","",IF(L52="FREE","",VLOOKUP($A52,U19A!$A$11:$AC$210,2,FALSE))) ->  | N52: =IF(L52="","",IF(L52="FREE","",VLOOKUP($A52,U19A!$A$11:$AC$210,8,FALSE))) ->  | O52: =IF(L52="","",IF(L52="FREE","",VLOOKUP($A52,U19A!$A$11:$AC$210,11,FALSE))) ->  | P52: =IF(L52="","",IF(L52="FREE","",VLOOKUP($A52,U19A!$A$11:$AC$210,10,FALSE))) ->  | Q52: =IF(ISERROR(VLOOKUP($A52,U17A!$A$11:$L$210,1,FALSE)),IF(WEEKDAY($A52,2)>5,"FREE",""),VLOOKUP($A52,U17A!$A$11:$L$210,7,FALSE)) ->  | R52: =IF(Q52="","",IF(Q52="FREE","",VLOOKUP($A52,U17A!$A$11:$L$210,2,FALSE))) ->  | S52: =IF(Q52="","",IF(Q52="FREE","",VLOOKUP($A52,U17A!$A$11:$L$210,8,FALSE))) ->  | T52: =IF(Q52="","",IF(Q52="FREE","",VLOOKUP($A52,U17A!$A$11:$L$210,11,FALSE))) ->  | U52: =IF(Q52="","",IF(Q52="FREE","",VLOOKUP($A52,U17A!$A$11:$L$210,10,FALSE))) ->  | V52: =IF(ISERROR(VLOOKUP($A52,VETA!$A$11:$L$210,1,FALSE)),IF(WEEKDAY($A52,2)>5,"FREE",""),VLOOKUP($A52,VETA!$A$11:$L$210,7,FALSE)) ->  | W52: =IF(V52="","",IF(V52="FREE","",VLOOKUP($A52,VETA!$A$11:$L$210,2,FALSE))) ->  | X52: =IF(V52="","",IF(V52="FREE","",VLOOKUP($A52,VETA!$A$11:$L$210,8,FALSE))) ->  | Y52: =IF(V52="","",IF(V52="FREE","",VLOOKUP($A52,VETA!$A$11:$L$210,11,FALSE))) ->  | Z52: =IF(V52="","",IF(V52="FREE","",VLOOKUP($A52,VETA!$A$11:$L$210,10,FALSE))) -> 
A53: 2017-08-12 | B53: =IF(ISERROR(VLOOKUP($A53,SENA!$A$11:$L$210,1,FALSE)),IF(WEEKDAY($A53,2)>5,"FREE",""),VLOOKUP($A53,SENA!$A$11:$L$210,7,FALSE)) -> FREE | C53: =IF(B53="","",IF(B53="FREE","",VLOOKUP($A53,SENA!$A$11:$L$210,2,FALSE))) ->  | D53: =IF(B53="","",IF(B53="FREE","",VLOOKUP($A53,SENA!$A$11:$L$210,8,FALSE))) ->  | E53: =IF(B53="","",IF(B53="FREE","",VLOOKUP($A53,SENA!$A$11:$L$210,11,FALSE))) ->  | F53: =IF(B53="","",IF(B53="FREE","",VLOOKUP($A53,SENA!$A$11:$L$210,10,FALSE))) ->  | G53: =IF(ISERROR(VLOOKUP($A53,SENB!$A$11:$L$210,1,FALSE)),IF(WEEKDAY($A53,2)>5,"FREE",""),VLOOKUP($A53,SENB!$A$11:$L$210,7,FALSE)) -> FREE | H53: =IF(G53="","",IF(G53="FREE","",VLOOKUP($A53,SENB!$A$11:$L$210,2,FALSE))) ->  | I53: =IF(G53="","",IF(G53="FREE","",VLOOKUP($A53,SENB!$A$11:$L$210,8,FALSE))) ->  | J53: =IF(G53="","",IF(G53="FREE","",VLOOKUP($A53,SENB!$A$11:$L$210,11,FALSE))) ->  | K53: =IF(G53="","",IF(G53="FREE","",VLOOKUP($A53,SENB!$A$11:$L$210,10,FALSE))) ->  | L53: =IF(ISERROR(VLOOKUP($A53,U19A!$A$11:$AC$210,1,FALSE)),IF(WEEKDAY($A53,2)>5,"FREE",""),VLOOKUP($A53,U19A!$A$11:$AC$210,7,FALSE)) -> FREE | M53: =IF(L53="","",IF(L53="FREE","",VLOOKUP($A53,U19A!$A$11:$AC$210,2,FALSE))) ->  | N53: =IF(L53="","",IF(L53="FREE","",VLOOKUP($A53,U19A!$A$11:$AC$210,8,FALSE))) ->  | O53: =IF(L53="","",IF(L53="FREE","",VLOOKUP($A53,U19A!$A$11:$AC$210,11,FALSE))) ->  | P53: =IF(L53="","",IF(L53="FREE","",VLOOKUP($A53,U19A!$A$11:$AC$210,10,FALSE))) ->  | Q53: =IF(ISERROR(VLOOKUP($A53,U17A!$A$11:$L$210,1,FALSE)),IF(WEEKDAY($A53,2)>5,"FREE",""),VLOOKUP($A53,U17A!$A$11:$L$210,7,FALSE)) -> FREE | R53: =IF(Q53="","",IF(Q53="FREE","",VLOOKUP($A53,U17A!$A$11:$L$210,2,FALSE))) ->  | S53: =IF(Q53="","",IF(Q53="FREE","",VLOOKUP($A53,U17A!$A$11:$L$210,8,FALSE))) ->  | T53: =IF(Q53="","",IF(Q53="FREE","",VLOOKUP($A53,U17A!$A$11:$L$210,11,FALSE))) ->  | U53: =IF(Q53="","",IF(Q53="FREE","",VLOOKUP($A53,U17A!$A$11:$L$210,10,FALSE))) ->  | V53: =IF(ISERROR(VLOOKUP($A53,VETA!$A$11:$L$210,1,FALSE)),IF(WEEKDAY($A53,2)>5,"FREE",""),VLOOKUP($A53,VETA!$A$11:$L$210,7,FALSE)) -> FREE | W53: =IF(V53="","",IF(V53="FREE","",VLOOKUP($A53,VETA!$A$11:$L$210,2,FALSE))) ->  | X53: =IF(V53="","",IF(V53="FREE","",VLOOKUP($A53,VETA!$A$11:$L$210,8,FALSE))) ->  | Y53: =IF(V53="","",IF(V53="FREE","",VLOOKUP($A53,VETA!$A$11:$L$210,11,FALSE))) ->  | Z53: =IF(V53="","",IF(V53="FREE","",VLOOKUP($A53,VETA!$A$11:$L$210,10,FALSE))) -> 
A54: 2017-08-13 | B54: =IF(ISERROR(VLOOKUP($A54,SENA!$A$11:$L$210,1,FALSE)),IF(WEEKDAY($A54,2)>5,"FREE",""),VLOOKUP($A54,SENA!$A$11:$L$210,7,FALSE)) -> FREE | C54: =IF(B54="","",IF(B54="FREE","",VLOOKUP($A54,SENA!$A$11:$L$210,2,FALSE))) ->  | D54: =IF(B54="","",IF(B54="FREE","",VLOOKUP($A54,SENA!$A$11:$L$210,8,FALSE))) ->  | E54: =IF(B54="","",IF(B54="FREE","",VLOOKUP($A54,SENA!$A$11:$L$210,11,FALSE))) ->  | F54: =IF(B54="","",IF(B54="FREE","",VLOOKUP($A54,SENA!$A$11:$L$210,10,FALSE))) ->  | G54: =IF(ISERROR(VLOOKUP($A54,SENB!$A$11:$L$210,1,FALSE)),IF(WEEKDAY($A54,2)>5,"FREE",""),VLOOKUP($A54,SENB!$A$11:$L$210,7,FALSE)) -> AWAY | H54: =IF(G54="","",IF(G54="FREE","",VLOOKUP($A54,SENB!$A$11:$L$210,2,FALSE))) -> 15:00:00 | I54: =IF(G54="","",IF(G54="FREE","",VLOOKUP($A54,SENB!$A$11:$L$210,8,FALSE))) -> 17:00:00 | J54: =IF(G54="","",IF(G54="FREE","",VLOOKUP($A54,SENB!$A$11:$L$210,11,FALSE))) -> STREE B_CHAMP | K54: =IF(G54="","",IF(G54="FREE","",VLOOKUP($A54,SENB!$A$11:$L$210,10,FALSE))) -> UKN | L54: =IF(ISERROR(VLOOKUP($A54,U19A!$A$11:$AC$210,1,FALSE)),IF(WEEKDAY($A54,2)>5,"FREE",""),VLOOKUP($A54,U19A!$A$11:$AC$210,7,FALSE)) -> FREE | M54: =IF(L54="","",IF(L54="FREE","",VLOOKUP($A54,U19A!$A$11:$AC$210,2,FALSE))) ->  | N54: =IF(L54="","",IF(L54="FREE","",VLOOKUP($A54,U19A!$A$11:$AC$210,8,FALSE))) ->  | O54: =IF(L54="","",IF(L54="FREE","",VLOOKUP($A54,U19A!$A$11:$AC$210,11,FALSE))) ->  | P54: =IF(L54="","",IF(L54="FREE","",VLOOKUP($A54,U19A!$A$11:$AC$210,10,FALSE))) ->  | Q54: =IF(ISERROR(VLOOKUP($A54,U17A!$A$11:$L$210,1,FALSE)),IF(WEEKDAY($A54,2)>5,"FREE",""),VLOOKUP($A54,U17A!$A$11:$L$210,7,FALSE)) -> FREE | R54: =IF(Q54="","",IF(Q54="FREE","",VLOOKUP($A54,U17A!$A$11:$L$210,2,FALSE))) ->  | S54: =IF(Q54="","",IF(Q54="FREE","",VLOOKUP($A54,U17A!$A$11:$L$210,8,FALSE))) ->  | T54: =IF(Q54="","",IF(Q54="FREE","",VLOOKUP($A54,U17A!$A$11:$L$210,11,FALSE))) ->  | U54: =IF(Q54="","",IF(Q54="FREE","",VLOOKUP($A54,U17A!$A$11:$L$210,10,FALSE))) ->  | V54: =IF(ISERROR(VLOOKUP($A54,VETA!$A$11:$L$210,1,FALSE)),IF(WEEKDAY($A54,2)>5,"FREE",""),VLOOKUP($A54,VETA!$A$11:$L$210,7,FALSE)) -> FREE | W54: =IF(V54="","",IF(V54="FREE","",VLOOKUP($A54,VETA!$A$11:$L$210,2,FALSE))) ->  | X54: =IF(V54="","",IF(V54="FREE","",VLOOKUP($A54,VETA!$A$11:$L$210,8,FALSE))) ->  | Y54: =IF(V54="","",IF(V54="FREE","",VLOOKUP($A54,VETA!$A$11:$L$210,11,FALSE))) ->  | Z54: =IF(V54="","",IF(V54="FREE","",VLOOKUP($A54,VETA!$A$11:$L$210,10,FALSE))) -> 
